Workbook

Sheet Startkarte_1er
I1: Her | J1: Sen | K1: Dam | L1: Jgd | M1: Sch | N1: Start-Nr.:
A3: Name: | H3: Vorname: | N3: Geb-Jahr:
A5: Pass-Nr.: | H5: Verein:
A7: Serie: | D7: Tisch: | G7: Platz: | J7: Punkte: | M7: Gesamt- Ounkte | P7: Kontroll- abzeichnung
A9: 1
A10: 2
A11: 3
A12: 4
A13: 1 | C13: Sp.P. | G13: gew. | J13: verl. | M13: v.G.
A14: 2 | C14: Sp.P. | G14: gew. | J14: verl. | M14: v.G.
A15: 3 | C15: Sp.P. | G15: gew. | J15: verl. | M15: v.G.
A16: 4 | C16: Sp.P. | G16: gew. | J16: verl. | M16: v.G.
G17: Endergebnis: | P17: Platz:
A18: Bitte Angaben zur Person überprüfen, da diese bei einer Qualifikation weitergemeldet werden!
I21: Her | J21: Sen | K21: Dam | L21: Jgd | M21: Sch | N21: Start-Nr.:
A23: Name: | H23: Vorname: | N23: Geb-Jahr:
A25: Pass-Nr.: | H25: Verein:
A27: Serie: | D27: Tisch: | G27: Platz: | J27: Punkte: | M27: Gesamt- Ounkte | P27: Kontroll- abzeichnung
A29: 1
A30: 2
A31: 3
A32: 4
A33: 1 | C33: Sp.P. | G33: gew. | J33: verl. | M33: v.G.
A34: 2 | C34: Sp.P. | G34: gew. | J34: verl. | M34: v.G.
A35: 3 | C35: Sp.P. | G35: gew. | J35: verl. | M35: v.G.
A36: 4 | C36: Sp.P. | G36: gew. | J36: verl. | M36: v.G.
G37: Endergebnis: | P37: Platz:
A38: Bitte Angaben zur Person überprüfen, da diese bei einer Qualifikation weitergemeldet werden!

Sheet Eindruck
A1: =Starterfeld!A1 -> LV 04 - EM - Qualifikation | F1: =Starterfeld!E1 -> 2022-04-02 | J1: X | P1: =S1 -> 221 | S1: 221 | W1: X | X1: X | Y1: X | Z1: X | AA1: X
W2: Her | X2: Sen | Y2: Dam | Z2: Jug | AA2: Sch
C3: =(INDEX(Spieler!E$1:E$65538,MATCH($S$3,Spieler!A$1:A$65538,0))) -> 0 | J3: =(INDEX(Spieler!F$1:F$65538,MATCH($S$3,Spieler!A$1:A$65538,0))) -> 0 | P3: =(INDEX([1]Spieler!J$1:J$65538,MATCH($S$3,[1]Spieler!A$1:A$65538,0))) -> S | Q3: =(INDEX(Spieler!I$1:I$65538,MATCH($S$3,Spieler!A$1:A$65538,0))) -> 00:00:00 | S3: =(INDEX(Spieler!$A$1:$A$65538,MATCH($S$1,Spieler!A$1:A$65538,0))) -> 221 | W3: X umsetzen "I" bis "M"
C5: =(INDEX(Spieler!H$1:H$65538,MATCH($S$3,Spieler!A$1:A$65538,0))) -> 0 | J5: =(INDEX(Spieler!G$1:G$65538,MATCH($S$3,Spieler!A$1:A$65538,0))) -> 0 | O5: =(INDEX(Spieler!D$1:D$65538,MATCH($S$3,Spieler!A$1:A$65538,0))) -> 0 | W5: ohne Passnummern C5 löschen!
D9: =(INDEX(Serie1!O$1:O$65536,MATCH($S$1,Serie1!C$1:C$65536,0))) -> 201 | G9: =(INDEX(Serie1!P$1:P$65536,MATCH($S$1,Serie1!C$1:C$65536,0))) -> 1
A21: =Starterfeld!A1 -> LV 04 - EM - Qualifikation | F21: =Starterfeld!E1 -> 2022-04-02 | J21: X | P21: =S21 -> 222 | S21: =S1+1 -> 222 | W21: X | X21: X | Y21: X | Z21: X | AA21: X
W22: Her | X22: Sen | Y22: Dam | Z22: Jug | AA22: Sch
C23: =(INDEX(Spieler!E$1:E$65538,MATCH($S$23,Spieler!A$1:A$65538,0))) -> 0 | J23: =(INDEX(Spieler!F$1:F$65538,MATCH($S$23,Spieler!A$1:A$65538,0))) -> 0 | P23: =(INDEX([1]Spieler!J$1:J$65538,MATCH($S$3,[1]Spieler!A$1:A$65538,0))) -> S | Q23: =(INDEX(Spieler!I$1:I$65538,MATCH($S$23,Spieler!A$1:A$65538,0))) -> 00:00:00 | S23: =(INDEX(Spieler!$A$1:$A$65538,MATCH($S$21,Spieler!A$1:A$65538,0))) -> 222 | W23: X umsetzen "I" bis "M"
C25: =(INDEX(Spieler!H$1:H$65538,MATCH($S$23,Spieler!A$1:A$65538,0))) -> 0 | J25: =(INDEX(Spieler!G$1:G$65538,MATCH($S$23,Spieler!A$1:A$65538,0))) -> 0 | O25: =(INDEX(Spieler!D$1:D$65538,MATCH($S$23,Spieler!A$1:A$65538,0))) -> 0 | W25: ohne Passnummern C25 löschen!
D29: =(INDEX(Serie1!O$1:O$65536,MATCH($S$21,Serie1!C$1:C$65536,0))) -> 202 | G29: =(INDEX(Serie1!P$1:P$65536,MATCH($S$21,Serie1!C$1:C$65536,0))) -> 1

Sheet Herren
A1: =Starterfeld!A1 -> LV 04 - EM - Qualifikation | F1: =Starterfeld!E1 -> 2022-04-02 | I1: H | N1: Start-Nr.: | P1: =S1 -> 1 | S1: 1 | W1: H
W2: Her
A3: Name: | C3: =(INDEX(Spieler!E$1:E$65538,MATCH($S$3,Spieler!B$1:B$65538,0))) -> 0 | H3: Vorname: | J3: =(INDEX(Spieler!F$1:F$65538,MATCH($S$3,Spieler!B$1:B$65538,0))) -> 0 | N3: Geb-Jahr: | S3: =(INDEX(Spieler!$B$1:$B$65538,MATCH($S$1,Spieler!B$1:B$65538,0))) -> 1
A5: Pass-Nr.: | C5: =(INDEX(Spieler!H$1:H$65538,MATCH($S$3,Spieler!B$1:B$65538,0))) -> 0 | H5: Verein: | J5: =(INDEX(Spieler!G$1:G$65538,MATCH($S$3,Spieler!B$1:B$65538,0))) -> 0 | O5: =(INDEX(Spieler!D$1:D$65538,MATCH($S$3,Spieler!B$1:B$65538,0))) -> 0
A7: Serie: | D7: Tisch: | G7: Platz: | J7: Punkte: | M7: Gesamt- Ounkte | P7: Kontroll- abzeichnung
W8: 1 bis 50
A9: 1 | D9: =(INDEX(Serie1!O$1:O$65536,MATCH($S$1,Serie1!C$1:C$65536,0))) -> 1 | G9: =(INDEX(Serie1!P$1:P$65536,MATCH($S$1,Serie1!C$1:C$65536,0))) -> 1 | W9: 55 bis 104
A10: 2 | W10: 109 bis 158
A11: 3 | W11: 163 bis 212
A12: 4
A13: 1 | C13: Sp.P. | G13: gew. | J13: verl. | M13: v.G.
A14: 2 | C14: Sp.P. | G14: gew. | J14: verl. | M14: v.G.
A15: 3 | C15: Sp.P. | G15: gew. | J15: verl. | M15: v.G.
A16: 4 | C16: Sp.P. | G16: gew. | J16: verl. | M16: v.G.
G17: Endergebnis: | P17: Platz:
A18: Bitte Angaben zur Person überprüfen, da diese bei einer Qualifikation weitergemeldet werden!
A21: =Starterfeld!A1 -> LV 04 - EM - Qualifikation | F21: =Starterfeld!E1 -> 2022-04-02 | I21: H | N21: Start-Nr.: | P21: =S21 -> 2 | S21: =S1+1 -> 2 | W21: H
W22: Her
A23: Name: | C23: =(INDEX(Spieler!E$1:E$65538,MATCH($S$23,Spieler!B$1:B$65538,0))) -> 0 | H23: Vorname: | J23: =(INDEX(Spieler!F$1:F$65538,MATCH($S$23,Spieler!B$1:B$65538,0))) -> 0 | N23: Geb-Jahr: | S23: =(INDEX(Spieler!$B$1:$B$65538,MATCH($S$21,Spieler!B$1:B$65538,0))) -> 2
A25: Pass-Nr.: | C25: =(INDEX(Spieler!H$1:H$65538,MATCH($S$23,Spieler!B$1:B$65538,0))) -> 0 | H25: Verein: | J25: =(INDEX(Spieler!G$1:G$65538,MATCH($S$23,Spieler!B$1:B$65538,0))) -> 0 | O25: =(INDEX(Spieler!D$1:D$65538,MATCH($S$23,Spieler!B$1:B$65538,0))) -> 0
A27: Serie: | D27: Tisch: | G27: Platz: | J27: Punkte: | M27: Gesamt- Ounkte | P27: Kontroll- abzeichnung
A29: 1 | D29: =(INDEX(Serie1!O$1:O$65536,MATCH($S$21,Serie1!C$1:C$65536,0))) -> 2 | G29: =(INDEX(Serie1!P$1:P$65536,MATCH($S$21,Serie1!C$1:C$65536,0))) -> 1
A30: 2
A31: 3
A32: 4
A33: 1 | C33: Sp.P. | G33: gew. | J33: verl. | M33: v.G.
A34: 2 | C34: Sp.P. | G34: gew. | J34: verl. | M34: v.G.
A35: 3 | C35: Sp.P. | G35: gew. | J35: verl. | M35: v.G.
A36: 4 | C36: Sp.P. | G36: gew. | J36: verl. | M36: v.G.
G37: Endergebnis: | P37: Platz:
A38: Bitte Angaben zur Person überprüfen, da diese bei einer Qualifikation weitergemeldet werden!

Sheet Senioren
A1: =Starterfeld!A1 -> LV 04 - EM - Qualifikation | F1: =Starterfeld!E1 -> 2022-04-02 | J1: S | N1: Start-Nr.: | P1: =S1 -> 221 | S1: 221 | X1: S
X2: Sen
A3: Name: | C3: =(INDEX(Spieler!E$1:E$65538,MATCH($S$3,Spieler!A$1:A$65538,0))) -> 0 | H3: Vorname: | J3: =(INDEX(Spieler!F$1:F$65538,MATCH($S$3,Spieler!A$1:A$65538,0))) -> 0 | N3: Geb-Jahr: | Q3: =(INDEX(Spieler!I$1:I$65538,MATCH($S$3,Spieler!A$1:A$65538,0))) -> 00:00:00 | S3: =(INDEX(Spieler!$A$1:$A$65538,MATCH($S$1,Spieler!A$1:A$65538,0))) -> 221
A5: Pass-Nr.: | C5: =(INDEX(Spieler!H$1:H$65538,MATCH($S$3,Spieler!A$1:A$65538,0))) -> 0 | H5: Verein: | J5: =(INDEX(Spieler!G$1:G$65538,MATCH($S$3,Spieler!A$1:A$65538,0))) -> 0 | O5: =(INDEX(Spieler!D$1:D$65538,MATCH($S$3,Spieler!A$1:A$65538,0))) -> 0
A7: Serie: | D7: Tisch: | G7: Platz: | J7: Punkte: | M7: Gesamt- Ounkte | P7: Kontroll- abzeichnung
W8: 221 bis 235
A9: 1 | D9: =(INDEX(Serie1!O$1:O$65536,MATCH($S$1,Serie1!C$1:C$65536,0))) -> 201 | G9: =(INDEX(Serie1!P$1:P$65536,MATCH($S$1,Serie1!C$1:C$65536,0))) -> 1 | W9: 241 bis 255
A10: 2 | W10: 261 bis 275
A11: 3 | W11: 281 bis 295
A12: 4
A13: 1 | C13: Sp.P. | G13: gew. | J13: verl. | M13: v.G.
A14: 2 | C14: Sp.P. | G14: gew. | J14: verl. | M14: v.G.
A15: 3 | C15: Sp.P. | G15: gew. | J15: verl. | M15: v.G.
A16: 4 | C16: Sp.P. | G16: gew. | J16: verl. | M16: v.G.
G17: Endergebnis: | P17: Platz:
A18: Bitte Angaben zur Person überprüfen, da diese bei einer Qualifikation weitergemeldet werden!
A21: =Starterfeld!A1 -> LV 04 - EM - Qualifikation | F21: =Starterfeld!E1 -> 2022-04-02 | J21: S | N21: Start-Nr.: | P21: =S21 -> 222 | S21: =S1+1 -> 222 | X21: S
X22: Sen
A23: Name: | C23: =(INDEX(Spieler!E$1:E$65538,MATCH($S$23,Spieler!A$1:A$65538,0))) -> 0 | H23: Vorname: | J23: =(INDEX(Spieler!F$1:F$65538,MATCH($S$23,Spieler!A$1:A$65538,0))) -> 0 | N23: Geb-Jahr: | Q23: =(INDEX(Spieler!I$1:I$65538,MATCH($S$23,Spieler!A$1:A$65538,0))) -> 00:00:00 | S23: =(INDEX(Spieler!$A$1:$A$65538,MATCH($S$21,Spieler!A$1:A$65538,0))) -> 222
A25: Pass-Nr.: | C25: =(INDEX(Spieler!H$1:H$65538,MATCH($S$23,Spieler!A$1:A$65538,0))) -> 0 | H25: Verein: | J25: =(INDEX(Spieler!G$1:G$65538,MATCH($S$23,Spieler!A$1:A$65538,0))) -> 0 | O25: =(INDEX(Spieler!D$1:D$65538,MATCH($S$23,Spieler!A$1:A$65538,0))) -> 0
A27: Serie: | D27: Tisch: | G27: Platz: | J27: Punkte: | M27: Gesamt- Ounkte | P27: Kontroll- abzeichnung
A29: 1 | D29: =(INDEX(Serie1!O$1:O$65536,MATCH($S$21,Serie1!C$1:C$65536,0))) -> 202 | G29: =(INDEX(Serie1!P$1:P$65536,MATCH($S$21,Serie1!C$1:C$65536,0))) -> 1
A30: 2
A31: 3
A32: 4
A33: 1 | C33: Sp.P. | G33: gew. | J33: verl. | M33: v.G.
A34: 2 | C34: Sp.P. | G34: gew. | J34: verl. | M34: v.G.
A35: 3 | C35: Sp.P. | G35: gew. | J35: verl. | M35: v.G.
A36: 4 | C36: Sp.P. | G36: gew. | J36: verl. | M36: v.G.
G37: Endergebnis: | P37: Platz:
A38: Bitte Angaben zur Person überprüfen, da diese bei einer Qualifikation weitergemeldet werden!

Sheet Damen
A1: =Starterfeld!A1 -> LV 04 - EM - Qualifikation | F1: =Starterfeld!E1 -> 2022-04-02 | K1: D | N1: Start-Nr.: | P1: =S1 -> 301 | S1: 301 | Y1: D
Y2: Dam
A3: Name: | C3: =(INDEX(Spieler!E$1:E$65538,MATCH($S$3,Spieler!A$1:A$65538,0))) -> 0 | H3: Vorname: | J3: =(INDEX(Spieler!F$1:F$65538,MATCH($S$3,Spieler!A$1:A$65538,0))) -> 0 | S3: =(INDEX(Spieler!$A$1:$A$65538,MATCH($S$1,Spieler!A$1:A$65538,0))) -> 301
A5: Pass-Nr.: | C5: =(INDEX(Spieler!H$1:H$65538,MATCH($S$3,Spieler!A$1:A$65538,0))) -> 0 | H5: Verein: | J5: =(INDEX(Spieler!G$1:G$65538,MATCH($S$3,Spieler!A$1:A$65538,0))) -> 0 | O5: =(INDEX(Spieler!D$1:D$65538,MATCH($S$3,Spieler!A$1:A$65538,0))) -> 0
A7: Serie: | D7: Tisch: | G7: Platz: | J7: Punkte: | M7: Gesamt- Ounkte | P7: Kontroll- abzeichnung
W8: 301 bis 314
A9: 1 | D9: =(INDEX(Serie1!O$1:O$65536,MATCH($S$1,Serie1!C$1:C$65536,0))) -> 301 | G9: =(INDEX(Serie1!P$1:P$65536,MATCH($S$1,Serie1!C$1:C$65536,0))) -> 1 | W9: 317 bis 330
A10: 2 | W10: 333 bis 345
A11: 3 | W11: 349 bis 362
A12: 4
A13: 1 | C13: Sp.P. | G13: gew. | J13: verl. | M13: v.G.
A14: 2 | C14: Sp.P. | G14: gew. | J14: verl. | M14: v.G.
A15: 3 | C15: Sp.P. | G15: gew. | J15: verl. | M15: v.G.
A16: 4 | C16: Sp.P. | G16: gew. | J16: verl. | M16: v.G.
G17: Endergebnis: | P17: Platz:
A18: Bitte Angaben zur Person überprüfen, da diese bei einer Qualifikation weitergemeldet werden!
A21: =Starterfeld!A1 -> LV 04 - EM - Qualifikation | F21: =Starterfeld!E1 -> 2022-04-02 | K21: D | N21: Start-Nr.: | P21: =S21 -> 302 | S21: =S1+1 -> 302 | Y21: D
Y22: Dam
A23: Name: | C23: =(INDEX(Spieler!E$1:E$65538,MATCH($S$23,Spieler!A$1:A$65538,0))) -> 0 | H23: Vorname: | J23: =(INDEX(Spieler!F$1:F$65538,MATCH($S$23,Spieler!A$1:A$65538,0))) -> 0 | S23: =(INDEX(Spieler!$A$1:$A$65538,MATCH($S$21,Spieler!A$1:A$65538,0))) -> 302
A25: Pass-Nr.: | C25: =(INDEX(Spieler!H$1:H$65538,MATCH($S$23,Spieler!A$1:A$65538,0))) -> 0 | H25: Verein: | J25: =(INDEX(Spieler!G$1:G$65538,MATCH($S$23,Spieler!A$1:A$65538,0))) -> 0 | O25: =(INDEX(Spieler!D$1:D$65538,MATCH($S$23,Spieler!A$1:A$65538,0))) -> 0
A27: Serie: | D27: Tisch: | G27: Platz: | J27: Punkte: | M27: Gesamt- Ounkte | P27: Kontroll- abzeichnung
A29: 1 | D29: =(INDEX(Serie1!O$1:O$65536,MATCH($S$21,Serie1!C$1:C$65536,0))) -> 302 | G29: =(INDEX(Serie1!P$1:P$65536,MATCH($S$21,Serie1!C$1:C$65536,0))) -> 1
A30: 2
A31: 3
A32: 4
A33: 1 | C33: Sp.P. | G33: gew. | J33: verl. | M33: v.G.
A34: 2 | C34: Sp.P. | G34: gew. | J34: verl. | M34: v.G.
A35: 3 | C35: Sp.P. | G35: gew. | J35: verl. | M35: v.G.
A36: 4 | C36: Sp.P. | G36: gew. | J36: verl. | M36: v.G.
G37: Endergebnis: | P37: Platz:
A38: Bitte Angaben zur Person überprüfen, da diese bei einer Qualifikation weitergemeldet werden!

Sheet Jugend
A1: =Starterfeld!A1 -> LV 04 - EM - Qualifikation | F1: =Starterfeld!E1 -> 2022-04-02 | L1: Jug | M1: Sch | N1: Start-Nr.: | P1: =S1 -> 401 | S1: 401 | Z1: Jug | AA1: Sch
Z2: Jug | AA2: Sch
A3: Name: | C3: =(INDEX(Spieler!E$1:E$65538,MATCH($S$3,Spieler!A$1:A$65538,0))) -> 0 | H3: Vorname: | J3: =(INDEX(Spieler!F$1:F$65538,MATCH($S$3,Spieler!A$1:A$65538,0))) -> 0 | N3: Geb-Jahr: | Q3: =(INDEX(Spieler!I$1:I$65538,MATCH($S$3,Spieler!A$1:A$65538,0))) -> 00:00:00 | S3: =(INDEX(Spieler!$A$1:$A$65538,MATCH($S$1,Spieler!A$1:A$65538,0))) -> 401
A5: Pass-Nr.: | C5: =(INDEX(Spieler!H$1:H$65538,MATCH($S$3,Spieler!A$1:A$65538,0))) -> 0 | H5: Verein: | J5: =(INDEX(Spieler!G$1:G$65538,MATCH($S$3,Spieler!A$1:A$65538,0))) -> 0 | O5: =(INDEX(Spieler!D$1:D$65538,MATCH($S$3,Spieler!A$1:A$65538,0))) -> 0
A7: Serie: | D7: Tisch: | G7: Platz: | J7: Punkte: | M7: Gesamt- Ounkte | P7: Kontroll- abzeichnung
W8: 401 bis 402
A9: 1 | D9: =(INDEX(Serie1!O$1:O$65536,MATCH($S$1,Serie1!C$1:C$65536,0))) -> 401 | G9: =(INDEX(Serie1!P$1:P$65536,MATCH($S$1,Serie1!C$1:C$65536,0))) -> 1 | W9: 407 bis 408
A10: 2 | W10: 413 bis 414
A11: 3
A12: 4
A13: 1 | C13: Sp.P. | G13: gew. | J13: verl. | M13: v.G.
A14: 2 | C14: Sp.P. | G14: gew. | J14: verl. | M14: v.G.
A15: 3 | C15: Sp.P. | G15: gew. | J15: verl. | M15: v.G.
A16: 4 | C16: Sp.P. | G16: gew. | J16: verl. | M16: v.G.
G17: Endergebnis: | P17: Platz:
A18: Bitte Angaben zur Person überprüfen, da diese bei einer Qualifikation weitergemeldet werden!
A21: =Starterfeld!A1 -> LV 04 - EM - Qualifikation | F21: =Starterfeld!E1 -> 2022-04-02 | L21: Jug | M21: Sch | N21: Start-Nr.: | P21: =S21 -> 402 | S21: =S1+1 -> 402 | Z21: Jug | AA21: Sch
Z22: Jug | AA22: Sch
A23: Name: | C23: =(INDEX(Spieler!E$1:E$65538,MATCH($S$23,Spieler!A$1:A$65538,0))) -> 0 | H23: Vorname: | J23: =(INDEX(Spieler!F$1:F$65538,MATCH($S$23,Spieler!A$1:A$65538,0))) -> 0 | N23: Geb-Jahr: | Q23: =(INDEX(Spieler!I$1:I$65538,MATCH($S$23,Spieler!A$1:A$65538,0))) -> 00:00:00 | S23: =(INDEX(Spieler!$A$1:$A$65538,MATCH($S$21,Spieler!A$1:A$65538,0))) -> 402
A25: Pass-Nr.: | C25: =(INDEX(Spieler!H$1:H$65538,MATCH($S$23,Spieler!A$1:A$65538,0))) -> 0 | H25: Verein: | J25: =(INDEX(Spieler!G$1:G$65538,MATCH($S$23,Spieler!A$1:A$65538,0))) -> 0 | O25: =(INDEX(Spieler!D$1:D$65538,MATCH($S$23,Spieler!A$1:A$65538,0))) -> 0
A27: Serie: | D27: Tisch: | G27: Platz: | J27: Punkte: | M27: Gesamt- Ounkte | P27: Kontroll- abzeichnung
A29: 1 | D29: =(INDEX(Serie1!O$1:O$65536,MATCH($S$21,Serie1!C$1:C$65536,0))) -> 402 | G29: =(INDEX(Serie1!P$1:P$65536,MATCH($S$21,Serie1!C$1:C$65536,0))) -> 1
A30: 2
A31: 3
A32: 4
A33: 1 | C33: Sp.P. | G33: gew. | J33: verl. | M33: v.G.
A34: 2 | C34: Sp.P. | G34: gew. | J34: verl. | M34: v.G.
A35: 3 | C35: Sp.P. | G35: gew. | J35: verl. | M35: v.G.
A36: 4 | C36: Sp.P. | G36: gew. | J36: verl. | M36: v.G.
G37: Endergebnis: | P37: Platz:
A38: Bitte Angaben zur Person überprüfen, da diese bei einer Qualifikation weitergemeldet werden!

Sheet Spieler
A1: Start-Nr.: | B1: Tisch | C1: Platz | D1: Verein-edv | E1: Name | F1: Vorname | G1: Verein | H1: EDV-Nr. | J1: VG
A2: 1 | B2: 1 | C2: 1 | J2: H | K2: =E2&", "&F2 -> , | M2: Bitte immer Teilnehmer durch 4 teilen und entsprechend eintragen | N2: die letzten Tische frei lassen, wenn nicht gebraucht
A3: =A2+1 -> 2 | B3: 2 | C3: 1 | J3: H | K3: ,
A4: =A3+1 -> 3 | B4: 3 | C4: 1 | J4: H | K4: ,
A5: 4 | B5: 4 | C5: 1 | J5: H | K5: ,
A6: 5 | B6: 5 | C6: 1 | J6: H | K6: ,
A7: 6 | B7: 6 | C7: 1 | J7: H | K7: ,
A8: 7 | B8: 7 | C8: 1 | J8: H | K8: ,
A9: 8 | B9: 8 | C9: 1 | J9: H | K9: , | M9: gemacht für: | N9: eingestellt = max.
A10: 9 | B10: 9 | C10: 1 | J10: H | K10: , | M10: 216 Herren | N10: 54 Tische
A11: 10 | B11: 10 | C11: 1 | J11: H | K11: , | M11: 80 Senioren | N11: 20 Tische
A12: 11 | B12: 11 | C12: 1 | J12: H | K12: , | M12: 64 Damen | N12: 16 Tische
A13: 12 | B13: 12 | C13: 1 | J13: H | K13: , | M13: 24 Junioren | N13: 6 Tische
A14: 13 | B14: 13 | C14: 1 | J14: H | K14: ,
A15: 14 | B15: 14 | C15: 1 | J15: H | K15: ,
A16: 15 | B16: 15 | C16: 1 | J16: H | K16: ,
A17: 16 | B17: 16 | C17: 1 | J17: H | K17: ,
A18: 17 | B18: 17 | C18: 1 | J18: H | K18: ,
A19: 18 | B19: 18 | C19: 1 | J19: H | K19: ,
A20: 19 | B20: 19 | C20: 1 | J20: H | K20: ,
A21: 20 | B21: 20 | C21: 1 | J21: H | K21: ,
A22: 21 | B22: 21 | C22: 1 | J22: H | K22: ,
A23: 22 | B23: 22 | C23: 1 | J23: H | K23: ,
A24: 23 | B24: 23 | C24: 1 | J24: H | K24: ,
A25: 24 | B25: 24 | C25: 1 | J25: H | K25: ,
A26: 25 | B26: 25 | C26: 1 | J26: H | K26: ,
A27: 26 | B27: 26 | C27: 1 | J27: H | K27: ,
A28: 27 | B28: 27 | C28: 1 | J28: H | K28: ,
A29: 28 | B29: 28 | C29: 1 | J29: H | K29: ,
A30: 29 | B30: 29 | C30: 1 | J30: H | K30: ,
A31: 30 | B31: 30 | C31: 1 | J31: H | K31: ,
A32: 31 | B32: 31 | C32: 1 | J32: H | K32: ,
A33: 32 | B33: 32 | C33: 1 | J33: H | K33: ,
A34: 33 | B34: 33 | C34: 1 | J34: H | K34: ,
A35: 34 | B35: 34 | C35: 1 | J35: H | K35: ,
A36: 35 | B36: 35 | C36: 1 | J36: H | K36: ,
A37: 36 | B37: 36 | C37: 1 | J37: H | K37: ,
A38: 37 | B38: 37 | C38: 1 | J38: H | K38: ,
A39: 38 | B39: 38 | C39: 1 | J39: H | K39: ,
A40: 39 | B40: 39 | C40: 1 | J40: H | K40: ,
A41: 40 | B41: 40 | C41: 1 | J41: H | K41: ,
A42: 41 | B42: 41 | C42: 1 | J42: H | K42: ,
A43: 42 | B43: 42 | C43: 1 | J43: H | K43: ,
A44: 43 | B44: 43 | C44: 1 | J44: H | K44: ,
A45: 44 | B45: 44 | C45: 1 | J45: H | K45: ,
A46: 45 | B46: 45 | C46: 1 | J46: H | K46: ,
A47: 46 | B47: 46 | C47: 1 | J47: H | K47: ,
A48: 47 | B48: 47 | C48: 1 | J48: H | K48: ,
A49: 48 | B49: 48 | C49: 1 | J49: H | K49: ,
A50: 49 | B50: 49 | C50: 1 | J50: H | K50: ,
A51: 50 | B51: 50 | C51: 1 | J51: H | K51: ,
A52: 51 | B52: 51 | C52: 1 | J52: H | K52: ,
A53: 52 | B53: 52 | C53: 1 | J53: H | K53: ,
A54: 53 | B54: 53 | C54: 1 | J54: H | K54: ,
A55: 54 | B55: 54 | C55: 1 | J55: H | K55: ,
A56: 55 | B56: 1 | C56: 2 | J56: H | K56: ,
A57: 56 | B57: 2 | C57: 2 | J57: H | K57: ,
A58: 57 | B58: 3 | C58: 2 | J58: H | K58: ,
A59: 58 | B59: 4 | C59: 2 | J59: H | K59: ,
A60: 59 | B60: 5 | C60: 2 | J60: H | K60: ,
A61: 60 | B61: 6 | C61: 2 | J61: H | K61: ,
A62: 61 | B62: 7 | C62: 2 | J62: H | K62: ,
A63: 62 | B63: 8 | C63: 2 | J63: H | K63: ,
A64: 63 | B64: 9 | C64: 2 | J64: H | K64: ,
A65: 64 | B65: 10 | C65: 2 | J65: H | K65: ,
A66: 65 | B66: 11 | C66: 2 | J66: H | K66: =E66&", "&F66 -> ,
A67: 66 | B67: 12 | C67: 2 | J67: H | K67: ,
A68: =A67+1 -> 67 | B68: 13 | C68: 2 | J68: H | K68: ,
A69: 68 | B69: 14 | C69: 2 | J69: H | K69: ,
A70: 69 | B70: 15 | C70: 2 | J70: H | K70: ,
A71: 70 | B71: 16 | C71: 2 | J71: H | K71: ,
A72: 71 | B72: 17 | C72: 2 | J72: H | K72: ,
A73: 72 | B73: 18 | C73: 2 | J73: H | K73: ,
A74: 73 | B74: 19 | C74: 2 | J74: H | K74: ,
A75: 74 | B75: 20 | C75: 2 | J75: H | K75: ,
A76: 75 | B76: 21 | C76: 2 | J76: H | K76: ,
A77: 76 | B77: 22 | C77: 2 | J77: H | K77: ,
A78: 77 | B78: 23 | C78: 2 | J78: H | K78: ,
A79: 78 | B79: 24 | C79: 2 | J79: H | K79: ,
A80: 79 | B80: 25 | C80: 2 | J80: H | K80: ,
A81: 80 | B81: 26 | C81: 2 | J81: H | K81: ,
A82: 81 | B82: 27 | C82: 2 | J82: H | K82: ,
A83: 82 | B83: 28 | C83: 2 | J83: H | K83: ,
A84: 83 | B84: 29 | C84: 2 | J84: H | K84: ,
A85: 84 | B85: 30 | C85: 2 | J85: H | K85: ,
A86: 85 | B86: 31 | C86: 2 | J86: H | K86: ,
A87: 86 | B87: 32 | C87: 2 | J87: H | K87: ,
A88: 87 | B88: 33 | C88: 2 | J88: H | K88: ,
A89: 88 | B89: 34 | C89: 2 | J89: H | K89: ,
A90: 89 | B90: 35 | C90: 2 | J90: H | K90: ,
A91: 90 | B91: 36 | C91: 2 | J91: H | K91: ,
A92: 91 | B92: 37 | C92: 2 | J92: H | K92: ,
A93: 92 | B93: 38 | C93: 2 | J93: H | K93: ,
A94: 93 | B94: 39 | C94: 2 | J94: H | K94: ,
A95: 94 | B95: 40 | C95: 2 | J95: H | K95: ,
A96: 95 | B96: 41 | C96: 2 | J96: H | K96: ,
A97: 96 | B97: 42 | C97: 2 | J97: H | K97: ,
A98: 97 | B98: 43 | C98: 2 | J98: H | K98: ,
A99: 98 | B99: 44 | C99: 2 | J99: H | K99: ,
A100: 99 | B100: 45 | C100: 2 | J100: H | K100: ,
A101: 100 | B101: 46 | C101: 2 | J101: H | K101: ,
A102: 101 | B102: 47 | C102: 2 | J102: H | K102: ,
A103: 102 | B103: 48 | C103: 2 | J103: H | K103: ,
A104: 103 | B104: 49 | C104: 2 | J104: H | K104: ,
A105: 104 | B105: 50 | C105: 2 | J105: H | K105: ,
A106: 105 | B106: 51 | C106: 2 | J106: H | K106: ,
A107: 106 | B107: 52 | C107: 2 | J107: H | K107: ,
A108: 107 | B108: 53 | C108: 2 | J108: H | K108: ,
A109: 108 | B109: 54 | C109: 2 | J109: H | K109: ,
A110: 109 | B110: 1 | C110: 3 | J110: H | K110: ,
A111: 110 | B111: 2 | C111: 3 | J111: H | K111: ,
A112: 111 | B112: 3 | C112: 3 | J112: H | K112: ,
A113: 112 | B113: 4 | C113: 3 | J113: H | K113: ,
A114: 113 | B114: 5 | C114: 3 | J114: H | K114: ,
A115: 114 | B115: 6 | C115: 3 | J115: H | K115: ,
A116: 115 | B116: 7 | C116: 3 | J116: H | K116: ,
A117: 116 | B117: 8 | C117: 3 | J117: H | K117: ,
A118: 117 | B118: 9 | C118: 3 | J118: H | K118: ,
A119: 118 | B119: 10 | C119: 3 | J119: H | K119: ,
A120: 119 | B120: 11 | C120: 3 | J120: H | K120: ,
A121: 120 | B121: 12 | C121: 3 | J121: H | K121: ,
A122: 121 | B122: 13 | C122: 3 | J122: H | K122: ,
A123: 122 | B123: 14 | C123: 3 | J123: H | K123: ,
A124: 123 | B124: 15 | C124: 3 | J124: H | K124: ,
A125: 124 | B125: 16 | C125: 3 | J125: H | K125: ,
A126: 125 | B126: 17 | C126: 3 | J126: H | K126: ,
A127: 126 | B127: 18 | C127: 3 | J127: H | K127: ,
A128: 127 | B128: 19 | C128: 3 | J128: H | K128: ,
A129: 128 | B129: 20 | C129: 3 | J129: H | K129: ,
A130: 129 | B130: 21 | C130: 3 | J130: H | K130: =E130&", "&F130 -> ,
A131: 130 | B131: 22 | C131: 3 | J131: H | K131: ,
A132: =A131+1 -> 131 | B132: 23 | C132: 3 | J132: H | K132: ,
A133: 132 | B133: 24 | C133: 3 | J133: H | K133: ,
A134: 133 | B134: 25 | C134: 3 | J134: H | K134: ,
A135: 134 | B135: 26 | C135: 3 | J135: H | K135: ,
A136: 135 | B136: 27 | C136: 3 | J136: H | K136: ,
A137: 136 | B137: 28 | C137: 3 | J137: H | K137: ,
A138: 137 | B138: 29 | C138: 3 | J138: H | K138: ,
A139: 138 | B139: 30 | C139: 3 | J139: H | K139: ,
A140: 139 | B140: 31 | C140: 3 | J140: H | K140: ,
A141: 140 | B141: 32 | C141: 3 | J141: H | K141: ,
A142: 141 | B142: 33 | C142: 3 | J142: H | K142: ,
A143: 142 | B143: 34 | C143: 3 | J143: H | K143: ,
A144: 143 | B144: 35 | C144: 3 | J144: H | K144: ,
A145: 144 | B145: 36 | C145: 3 | J145: H | K145: ,
A146: 145 | B146: 37 | C146: 3 | J146: H | K146: ,
A147: 146 | B147: 38 | C147: 3 | J147: H | K147: ,
A148: 147 | B148: 39 | C148: 3 | J148: H | K148: ,
A149: 148 | B149: 40 | C149: 3 | J149: H | K149: ,
A150: 149 | B150: 41 | C150: 3 | J150: H | K150: ,
A151: 150 | B151: 42 | C151: 3 | J151: H | K151: ,
A152: 151 | B152: 43 | C152: 3 | J152: H | K152: ,
A153: 152 | B153: 44 | C153: 3 | J153: H | K153: ,
A154: 153 | B154: 45 | C154: 3 | J154: H | K154: ,
A155: 154 | B155: 46 | C155: 3 | J155: H | K155: ,
A156: 155 | B156: 47 | C156: 3 | J156: H | K156: ,
A157: 156 | B157: 48 | C157: 3 | J157: H | K157: ,
A158: 157 | B158: 49 | C158: 3 | J158: H | K158: ,
A159: 158 | B159: 50 | C159: 3 | J159: H | K159: ,
A160: 159 | B160: 51 | C160: 3 | J160: H | K160: ,
A161: 160 | B161: 52 | C161: 3 | J161: H | K161: ,
A162: 161 | B162: 53 | C162: 3 | J162: H | K162: ,
A163: 162 | B163: 54 | C163: 3 | J163: H | K163: ,
A164: 163 | B164: 1 | C164: 4 | J164: H | K164: ,
A165: 164 | B165: 2 | C165: 4 | J165: H | K165: ,
A166: 165 | B166: 3 | C166: 4 | J166: H | K166: ,
A167: 166 | B167: 4 | C167: 4 | J167: H | K167: ,
A168: 167 | B168: 5 | C168: 4 | J168: H | K168: ,
A169: 168 | B169: 6 | C169: 4 | J169: H | K169: ,
A170: 169 | B170: 7 | C170: 4 | J170: H | K170: ,
A171: 170 | B171: 8 | C171: 4 | J171: H | K171: ,
A172: 171 | B172: 9 | C172: 4 | J172: H | K172: ,
A173: 172 | B173: 10 | C173: 4 | J173: H | K173: ,
A174: 173 | B174: 11 | C174: 4 | J174: H | K174: ,
A175: 174 | B175: 12 | C175: 4 | J175: H | K175: ,
A176: 175 | B176: 13 | C176: 4 | J176: H | K176: ,
A177: 176 | B177: 14 | C177: 4 | J177: H | K177: ,
A178: 177 | B178: 15 | C178: 4 | J178: H | K178: ,
A179: 178 | B179: 16 | C179: 4 | J179: H | K179: ,
A180: 179 | B180: 17 | C180: 4 | J180: H | K180: ,
A181: 180 | B181: 18 | C181: 4 | J181: H | K181: ,
A182: 181 | B182: 19 | C182: 4 | J182: H | K182: ,
A183: 182 | B183: 20 | C183: 4 | J183: H | K183: ,
A184: 183 | B184: 21 | C184: 4 | J184: H | K184: ,
A185: 184 | B185: 22 | C185: 4 | J185: H | K185: ,
A186: 185 | B186: 23 | C186: 4 | J186: H | K186: ,
A187: 186 | B187: 24 | C187: 4 | J187: H | K187: ,
A188: 187 | B188: 25 | C188: 4 | J188: H | K188: ,
A189: 188 | B189: 26 | C189: 4 | J189: H | K189: ,
A190: 189 | B190: 27 | C190: 4 | J190: H | K190: ,
A191: 190 | B191: 28 | C191: 4 | J191: H | K191: ,
A192: 191 | B192: 29 | C192: 4 | J192: H | K192: ,
A193: 192 | B193: 30 | C193: 4 | J193: H | K193: ,
A194: 193 | B194: 31 | C194: 4 | J194: H | K194: =E194&", "&F194 -> ,
A195: 194 | B195: 32 | C195: 4 | J195: H | K195: ,
A196: 195 | B196: 33 | C196: 4 | J196: H | K196: ,
A197: 196 | B197: 34 | C197: 4 | J197: H | K197: ,
A198: 197 | B198: 35 | C198: 4 | J198: H | K198: ,
A199: 198 | B199: 36 | C199: 4 | J199: H | K199: ,
A200: 199 | B200: 37 | C200: 4 | J200: H | K200: ,
... 185 more rows

Sheet Liste
A1: Start-Nr.: | B1: Zufall | C1: Mitglied_Name | D1: Mitglied_Vorname | E1: EDV-Nr. | F1: Pass-Nr. | G1: Verein1
A2: =Spieler!A2 -> 1 | B2: =RAND() -> 0.6032042046 | C2: =Spieler!E2 -> 0 | D2: =Spieler!F2 -> 0 | E2: =Spieler!D2 -> 0 | F2: =Spieler!H2 -> 0 | G2: =Spieler!G2 -> 0 | H2: =C2&", "&D2 -> 0, 0
A3: =Spieler!A3 -> 2 | B3: =RAND() -> 0.3138163487 | C3: =Spieler!E3 -> 0 | D3: =Spieler!F3 -> 0 | E3: =Spieler!D3 -> 0 | F3: =Spieler!H3 -> 0 | G3: =Spieler!G3 -> 0 | H3: =C3&", "&D3 -> 0, 0
A4: =Spieler!A4 -> 3 | B4: 0.6195065665 | C4: =Spieler!E4 -> 0 | D4: =Spieler!F4 -> 0 | E4: =Spieler!D4 -> 0 | F4: =Spieler!H4 -> 0 | G4: =Spieler!G4 -> 0 | H4: 0, 0
A5: =Spieler!A5 -> 4 | B5: 0.05302961142 | C5: =Spieler!E5 -> 0 | D5: =Spieler!F5 -> 0 | E5: =Spieler!D5 -> 0 | F5: =Spieler!H5 -> 0 | G5: =Spieler!G5 -> 0 | H5: 0, 0
A6: =Spieler!A6 -> 5 | B6: 0.3733598224 | C6: =Spieler!E6 -> 0 | D6: =Spieler!F6 -> 0 | E6: =Spieler!D6 -> 0 | F6: =Spieler!H6 -> 0 | G6: =Spieler!G6 -> 0 | H6: 0, 0
A7: =Spieler!A7 -> 6 | B7: 0.08529854893 | C7: =Spieler!E7 -> 0 | D7: =Spieler!F7 -> 0 | E7: =Spieler!D7 -> 0 | F7: =Spieler!H7 -> 0 | G7: =Spieler!G7 -> 0 | H7: 0, 0
A8: =Spieler!A8 -> 7 | B8: 0.0351013388 | C8: =Spieler!E8 -> 0 | D8: =Spieler!F8 -> 0 | E8: =Spieler!D8 -> 0 | F8: =Spieler!H8 -> 0 | G8: =Spieler!G8 -> 0 | H8: 0, 0
A9: =Spieler!A9 -> 8 | B9: 0.5532826268 | C9: =Spieler!E9 -> 0 | D9: =Spieler!F9 -> 0 | E9: =Spieler!D9 -> 0 | F9: =Spieler!H9 -> 0 | G9: =Spieler!G9 -> 0 | H9: 0, 0
A10: =Spieler!A10 -> 9 | B10: 0.6807346763 | C10: =Spieler!E10 -> 0 | D10: =Spieler!F10 -> 0 | E10: =Spieler!D10 -> 0 | F10: =Spieler!H10 -> 0 | G10: =Spieler!G10 -> 0 | H10: 0, 0 | J10: erstellt durch:
A11: =Spieler!A11 -> 10 | B11: 0.2192071357 | C11: =Spieler!E11 -> 0 | D11: =Spieler!F11 -> 0 | E11: =Spieler!D11 -> 0 | F11: =Spieler!H11 -> 0 | G11: =Spieler!G11 -> 0 | H11: 0, 0
A12: =Spieler!A12 -> 11 | B12: 0.1321080084 | C12: =Spieler!E12 -> 0 | D12: =Spieler!F12 -> 0 | E12: =Spieler!D12 -> 0 | F12: =Spieler!H12 -> 0 | G12: =Spieler!G12 -> 0 | H12: 0, 0 | J12: Hans-A. Knobbe
A13: =Spieler!A13 -> 12 | B13: 0.5894526917 | C13: =Spieler!E13 -> 0 | D13: =Spieler!F13 -> 0 | E13: =Spieler!D13 -> 0 | F13: =Spieler!H13 -> 0 | G13: =Spieler!G13 -> 0 | H13: 0, 0 | J13: Extersche Strasse 8
A14: =Spieler!A14 -> 13 | B14: 0.6075214805 | C14: =Spieler!E14 -> 0 | D14: =Spieler!F14 -> 0 | E14: =Spieler!D14 -> 0 | F14: =Spieler!H14 -> 0 | G14: =Spieler!G14 -> 0 | H14: 0, 0 | J14: 32105 Bad Salzuflen
A15: =Spieler!A15 -> 14 | B15: 0.6521672671 | C15: =Spieler!E15 -> 0 | D15: =Spieler!F15 -> 0 | E15: =Spieler!D15 -> 0 | F15: =Spieler!H15 -> 0 | G15: =Spieler!G15 -> 0 | H15: 0, 0 | J15: Tel.: 05222 - 15008
A16: =Spieler!A16 -> 15 | B16: 0.1793430497 | C16: =Spieler!E16 -> 0 | D16: =Spieler!F16 -> 0 | E16: =Spieler!D16 -> 0 | F16: =Spieler!H16 -> 0 | G16: =Spieler!G16 -> 0 | H16: 0, 0
A17: =Spieler!A17 -> 16 | B17: 0.6712212814 | C17: =Spieler!E17 -> 0 | D17: =Spieler!F17 -> 0 | E17: =Spieler!D17 -> 0 | F17: =Spieler!H17 -> 0 | G17: =Spieler!G17 -> 0 | H17: 0, 0 | J17: IB der VG OWL (LV04/VG49)
A18: =Spieler!A18 -> 17 | B18: 0.8379643338 | C18: =Spieler!E18 -> 0 | D18: =Spieler!F18 -> 0 | E18: =Spieler!D18 -> 0 | F18: =Spieler!H18 -> 0 | G18: =Spieler!G18 -> 0 | H18: 0, 0
A19: =Spieler!A19 -> 18 | B19: 0.2492535453 | C19: =Spieler!E19 -> 0 | D19: =Spieler!F19 -> 0 | E19: =Spieler!D19 -> 0 | F19: =Spieler!H19 -> 0 | G19: =Spieler!G19 -> 0 | H19: 0, 0 | J19: HKnobbe@aol.com
A20: =Spieler!A20 -> 19 | B20: 0.7234776746 | C20: =Spieler!E20 -> 0 | D20: =Spieler!F20 -> 0 | E20: =Spieler!D20 -> 0 | F20: =Spieler!H20 -> 0 | G20: =Spieler!G20 -> 0 | H20: 0, 0 | J20: HansZocker@aol.com
A21: =Spieler!A21 -> 20 | B21: 0.1362848435 | C21: =Spieler!E21 -> 0 | D21: =Spieler!F21 -> 0 | E21: =Spieler!D21 -> 0 | F21: =Spieler!H21 -> 0 | G21: =Spieler!G21 -> 0 | H21: 0, 0
A22: =Spieler!A22 -> 21 | B22: 0.9006900588 | C22: =Spieler!E22 -> 0 | D22: =Spieler!F22 -> 0 | E22: =Spieler!D22 -> 0 | F22: =Spieler!H22 -> 0 | G22: =Spieler!G22 -> 0 | H22: 0, 0 | J22: Stand:März 2016
A23: =Spieler!A23 -> 22 | B23: 0.9982097214 | C23: =Spieler!E23 -> 0 | D23: =Spieler!F23 -> 0 | E23: =Spieler!D23 -> 0 | F23: =Spieler!H23 -> 0 | G23: =Spieler!G23 -> 0 | H23: 0, 0
A24: =Spieler!A24 -> 23 | B24: 0.3295278433 | C24: =Spieler!E24 -> 0 | D24: =Spieler!F24 -> 0 | E24: =Spieler!D24 -> 0 | F24: =Spieler!H24 -> 0 | G24: =Spieler!G24 -> 0 | H24: 0, 0 | J24: entweder in "Spieler" die Spieler schon nach Tisch und Platz eingeben, oder Vereinsweise und dann nach Zufall sortieren.
A25: =Spieler!A25 -> 24 | B25: 0.578823559 | C25: =Spieler!E25 -> 0 | D25: =Spieler!F25 -> 0 | E25: =Spieler!D25 -> 0 | F25: =Spieler!H25 -> 0 | G25: =Spieler!G25 -> 0 | H25: 0, 0
A26: =Spieler!A26 -> 25 | B26: 0.909191152 | C26: =Spieler!E26 -> 0 | D26: =Spieler!F26 -> 0 | E26: =Spieler!D26 -> 0 | F26: =Spieler!H26 -> 0 | G26: =Spieler!G26 -> 0 | H26: 0, 0
A27: =Spieler!A27 -> 26 | B27: 0.7173685666 | C27: =Spieler!E27 -> 0 | D27: =Spieler!F27 -> 0 | E27: =Spieler!D27 -> 0 | F27: =Spieler!H27 -> 0 | G27: =Spieler!G27 -> 0 | H27: 0, 0
A28: =Spieler!A28 -> 27 | B28: 0.1281705485 | C28: =Spieler!E28 -> 0 | D28: =Spieler!F28 -> 0 | E28: =Spieler!D28 -> 0 | F28: =Spieler!H28 -> 0 | G28: =Spieler!G28 -> 0 | H28: 0, 0
A29: =Spieler!A29 -> 28 | B29: 0.08467720341 | C29: =Spieler!E29 -> 0 | D29: =Spieler!F29 -> 0 | E29: =Spieler!D29 -> 0 | F29: =Spieler!H29 -> 0 | G29: =Spieler!G29 -> 0 | H29: 0, 0
A30: =Spieler!A30 -> 29 | B30: 0.8119357058 | C30: =Spieler!E30 -> 0 | D30: =Spieler!F30 -> 0 | E30: =Spieler!D30 -> 0 | F30: =Spieler!H30 -> 0 | G30: =Spieler!G30 -> 0 | H30: 0, 0
A31: =Spieler!A31 -> 30 | B31: 0.937811231 | C31: =Spieler!E31 -> 0 | D31: =Spieler!F31 -> 0 | E31: =Spieler!D31 -> 0 | F31: =Spieler!H31 -> 0 | G31: =Spieler!G31 -> 0 | H31: 0, 0
A32: =Spieler!A32 -> 31 | B32: 0.4295948956 | C32: =Spieler!E32 -> 0 | D32: =Spieler!F32 -> 0 | E32: =Spieler!D32 -> 0 | F32: =Spieler!H32 -> 0 | G32: =Spieler!G32 -> 0 | H32: 0, 0
A33: =Spieler!A33 -> 32 | B33: 0.6145648342 | C33: =Spieler!E33 -> 0 | D33: =Spieler!F33 -> 0 | E33: =Spieler!D33 -> 0 | F33: =Spieler!H33 -> 0 | G33: =Spieler!G33 -> 0 | H33: 0, 0
A34: =Spieler!A34 -> 33 | B34: 0.1806574586 | C34: =Spieler!E34 -> 0 | D34: =Spieler!F34 -> 0 | E34: =Spieler!D34 -> 0 | F34: =Spieler!H34 -> 0 | G34: =Spieler!G34 -> 0 | H34: 0, 0
A35: =Spieler!A35 -> 34 | B35: 0.8359714759 | C35: =Spieler!E35 -> 0 | D35: =Spieler!F35 -> 0 | E35: =Spieler!D35 -> 0 | F35: =Spieler!H35 -> 0 | G35: =Spieler!G35 -> 0 | H35: 0, 0
A36: =Spieler!A36 -> 35 | B36: 0.8059378335 | C36: =Spieler!E36 -> 0 | D36: =Spieler!F36 -> 0 | E36: =Spieler!D36 -> 0 | F36: =Spieler!H36 -> 0 | G36: =Spieler!G36 -> 0 | H36: 0, 0
A37: =Spieler!A37 -> 36 | B37: 0.4889807879 | C37: =Spieler!E37 -> 0 | D37: =Spieler!F37 -> 0 | E37: =Spieler!D37 -> 0 | F37: =Spieler!H37 -> 0 | G37: =Spieler!G37 -> 0 | H37: 0, 0
A38: =Spieler!A38 -> 37 | B38: 0.4254155136 | C38: =Spieler!E38 -> 0 | D38: =Spieler!F38 -> 0 | E38: =Spieler!D38 -> 0 | F38: =Spieler!H38 -> 0 | G38: =Spieler!G38 -> 0 | H38: 0, 0
A39: =Spieler!A39 -> 38 | B39: 0.9959634389 | C39: =Spieler!E39 -> 0 | D39: =Spieler!F39 -> 0 | E39: =Spieler!D39 -> 0 | F39: =Spieler!H39 -> 0 | G39: =Spieler!G39 -> 0 | H39: 0, 0
A40: =Spieler!A40 -> 39 | B40: 0.7036001023 | C40: =Spieler!E40 -> 0 | D40: =Spieler!F40 -> 0 | E40: =Spieler!D40 -> 0 | F40: =Spieler!H40 -> 0 | G40: =Spieler!G40 -> 0 | H40: 0, 0
A41: =Spieler!A41 -> 40 | B41: 0.09275805705 | C41: =Spieler!E41 -> 0 | D41: =Spieler!F41 -> 0 | E41: =Spieler!D41 -> 0 | F41: =Spieler!H41 -> 0 | G41: =Spieler!G41 -> 0 | H41: 0, 0
A42: =Spieler!A42 -> 41 | B42: 0.5027153482 | C42: =Spieler!E42 -> 0 | D42: =Spieler!F42 -> 0 | E42: =Spieler!D42 -> 0 | F42: =Spieler!H42 -> 0 | G42: =Spieler!G42 -> 0 | H42: 0, 0
A43: =Spieler!A43 -> 42 | B43: 0.5146897465 | C43: =Spieler!E43 -> 0 | D43: =Spieler!F43 -> 0 | E43: =Spieler!D43 -> 0 | F43: =Spieler!H43 -> 0 | G43: =Spieler!G43 -> 0 | H43: 0, 0
A44: =Spieler!A44 -> 43 | B44: 0.4113484802 | C44: =Spieler!E44 -> 0 | D44: =Spieler!F44 -> 0 | E44: =Spieler!D44 -> 0 | F44: =Spieler!H44 -> 0 | G44: =Spieler!G44 -> 0 | H44: 0, 0
A45: =Spieler!A45 -> 44 | B45: 0.5723351883 | C45: =Spieler!E45 -> 0 | D45: =Spieler!F45 -> 0 | E45: =Spieler!D45 -> 0 | F45: =Spieler!H45 -> 0 | G45: =Spieler!G45 -> 0 | H45: 0, 0
A46: =Spieler!A46 -> 45 | B46: 0.8521480926 | C46: =Spieler!E46 -> 0 | D46: =Spieler!F46 -> 0 | E46: =Spieler!D46 -> 0 | F46: =Spieler!H46 -> 0 | G46: =Spieler!G46 -> 0 | H46: 0, 0
A47: =Spieler!A47 -> 46 | B47: 0.6042154188 | C47: =Spieler!E47 -> 0 | D47: =Spieler!F47 -> 0 | E47: =Spieler!D47 -> 0 | F47: =Spieler!H47 -> 0 | G47: =Spieler!G47 -> 0 | H47: 0, 0
A48: =Spieler!A48 -> 47 | B48: 0.6823515741 | C48: =Spieler!E48 -> 0 | D48: =Spieler!F48 -> 0 | E48: =Spieler!D48 -> 0 | F48: =Spieler!H48 -> 0 | G48: =Spieler!G48 -> 0 | H48: 0, 0
A49: =Spieler!A49 -> 48 | B49: 0.514701344 | C49: =Spieler!E49 -> 0 | D49: =Spieler!F49 -> 0 | E49: =Spieler!D49 -> 0 | F49: =Spieler!H49 -> 0 | G49: =Spieler!G49 -> 0 | H49: 0, 0
A50: =Spieler!A50 -> 49 | B50: 0.1631357485 | C50: =Spieler!E50 -> 0 | D50: =Spieler!F50 -> 0 | E50: =Spieler!D50 -> 0 | F50: =Spieler!H50 -> 0 | G50: =Spieler!G50 -> 0 | H50: 0, 0
A51: =Spieler!A51 -> 50 | B51: 0.4924441206 | C51: =Spieler!E51 -> 0 | D51: =Spieler!F51 -> 0 | E51: =Spieler!D51 -> 0 | F51: =Spieler!H51 -> 0 | G51: =Spieler!G51 -> 0 | H51: 0, 0
A52: =Spieler!A52 -> 51 | B52: 0.1059980225 | C52: =Spieler!E52 -> 0 | D52: =Spieler!F52 -> 0 | E52: =Spieler!D52 -> 0 | F52: =Spieler!H52 -> 0 | G52: =Spieler!G52 -> 0 | H52: 0, 0
A53: =Spieler!A53 -> 52 | B53: 0.4394761264 | C53: =Spieler!E53 -> 0 | D53: =Spieler!F53 -> 0 | E53: =Spieler!D53 -> 0 | F53: =Spieler!H53 -> 0 | G53: =Spieler!G53 -> 0 | H53: 0, 0
A54: =Spieler!A54 -> 53 | B54: 0.7258223129 | C54: =Spieler!E54 -> 0 | D54: =Spieler!F54 -> 0 | E54: =Spieler!D54 -> 0 | F54: =Spieler!H54 -> 0 | G54: =Spieler!G54 -> 0 | H54: 0, 0
A55: =Spieler!A55 -> 54 | B55: 0.09527060863 | C55: =Spieler!E55 -> 0 | D55: =Spieler!F55 -> 0 | E55: =Spieler!D55 -> 0 | F55: =Spieler!H55 -> 0 | G55: =Spieler!G55 -> 0 | H55: 0, 0
A56: =Spieler!A56 -> 55 | B56: 0.5200368997 | C56: =Spieler!E56 -> 0 | D56: =Spieler!F56 -> 0 | E56: =Spieler!D56 -> 0 | F56: =Spieler!H56 -> 0 | G56: =Spieler!G56 -> 0 | H56: 0, 0
A57: =Spieler!A57 -> 56 | B57: 0.5927410476 | C57: =Spieler!E57 -> 0 | D57: =Spieler!F57 -> 0 | E57: =Spieler!D57 -> 0 | F57: =Spieler!H57 -> 0 | G57: =Spieler!G57 -> 0 | H57: 0, 0
A58: =Spieler!A58 -> 57 | B58: 0.5602796866 | C58: =Spieler!E58 -> 0 | D58: =Spieler!F58 -> 0 | E58: =Spieler!D58 -> 0 | F58: =Spieler!H58 -> 0 | G58: =Spieler!G58 -> 0 | H58: 0, 0
A59: =Spieler!A59 -> 58 | B59: 0.6351008256 | C59: =Spieler!E59 -> 0 | D59: =Spieler!F59 -> 0 | E59: =Spieler!D59 -> 0 | F59: =Spieler!H59 -> 0 | G59: =Spieler!G59 -> 0 | H59: 0, 0
A60: =Spieler!A60 -> 59 | B60: 0.4608185004 | C60: =Spieler!E60 -> 0 | D60: =Spieler!F60 -> 0 | E60: =Spieler!D60 -> 0 | F60: =Spieler!H60 -> 0 | G60: =Spieler!G60 -> 0 | H60: 0, 0
A61: =Spieler!A61 -> 60 | B61: 0.09079680757 | C61: =Spieler!E61 -> 0 | D61: =Spieler!F61 -> 0 | E61: =Spieler!D61 -> 0 | F61: =Spieler!H61 -> 0 | G61: =Spieler!G61 -> 0 | H61: 0, 0
A62: =Spieler!A62 -> 61 | B62: 0.4443261045 | C62: =Spieler!E62 -> 0 | D62: =Spieler!F62 -> 0 | E62: =Spieler!D62 -> 0 | F62: =Spieler!H62 -> 0 | G62: =Spieler!G62 -> 0 | H62: 0, 0
A63: =Spieler!A63 -> 62 | B63: 0.04536016971 | C63: =Spieler!E63 -> 0 | D63: =Spieler!F63 -> 0 | E63: =Spieler!D63 -> 0 | F63: =Spieler!H63 -> 0 | G63: =Spieler!G63 -> 0 | H63: 0, 0
A64: =Spieler!A64 -> 63 | B64: 0.7304104928 | C64: =Spieler!E64 -> 0 | D64: =Spieler!F64 -> 0 | E64: =Spieler!D64 -> 0 | F64: =Spieler!H64 -> 0 | G64: =Spieler!G64 -> 0 | H64: 0, 0
A65: =Spieler!A65 -> 64 | B65: 0.621530431 | C65: =Spieler!E65 -> 0 | D65: =Spieler!F65 -> 0 | E65: =Spieler!D65 -> 0 | F65: =Spieler!H65 -> 0 | G65: =Spieler!G65 -> 0 | H65: 0, 0
A66: =Spieler!A66 -> 65 | B66: 0.6505279425 | C66: =Spieler!E66 -> 0 | D66: =Spieler!F66 -> 0 | E66: =Spieler!D66 -> 0 | F66: =Spieler!H66 -> 0 | G66: =Spieler!G66 -> 0 | H66: 0, 0
A67: =Spieler!A67 -> 66 | B67: =RAND() -> 0.7948351939 | C67: =Spieler!E67 -> 0 | D67: =Spieler!F67 -> 0 | E67: =Spieler!D67 -> 0 | F67: =Spieler!H67 -> 0 | G67: =Spieler!G67 -> 0 | H67: =C67&", "&D67 -> 0, 0
A68: =Spieler!A68 -> 67 | B68: 0.8027461949 | C68: =Spieler!E68 -> 0 | D68: =Spieler!F68 -> 0 | E68: =Spieler!D68 -> 0 | F68: =Spieler!H68 -> 0 | G68: =Spieler!G68 -> 0 | H68: 0, 0
A69: =Spieler!A69 -> 68 | B69: 0.0692719417 | C69: =Spieler!E69 -> 0 | D69: =Spieler!F69 -> 0 | E69: =Spieler!D69 -> 0 | F69: =Spieler!H69 -> 0 | G69: =Spieler!G69 -> 0 | H69: 0, 0
A70: =Spieler!A70 -> 69 | B70: 0.6751717308 | C70: =Spieler!E70 -> 0 | D70: =Spieler!F70 -> 0 | E70: =Spieler!D70 -> 0 | F70: =Spieler!H70 -> 0 | G70: =Spieler!G70 -> 0 | H70: 0, 0
A71: =Spieler!A71 -> 70 | B71: 0.9812825406 | C71: =Spieler!E71 -> 0 | D71: =Spieler!F71 -> 0 | E71: =Spieler!D71 -> 0 | F71: =Spieler!H71 -> 0 | G71: =Spieler!G71 -> 0 | H71: 0, 0
A72: =Spieler!A72 -> 71 | B72: 0.7674957816 | C72: =Spieler!E72 -> 0 | D72: =Spieler!F72 -> 0 | E72: =Spieler!D72 -> 0 | F72: =Spieler!H72 -> 0 | G72: =Spieler!G72 -> 0 | H72: 0, 0
A73: =Spieler!A73 -> 72 | B73: 0.5879012047 | C73: =Spieler!E73 -> 0 | D73: =Spieler!F73 -> 0 | E73: =Spieler!D73 -> 0 | F73: =Spieler!H73 -> 0 | G73: =Spieler!G73 -> 0 | H73: 0, 0
A74: =Spieler!A74 -> 73 | B74: 0.6669983205 | C74: =Spieler!E74 -> 0 | D74: =Spieler!F74 -> 0 | E74: =Spieler!D74 -> 0 | F74: =Spieler!H74 -> 0 | G74: =Spieler!G74 -> 0 | H74: 0, 0
A75: =Spieler!A75 -> 74 | B75: 0.2828159356 | C75: =Spieler!E75 -> 0 | D75: =Spieler!F75 -> 0 | E75: =Spieler!D75 -> 0 | F75: =Spieler!H75 -> 0 | G75: =Spieler!G75 -> 0 | H75: 0, 0
A76: =Spieler!A76 -> 75 | B76: 0.2261853765 | C76: =Spieler!E76 -> 0 | D76: =Spieler!F76 -> 0 | E76: =Spieler!D76 -> 0 | F76: =Spieler!H76 -> 0 | G76: =Spieler!G76 -> 0 | H76: 0, 0
A77: =Spieler!A77 -> 76 | B77: 0.4512607251 | C77: =Spieler!E77 -> 0 | D77: =Spieler!F77 -> 0 | E77: =Spieler!D77 -> 0 | F77: =Spieler!H77 -> 0 | G77: =Spieler!G77 -> 0 | H77: 0, 0
A78: =Spieler!A78 -> 77 | B78: 0.8480720908 | C78: =Spieler!E78 -> 0 | D78: =Spieler!F78 -> 0 | E78: =Spieler!D78 -> 0 | F78: =Spieler!H78 -> 0 | G78: =Spieler!G78 -> 0 | H78: 0, 0
A79: =Spieler!A79 -> 78 | B79: 0.6167385335 | C79: =Spieler!E79 -> 0 | D79: =Spieler!F79 -> 0 | E79: =Spieler!D79 -> 0 | F79: =Spieler!H79 -> 0 | G79: =Spieler!G79 -> 0 | H79: 0, 0
A80: =Spieler!A80 -> 79 | B80: 0.4774370718 | C80: =Spieler!E80 -> 0 | D80: =Spieler!F80 -> 0 | E80: =Spieler!D80 -> 0 | F80: =Spieler!H80 -> 0 | G80: =Spieler!G80 -> 0 | H80: 0, 0
A81: =Spieler!A81 -> 80 | B81: 0.8692108979 | C81: =Spieler!E81 -> 0 | D81: =Spieler!F81 -> 0 | E81: =Spieler!D81 -> 0 | F81: =Spieler!H81 -> 0 | G81: =Spieler!G81 -> 0 | H81: 0, 0
A82: =Spieler!A82 -> 81 | B82: 0.7296264463 | C82: =Spieler!E82 -> 0 | D82: =Spieler!F82 -> 0 | E82: =Spieler!D82 -> 0 | F82: =Spieler!H82 -> 0 | G82: =Spieler!G82 -> 0 | H82: 0, 0
A83: =Spieler!A83 -> 82 | B83: 0.830574054 | C83: =Spieler!E83 -> 0 | D83: =Spieler!F83 -> 0 | E83: =Spieler!D83 -> 0 | F83: =Spieler!H83 -> 0 | G83: =Spieler!G83 -> 0 | H83: 0, 0
A84: =Spieler!A84 -> 83 | B84: 0.8906795796 | C84: =Spieler!E84 -> 0 | D84: =Spieler!F84 -> 0 | E84: =Spieler!D84 -> 0 | F84: =Spieler!H84 -> 0 | G84: =Spieler!G84 -> 0 | H84: 0, 0
A85: =Spieler!A85 -> 84 | B85: 0.2238012322 | C85: =Spieler!E85 -> 0 | D85: =Spieler!F85 -> 0 | E85: =Spieler!D85 -> 0 | F85: =Spieler!H85 -> 0 | G85: =Spieler!G85 -> 0 | H85: 0, 0
A86: =Spieler!A86 -> 85 | B86: 0.1305315908 | C86: =Spieler!E86 -> 0 | D86: =Spieler!F86 -> 0 | E86: =Spieler!D86 -> 0 | F86: =Spieler!H86 -> 0 | G86: =Spieler!G86 -> 0 | H86: 0, 0
A87: =Spieler!A87 -> 86 | B87: 0.7962042267 | C87: =Spieler!E87 -> 0 | D87: =Spieler!F87 -> 0 | E87: =Spieler!D87 -> 0 | F87: =Spieler!H87 -> 0 | G87: =Spieler!G87 -> 0 | H87: 0, 0
A88: =Spieler!A88 -> 87 | B88: 0.8729329433 | C88: =Spieler!E88 -> 0 | D88: =Spieler!F88 -> 0 | E88: =Spieler!D88 -> 0 | F88: =Spieler!H88 -> 0 | G88: =Spieler!G88 -> 0 | H88: 0, 0
A89: =Spieler!A89 -> 88 | B89: 0.3078058781 | C89: =Spieler!E89 -> 0 | D89: =Spieler!F89 -> 0 | E89: =Spieler!D89 -> 0 | F89: =Spieler!H89 -> 0 | G89: =Spieler!G89 -> 0 | H89: 0, 0
A90: =Spieler!A90 -> 89 | B90: 0.9437174626 | C90: =Spieler!E90 -> 0 | D90: =Spieler!F90 -> 0 | E90: =Spieler!D90 -> 0 | F90: =Spieler!H90 -> 0 | G90: =Spieler!G90 -> 0 | H90: 0, 0
A91: =Spieler!A91 -> 90 | B91: 0.5500724691 | C91: =Spieler!E91 -> 0 | D91: =Spieler!F91 -> 0 | E91: =Spieler!D91 -> 0 | F91: =Spieler!H91 -> 0 | G91: =Spieler!G91 -> 0 | H91: 0, 0
A92: =Spieler!A92 -> 91 | B92: 0.480123031 | C92: =Spieler!E92 -> 0 | D92: =Spieler!F92 -> 0 | E92: =Spieler!D92 -> 0 | F92: =Spieler!H92 -> 0 | G92: =Spieler!G92 -> 0 | H92: 0, 0
A93: =Spieler!A93 -> 92 | B93: 0.5928645562 | C93: =Spieler!E93 -> 0 | D93: =Spieler!F93 -> 0 | E93: =Spieler!D93 -> 0 | F93: =Spieler!H93 -> 0 | G93: =Spieler!G93 -> 0 | H93: 0, 0
A94: =Spieler!A94 -> 93 | B94: 0.9224339712 | C94: =Spieler!E94 -> 0 | D94: =Spieler!F94 -> 0 | E94: =Spieler!D94 -> 0 | F94: =Spieler!H94 -> 0 | G94: =Spieler!G94 -> 0 | H94: 0, 0
A95: =Spieler!A95 -> 94 | B95: 0.8797425683 | C95: =Spieler!E95 -> 0 | D95: =Spieler!F95 -> 0 | E95: =Spieler!D95 -> 0 | F95: =Spieler!H95 -> 0 | G95: =Spieler!G95 -> 0 | H95: 0, 0
A96: =Spieler!A96 -> 95 | B96: 0.3797234597 | C96: =Spieler!E96 -> 0 | D96: =Spieler!F96 -> 0 | E96: =Spieler!D96 -> 0 | F96: =Spieler!H96 -> 0 | G96: =Spieler!G96 -> 0 | H96: 0, 0
A97: =Spieler!A97 -> 96 | B97: 0.8699249538 | C97: =Spieler!E97 -> 0 | D97: =Spieler!F97 -> 0 | E97: =Spieler!D97 -> 0 | F97: =Spieler!H97 -> 0 | G97: =Spieler!G97 -> 0 | H97: 0, 0
A98: =Spieler!A98 -> 97 | B98: 0.6429231857 | C98: =Spieler!E98 -> 0 | D98: =Spieler!F98 -> 0 | E98: =Spieler!D98 -> 0 | F98: =Spieler!H98 -> 0 | G98: =Spieler!G98 -> 0 | H98: 0, 0
A99: =Spieler!A99 -> 98 | B99: 0.9348298639 | C99: =Spieler!E99 -> 0 | D99: =Spieler!F99 -> 0 | E99: =Spieler!D99 -> 0 | F99: =Spieler!H99 -> 0 | G99: =Spieler!G99 -> 0 | H99: 0, 0
A100: =Spieler!A100 -> 99 | B100: 0.8745655511 | C100: =Spieler!E100 -> 0 | D100: =Spieler!F100 -> 0 | E100: =Spieler!D100 -> 0 | F100: =Spieler!H100 -> 0 | G100: =Spieler!G100 -> 0 | H100: 0, 0
A101: =Spieler!A101 -> 100 | B101: 0.5074533528 | C101: =Spieler!E101 -> 0 | D101: =Spieler!F101 -> 0 | E101: =Spieler!D101 -> 0 | F101: =Spieler!H101 -> 0 | G101: =Spieler!G101 -> 0 | H101: 0, 0
A102: =Spieler!A102 -> 101 | B102: 0.2758835485 | C102: =Spieler!E102 -> 0 | D102: =Spieler!F102 -> 0 | E102: =Spieler!D102 -> 0 | F102: =Spieler!H102 -> 0 | G102: =Spieler!G102 -> 0 | H102: 0, 0
A103: =Spieler!A103 -> 102 | B103: 0.2209275122 | C103: =Spieler!E103 -> 0 | D103: =Spieler!F103 -> 0 | E103: =Spieler!D103 -> 0 | F103: =Spieler!H103 -> 0 | G103: =Spieler!G103 -> 0 | H103: 0, 0
A104: =Spieler!A104 -> 103 | B104: 0.4709526414 | C104: =Spieler!E104 -> 0 | D104: =Spieler!F104 -> 0 | E104: =Spieler!D104 -> 0 | F104: =Spieler!H104 -> 0 | G104: =Spieler!G104 -> 0 | H104: 0, 0
A105: =Spieler!A105 -> 104 | B105: 0.4191045022 | C105: =Spieler!E105 -> 0 | D105: =Spieler!F105 -> 0 | E105: =Spieler!D105 -> 0 | F105: =Spieler!H105 -> 0 | G105: =Spieler!G105 -> 0 | H105: 0, 0
A106: =Spieler!A106 -> 105 | B106: 0.4044279196 | C106: =Spieler!E106 -> 0 | D106: =Spieler!F106 -> 0 | E106: =Spieler!D106 -> 0 | F106: =Spieler!H106 -> 0 | G106: =Spieler!G106 -> 0 | H106: 0, 0
A107: =Spieler!A107 -> 106 | B107: 0.3128126908 | C107: =Spieler!E107 -> 0 | D107: =Spieler!F107 -> 0 | E107: =Spieler!D107 -> 0 | F107: =Spieler!H107 -> 0 | G107: =Spieler!G107 -> 0 | H107: 0, 0
A108: =Spieler!A108 -> 107 | B108: 0.410681316 | C108: =Spieler!E108 -> 0 | D108: =Spieler!F108 -> 0 | E108: =Spieler!D108 -> 0 | F108: =Spieler!H108 -> 0 | G108: =Spieler!G108 -> 0 | H108: 0, 0
A109: =Spieler!A109 -> 108 | B109: 0.4809952231 | C109: =Spieler!E109 -> 0 | D109: =Spieler!F109 -> 0 | E109: =Spieler!D109 -> 0 | F109: =Spieler!H109 -> 0 | G109: =Spieler!G109 -> 0 | H109: 0, 0
A110: =Spieler!A110 -> 109 | B110: 0.08107673507 | C110: =Spieler!E110 -> 0 | D110: =Spieler!F110 -> 0 | E110: =Spieler!D110 -> 0 | F110: =Spieler!H110 -> 0 | G110: =Spieler!G110 -> 0 | H110: 0, 0
A111: =Spieler!A111 -> 110 | B111: 0.00557672307 | C111: =Spieler!E111 -> 0 | D111: =Spieler!F111 -> 0 | E111: =Spieler!D111 -> 0 | F111: =Spieler!H111 -> 0 | G111: =Spieler!G111 -> 0 | H111: 0, 0
A112: =Spieler!A112 -> 111 | B112: 0.5313093362 | C112: =Spieler!E112 -> 0 | D112: =Spieler!F112 -> 0 | E112: =Spieler!D112 -> 0 | F112: =Spieler!H112 -> 0 | G112: =Spieler!G112 -> 0 | H112: 0, 0
A113: =Spieler!A113 -> 112 | B113: 0.5008893416 | C113: =Spieler!E113 -> 0 | D113: =Spieler!F113 -> 0 | E113: =Spieler!D113 -> 0 | F113: =Spieler!H113 -> 0 | G113: =Spieler!G113 -> 0 | H113: 0, 0
A114: =Spieler!A114 -> 113 | B114: 0.01047575953 | C114: =Spieler!E114 -> 0 | D114: =Spieler!F114 -> 0 | E114: =Spieler!D114 -> 0 | F114: =Spieler!H114 -> 0 | G114: =Spieler!G114 -> 0 | H114: 0, 0
A115: =Spieler!A115 -> 114 | B115: 0.8005715979 | C115: =Spieler!E115 -> 0 | D115: =Spieler!F115 -> 0 | E115: =Spieler!D115 -> 0 | F115: =Spieler!H115 -> 0 | G115: =Spieler!G115 -> 0 | H115: 0, 0
A116: =Spieler!A116 -> 115 | B116: 0.6324886787 | C116: =Spieler!E116 -> 0 | D116: =Spieler!F116 -> 0 | E116: =Spieler!D116 -> 0 | F116: =Spieler!H116 -> 0 | G116: =Spieler!G116 -> 0 | H116: 0, 0
A117: =Spieler!A117 -> 116 | B117: 0.1561547636 | C117: =Spieler!E117 -> 0 | D117: =Spieler!F117 -> 0 | E117: =Spieler!D117 -> 0 | F117: =Spieler!H117 -> 0 | G117: =Spieler!G117 -> 0 | H117: 0, 0
A118: =Spieler!A118 -> 117 | B118: 0.6283917599 | C118: =Spieler!E118 -> 0 | D118: =Spieler!F118 -> 0 | E118: =Spieler!D118 -> 0 | F118: =Spieler!H118 -> 0 | G118: =Spieler!G118 -> 0 | H118: 0, 0
A119: =Spieler!A119 -> 118 | B119: 0.3512980851 | C119: =Spieler!E119 -> 0 | D119: =Spieler!F119 -> 0 | E119: =Spieler!D119 -> 0 | F119: =Spieler!H119 -> 0 | G119: =Spieler!G119 -> 0 | H119: 0, 0
A120: =Spieler!A120 -> 119 | B120: 0.7993547614 | C120: =Spieler!E120 -> 0 | D120: =Spieler!F120 -> 0 | E120: =Spieler!D120 -> 0 | F120: =Spieler!H120 -> 0 | G120: =Spieler!G120 -> 0 | H120: 0, 0
A121: =Spieler!A121 -> 120 | B121: 0.9227022798 | C121: =Spieler!E121 -> 0 | D121: =Spieler!F121 -> 0 | E121: =Spieler!D121 -> 0 | F121: =Spieler!H121 -> 0 | G121: =Spieler!G121 -> 0 | H121: 0, 0
A122: =Spieler!A122 -> 121 | B122: 0.87091965 | C122: =Spieler!E122 -> 0 | D122: =Spieler!F122 -> 0 | E122: =Spieler!D122 -> 0 | F122: =Spieler!H122 -> 0 | G122: =Spieler!G122 -> 0 | H122: 0, 0
A123: =Spieler!A123 -> 122 | B123: 0.7203203329 | C123: =Spieler!E123 -> 0 | D123: =Spieler!F123 -> 0 | E123: =Spieler!D123 -> 0 | F123: =Spieler!H123 -> 0 | G123: =Spieler!G123 -> 0 | H123: 0, 0
A124: =Spieler!A124 -> 123 | B124: 0.3195946914 | C124: =Spieler!E124 -> 0 | D124: =Spieler!F124 -> 0 | E124: =Spieler!D124 -> 0 | F124: =Spieler!H124 -> 0 | G124: =Spieler!G124 -> 0 | H124: 0, 0
A125: =Spieler!A125 -> 124 | B125: 0.3885919874 | C125: =Spieler!E125 -> 0 | D125: =Spieler!F125 -> 0 | E125: =Spieler!D125 -> 0 | F125: =Spieler!H125 -> 0 | G125: =Spieler!G125 -> 0 | H125: 0, 0
A126: =Spieler!A126 -> 125 | B126: 0.8235281618 | C126: =Spieler!E126 -> 0 | D126: =Spieler!F126 -> 0 | E126: =Spieler!D126 -> 0 | F126: =Spieler!H126 -> 0 | G126: =Spieler!G126 -> 0 | H126: 0, 0
A127: =Spieler!A127 -> 126 | B127: 0.2744582859 | C127: =Spieler!E127 -> 0 | D127: =Spieler!F127 -> 0 | E127: =Spieler!D127 -> 0 | F127: =Spieler!H127 -> 0 | G127: =Spieler!G127 -> 0 | H127: 0, 0
A128: =Spieler!A128 -> 127 | B128: 0.5293514472 | C128: =Spieler!E128 -> 0 | D128: =Spieler!F128 -> 0 | E128: =Spieler!D128 -> 0 | F128: =Spieler!H128 -> 0 | G128: =Spieler!G128 -> 0 | H128: 0, 0
A129: =Spieler!A129 -> 128 | B129: 0.5588550682 | C129: =Spieler!E129 -> 0 | D129: =Spieler!F129 -> 0 | E129: =Spieler!D129 -> 0 | F129: =Spieler!H129 -> 0 | G129: =Spieler!G129 -> 0 | H129: 0, 0
A130: =Spieler!A130 -> 129 | B130: 0.464494534 | C130: =Spieler!E130 -> 0 | D130: =Spieler!F130 -> 0 | E130: =Spieler!D130 -> 0 | F130: =Spieler!H130 -> 0 | G130: =Spieler!G130 -> 0 | H130: 0, 0
A131: =Spieler!A131 -> 130 | B131: =RAND() -> 0.2716349287 | C131: =Spieler!E131 -> 0 | D131: =Spieler!F131 -> 0 | E131: =Spieler!D131 -> 0 | F131: =Spieler!H131 -> 0 | G131: =Spieler!G131 -> 0 | H131: =C131&", "&D131 -> 0, 0
A132: =Spieler!A132 -> 131 | B132: 0.8552307208 | C132: =Spieler!E132 -> 0 | D132: =Spieler!F132 -> 0 | E132: =Spieler!D132 -> 0 | F132: =Spieler!H132 -> 0 | G132: =Spieler!G132 -> 0 | H132: 0, 0
A133: =Spieler!A133 -> 132 | B133: 0.09461271225 | C133: =Spieler!E133 -> 0 | D133: =Spieler!F133 -> 0 | E133: =Spieler!D133 -> 0 | F133: =Spieler!H133 -> 0 | G133: =Spieler!G133 -> 0 | H133: 0, 0
A134: =Spieler!A134 -> 133 | B134: 0.8698504088 | C134: =Spieler!E134 -> 0 | D134: =Spieler!F134 -> 0 | E134: =Spieler!D134 -> 0 | F134: =Spieler!H134 -> 0 | G134: =Spieler!G134 -> 0 | H134: 0, 0
A135: =Spieler!A135 -> 134 | B135: 0.2809152277 | C135: =Spieler!E135 -> 0 | D135: =Spieler!F135 -> 0 | E135: =Spieler!D135 -> 0 | F135: =Spieler!H135 -> 0 | G135: =Spieler!G135 -> 0 | H135: 0, 0
A136: =Spieler!A136 -> 135 | B136: 0.9479604627 | C136: =Spieler!E136 -> 0 | D136: =Spieler!F136 -> 0 | E136: =Spieler!D136 -> 0 | F136: =Spieler!H136 -> 0 | G136: =Spieler!G136 -> 0 | H136: 0, 0
A137: =Spieler!A137 -> 136 | B137: 0.8839186643 | C137: =Spieler!E137 -> 0 | D137: =Spieler!F137 -> 0 | E137: =Spieler!D137 -> 0 | F137: =Spieler!H137 -> 0 | G137: =Spieler!G137 -> 0 | H137: 0, 0
A138: =Spieler!A138 -> 137 | B138: 0.9251096839 | C138: =Spieler!E138 -> 0 | D138: =Spieler!F138 -> 0 | E138: =Spieler!D138 -> 0 | F138: =Spieler!H138 -> 0 | G138: =Spieler!G138 -> 0 | H138: 0, 0
A139: =Spieler!A139 -> 138 | B139: 0.8903897621 | C139: =Spieler!E139 -> 0 | D139: =Spieler!F139 -> 0 | E139: =Spieler!D139 -> 0 | F139: =Spieler!H139 -> 0 | G139: =Spieler!G139 -> 0 | H139: 0, 0
A140: =Spieler!A140 -> 139 | B140: 0.6258789123 | C140: =Spieler!E140 -> 0 | D140: =Spieler!F140 -> 0 | E140: =Spieler!D140 -> 0 | F140: =Spieler!H140 -> 0 | G140: =Spieler!G140 -> 0 | H140: 0, 0
A141: =Spieler!A141 -> 140 | B141: 0.738848878 | C141: =Spieler!E141 -> 0 | D141: =Spieler!F141 -> 0 | E141: =Spieler!D141 -> 0 | F141: =Spieler!H141 -> 0 | G141: =Spieler!G141 -> 0 | H141: 0, 0
A142: =Spieler!A142 -> 141 | B142: 0.007403767824 | C142: =Spieler!E142 -> 0 | D142: =Spieler!F142 -> 0 | E142: =Spieler!D142 -> 0 | F142: =Spieler!H142 -> 0 | G142: =Spieler!G142 -> 0 | H142: 0, 0
A143: =Spieler!A143 -> 142 | B143: 0.8085569553 | C143: =Spieler!E143 -> 0 | D143: =Spieler!F143 -> 0 | E143: =Spieler!D143 -> 0 | F143: =Spieler!H143 -> 0 | G143: =Spieler!G143 -> 0 | H143: 0, 0
A144: =Spieler!A144 -> 143 | B144: 0.004948356362 | C144: =Spieler!E144 -> 0 | D144: =Spieler!F144 -> 0 | E144: =Spieler!D144 -> 0 | F144: =Spieler!H144 -> 0 | G144: =Spieler!G144 -> 0 | H144: 0, 0
A145: =Spieler!A145 -> 144 | B145: 0.7729323414 | C145: =Spieler!E145 -> 0 | D145: =Spieler!F145 -> 0 | E145: =Spieler!D145 -> 0 | F145: =Spieler!H145 -> 0 | G145: =Spieler!G145 -> 0 | H145: 0, 0
A146: =Spieler!A146 -> 145 | B146: 0.05990838163 | C146: =Spieler!E146 -> 0 | D146: =Spieler!F146 -> 0 | E146: =Spieler!D146 -> 0 | F146: =Spieler!H146 -> 0 | G146: =Spieler!G146 -> 0 | H146: 0, 0
A147: =Spieler!A147 -> 146 | B147: 0.1255971423 | C147: =Spieler!E147 -> 0 | D147: =Spieler!F147 -> 0 | E147: =Spieler!D147 -> 0 | F147: =Spieler!H147 -> 0 | G147: =Spieler!G147 -> 0 | H147: 0, 0
A148: =Spieler!A148 -> 147 | B148: 0.5189186801 | C148: =Spieler!E148 -> 0 | D148: =Spieler!F148 -> 0 | E148: =Spieler!D148 -> 0 | F148: =Spieler!H148 -> 0 | G148: =Spieler!G148 -> 0 | H148: 0, 0
A149: =Spieler!A149 -> 148 | B149: 0.3425157207 | C149: =Spieler!E149 -> 0 | D149: =Spieler!F149 -> 0 | E149: =Spieler!D149 -> 0 | F149: =Spieler!H149 -> 0 | G149: =Spieler!G149 -> 0 | H149: 0, 0
A150: =Spieler!A150 -> 149 | B150: 0.2388846371 | C150: =Spieler!E150 -> 0 | D150: =Spieler!F150 -> 0 | E150: =Spieler!D150 -> 0 | F150: =Spieler!H150 -> 0 | G150: =Spieler!G150 -> 0 | H150: 0, 0
A151: =Spieler!A151 -> 150 | B151: 0.6634677291 | C151: =Spieler!E151 -> 0 | D151: =Spieler!F151 -> 0 | E151: =Spieler!D151 -> 0 | F151: =Spieler!H151 -> 0 | G151: =Spieler!G151 -> 0 | H151: 0, 0
A152: =Spieler!A152 -> 151 | B152: 0.525397597 | C152: =Spieler!E152 -> 0 | D152: =Spieler!F152 -> 0 | E152: =Spieler!D152 -> 0 | F152: =Spieler!H152 -> 0 | G152: =Spieler!G152 -> 0 | H152: 0, 0
A153: =Spieler!A153 -> 152 | B153: 0.3450223076 | C153: =Spieler!E153 -> 0 | D153: =Spieler!F153 -> 0 | E153: =Spieler!D153 -> 0 | F153: =Spieler!H153 -> 0 | G153: =Spieler!G153 -> 0 | H153: 0, 0
A154: =Spieler!A154 -> 153 | B154: 0.7139008272 | C154: =Spieler!E154 -> 0 | D154: =Spieler!F154 -> 0 | E154: =Spieler!D154 -> 0 | F154: =Spieler!H154 -> 0 | G154: =Spieler!G154 -> 0 | H154: 0, 0
A155: =Spieler!A155 -> 154 | B155: 0.6209085497 | C155: =Spieler!E155 -> 0 | D155: =Spieler!F155 -> 0 | E155: =Spieler!D155 -> 0 | F155: =Spieler!H155 -> 0 | G155: =Spieler!G155 -> 0 | H155: 0, 0
A156: =Spieler!A156 -> 155 | B156: 0.4385028882 | C156: =Spieler!E156 -> 0 | D156: =Spieler!F156 -> 0 | E156: =Spieler!D156 -> 0 | F156: =Spieler!H156 -> 0 | G156: =Spieler!G156 -> 0 | H156: 0, 0
A157: =Spieler!A157 -> 156 | B157: 0.5925984923 | C157: =Spieler!E157 -> 0 | D157: =Spieler!F157 -> 0 | E157: =Spieler!D157 -> 0 | F157: =Spieler!H157 -> 0 | G157: =Spieler!G157 -> 0 | H157: 0, 0
A158: =Spieler!A158 -> 157 | B158: 0.217353458 | C158: =Spieler!E158 -> 0 | D158: =Spieler!F158 -> 0 | E158: =Spieler!D158 -> 0 | F158: =Spieler!H158 -> 0 | G158: =Spieler!G158 -> 0 | H158: 0, 0
A159: =Spieler!A159 -> 158 | B159: 0.06730588314 | C159: =Spieler!E159 -> 0 | D159: =Spieler!F159 -> 0 | E159: =Spieler!D159 -> 0 | F159: =Spieler!H159 -> 0 | G159: =Spieler!G159 -> 0 | H159: 0, 0
A160: =Spieler!A160 -> 159 | B160: 0.3824970889 | C160: =Spieler!E160 -> 0 | D160: =Spieler!F160 -> 0 | E160: =Spieler!D160 -> 0 | F160: =Spieler!H160 -> 0 | G160: =Spieler!G160 -> 0 | H160: 0, 0
A161: =Spieler!A161 -> 160 | B161: 0.5498725282 | C161: =Spieler!E161 -> 0 | D161: =Spieler!F161 -> 0 | E161: =Spieler!D161 -> 0 | F161: =Spieler!H161 -> 0 | G161: =Spieler!G161 -> 0 | H161: 0, 0
A162: =Spieler!A162 -> 161 | B162: 0.3129304198 | C162: =Spieler!E162 -> 0 | D162: =Spieler!F162 -> 0 | E162: =Spieler!D162 -> 0 | F162: =Spieler!H162 -> 0 | G162: =Spieler!G162 -> 0 | H162: 0, 0
A163: =Spieler!A163 -> 162 | B163: 0.7158175661 | C163: =Spieler!E163 -> 0 | D163: =Spieler!F163 -> 0 | E163: =Spieler!D163 -> 0 | F163: =Spieler!H163 -> 0 | G163: =Spieler!G163 -> 0 | H163: 0, 0
A164: =Spieler!A164 -> 163 | B164: 0.2188667405 | C164: =Spieler!E164 -> 0 | D164: =Spieler!F164 -> 0 | E164: =Spieler!D164 -> 0 | F164: =Spieler!H164 -> 0 | G164: =Spieler!G164 -> 0 | H164: 0, 0
A165: =Spieler!A165 -> 164 | B165: 0.6995438236 | C165: =Spieler!E165 -> 0 | D165: =Spieler!F165 -> 0 | E165: =Spieler!D165 -> 0 | F165: =Spieler!H165 -> 0 | G165: =Spieler!G165 -> 0 | H165: 0, 0
A166: =Spieler!A166 -> 165 | B166: 0.2459026348 | C166: =Spieler!E166 -> 0 | D166: =Spieler!F166 -> 0 | E166: =Spieler!D166 -> 0 | F166: =Spieler!H166 -> 0 | G166: =Spieler!G166 -> 0 | H166: 0, 0
A167: =Spieler!A167 -> 166 | B167: 0.4848229249 | C167: =Spieler!E167 -> 0 | D167: =Spieler!F167 -> 0 | E167: =Spieler!D167 -> 0 | F167: =Spieler!H167 -> 0 | G167: =Spieler!G167 -> 0 | H167: 0, 0
A168: =Spieler!A168 -> 167 | B168: 0.9499255446 | C168: =Spieler!E168 -> 0 | D168: =Spieler!F168 -> 0 | E168: =Spieler!D168 -> 0 | F168: =Spieler!H168 -> 0 | G168: =Spieler!G168 -> 0 | H168: 0, 0
A169: =Spieler!A169 -> 168 | B169: 0.6254364928 | C169: =Spieler!E169 -> 0 | D169: =Spieler!F169 -> 0 | E169: =Spieler!D169 -> 0 | F169: =Spieler!H169 -> 0 | G169: =Spieler!G169 -> 0 | H169: 0, 0
A170: =Spieler!A170 -> 169 | B170: 0.2737232654 | C170: =Spieler!E170 -> 0 | D170: =Spieler!F170 -> 0 | E170: =Spieler!D170 -> 0 | F170: =Spieler!H170 -> 0 | G170: =Spieler!G170 -> 0 | H170: 0, 0
A171: =Spieler!A171 -> 170 | B171: 0.5853977658 | C171: =Spieler!E171 -> 0 | D171: =Spieler!F171 -> 0 | E171: =Spieler!D171 -> 0 | F171: =Spieler!H171 -> 0 | G171: =Spieler!G171 -> 0 | H171: 0, 0
A172: =Spieler!A172 -> 171 | B172: 0.8496969828 | C172: =Spieler!E172 -> 0 | D172: =Spieler!F172 -> 0 | E172: =Spieler!D172 -> 0 | F172: =Spieler!H172 -> 0 | G172: =Spieler!G172 -> 0 | H172: 0, 0
A173: =Spieler!A173 -> 172 | B173: 0.3520228184 | C173: =Spieler!E173 -> 0 | D173: =Spieler!F173 -> 0 | E173: =Spieler!D173 -> 0 | F173: =Spieler!H173 -> 0 | G173: =Spieler!G173 -> 0 | H173: 0, 0
A174: =Spieler!A174 -> 173 | B174: 0.08220809121 | C174: =Spieler!E174 -> 0 | D174: =Spieler!F174 -> 0 | E174: =Spieler!D174 -> 0 | F174: =Spieler!H174 -> 0 | G174: =Spieler!G174 -> 0 | H174: 0, 0
A175: =Spieler!A175 -> 174 | B175: 0.6251147799 | C175: =Spieler!E175 -> 0 | D175: =Spieler!F175 -> 0 | E175: =Spieler!D175 -> 0 | F175: =Spieler!H175 -> 0 | G175: =Spieler!G175 -> 0 | H175: 0, 0
A176: =Spieler!A176 -> 175 | B176: 0.4264984156 | C176: =Spieler!E176 -> 0 | D176: =Spieler!F176 -> 0 | E176: =Spieler!D176 -> 0 | F176: =Spieler!H176 -> 0 | G176: =Spieler!G176 -> 0 | H176: 0, 0
A177: =Spieler!A177 -> 176 | B177: 0.6635468113 | C177: =Spieler!E177 -> 0 | D177: =Spieler!F177 -> 0 | E177: =Spieler!D177 -> 0 | F177: =Spieler!H177 -> 0 | G177: =Spieler!G177 -> 0 | H177: 0, 0
A178: =Spieler!A178 -> 177 | B178: 0.8156014118 | C178: =Spieler!E178 -> 0 | D178: =Spieler!F178 -> 0 | E178: =Spieler!D178 -> 0 | F178: =Spieler!H178 -> 0 | G178: =Spieler!G178 -> 0 | H178: 0, 0
A179: =Spieler!A179 -> 178 | B179: 0.5881436969 | C179: =Spieler!E179 -> 0 | D179: =Spieler!F179 -> 0 | E179: =Spieler!D179 -> 0 | F179: =Spieler!H179 -> 0 | G179: =Spieler!G179 -> 0 | H179: 0, 0
A180: =Spieler!A180 -> 179 | B180: 0.6546026207 | C180: =Spieler!E180 -> 0 | D180: =Spieler!F180 -> 0 | E180: =Spieler!D180 -> 0 | F180: =Spieler!H180 -> 0 | G180: =Spieler!G180 -> 0 | H180: 0, 0
A181: =Spieler!A181 -> 180 | B181: 0.2692848159 | C181: =Spieler!E181 -> 0 | D181: =Spieler!F181 -> 0 | E181: =Spieler!D181 -> 0 | F181: =Spieler!H181 -> 0 | G181: =Spieler!G181 -> 0 | H181: 0, 0
A182: =Spieler!A182 -> 181 | B182: 0.835478042 | C182: =Spieler!E182 -> 0 | D182: =Spieler!F182 -> 0 | E182: =Spieler!D182 -> 0 | F182: =Spieler!H182 -> 0 | G182: =Spieler!G182 -> 0 | H182: 0, 0
A183: =Spieler!A183 -> 182 | B183: 0.06501046277 | C183: =Spieler!E183 -> 0 | D183: =Spieler!F183 -> 0 | E183: =Spieler!D183 -> 0 | F183: =Spieler!H183 -> 0 | G183: =Spieler!G183 -> 0 | H183: 0, 0
A184: =Spieler!A184 -> 183 | B184: 0.1120093895 | C184: =Spieler!E184 -> 0 | D184: =Spieler!F184 -> 0 | E184: =Spieler!D184 -> 0 | F184: =Spieler!H184 -> 0 | G184: =Spieler!G184 -> 0 | H184: 0, 0
A185: =Spieler!A185 -> 184 | B185: 0.8181718184 | C185: =Spieler!E185 -> 0 | D185: =Spieler!F185 -> 0 | E185: =Spieler!D185 -> 0 | F185: =Spieler!H185 -> 0 | G185: =Spieler!G185 -> 0 | H185: 0, 0
A186: =Spieler!A186 -> 185 | B186: 0.5089603838 | C186: =Spieler!E186 -> 0 | D186: =Spieler!F186 -> 0 | E186: =Spieler!D186 -> 0 | F186: =Spieler!H186 -> 0 | G186: =Spieler!G186 -> 0 | H186: 0, 0
A187: =Spieler!A187 -> 186 | B187: 0.2306726607 | C187: =Spieler!E187 -> 0 | D187: =Spieler!F187 -> 0 | E187: =Spieler!D187 -> 0 | F187: =Spieler!H187 -> 0 | G187: =Spieler!G187 -> 0 | H187: 0, 0
A188: =Spieler!A188 -> 187 | B188: 0.8701430726 | C188: =Spieler!E188 -> 0 | D188: =Spieler!F188 -> 0 | E188: =Spieler!D188 -> 0 | F188: =Spieler!H188 -> 0 | G188: =Spieler!G188 -> 0 | H188: 0, 0
A189: =Spieler!A189 -> 188 | B189: 0.07758082043 | C189: =Spieler!E189 -> 0 | D189: =Spieler!F189 -> 0 | E189: =Spieler!D189 -> 0 | F189: =Spieler!H189 -> 0 | G189: =Spieler!G189 -> 0 | H189: 0, 0
A190: =Spieler!A190 -> 189 | B190: 0.2274737125 | C190: =Spieler!E190 -> 0 | D190: =Spieler!F190 -> 0 | E190: =Spieler!D190 -> 0 | F190: =Spieler!H190 -> 0 | G190: =Spieler!G190 -> 0 | H190: 0, 0
A191: =Spieler!A191 -> 190 | B191: 0.4713222072 | C191: =Spieler!E191 -> 0 | D191: =Spieler!F191 -> 0 | E191: =Spieler!D191 -> 0 | F191: =Spieler!H191 -> 0 | G191: =Spieler!G191 -> 0 | H191: 0, 0
A192: =Spieler!A192 -> 191 | B192: 0.989383909 | C192: =Spieler!E192 -> 0 | D192: =Spieler!F192 -> 0 | E192: =Spieler!D192 -> 0 | F192: =Spieler!H192 -> 0 | G192: =Spieler!G192 -> 0 | H192: 0, 0
A193: =Spieler!A193 -> 192 | B193: 0.8994370065 | C193: =Spieler!E193 -> 0 | D193: =Spieler!F193 -> 0 | E193: =Spieler!D193 -> 0 | F193: =Spieler!H193 -> 0 | G193: =Spieler!G193 -> 0 | H193: 0, 0
A194: =Spieler!A194 -> 193 | B194: 0.5052948116 | C194: =Spieler!E194 -> 0 | D194: =Spieler!F194 -> 0 | E194: =Spieler!D194 -> 0 | F194: =Spieler!H194 -> 0 | G194: =Spieler!G194 -> 0 | H194: 0, 0
A195: =Spieler!A195 -> 194 | B195: =RAND() -> 0.6467300705 | C195: =Spieler!E195 -> 0 | D195: =Spieler!F195 -> 0 | E195: =Spieler!D195 -> 0 | F195: =Spieler!H195 -> 0 | G195: =Spieler!G195 -> 0 | H195: =C195&", "&D195 -> 0, 0
A196: =Spieler!A196 -> 195 | B196: 0.7578373043 | C196: =Spieler!E196 -> 0 | D196: =Spieler!F196 -> 0 | E196: =Spieler!D196 -> 0 | F196: =Spieler!H196 -> 0 | G196: =Spieler!G196 -> 0 | H196: 0, 0
A197: =Spieler!A197 -> 196 | B197: 0.872641591 | C197: =Spieler!E197 -> 0 | D197: =Spieler!F197 -> 0 | E197: =Spieler!D197 -> 0 | F197: =Spieler!H197 -> 0 | G197: =Spieler!G197 -> 0 | H197: 0, 0
A198: =Spieler!A198 -> 197 | B198: 0.9731969898 | C198: =Spieler!E198 -> 0 | D198: =Spieler!F198 -> 0 | E198: =Spieler!D198 -> 0 | F198: =Spieler!H198 -> 0 | G198: =Spieler!G198 -> 0 | H198: 0, 0
A199: =Spieler!A199 -> 198 | B199: 0.8001596906 | C199: =Spieler!E199 -> 0 | D199: =Spieler!F199 -> 0 | E199: =Spieler!D199 -> 0 | F199: =Spieler!H199 -> 0 | G199: =Spieler!G199 -> 0 | H199: 0, 0
A200: =Spieler!A200 -> 199 | B200: 0.9663169384 | C200: =Spieler!E200 -> 0 | D200: =Spieler!F200 -> 0 | E200: =Spieler!D200 -> 0 | F200: =Spieler!H200 -> 0 | G200: =Spieler!G200 -> 0 | H200: 0, 0
... 185 more rows

Sheet Starterfeld
A1: LV 04 - EM - Qualifikation | E1: 2022-04-02 | F1: rechts die Anzahl der Tische für die jeweilige Gruppe angeben, Überzählige Startnummern unten löschen. Eingestellt = max! kann man so lassen! | G1: 54 | H1: Tische Herren
A2: Start - | B2: Vereins | C2: Pass | D2: Einteilung vor der 1. Serie | G2: 20 | H2: Tische Senioren
A3: Nummer: | B3: Nummer: | C3: Nummer: | D3: Name: | E3: Verein: | G3: 16 | H3: Tische Damen
A4: 1 | B4: =IF(A4<>0,INDEX(Liste!E:E,MATCH(A4,Liste!A:A,0))," ") -> 0 | C4: =IF(A4<>0,INDEX(Liste!F:F,MATCH(A4,Liste!A:A,0))," ") -> 0 | D4: =IF(A4<>0,INDEX(Liste!H:H,MATCH(A4,Liste!A:A,0))," ") -> 0, 0 | E4: =IF(A4<>0,INDEX(Liste!G:G,MATCH(A4,Liste!A:A,0))," ") -> 0 | G4: 6 | H4: Tische Jugend
A5: =A4+G$1 -> 55 | B5: =IF(A5<>0,INDEX(Liste!E:E,MATCH(A5,Liste!A:A,0))," ") -> 0 | C5: =IF(A5<>0,INDEX(Liste!F:F,MATCH(A5,Liste!A:A,0))," ") -> 0 | D5: =IF(A5<>0,INDEX(Liste!H:H,MATCH(A5,Liste!A:A,0))," ") -> 0, 0 | E5: =IF(A5<>0,INDEX(Liste!G:G,MATCH(A5,Liste!A:A,0))," ") -> 0
A6: =A5+G$1 -> 109 | B6: =IF(A6<>0,INDEX(Liste!E:E,MATCH(A6,Liste!A:A,0))," ") -> 0 | C6: =IF(A6<>0,INDEX(Liste!F:F,MATCH(A6,Liste!A:A,0))," ") -> 0 | D6: =IF(A6<>0,INDEX(Liste!H:H,MATCH(A6,Liste!A:A,0))," ") -> 0, 0 | E6: =IF(A6<>0,INDEX(Liste!G:G,MATCH(A6,Liste!A:A,0))," ") -> 0
A7: =A6+G$1 -> 163 | B7: =IF(A7<>0,INDEX(Liste!E:E,MATCH(A7,Liste!A:A,0))," ") -> 0 | C7: =IF(A7<>0,INDEX(Liste!F:F,MATCH(A7,Liste!A:A,0))," ") -> 0 | D7: =IF(A7<>0,INDEX(Liste!H:H,MATCH(A7,Liste!A:A,0))," ") -> 0, 0 | E7: =IF(A7<>0,INDEX(Liste!G:G,MATCH(A7,Liste!A:A,0))," ") -> 0
A8: =A4+1 -> 2 | B8: =IF(A8<>0,INDEX(Liste!E:E,MATCH(A8,Liste!A:A,0))," ") -> 0 | C8: =IF(A8<>0,INDEX(Liste!F:F,MATCH(A8,Liste!A:A,0))," ") -> 0 | D8: =IF(A8<>0,INDEX(Liste!H:H,MATCH(A8,Liste!A:A,0))," ") -> 0, 0 | E8: =IF(A8<>0,INDEX(Liste!G:G,MATCH(A8,Liste!A:A,0))," ") -> 0
A9: =A5+1 -> 56 | B9: =IF(A9<>0,INDEX(Liste!E:E,MATCH(A9,Liste!A:A,0))," ") -> 0 | C9: =IF(A9<>0,INDEX(Liste!F:F,MATCH(A9,Liste!A:A,0))," ") -> 0 | D9: =IF(A9<>0,INDEX(Liste!H:H,MATCH(A9,Liste!A:A,0))," ") -> 0, 0 | E9: =IF(A9<>0,INDEX(Liste!G:G,MATCH(A9,Liste!A:A,0))," ") -> 0
A10: 110 | B10: =IF(A10<>0,INDEX(Liste!E:E,MATCH(A10,Liste!A:A,0))," ") -> 0 | C10: =IF(A10<>0,INDEX(Liste!F:F,MATCH(A10,Liste!A:A,0))," ") -> 0 | D10: =IF(A10<>0,INDEX(Liste!H:H,MATCH(A10,Liste!A:A,0))," ") -> 0, 0 | E10: =IF(A10<>0,INDEX(Liste!G:G,MATCH(A10,Liste!A:A,0))," ") -> 0 | F10: qualifiziert: | G10: 37 | H10: Herren
A11: 164 | B11: =IF(A11<>0,INDEX(Liste!E:E,MATCH(A11,Liste!A:A,0))," ") -> 0 | C11: =IF(A11<>0,INDEX(Liste!F:F,MATCH(A11,Liste!A:A,0))," ") -> 0 | D11: =IF(A11<>0,INDEX(Liste!H:H,MATCH(A11,Liste!A:A,0))," ") -> 0, 0 | E11: =IF(A11<>0,INDEX(Liste!G:G,MATCH(A11,Liste!A:A,0))," ") -> 0 | F11: erstellt durch: | G11: 15 | H11: Senioren
A12: =A8+1 -> 3 | B12: =IF(A12<>0,INDEX(Liste!E:E,MATCH(A12,Liste!A:A,0))," ") -> 0 | C12: =IF(A12<>0,INDEX(Liste!F:F,MATCH(A12,Liste!A:A,0))," ") -> 0 | D12: =IF(A12<>0,INDEX(Liste!H:H,MATCH(A12,Liste!A:A,0))," ") -> 0, 0 | E12: =IF(A12<>0,INDEX(Liste!G:G,MATCH(A12,Liste!A:A,0))," ") -> 0 | G12: 10 | H12: Damen
A13: 57 | B13: =IF(A13<>0,INDEX(Liste!E:E,MATCH(A13,Liste!A:A,0))," ") -> 0 | C13: =IF(A13<>0,INDEX(Liste!F:F,MATCH(A13,Liste!A:A,0))," ") -> 0 | D13: =IF(A13<>0,INDEX(Liste!H:H,MATCH(A13,Liste!A:A,0))," ") -> 0, 0 | E13: =IF(A13<>0,INDEX(Liste!G:G,MATCH(A13,Liste!A:A,0))," ") -> 0 | F13: Hans-A. Knobbe | G13: 6 | H13: Jugend
A14: 111 | B14: =IF(A14<>0,INDEX(Liste!E:E,MATCH(A14,Liste!A:A,0))," ") -> 0 | C14: =IF(A14<>0,INDEX(Liste!F:F,MATCH(A14,Liste!A:A,0))," ") -> 0 | D14: =IF(A14<>0,INDEX(Liste!H:H,MATCH(A14,Liste!A:A,0))," ") -> 0, 0 | E14: =IF(A14<>0,INDEX(Liste!G:G,MATCH(A14,Liste!A:A,0))," ") -> 0 | F14: Extersche Strasse 8
A15: 165 | B15: =IF(A15<>0,INDEX(Liste!E:E,MATCH(A15,Liste!A:A,0))," ") -> 0 | C15: =IF(A15<>0,INDEX(Liste!F:F,MATCH(A15,Liste!A:A,0))," ") -> 0 | D15: =IF(A15<>0,INDEX(Liste!H:H,MATCH(A15,Liste!A:A,0))," ") -> 0, 0 | E15: =IF(A15<>0,INDEX(Liste!G:G,MATCH(A15,Liste!A:A,0))," ") -> 0 | F15: 32105 Bad Salzuflen
A16: =A12+1 -> 4 | B16: =IF(A16<>0,INDEX(Liste!E:E,MATCH(A16,Liste!A:A,0))," ") -> 0 | C16: =IF(A16<>0,INDEX(Liste!F:F,MATCH(A16,Liste!A:A,0))," ") -> 0 | D16: =IF(A16<>0,INDEX(Liste!H:H,MATCH(A16,Liste!A:A,0))," ") -> 0, 0 | E16: =IF(A16<>0,INDEX(Liste!G:G,MATCH(A16,Liste!A:A,0))," ") -> 0 | F16: Tel.: 05222 - 15008
A17: 58 | B17: =IF(A17<>0,INDEX(Liste!E:E,MATCH(A17,Liste!A:A,0))," ") -> 0 | C17: =IF(A17<>0,INDEX(Liste!F:F,MATCH(A17,Liste!A:A,0))," ") -> 0 | D17: =IF(A17<>0,INDEX(Liste!H:H,MATCH(A17,Liste!A:A,0))," ") -> 0, 0 | E17: =IF(A17<>0,INDEX(Liste!G:G,MATCH(A17,Liste!A:A,0))," ") -> 0
A18: 112 | B18: =IF(A18<>0,INDEX(Liste!E:E,MATCH(A18,Liste!A:A,0))," ") -> 0 | C18: =IF(A18<>0,INDEX(Liste!F:F,MATCH(A18,Liste!A:A,0))," ") -> 0 | D18: =IF(A18<>0,INDEX(Liste!H:H,MATCH(A18,Liste!A:A,0))," ") -> 0, 0 | E18: =IF(A18<>0,INDEX(Liste!G:G,MATCH(A18,Liste!A:A,0))," ") -> 0 | F18: IB der VG OWL (LV04/VG49)
A19: 166 | B19: =IF(A19<>0,INDEX(Liste!E:E,MATCH(A19,Liste!A:A,0))," ") -> 0 | C19: =IF(A19<>0,INDEX(Liste!F:F,MATCH(A19,Liste!A:A,0))," ") -> 0 | D19: =IF(A19<>0,INDEX(Liste!H:H,MATCH(A19,Liste!A:A,0))," ") -> 0, 0 | E19: =IF(A19<>0,INDEX(Liste!G:G,MATCH(A19,Liste!A:A,0))," ") -> 0
A20: =A16+1 -> 5 | B20: =IF(A20<>0,INDEX(Liste!E:E,MATCH(A20,Liste!A:A,0))," ") -> 0 | C20: =IF(A20<>0,INDEX(Liste!F:F,MATCH(A20,Liste!A:A,0))," ") -> 0 | D20: =IF(A20<>0,INDEX(Liste!H:H,MATCH(A20,Liste!A:A,0))," ") -> 0, 0 | E20: =IF(A20<>0,INDEX(Liste!G:G,MATCH(A20,Liste!A:A,0))," ") -> 0 | F20: HKnobbe@aol.com
A21: 59 | B21: =IF(A21<>0,INDEX(Liste!E:E,MATCH(A21,Liste!A:A,0))," ") -> 0 | C21: =IF(A21<>0,INDEX(Liste!F:F,MATCH(A21,Liste!A:A,0))," ") -> 0 | D21: =IF(A21<>0,INDEX(Liste!H:H,MATCH(A21,Liste!A:A,0))," ") -> 0, 0 | E21: =IF(A21<>0,INDEX(Liste!G:G,MATCH(A21,Liste!A:A,0))," ") -> 0 | F21: HansZocker@aol.com
A22: 113 | B22: =IF(A22<>0,INDEX(Liste!E:E,MATCH(A22,Liste!A:A,0))," ") -> 0 | C22: =IF(A22<>0,INDEX(Liste!F:F,MATCH(A22,Liste!A:A,0))," ") -> 0 | D22: =IF(A22<>0,INDEX(Liste!H:H,MATCH(A22,Liste!A:A,0))," ") -> 0, 0 | E22: =IF(A22<>0,INDEX(Liste!G:G,MATCH(A22,Liste!A:A,0))," ") -> 0
A23: 167 | B23: =IF(A23<>0,INDEX(Liste!E:E,MATCH(A23,Liste!A:A,0))," ") -> 0 | C23: =IF(A23<>0,INDEX(Liste!F:F,MATCH(A23,Liste!A:A,0))," ") -> 0 | D23: =IF(A23<>0,INDEX(Liste!H:H,MATCH(A23,Liste!A:A,0))," ") -> 0, 0 | E23: =IF(A23<>0,INDEX(Liste!G:G,MATCH(A23,Liste!A:A,0))," ") -> 0 | F23: =Liste!J22 -> Stand:März 2016
A24: =A20+1 -> 6 | B24: =IF(A24<>0,INDEX(Liste!E:E,MATCH(A24,Liste!A:A,0))," ") -> 0 | C24: =IF(A24<>0,INDEX(Liste!F:F,MATCH(A24,Liste!A:A,0))," ") -> 0 | D24: =IF(A24<>0,INDEX(Liste!H:H,MATCH(A24,Liste!A:A,0))," ") -> 0, 0 | E24: =IF(A24<>0,INDEX(Liste!G:G,MATCH(A24,Liste!A:A,0))," ") -> 0
A25: 60 | B25: =IF(A25<>0,INDEX(Liste!E:E,MATCH(A25,Liste!A:A,0))," ") -> 0 | C25: =IF(A25<>0,INDEX(Liste!F:F,MATCH(A25,Liste!A:A,0))," ") -> 0 | D25: =IF(A25<>0,INDEX(Liste!H:H,MATCH(A25,Liste!A:A,0))," ") -> 0, 0 | E25: =IF(A25<>0,INDEX(Liste!G:G,MATCH(A25,Liste!A:A,0))," ") -> 0
A26: 114 | B26: =IF(A26<>0,INDEX(Liste!E:E,MATCH(A26,Liste!A:A,0))," ") -> 0 | C26: =IF(A26<>0,INDEX(Liste!F:F,MATCH(A26,Liste!A:A,0))," ") -> 0 | D26: =IF(A26<>0,INDEX(Liste!H:H,MATCH(A26,Liste!A:A,0))," ") -> 0, 0 | E26: =IF(A26<>0,INDEX(Liste!G:G,MATCH(A26,Liste!A:A,0))," ") -> 0
A27: 168 | B27: =IF(A27<>0,INDEX(Liste!E:E,MATCH(A27,Liste!A:A,0))," ") -> 0 | C27: =IF(A27<>0,INDEX(Liste!F:F,MATCH(A27,Liste!A:A,0))," ") -> 0 | D27: =IF(A27<>0,INDEX(Liste!H:H,MATCH(A27,Liste!A:A,0))," ") -> 0, 0 | E27: =IF(A27<>0,INDEX(Liste!G:G,MATCH(A27,Liste!A:A,0))," ") -> 0
A28: =A24+1 -> 7 | B28: =IF(A28<>0,INDEX(Liste!E:E,MATCH(A28,Liste!A:A,0))," ") -> 0 | C28: =IF(A28<>0,INDEX(Liste!F:F,MATCH(A28,Liste!A:A,0))," ") -> 0 | D28: =IF(A28<>0,INDEX(Liste!H:H,MATCH(A28,Liste!A:A,0))," ") -> 0, 0 | E28: =IF(A28<>0,INDEX(Liste!G:G,MATCH(A28,Liste!A:A,0))," ") -> 0
A29: 61 | B29: =IF(A29<>0,INDEX(Liste!E:E,MATCH(A29,Liste!A:A,0))," ") -> 0 | C29: =IF(A29<>0,INDEX(Liste!F:F,MATCH(A29,Liste!A:A,0))," ") -> 0 | D29: =IF(A29<>0,INDEX(Liste!H:H,MATCH(A29,Liste!A:A,0))," ") -> 0, 0 | E29: =IF(A29<>0,INDEX(Liste!G:G,MATCH(A29,Liste!A:A,0))," ") -> 0
A30: 115 | B30: =IF(A30<>0,INDEX(Liste!E:E,MATCH(A30,Liste!A:A,0))," ") -> 0 | C30: =IF(A30<>0,INDEX(Liste!F:F,MATCH(A30,Liste!A:A,0))," ") -> 0 | D30: =IF(A30<>0,INDEX(Liste!H:H,MATCH(A30,Liste!A:A,0))," ") -> 0, 0 | E30: =IF(A30<>0,INDEX(Liste!G:G,MATCH(A30,Liste!A:A,0))," ") -> 0
A31: 169 | B31: =IF(A31<>0,INDEX(Liste!E:E,MATCH(A31,Liste!A:A,0))," ") -> 0 | C31: =IF(A31<>0,INDEX(Liste!F:F,MATCH(A31,Liste!A:A,0))," ") -> 0 | D31: =IF(A31<>0,INDEX(Liste!H:H,MATCH(A31,Liste!A:A,0))," ") -> 0, 0 | E31: =IF(A31<>0,INDEX(Liste!G:G,MATCH(A31,Liste!A:A,0))," ") -> 0
A32: =A28+1 -> 8 | B32: =IF(A32<>0,INDEX(Liste!E:E,MATCH(A32,Liste!A:A,0))," ") -> 0 | C32: =IF(A32<>0,INDEX(Liste!F:F,MATCH(A32,Liste!A:A,0))," ") -> 0 | D32: =IF(A32<>0,INDEX(Liste!H:H,MATCH(A32,Liste!A:A,0))," ") -> 0, 0 | E32: =IF(A32<>0,INDEX(Liste!G:G,MATCH(A32,Liste!A:A,0))," ") -> 0
A33: 62 | B33: =IF(A33<>0,INDEX(Liste!E:E,MATCH(A33,Liste!A:A,0))," ") -> 0 | C33: =IF(A33<>0,INDEX(Liste!F:F,MATCH(A33,Liste!A:A,0))," ") -> 0 | D33: =IF(A33<>0,INDEX(Liste!H:H,MATCH(A33,Liste!A:A,0))," ") -> 0, 0 | E33: =IF(A33<>0,INDEX(Liste!G:G,MATCH(A33,Liste!A:A,0))," ") -> 0
A34: 116 | B34: =IF(A34<>0,INDEX(Liste!E:E,MATCH(A34,Liste!A:A,0))," ") -> 0 | C34: =IF(A34<>0,INDEX(Liste!F:F,MATCH(A34,Liste!A:A,0))," ") -> 0 | D34: =IF(A34<>0,INDEX(Liste!H:H,MATCH(A34,Liste!A:A,0))," ") -> 0, 0 | E34: =IF(A34<>0,INDEX(Liste!G:G,MATCH(A34,Liste!A:A,0))," ") -> 0
A35: 170 | B35: =IF(A35<>0,INDEX(Liste!E:E,MATCH(A35,Liste!A:A,0))," ") -> 0 | C35: =IF(A35<>0,INDEX(Liste!F:F,MATCH(A35,Liste!A:A,0))," ") -> 0 | D35: =IF(A35<>0,INDEX(Liste!H:H,MATCH(A35,Liste!A:A,0))," ") -> 0, 0 | E35: =IF(A35<>0,INDEX(Liste!G:G,MATCH(A35,Liste!A:A,0))," ") -> 0 | Z35: ^^
A36: =A32+1 -> 9 | B36: =IF(A36<>0,INDEX(Liste!E:E,MATCH(A36,Liste!A:A,0))," ") -> 0 | C36: =IF(A36<>0,INDEX(Liste!F:F,MATCH(A36,Liste!A:A,0))," ") -> 0 | D36: =IF(A36<>0,INDEX(Liste!H:H,MATCH(A36,Liste!A:A,0))," ") -> 0, 0 | E36: =IF(A36<>0,INDEX(Liste!G:G,MATCH(A36,Liste!A:A,0))," ") -> 0
A37: 63 | B37: =IF(A37<>0,INDEX(Liste!E:E,MATCH(A37,Liste!A:A,0))," ") -> 0 | C37: =IF(A37<>0,INDEX(Liste!F:F,MATCH(A37,Liste!A:A,0))," ") -> 0 | D37: =IF(A37<>0,INDEX(Liste!H:H,MATCH(A37,Liste!A:A,0))," ") -> 0, 0 | E37: =IF(A37<>0,INDEX(Liste!G:G,MATCH(A37,Liste!A:A,0))," ") -> 0
A38: 117 | B38: =IF(A38<>0,INDEX(Liste!E:E,MATCH(A38,Liste!A:A,0))," ") -> 0 | C38: =IF(A38<>0,INDEX(Liste!F:F,MATCH(A38,Liste!A:A,0))," ") -> 0 | D38: =IF(A38<>0,INDEX(Liste!H:H,MATCH(A38,Liste!A:A,0))," ") -> 0, 0 | E38: =IF(A38<>0,INDEX(Liste!G:G,MATCH(A38,Liste!A:A,0))," ") -> 0
A39: 171 | B39: =IF(A39<>0,INDEX(Liste!E:E,MATCH(A39,Liste!A:A,0))," ") -> 0 | C39: =IF(A39<>0,INDEX(Liste!F:F,MATCH(A39,Liste!A:A,0))," ") -> 0 | D39: =IF(A39<>0,INDEX(Liste!H:H,MATCH(A39,Liste!A:A,0))," ") -> 0, 0 | E39: =IF(A39<>0,INDEX(Liste!G:G,MATCH(A39,Liste!A:A,0))," ") -> 0
A40: =A36+1 -> 10 | B40: =IF(A40<>0,INDEX(Liste!E:E,MATCH(A40,Liste!A:A,0))," ") -> 0 | C40: =IF(A40<>0,INDEX(Liste!F:F,MATCH(A40,Liste!A:A,0))," ") -> 0 | D40: =IF(A40<>0,INDEX(Liste!H:H,MATCH(A40,Liste!A:A,0))," ") -> 0, 0 | E40: =IF(A40<>0,INDEX(Liste!G:G,MATCH(A40,Liste!A:A,0))," ") -> 0
A41: 64 | B41: =IF(A41<>0,INDEX(Liste!E:E,MATCH(A41,Liste!A:A,0))," ") -> 0 | C41: =IF(A41<>0,INDEX(Liste!F:F,MATCH(A41,Liste!A:A,0))," ") -> 0 | D41: =IF(A41<>0,INDEX(Liste!H:H,MATCH(A41,Liste!A:A,0))," ") -> 0, 0 | E41: =IF(A41<>0,INDEX(Liste!G:G,MATCH(A41,Liste!A:A,0))," ") -> 0
A42: 118 | B42: =IF(A42<>0,INDEX(Liste!E:E,MATCH(A42,Liste!A:A,0))," ") -> 0 | C42: =IF(A42<>0,INDEX(Liste!F:F,MATCH(A42,Liste!A:A,0))," ") -> 0 | D42: =IF(A42<>0,INDEX(Liste!H:H,MATCH(A42,Liste!A:A,0))," ") -> 0, 0 | E42: =IF(A42<>0,INDEX(Liste!G:G,MATCH(A42,Liste!A:A,0))," ") -> 0
A43: 172 | B43: =IF(A43<>0,INDEX(Liste!E:E,MATCH(A43,Liste!A:A,0))," ") -> 0 | C43: =IF(A43<>0,INDEX(Liste!F:F,MATCH(A43,Liste!A:A,0))," ") -> 0 | D43: =IF(A43<>0,INDEX(Liste!H:H,MATCH(A43,Liste!A:A,0))," ") -> 0, 0 | E43: =IF(A43<>0,INDEX(Liste!G:G,MATCH(A43,Liste!A:A,0))," ") -> 0
A44: =A40+1 -> 11 | B44: =IF(A44<>0,INDEX(Liste!E:E,MATCH(A44,Liste!A:A,0))," ") -> 0 | C44: =IF(A44<>0,INDEX(Liste!F:F,MATCH(A44,Liste!A:A,0))," ") -> 0 | D44: =IF(A44<>0,INDEX(Liste!H:H,MATCH(A44,Liste!A:A,0))," ") -> 0, 0 | E44: =IF(A44<>0,INDEX(Liste!G:G,MATCH(A44,Liste!A:A,0))," ") -> 0
A45: 65 | B45: =IF(A45<>0,INDEX(Liste!E:E,MATCH(A45,Liste!A:A,0))," ") -> 0 | C45: =IF(A45<>0,INDEX(Liste!F:F,MATCH(A45,Liste!A:A,0))," ") -> 0 | D45: =IF(A45<>0,INDEX(Liste!H:H,MATCH(A45,Liste!A:A,0))," ") -> 0, 0 | E45: =IF(A45<>0,INDEX(Liste!G:G,MATCH(A45,Liste!A:A,0))," ") -> 0
A46: 119 | B46: =IF(A46<>0,INDEX(Liste!E:E,MATCH(A46,Liste!A:A,0))," ") -> 0 | C46: =IF(A46<>0,INDEX(Liste!F:F,MATCH(A46,Liste!A:A,0))," ") -> 0 | D46: =IF(A46<>0,INDEX(Liste!H:H,MATCH(A46,Liste!A:A,0))," ") -> 0, 0 | E46: =IF(A46<>0,INDEX(Liste!G:G,MATCH(A46,Liste!A:A,0))," ") -> 0
A47: 173 | B47: =IF(A47<>0,INDEX(Liste!E:E,MATCH(A47,Liste!A:A,0))," ") -> 0 | C47: =IF(A47<>0,INDEX(Liste!F:F,MATCH(A47,Liste!A:A,0))," ") -> 0 | D47: =IF(A47<>0,INDEX(Liste!H:H,MATCH(A47,Liste!A:A,0))," ") -> 0, 0 | E47: =IF(A47<>0,INDEX(Liste!G:G,MATCH(A47,Liste!A:A,0))," ") -> 0
A48: =A44+1 -> 12 | B48: =IF(A48<>0,INDEX(Liste!E:E,MATCH(A48,Liste!A:A,0))," ") -> 0 | C48: =IF(A48<>0,INDEX(Liste!F:F,MATCH(A48,Liste!A:A,0))," ") -> 0 | D48: =IF(A48<>0,INDEX(Liste!H:H,MATCH(A48,Liste!A:A,0))," ") -> 0, 0 | E48: =IF(A48<>0,INDEX(Liste!G:G,MATCH(A48,Liste!A:A,0))," ") -> 0
A49: 66 | B49: =IF(A49<>0,INDEX(Liste!E:E,MATCH(A49,Liste!A:A,0))," ") -> 0 | C49: =IF(A49<>0,INDEX(Liste!F:F,MATCH(A49,Liste!A:A,0))," ") -> 0 | D49: =IF(A49<>0,INDEX(Liste!H:H,MATCH(A49,Liste!A:A,0))," ") -> 0, 0 | E49: =IF(A49<>0,INDEX(Liste!G:G,MATCH(A49,Liste!A:A,0))," ") -> 0
A50: 120 | B50: =IF(A50<>0,INDEX(Liste!E:E,MATCH(A50,Liste!A:A,0))," ") -> 0 | C50: =IF(A50<>0,INDEX(Liste!F:F,MATCH(A50,Liste!A:A,0))," ") -> 0 | D50: =IF(A50<>0,INDEX(Liste!H:H,MATCH(A50,Liste!A:A,0))," ") -> 0, 0 | E50: =IF(A50<>0,INDEX(Liste!G:G,MATCH(A50,Liste!A:A,0))," ") -> 0
A51: 174 | B51: =IF(A51<>0,INDEX(Liste!E:E,MATCH(A51,Liste!A:A,0))," ") -> 0 | C51: =IF(A51<>0,INDEX(Liste!F:F,MATCH(A51,Liste!A:A,0))," ") -> 0 | D51: =IF(A51<>0,INDEX(Liste!H:H,MATCH(A51,Liste!A:A,0))," ") -> 0, 0 | E51: =IF(A51<>0,INDEX(Liste!G:G,MATCH(A51,Liste!A:A,0))," ") -> 0
A52: =A48+1 -> 13 | B52: =IF(A52<>0,INDEX(Liste!E:E,MATCH(A52,Liste!A:A,0))," ") -> 0 | C52: =IF(A52<>0,INDEX(Liste!F:F,MATCH(A52,Liste!A:A,0))," ") -> 0 | D52: =IF(A52<>0,INDEX(Liste!H:H,MATCH(A52,Liste!A:A,0))," ") -> 0, 0 | E52: =IF(A52<>0,INDEX(Liste!G:G,MATCH(A52,Liste!A:A,0))," ") -> 0
A53: 67 | B53: =IF(A53<>0,INDEX(Liste!E:E,MATCH(A53,Liste!A:A,0))," ") -> 0 | C53: =IF(A53<>0,INDEX(Liste!F:F,MATCH(A53,Liste!A:A,0))," ") -> 0 | D53: =IF(A53<>0,INDEX(Liste!H:H,MATCH(A53,Liste!A:A,0))," ") -> 0, 0 | E53: =IF(A53<>0,INDEX(Liste!G:G,MATCH(A53,Liste!A:A,0))," ") -> 0
A54: 121 | B54: =IF(A54<>0,INDEX(Liste!E:E,MATCH(A54,Liste!A:A,0))," ") -> 0 | C54: =IF(A54<>0,INDEX(Liste!F:F,MATCH(A54,Liste!A:A,0))," ") -> 0 | D54: =IF(A54<>0,INDEX(Liste!H:H,MATCH(A54,Liste!A:A,0))," ") -> 0, 0 | E54: =IF(A54<>0,INDEX(Liste!G:G,MATCH(A54,Liste!A:A,0))," ") -> 0
A55: 175 | B55: =IF(A55<>0,INDEX(Liste!E:E,MATCH(A55,Liste!A:A,0))," ") -> 0 | C55: =IF(A55<>0,INDEX(Liste!F:F,MATCH(A55,Liste!A:A,0))," ") -> 0 | D55: =IF(A55<>0,INDEX(Liste!H:H,MATCH(A55,Liste!A:A,0))," ") -> 0, 0 | E55: =IF(A55<>0,INDEX(Liste!G:G,MATCH(A55,Liste!A:A,0))," ") -> 0
A56: =A52+1 -> 14 | B56: =IF(A56<>0,INDEX(Liste!E:E,MATCH(A56,Liste!A:A,0))," ") -> 0 | C56: =IF(A56<>0,INDEX(Liste!F:F,MATCH(A56,Liste!A:A,0))," ") -> 0 | D56: =IF(A56<>0,INDEX(Liste!H:H,MATCH(A56,Liste!A:A,0))," ") -> 0, 0 | E56: =IF(A56<>0,INDEX(Liste!G:G,MATCH(A56,Liste!A:A,0))," ") -> 0
A57: 68 | B57: =IF(A57<>0,INDEX(Liste!E:E,MATCH(A57,Liste!A:A,0))," ") -> 0 | C57: =IF(A57<>0,INDEX(Liste!F:F,MATCH(A57,Liste!A:A,0))," ") -> 0 | D57: =IF(A57<>0,INDEX(Liste!H:H,MATCH(A57,Liste!A:A,0))," ") -> 0, 0 | E57: =IF(A57<>0,INDEX(Liste!G:G,MATCH(A57,Liste!A:A,0))," ") -> 0
A58: 122 | B58: =IF(A58<>0,INDEX(Liste!E:E,MATCH(A58,Liste!A:A,0))," ") -> 0 | C58: =IF(A58<>0,INDEX(Liste!F:F,MATCH(A58,Liste!A:A,0))," ") -> 0 | D58: =IF(A58<>0,INDEX(Liste!H:H,MATCH(A58,Liste!A:A,0))," ") -> 0, 0 | E58: =IF(A58<>0,INDEX(Liste!G:G,MATCH(A58,Liste!A:A,0))," ") -> 0
A59: 176 | B59: =IF(A59<>0,INDEX(Liste!E:E,MATCH(A59,Liste!A:A,0))," ") -> 0 | C59: =IF(A59<>0,INDEX(Liste!F:F,MATCH(A59,Liste!A:A,0))," ") -> 0 | D59: =IF(A59<>0,INDEX(Liste!H:H,MATCH(A59,Liste!A:A,0))," ") -> 0, 0 | E59: =IF(A59<>0,INDEX(Liste!G:G,MATCH(A59,Liste!A:A,0))," ") -> 0
A60: =A56+1 -> 15 | B60: =IF(A60<>0,INDEX(Liste!E:E,MATCH(A60,Liste!A:A,0))," ") -> 0 | C60: =IF(A60<>0,INDEX(Liste!F:F,MATCH(A60,Liste!A:A,0))," ") -> 0 | D60: =IF(A60<>0,INDEX(Liste!H:H,MATCH(A60,Liste!A:A,0))," ") -> 0, 0 | E60: =IF(A60<>0,INDEX(Liste!G:G,MATCH(A60,Liste!A:A,0))," ") -> 0
A61: 69 | B61: =IF(A61<>0,INDEX(Liste!E:E,MATCH(A61,Liste!A:A,0))," ") -> 0 | C61: =IF(A61<>0,INDEX(Liste!F:F,MATCH(A61,Liste!A:A,0))," ") -> 0 | D61: =IF(A61<>0,INDEX(Liste!H:H,MATCH(A61,Liste!A:A,0))," ") -> 0, 0 | E61: =IF(A61<>0,INDEX(Liste!G:G,MATCH(A61,Liste!A:A,0))," ") -> 0
A62: 123 | B62: =IF(A62<>0,INDEX(Liste!E:E,MATCH(A62,Liste!A:A,0))," ") -> 0 | C62: =IF(A62<>0,INDEX(Liste!F:F,MATCH(A62,Liste!A:A,0))," ") -> 0 | D62: =IF(A62<>0,INDEX(Liste!H:H,MATCH(A62,Liste!A:A,0))," ") -> 0, 0 | E62: =IF(A62<>0,INDEX(Liste!G:G,MATCH(A62,Liste!A:A,0))," ") -> 0
A63: 177 | B63: =IF(A63<>0,INDEX(Liste!E:E,MATCH(A63,Liste!A:A,0))," ") -> 0 | C63: =IF(A63<>0,INDEX(Liste!F:F,MATCH(A63,Liste!A:A,0))," ") -> 0 | D63: =IF(A63<>0,INDEX(Liste!H:H,MATCH(A63,Liste!A:A,0))," ") -> 0, 0 | E63: =IF(A63<>0,INDEX(Liste!G:G,MATCH(A63,Liste!A:A,0))," ") -> 0
A64: =A60+1 -> 16 | B64: =IF(A64<>0,INDEX(Liste!E:E,MATCH(A64,Liste!A:A,0))," ") -> 0 | C64: =IF(A64<>0,INDEX(Liste!F:F,MATCH(A64,Liste!A:A,0))," ") -> 0 | D64: =IF(A64<>0,INDEX(Liste!H:H,MATCH(A64,Liste!A:A,0))," ") -> 0, 0 | E64: =IF(A64<>0,INDEX(Liste!G:G,MATCH(A64,Liste!A:A,0))," ") -> 0
A65: 70 | B65: =IF(A65<>0,INDEX(Liste!E:E,MATCH(A65,Liste!A:A,0))," ") -> 0 | C65: =IF(A65<>0,INDEX(Liste!F:F,MATCH(A65,Liste!A:A,0))," ") -> 0 | D65: =IF(A65<>0,INDEX(Liste!H:H,MATCH(A65,Liste!A:A,0))," ") -> 0, 0 | E65: =IF(A65<>0,INDEX(Liste!G:G,MATCH(A65,Liste!A:A,0))," ") -> 0
A66: 124 | B66: =IF(A66<>0,INDEX(Liste!E:E,MATCH(A66,Liste!A:A,0))," ") -> 0 | C66: =IF(A66<>0,INDEX(Liste!F:F,MATCH(A66,Liste!A:A,0))," ") -> 0 | D66: =IF(A66<>0,INDEX(Liste!H:H,MATCH(A66,Liste!A:A,0))," ") -> 0, 0 | E66: =IF(A66<>0,INDEX(Liste!G:G,MATCH(A66,Liste!A:A,0))," ") -> 0
A67: 178 | B67: =IF(A67<>0,INDEX(Liste!E:E,MATCH(A67,Liste!A:A,0))," ") -> 0 | C67: =IF(A67<>0,INDEX(Liste!F:F,MATCH(A67,Liste!A:A,0))," ") -> 0 | D67: =IF(A67<>0,INDEX(Liste!H:H,MATCH(A67,Liste!A:A,0))," ") -> 0, 0 | E67: =IF(A67<>0,INDEX(Liste!G:G,MATCH(A67,Liste!A:A,0))," ") -> 0
A68: =A64+1 -> 17 | B68: =IF(A68<>0,INDEX(Liste!E:E,MATCH(A68,Liste!A:A,0))," ") -> 0 | C68: =IF(A68<>0,INDEX(Liste!F:F,MATCH(A68,Liste!A:A,0))," ") -> 0 | D68: =IF(A68<>0,INDEX(Liste!H:H,MATCH(A68,Liste!A:A,0))," ") -> 0, 0 | E68: =IF(A68<>0,INDEX(Liste!G:G,MATCH(A68,Liste!A:A,0))," ") -> 0
A69: 71 | B69: =IF(A69<>0,INDEX(Liste!E:E,MATCH(A69,Liste!A:A,0))," ") -> 0 | C69: =IF(A69<>0,INDEX(Liste!F:F,MATCH(A69,Liste!A:A,0))," ") -> 0 | D69: =IF(A69<>0,INDEX(Liste!H:H,MATCH(A69,Liste!A:A,0))," ") -> 0, 0 | E69: =IF(A69<>0,INDEX(Liste!G:G,MATCH(A69,Liste!A:A,0))," ") -> 0
A70: 125 | B70: =IF(A70<>0,INDEX(Liste!E:E,MATCH(A70,Liste!A:A,0))," ") -> 0 | C70: =IF(A70<>0,INDEX(Liste!F:F,MATCH(A70,Liste!A:A,0))," ") -> 0 | D70: =IF(A70<>0,INDEX(Liste!H:H,MATCH(A70,Liste!A:A,0))," ") -> 0, 0 | E70: =IF(A70<>0,INDEX(Liste!G:G,MATCH(A70,Liste!A:A,0))," ") -> 0
A71: 179 | B71: =IF(A71<>0,INDEX(Liste!E:E,MATCH(A71,Liste!A:A,0))," ") -> 0 | C71: =IF(A71<>0,INDEX(Liste!F:F,MATCH(A71,Liste!A:A,0))," ") -> 0 | D71: =IF(A71<>0,INDEX(Liste!H:H,MATCH(A71,Liste!A:A,0))," ") -> 0, 0 | E71: =IF(A71<>0,INDEX(Liste!G:G,MATCH(A71,Liste!A:A,0))," ") -> 0
A72: =A68+1 -> 18 | B72: =IF(A72<>0,INDEX(Liste!E:E,MATCH(A72,Liste!A:A,0))," ") -> 0 | C72: =IF(A72<>0,INDEX(Liste!F:F,MATCH(A72,Liste!A:A,0))," ") -> 0 | D72: =IF(A72<>0,INDEX(Liste!H:H,MATCH(A72,Liste!A:A,0))," ") -> 0, 0 | E72: =IF(A72<>0,INDEX(Liste!G:G,MATCH(A72,Liste!A:A,0))," ") -> 0
A73: =A69+1 -> 72 | B73: =IF(A73<>0,INDEX(Liste!E:E,MATCH(A73,Liste!A:A,0))," ") -> 0 | C73: =IF(A73<>0,INDEX(Liste!F:F,MATCH(A73,Liste!A:A,0))," ") -> 0 | D73: =IF(A73<>0,INDEX(Liste!H:H,MATCH(A73,Liste!A:A,0))," ") -> 0, 0 | E73: =IF(A73<>0,INDEX(Liste!G:G,MATCH(A73,Liste!A:A,0))," ") -> 0
A74: 126 | B74: =IF(A74<>0,INDEX(Liste!E:E,MATCH(A74,Liste!A:A,0))," ") -> 0 | C74: =IF(A74<>0,INDEX(Liste!F:F,MATCH(A74,Liste!A:A,0))," ") -> 0 | D74: =IF(A74<>0,INDEX(Liste!H:H,MATCH(A74,Liste!A:A,0))," ") -> 0, 0 | E74: =IF(A74<>0,INDEX(Liste!G:G,MATCH(A74,Liste!A:A,0))," ") -> 0
A75: 180 | B75: =IF(A75<>0,INDEX(Liste!E:E,MATCH(A75,Liste!A:A,0))," ") -> 0 | C75: =IF(A75<>0,INDEX(Liste!F:F,MATCH(A75,Liste!A:A,0))," ") -> 0 | D75: =IF(A75<>0,INDEX(Liste!H:H,MATCH(A75,Liste!A:A,0))," ") -> 0, 0 | E75: =IF(A75<>0,INDEX(Liste!G:G,MATCH(A75,Liste!A:A,0))," ") -> 0
A76: 19 | B76: =IF(A76<>0,INDEX(Liste!E:E,MATCH(A76,Liste!A:A,0))," ") -> 0 | C76: =IF(A76<>0,INDEX(Liste!F:F,MATCH(A76,Liste!A:A,0))," ") -> 0 | D76: =IF(A76<>0,INDEX(Liste!H:H,MATCH(A76,Liste!A:A,0))," ") -> 0, 0 | E76: =IF(A76<>0,INDEX(Liste!G:G,MATCH(A76,Liste!A:A,0))," ") -> 0
A77: 73 | B77: =IF(A77<>0,INDEX(Liste!E:E,MATCH(A77,Liste!A:A,0))," ") -> 0 | C77: =IF(A77<>0,INDEX(Liste!F:F,MATCH(A77,Liste!A:A,0))," ") -> 0 | D77: =IF(A77<>0,INDEX(Liste!H:H,MATCH(A77,Liste!A:A,0))," ") -> 0, 0 | E77: =IF(A77<>0,INDEX(Liste!G:G,MATCH(A77,Liste!A:A,0))," ") -> 0
A78: 127 | B78: =IF(A78<>0,INDEX(Liste!E:E,MATCH(A78,Liste!A:A,0))," ") -> 0 | C78: =IF(A78<>0,INDEX(Liste!F:F,MATCH(A78,Liste!A:A,0))," ") -> 0 | D78: =IF(A78<>0,INDEX(Liste!H:H,MATCH(A78,Liste!A:A,0))," ") -> 0, 0 | E78: =IF(A78<>0,INDEX(Liste!G:G,MATCH(A78,Liste!A:A,0))," ") -> 0
A79: 181 | B79: =IF(A79<>0,INDEX(Liste!E:E,MATCH(A79,Liste!A:A,0))," ") -> 0 | C79: =IF(A79<>0,INDEX(Liste!F:F,MATCH(A79,Liste!A:A,0))," ") -> 0 | D79: =IF(A79<>0,INDEX(Liste!H:H,MATCH(A79,Liste!A:A,0))," ") -> 0, 0 | E79: =IF(A79<>0,INDEX(Liste!G:G,MATCH(A79,Liste!A:A,0))," ") -> 0
A80: 20 | B80: =IF(A80<>0,INDEX(Liste!E:E,MATCH(A80,Liste!A:A,0))," ") -> 0 | C80: =IF(A80<>0,INDEX(Liste!F:F,MATCH(A80,Liste!A:A,0))," ") -> 0 | D80: =IF(A80<>0,INDEX(Liste!H:H,MATCH(A80,Liste!A:A,0))," ") -> 0, 0 | E80: =IF(A80<>0,INDEX(Liste!G:G,MATCH(A80,Liste!A:A,0))," ") -> 0
A81: 74 | B81: =IF(A81<>0,INDEX(Liste!E:E,MATCH(A81,Liste!A:A,0))," ") -> 0 | C81: =IF(A81<>0,INDEX(Liste!F:F,MATCH(A81,Liste!A:A,0))," ") -> 0 | D81: =IF(A81<>0,INDEX(Liste!H:H,MATCH(A81,Liste!A:A,0))," ") -> 0, 0 | E81: =IF(A81<>0,INDEX(Liste!G:G,MATCH(A81,Liste!A:A,0))," ") -> 0
A82: 128 | B82: =IF(A82<>0,INDEX(Liste!E:E,MATCH(A82,Liste!A:A,0))," ") -> 0 | C82: =IF(A82<>0,INDEX(Liste!F:F,MATCH(A82,Liste!A:A,0))," ") -> 0 | D82: =IF(A82<>0,INDEX(Liste!H:H,MATCH(A82,Liste!A:A,0))," ") -> 0, 0 | E82: =IF(A82<>0,INDEX(Liste!G:G,MATCH(A82,Liste!A:A,0))," ") -> 0
A83: 182 | B83: =IF(A83<>0,INDEX(Liste!E:E,MATCH(A83,Liste!A:A,0))," ") -> 0 | C83: =IF(A83<>0,INDEX(Liste!F:F,MATCH(A83,Liste!A:A,0))," ") -> 0 | D83: =IF(A83<>0,INDEX(Liste!H:H,MATCH(A83,Liste!A:A,0))," ") -> 0, 0 | E83: =IF(A83<>0,INDEX(Liste!G:G,MATCH(A83,Liste!A:A,0))," ") -> 0
A84: 21 | B84: =IF(A84<>0,INDEX(Liste!E:E,MATCH(A84,Liste!A:A,0))," ") -> 0 | C84: =IF(A84<>0,INDEX(Liste!F:F,MATCH(A84,Liste!A:A,0))," ") -> 0 | D84: =IF(A84<>0,INDEX(Liste!H:H,MATCH(A84,Liste!A:A,0))," ") -> 0, 0 | E84: =IF(A84<>0,INDEX(Liste!G:G,MATCH(A84,Liste!A:A,0))," ") -> 0
A85: 75 | B85: =IF(A85<>0,INDEX(Liste!E:E,MATCH(A85,Liste!A:A,0))," ") -> 0 | C85: =IF(A85<>0,INDEX(Liste!F:F,MATCH(A85,Liste!A:A,0))," ") -> 0 | D85: =IF(A85<>0,INDEX(Liste!H:H,MATCH(A85,Liste!A:A,0))," ") -> 0, 0 | E85: =IF(A85<>0,INDEX(Liste!G:G,MATCH(A85,Liste!A:A,0))," ") -> 0
A86: 129 | B86: =IF(A86<>0,INDEX(Liste!E:E,MATCH(A86,Liste!A:A,0))," ") -> 0 | C86: =IF(A86<>0,INDEX(Liste!F:F,MATCH(A86,Liste!A:A,0))," ") -> 0 | D86: =IF(A86<>0,INDEX(Liste!H:H,MATCH(A86,Liste!A:A,0))," ") -> 0, 0 | E86: =IF(A86<>0,INDEX(Liste!G:G,MATCH(A86,Liste!A:A,0))," ") -> 0
A87: 183 | B87: =IF(A87<>0,INDEX(Liste!E:E,MATCH(A87,Liste!A:A,0))," ") -> 0 | C87: =IF(A87<>0,INDEX(Liste!F:F,MATCH(A87,Liste!A:A,0))," ") -> 0 | D87: =IF(A87<>0,INDEX(Liste!H:H,MATCH(A87,Liste!A:A,0))," ") -> 0, 0 | E87: =IF(A87<>0,INDEX(Liste!G:G,MATCH(A87,Liste!A:A,0))," ") -> 0
A88: 22 | B88: =IF(A88<>0,INDEX(Liste!E:E,MATCH(A88,Liste!A:A,0))," ") -> 0 | C88: =IF(A88<>0,INDEX(Liste!F:F,MATCH(A88,Liste!A:A,0))," ") -> 0 | D88: =IF(A88<>0,INDEX(Liste!H:H,MATCH(A88,Liste!A:A,0))," ") -> 0, 0 | E88: =IF(A88<>0,INDEX(Liste!G:G,MATCH(A88,Liste!A:A,0))," ") -> 0
A89: 76 | B89: =IF(A89<>0,INDEX(Liste!E:E,MATCH(A89,Liste!A:A,0))," ") -> 0 | C89: =IF(A89<>0,INDEX(Liste!F:F,MATCH(A89,Liste!A:A,0))," ") -> 0 | D89: =IF(A89<>0,INDEX(Liste!H:H,MATCH(A89,Liste!A:A,0))," ") -> 0, 0 | E89: =IF(A89<>0,INDEX(Liste!G:G,MATCH(A89,Liste!A:A,0))," ") -> 0
A90: 130 | B90: =IF(A90<>0,INDEX(Liste!E:E,MATCH(A90,Liste!A:A,0))," ") -> 0 | C90: =IF(A90<>0,INDEX(Liste!F:F,MATCH(A90,Liste!A:A,0))," ") -> 0 | D90: =IF(A90<>0,INDEX(Liste!H:H,MATCH(A90,Liste!A:A,0))," ") -> 0, 0 | E90: =IF(A90<>0,INDEX(Liste!G:G,MATCH(A90,Liste!A:A,0))," ") -> 0
A91: 184 | B91: =IF(A91<>0,INDEX(Liste!E:E,MATCH(A91,Liste!A:A,0))," ") -> 0 | C91: =IF(A91<>0,INDEX(Liste!F:F,MATCH(A91,Liste!A:A,0))," ") -> 0 | D91: =IF(A91<>0,INDEX(Liste!H:H,MATCH(A91,Liste!A:A,0))," ") -> 0, 0 | E91: =IF(A91<>0,INDEX(Liste!G:G,MATCH(A91,Liste!A:A,0))," ") -> 0
A92: 23 | B92: =IF(A92<>0,INDEX(Liste!E:E,MATCH(A92,Liste!A:A,0))," ") -> 0 | C92: =IF(A92<>0,INDEX(Liste!F:F,MATCH(A92,Liste!A:A,0))," ") -> 0 | D92: =IF(A92<>0,INDEX(Liste!H:H,MATCH(A92,Liste!A:A,0))," ") -> 0, 0 | E92: =IF(A92<>0,INDEX(Liste!G:G,MATCH(A92,Liste!A:A,0))," ") -> 0
A93: 77 | B93: =IF(A93<>0,INDEX(Liste!E:E,MATCH(A93,Liste!A:A,0))," ") -> 0 | C93: =IF(A93<>0,INDEX(Liste!F:F,MATCH(A93,Liste!A:A,0))," ") -> 0 | D93: =IF(A93<>0,INDEX(Liste!H:H,MATCH(A93,Liste!A:A,0))," ") -> 0, 0 | E93: =IF(A93<>0,INDEX(Liste!G:G,MATCH(A93,Liste!A:A,0))," ") -> 0
A94: 131 | B94: =IF(A94<>0,INDEX(Liste!E:E,MATCH(A94,Liste!A:A,0))," ") -> 0 | C94: =IF(A94<>0,INDEX(Liste!F:F,MATCH(A94,Liste!A:A,0))," ") -> 0 | D94: =IF(A94<>0,INDEX(Liste!H:H,MATCH(A94,Liste!A:A,0))," ") -> 0, 0 | E94: =IF(A94<>0,INDEX(Liste!G:G,MATCH(A94,Liste!A:A,0))," ") -> 0
A95: 185 | B95: =IF(A95<>0,INDEX(Liste!E:E,MATCH(A95,Liste!A:A,0))," ") -> 0 | C95: =IF(A95<>0,INDEX(Liste!F:F,MATCH(A95,Liste!A:A,0))," ") -> 0 | D95: =IF(A95<>0,INDEX(Liste!H:H,MATCH(A95,Liste!A:A,0))," ") -> 0, 0 | E95: =IF(A95<>0,INDEX(Liste!G:G,MATCH(A95,Liste!A:A,0))," ") -> 0
A96: 24 | B96: =IF(A96<>0,INDEX(Liste!E:E,MATCH(A96,Liste!A:A,0))," ") -> 0 | C96: =IF(A96<>0,INDEX(Liste!F:F,MATCH(A96,Liste!A:A,0))," ") -> 0 | D96: =IF(A96<>0,INDEX(Liste!H:H,MATCH(A96,Liste!A:A,0))," ") -> 0, 0 | E96: =IF(A96<>0,INDEX(Liste!G:G,MATCH(A96,Liste!A:A,0))," ") -> 0
A97: 78 | B97: =IF(A97<>0,INDEX(Liste!E:E,MATCH(A97,Liste!A:A,0))," ") -> 0 | C97: =IF(A97<>0,INDEX(Liste!F:F,MATCH(A97,Liste!A:A,0))," ") -> 0 | D97: =IF(A97<>0,INDEX(Liste!H:H,MATCH(A97,Liste!A:A,0))," ") -> 0, 0 | E97: =IF(A97<>0,INDEX(Liste!G:G,MATCH(A97,Liste!A:A,0))," ") -> 0
A98: 132 | B98: =IF(A98<>0,INDEX(Liste!E:E,MATCH(A98,Liste!A:A,0))," ") -> 0 | C98: =IF(A98<>0,INDEX(Liste!F:F,MATCH(A98,Liste!A:A,0))," ") -> 0 | D98: =IF(A98<>0,INDEX(Liste!H:H,MATCH(A98,Liste!A:A,0))," ") -> 0, 0 | E98: =IF(A98<>0,INDEX(Liste!G:G,MATCH(A98,Liste!A:A,0))," ") -> 0
A99: 186 | B99: =IF(A99<>0,INDEX(Liste!E:E,MATCH(A99,Liste!A:A,0))," ") -> 0 | C99: =IF(A99<>0,INDEX(Liste!F:F,MATCH(A99,Liste!A:A,0))," ") -> 0 | D99: =IF(A99<>0,INDEX(Liste!H:H,MATCH(A99,Liste!A:A,0))," ") -> 0, 0 | E99: =IF(A99<>0,INDEX(Liste!G:G,MATCH(A99,Liste!A:A,0))," ") -> 0
A100: 25 | B100: =IF(A100<>0,INDEX(Liste!E:E,MATCH(A100,Liste!A:A,0))," ") -> 0 | C100: =IF(A100<>0,INDEX(Liste!F:F,MATCH(A100,Liste!A:A,0))," ") -> 0 | D100: =IF(A100<>0,INDEX(Liste!H:H,MATCH(A100,Liste!A:A,0))," ") -> 0, 0 | E100: =IF(A100<>0,INDEX(Liste!G:G,MATCH(A100,Liste!A:A,0))," ") -> 0
A101: 79 | B101: =IF(A101<>0,INDEX(Liste!E:E,MATCH(A101,Liste!A:A,0))," ") -> 0 | C101: =IF(A101<>0,INDEX(Liste!F:F,MATCH(A101,Liste!A:A,0))," ") -> 0 | D101: =IF(A101<>0,INDEX(Liste!H:H,MATCH(A101,Liste!A:A,0))," ") -> 0, 0 | E101: =IF(A101<>0,INDEX(Liste!G:G,MATCH(A101,Liste!A:A,0))," ") -> 0
A102: 133 | B102: =IF(A102<>0,INDEX(Liste!E:E,MATCH(A102,Liste!A:A,0))," ") -> 0 | C102: =IF(A102<>0,INDEX(Liste!F:F,MATCH(A102,Liste!A:A,0))," ") -> 0 | D102: =IF(A102<>0,INDEX(Liste!H:H,MATCH(A102,Liste!A:A,0))," ") -> 0, 0 | E102: =IF(A102<>0,INDEX(Liste!G:G,MATCH(A102,Liste!A:A,0))," ") -> 0
A103: 187 | B103: =IF(A103<>0,INDEX(Liste!E:E,MATCH(A103,Liste!A:A,0))," ") -> 0 | C103: =IF(A103<>0,INDEX(Liste!F:F,MATCH(A103,Liste!A:A,0))," ") -> 0 | D103: =IF(A103<>0,INDEX(Liste!H:H,MATCH(A103,Liste!A:A,0))," ") -> 0, 0 | E103: =IF(A103<>0,INDEX(Liste!G:G,MATCH(A103,Liste!A:A,0))," ") -> 0
A104: 26 | B104: =IF(A104<>0,INDEX(Liste!E:E,MATCH(A104,Liste!A:A,0))," ") -> 0 | C104: =IF(A104<>0,INDEX(Liste!F:F,MATCH(A104,Liste!A:A,0))," ") -> 0 | D104: =IF(A104<>0,INDEX(Liste!H:H,MATCH(A104,Liste!A:A,0))," ") -> 0, 0 | E104: =IF(A104<>0,INDEX(Liste!G:G,MATCH(A104,Liste!A:A,0))," ") -> 0
A105: 80 | B105: =IF(A105<>0,INDEX(Liste!E:E,MATCH(A105,Liste!A:A,0))," ") -> 0 | C105: =IF(A105<>0,INDEX(Liste!F:F,MATCH(A105,Liste!A:A,0))," ") -> 0 | D105: =IF(A105<>0,INDEX(Liste!H:H,MATCH(A105,Liste!A:A,0))," ") -> 0, 0 | E105: =IF(A105<>0,INDEX(Liste!G:G,MATCH(A105,Liste!A:A,0))," ") -> 0
A106: 134 | B106: =IF(A106<>0,INDEX(Liste!E:E,MATCH(A106,Liste!A:A,0))," ") -> 0 | C106: =IF(A106<>0,INDEX(Liste!F:F,MATCH(A106,Liste!A:A,0))," ") -> 0 | D106: =IF(A106<>0,INDEX(Liste!H:H,MATCH(A106,Liste!A:A,0))," ") -> 0, 0 | E106: =IF(A106<>0,INDEX(Liste!G:G,MATCH(A106,Liste!A:A,0))," ") -> 0
A107: 188 | B107: =IF(A107<>0,INDEX(Liste!E:E,MATCH(A107,Liste!A:A,0))," ") -> 0 | C107: =IF(A107<>0,INDEX(Liste!F:F,MATCH(A107,Liste!A:A,0))," ") -> 0 | D107: =IF(A107<>0,INDEX(Liste!H:H,MATCH(A107,Liste!A:A,0))," ") -> 0, 0 | E107: =IF(A107<>0,INDEX(Liste!G:G,MATCH(A107,Liste!A:A,0))," ") -> 0
A108: 27 | B108: =IF(A108<>0,INDEX(Liste!E:E,MATCH(A108,Liste!A:A,0))," ") -> 0 | C108: =IF(A108<>0,INDEX(Liste!F:F,MATCH(A108,Liste!A:A,0))," ") -> 0 | D108: =IF(A108<>0,INDEX(Liste!H:H,MATCH(A108,Liste!A:A,0))," ") -> 0, 0 | E108: =IF(A108<>0,INDEX(Liste!G:G,MATCH(A108,Liste!A:A,0))," ") -> 0
A109: 81 | B109: =IF(A109<>0,INDEX(Liste!E:E,MATCH(A109,Liste!A:A,0))," ") -> 0 | C109: =IF(A109<>0,INDEX(Liste!F:F,MATCH(A109,Liste!A:A,0))," ") -> 0 | D109: =IF(A109<>0,INDEX(Liste!H:H,MATCH(A109,Liste!A:A,0))," ") -> 0, 0 | E109: =IF(A109<>0,INDEX(Liste!G:G,MATCH(A109,Liste!A:A,0))," ") -> 0
A110: 135 | B110: =IF(A110<>0,INDEX(Liste!E:E,MATCH(A110,Liste!A:A,0))," ") -> 0 | C110: =IF(A110<>0,INDEX(Liste!F:F,MATCH(A110,Liste!A:A,0))," ") -> 0 | D110: =IF(A110<>0,INDEX(Liste!H:H,MATCH(A110,Liste!A:A,0))," ") -> 0, 0 | E110: =IF(A110<>0,INDEX(Liste!G:G,MATCH(A110,Liste!A:A,0))," ") -> 0
A111: 189 | B111: =IF(A111<>0,INDEX(Liste!E:E,MATCH(A111,Liste!A:A,0))," ") -> 0 | C111: =IF(A111<>0,INDEX(Liste!F:F,MATCH(A111,Liste!A:A,0))," ") -> 0 | D111: =IF(A111<>0,INDEX(Liste!H:H,MATCH(A111,Liste!A:A,0))," ") -> 0, 0 | E111: =IF(A111<>0,INDEX(Liste!G:G,MATCH(A111,Liste!A:A,0))," ") -> 0
A112: 28 | B112: =IF(A112<>0,INDEX(Liste!E:E,MATCH(A112,Liste!A:A,0))," ") -> 0 | C112: =IF(A112<>0,INDEX(Liste!F:F,MATCH(A112,Liste!A:A,0))," ") -> 0 | D112: =IF(A112<>0,INDEX(Liste!H:H,MATCH(A112,Liste!A:A,0))," ") -> 0, 0 | E112: =IF(A112<>0,INDEX(Liste!G:G,MATCH(A112,Liste!A:A,0))," ") -> 0
A113: 82 | B113: =IF(A113<>0,INDEX(Liste!E:E,MATCH(A113,Liste!A:A,0))," ") -> 0 | C113: =IF(A113<>0,INDEX(Liste!F:F,MATCH(A113,Liste!A:A,0))," ") -> 0 | D113: =IF(A113<>0,INDEX(Liste!H:H,MATCH(A113,Liste!A:A,0))," ") -> 0, 0 | E113: =IF(A113<>0,INDEX(Liste!G:G,MATCH(A113,Liste!A:A,0))," ") -> 0
A114: 136 | B114: =IF(A114<>0,INDEX(Liste!E:E,MATCH(A114,Liste!A:A,0))," ") -> 0 | C114: =IF(A114<>0,INDEX(Liste!F:F,MATCH(A114,Liste!A:A,0))," ") -> 0 | D114: =IF(A114<>0,INDEX(Liste!H:H,MATCH(A114,Liste!A:A,0))," ") -> 0, 0 | E114: =IF(A114<>0,INDEX(Liste!G:G,MATCH(A114,Liste!A:A,0))," ") -> 0
A115: 190 | B115: =IF(A115<>0,INDEX(Liste!E:E,MATCH(A115,Liste!A:A,0))," ") -> 0 | C115: =IF(A115<>0,INDEX(Liste!F:F,MATCH(A115,Liste!A:A,0))," ") -> 0 | D115: =IF(A115<>0,INDEX(Liste!H:H,MATCH(A115,Liste!A:A,0))," ") -> 0, 0 | E115: =IF(A115<>0,INDEX(Liste!G:G,MATCH(A115,Liste!A:A,0))," ") -> 0
A116: 29 | B116: =IF(A116<>0,INDEX(Liste!E:E,MATCH(A116,Liste!A:A,0))," ") -> 0 | C116: =IF(A116<>0,INDEX(Liste!F:F,MATCH(A116,Liste!A:A,0))," ") -> 0 | D116: =IF(A116<>0,INDEX(Liste!H:H,MATCH(A116,Liste!A:A,0))," ") -> 0, 0 | E116: =IF(A116<>0,INDEX(Liste!G:G,MATCH(A116,Liste!A:A,0))," ") -> 0
A117: 83 | B117: =IF(A117<>0,INDEX(Liste!E:E,MATCH(A117,Liste!A:A,0))," ") -> 0 | C117: =IF(A117<>0,INDEX(Liste!F:F,MATCH(A117,Liste!A:A,0))," ") -> 0 | D117: =IF(A117<>0,INDEX(Liste!H:H,MATCH(A117,Liste!A:A,0))," ") -> 0, 0 | E117: =IF(A117<>0,INDEX(Liste!G:G,MATCH(A117,Liste!A:A,0))," ") -> 0
A118: 137 | B118: =IF(A118<>0,INDEX(Liste!E:E,MATCH(A118,Liste!A:A,0))," ") -> 0 | C118: =IF(A118<>0,INDEX(Liste!F:F,MATCH(A118,Liste!A:A,0))," ") -> 0 | D118: =IF(A118<>0,INDEX(Liste!H:H,MATCH(A118,Liste!A:A,0))," ") -> 0, 0 | E118: =IF(A118<>0,INDEX(Liste!G:G,MATCH(A118,Liste!A:A,0))," ") -> 0
A119: 191 | B119: =IF(A119<>0,INDEX(Liste!E:E,MATCH(A119,Liste!A:A,0))," ") -> 0 | C119: =IF(A119<>0,INDEX(Liste!F:F,MATCH(A119,Liste!A:A,0))," ") -> 0 | D119: =IF(A119<>0,INDEX(Liste!H:H,MATCH(A119,Liste!A:A,0))," ") -> 0, 0 | E119: =IF(A119<>0,INDEX(Liste!G:G,MATCH(A119,Liste!A:A,0))," ") -> 0
A120: 30 | B120: =IF(A120<>0,INDEX(Liste!E:E,MATCH(A120,Liste!A:A,0))," ") -> 0 | C120: =IF(A120<>0,INDEX(Liste!F:F,MATCH(A120,Liste!A:A,0))," ") -> 0 | D120: =IF(A120<>0,INDEX(Liste!H:H,MATCH(A120,Liste!A:A,0))," ") -> 0, 0 | E120: =IF(A120<>0,INDEX(Liste!G:G,MATCH(A120,Liste!A:A,0))," ") -> 0
A121: 84 | B121: =IF(A121<>0,INDEX(Liste!E:E,MATCH(A121,Liste!A:A,0))," ") -> 0 | C121: =IF(A121<>0,INDEX(Liste!F:F,MATCH(A121,Liste!A:A,0))," ") -> 0 | D121: =IF(A121<>0,INDEX(Liste!H:H,MATCH(A121,Liste!A:A,0))," ") -> 0, 0 | E121: =IF(A121<>0,INDEX(Liste!G:G,MATCH(A121,Liste!A:A,0))," ") -> 0
A122: 138 | B122: =IF(A122<>0,INDEX(Liste!E:E,MATCH(A122,Liste!A:A,0))," ") -> 0 | C122: =IF(A122<>0,INDEX(Liste!F:F,MATCH(A122,Liste!A:A,0))," ") -> 0 | D122: =IF(A122<>0,INDEX(Liste!H:H,MATCH(A122,Liste!A:A,0))," ") -> 0, 0 | E122: =IF(A122<>0,INDEX(Liste!G:G,MATCH(A122,Liste!A:A,0))," ") -> 0
A123: 192 | B123: =IF(A123<>0,INDEX(Liste!E:E,MATCH(A123,Liste!A:A,0))," ") -> 0 | C123: =IF(A123<>0,INDEX(Liste!F:F,MATCH(A123,Liste!A:A,0))," ") -> 0 | D123: =IF(A123<>0,INDEX(Liste!H:H,MATCH(A123,Liste!A:A,0))," ") -> 0, 0 | E123: =IF(A123<>0,INDEX(Liste!G:G,MATCH(A123,Liste!A:A,0))," ") -> 0
A124: 31 | B124: =IF(A124<>0,INDEX(Liste!E:E,MATCH(A124,Liste!A:A,0))," ") -> 0 | C124: =IF(A124<>0,INDEX(Liste!F:F,MATCH(A124,Liste!A:A,0))," ") -> 0 | D124: =IF(A124<>0,INDEX(Liste!H:H,MATCH(A124,Liste!A:A,0))," ") -> 0, 0 | E124: =IF(A124<>0,INDEX(Liste!G:G,MATCH(A124,Liste!A:A,0))," ") -> 0
A125: 85 | B125: =IF(A125<>0,INDEX(Liste!E:E,MATCH(A125,Liste!A:A,0))," ") -> 0 | C125: =IF(A125<>0,INDEX(Liste!F:F,MATCH(A125,Liste!A:A,0))," ") -> 0 | D125: =IF(A125<>0,INDEX(Liste!H:H,MATCH(A125,Liste!A:A,0))," ") -> 0, 0 | E125: =IF(A125<>0,INDEX(Liste!G:G,MATCH(A125,Liste!A:A,0))," ") -> 0
A126: 139 | B126: =IF(A126<>0,INDEX(Liste!E:E,MATCH(A126,Liste!A:A,0))," ") -> 0 | C126: =IF(A126<>0,INDEX(Liste!F:F,MATCH(A126,Liste!A:A,0))," ") -> 0 | D126: =IF(A126<>0,INDEX(Liste!H:H,MATCH(A126,Liste!A:A,0))," ") -> 0, 0 | E126: =IF(A126<>0,INDEX(Liste!G:G,MATCH(A126,Liste!A:A,0))," ") -> 0
A127: 193 | B127: =IF(A127<>0,INDEX(Liste!E:E,MATCH(A127,Liste!A:A,0))," ") -> 0 | C127: =IF(A127<>0,INDEX(Liste!F:F,MATCH(A127,Liste!A:A,0))," ") -> 0 | D127: =IF(A127<>0,INDEX(Liste!H:H,MATCH(A127,Liste!A:A,0))," ") -> 0, 0 | E127: =IF(A127<>0,INDEX(Liste!G:G,MATCH(A127,Liste!A:A,0))," ") -> 0
A128: 32 | B128: =IF(A128<>0,INDEX(Liste!E:E,MATCH(A128,Liste!A:A,0))," ") -> 0 | C128: =IF(A128<>0,INDEX(Liste!F:F,MATCH(A128,Liste!A:A,0))," ") -> 0 | D128: =IF(A128<>0,INDEX(Liste!H:H,MATCH(A128,Liste!A:A,0))," ") -> 0, 0 | E128: =IF(A128<>0,INDEX(Liste!G:G,MATCH(A128,Liste!A:A,0))," ") -> 0
A129: 86 | B129: =IF(A129<>0,INDEX(Liste!E:E,MATCH(A129,Liste!A:A,0))," ") -> 0 | C129: =IF(A129<>0,INDEX(Liste!F:F,MATCH(A129,Liste!A:A,0))," ") -> 0 | D129: =IF(A129<>0,INDEX(Liste!H:H,MATCH(A129,Liste!A:A,0))," ") -> 0, 0 | E129: =IF(A129<>0,INDEX(Liste!G:G,MATCH(A129,Liste!A:A,0))," ") -> 0
A130: 140 | B130: =IF(A130<>0,INDEX(Liste!E:E,MATCH(A130,Liste!A:A,0))," ") -> 0 | C130: =IF(A130<>0,INDEX(Liste!F:F,MATCH(A130,Liste!A:A,0))," ") -> 0 | D130: =IF(A130<>0,INDEX(Liste!H:H,MATCH(A130,Liste!A:A,0))," ") -> 0, 0 | E130: =IF(A130<>0,INDEX(Liste!G:G,MATCH(A130,Liste!A:A,0))," ") -> 0
A131: 194 | B131: =IF(A131<>0,INDEX(Liste!E:E,MATCH(A131,Liste!A:A,0))," ") -> 0 | C131: =IF(A131<>0,INDEX(Liste!F:F,MATCH(A131,Liste!A:A,0))," ") -> 0 | D131: =IF(A131<>0,INDEX(Liste!H:H,MATCH(A131,Liste!A:A,0))," ") -> 0, 0 | E131: =IF(A131<>0,INDEX(Liste!G:G,MATCH(A131,Liste!A:A,0))," ") -> 0
A132: 33 | B132: =IF(A132<>0,INDEX(Liste!E:E,MATCH(A132,Liste!A:A,0))," ") -> 0 | C132: =IF(A132<>0,INDEX(Liste!F:F,MATCH(A132,Liste!A:A,0))," ") -> 0 | D132: =IF(A132<>0,INDEX(Liste!H:H,MATCH(A132,Liste!A:A,0))," ") -> 0, 0 | E132: =IF(A132<>0,INDEX(Liste!G:G,MATCH(A132,Liste!A:A,0))," ") -> 0
A133: 87 | B133: =IF(A133<>0,INDEX(Liste!E:E,MATCH(A133,Liste!A:A,0))," ") -> 0 | C133: =IF(A133<>0,INDEX(Liste!F:F,MATCH(A133,Liste!A:A,0))," ") -> 0 | D133: =IF(A133<>0,INDEX(Liste!H:H,MATCH(A133,Liste!A:A,0))," ") -> 0, 0 | E133: =IF(A133<>0,INDEX(Liste!G:G,MATCH(A133,Liste!A:A,0))," ") -> 0
A134: 141 | B134: =IF(A134<>0,INDEX(Liste!E:E,MATCH(A134,Liste!A:A,0))," ") -> 0 | C134: =IF(A134<>0,INDEX(Liste!F:F,MATCH(A134,Liste!A:A,0))," ") -> 0 | D134: =IF(A134<>0,INDEX(Liste!H:H,MATCH(A134,Liste!A:A,0))," ") -> 0, 0 | E134: =IF(A134<>0,INDEX(Liste!G:G,MATCH(A134,Liste!A:A,0))," ") -> 0
A135: 195 | B135: =IF(A135<>0,INDEX(Liste!E:E,MATCH(A135,Liste!A:A,0))," ") -> 0 | C135: =IF(A135<>0,INDEX(Liste!F:F,MATCH(A135,Liste!A:A,0))," ") -> 0 | D135: =IF(A135<>0,INDEX(Liste!H:H,MATCH(A135,Liste!A:A,0))," ") -> 0, 0 | E135: =IF(A135<>0,INDEX(Liste!G:G,MATCH(A135,Liste!A:A,0))," ") -> 0
A136: 34 | B136: =IF(A136<>0,INDEX(Liste!E:E,MATCH(A136,Liste!A:A,0))," ") -> 0 | C136: =IF(A136<>0,INDEX(Liste!F:F,MATCH(A136,Liste!A:A,0))," ") -> 0 | D136: =IF(A136<>0,INDEX(Liste!H:H,MATCH(A136,Liste!A:A,0))," ") -> 0, 0 | E136: =IF(A136<>0,INDEX(Liste!G:G,MATCH(A136,Liste!A:A,0))," ") -> 0
A137: =A133+1 -> 88 | B137: =IF(A137<>0,INDEX(Liste!E:E,MATCH(A137,Liste!A:A,0))," ") -> 0 | C137: =IF(A137<>0,INDEX(Liste!F:F,MATCH(A137,Liste!A:A,0))," ") -> 0 | D137: =IF(A137<>0,INDEX(Liste!H:H,MATCH(A137,Liste!A:A,0))," ") -> 0, 0 | E137: =IF(A137<>0,INDEX(Liste!G:G,MATCH(A137,Liste!A:A,0))," ") -> 0
A138: 142 | B138: =IF(A138<>0,INDEX(Liste!E:E,MATCH(A138,Liste!A:A,0))," ") -> 0 | C138: =IF(A138<>0,INDEX(Liste!F:F,MATCH(A138,Liste!A:A,0))," ") -> 0 | D138: =IF(A138<>0,INDEX(Liste!H:H,MATCH(A138,Liste!A:A,0))," ") -> 0, 0 | E138: =IF(A138<>0,INDEX(Liste!G:G,MATCH(A138,Liste!A:A,0))," ") -> 0
A139: 196 | B139: =IF(A139<>0,INDEX(Liste!E:E,MATCH(A139,Liste!A:A,0))," ") -> 0 | C139: =IF(A139<>0,INDEX(Liste!F:F,MATCH(A139,Liste!A:A,0))," ") -> 0 | D139: =IF(A139<>0,INDEX(Liste!H:H,MATCH(A139,Liste!A:A,0))," ") -> 0, 0 | E139: =IF(A139<>0,INDEX(Liste!G:G,MATCH(A139,Liste!A:A,0))," ") -> 0
A140: 35 | B140: =IF(A140<>0,INDEX(Liste!E:E,MATCH(A140,Liste!A:A,0))," ") -> 0 | C140: =IF(A140<>0,INDEX(Liste!F:F,MATCH(A140,Liste!A:A,0))," ") -> 0 | D140: =IF(A140<>0,INDEX(Liste!H:H,MATCH(A140,Liste!A:A,0))," ") -> 0, 0 | E140: =IF(A140<>0,INDEX(Liste!G:G,MATCH(A140,Liste!A:A,0))," ") -> 0
A141: 89 | B141: =IF(A141<>0,INDEX(Liste!E:E,MATCH(A141,Liste!A:A,0))," ") -> 0 | C141: =IF(A141<>0,INDEX(Liste!F:F,MATCH(A141,Liste!A:A,0))," ") -> 0 | D141: =IF(A141<>0,INDEX(Liste!H:H,MATCH(A141,Liste!A:A,0))," ") -> 0, 0 | E141: =IF(A141<>0,INDEX(Liste!G:G,MATCH(A141,Liste!A:A,0))," ") -> 0
A142: 143 | B142: =IF(A142<>0,INDEX(Liste!E:E,MATCH(A142,Liste!A:A,0))," ") -> 0 | C142: =IF(A142<>0,INDEX(Liste!F:F,MATCH(A142,Liste!A:A,0))," ") -> 0 | D142: =IF(A142<>0,INDEX(Liste!H:H,MATCH(A142,Liste!A:A,0))," ") -> 0, 0 | E142: =IF(A142<>0,INDEX(Liste!G:G,MATCH(A142,Liste!A:A,0))," ") -> 0
A143: 197 | B143: =IF(A143<>0,INDEX(Liste!E:E,MATCH(A143,Liste!A:A,0))," ") -> 0 | C143: =IF(A143<>0,INDEX(Liste!F:F,MATCH(A143,Liste!A:A,0))," ") -> 0 | D143: =IF(A143<>0,INDEX(Liste!H:H,MATCH(A143,Liste!A:A,0))," ") -> 0, 0 | E143: =IF(A143<>0,INDEX(Liste!G:G,MATCH(A143,Liste!A:A,0))," ") -> 0
A144: 36 | B144: =IF(A144<>0,INDEX(Liste!E:E,MATCH(A144,Liste!A:A,0))," ") -> 0 | C144: =IF(A144<>0,INDEX(Liste!F:F,MATCH(A144,Liste!A:A,0))," ") -> 0 | D144: =IF(A144<>0,INDEX(Liste!H:H,MATCH(A144,Liste!A:A,0))," ") -> 0, 0 | E144: =IF(A144<>0,INDEX(Liste!G:G,MATCH(A144,Liste!A:A,0))," ") -> 0
A145: 90 | B145: =IF(A145<>0,INDEX(Liste!E:E,MATCH(A145,Liste!A:A,0))," ") -> 0 | C145: =IF(A145<>0,INDEX(Liste!F:F,MATCH(A145,Liste!A:A,0))," ") -> 0 | D145: =IF(A145<>0,INDEX(Liste!H:H,MATCH(A145,Liste!A:A,0))," ") -> 0, 0 | E145: =IF(A145<>0,INDEX(Liste!G:G,MATCH(A145,Liste!A:A,0))," ") -> 0
A146: 144 | B146: =IF(A146<>0,INDEX(Liste!E:E,MATCH(A146,Liste!A:A,0))," ") -> 0 | C146: =IF(A146<>0,INDEX(Liste!F:F,MATCH(A146,Liste!A:A,0))," ") -> 0 | D146: =IF(A146<>0,INDEX(Liste!H:H,MATCH(A146,Liste!A:A,0))," ") -> 0, 0 | E146: =IF(A146<>0,INDEX(Liste!G:G,MATCH(A146,Liste!A:A,0))," ") -> 0
A147: 198 | B147: =IF(A147<>0,INDEX(Liste!E:E,MATCH(A147,Liste!A:A,0))," ") -> 0 | C147: =IF(A147<>0,INDEX(Liste!F:F,MATCH(A147,Liste!A:A,0))," ") -> 0 | D147: =IF(A147<>0,INDEX(Liste!H:H,MATCH(A147,Liste!A:A,0))," ") -> 0, 0 | E147: =IF(A147<>0,INDEX(Liste!G:G,MATCH(A147,Liste!A:A,0))," ") -> 0
A148: 37 | B148: =IF(A148<>0,INDEX(Liste!E:E,MATCH(A148,Liste!A:A,0))," ") -> 0 | C148: =IF(A148<>0,INDEX(Liste!F:F,MATCH(A148,Liste!A:A,0))," ") -> 0 | D148: =IF(A148<>0,INDEX(Liste!H:H,MATCH(A148,Liste!A:A,0))," ") -> 0, 0 | E148: =IF(A148<>0,INDEX(Liste!G:G,MATCH(A148,Liste!A:A,0))," ") -> 0
A149: 91 | B149: =IF(A149<>0,INDEX(Liste!E:E,MATCH(A149,Liste!A:A,0))," ") -> 0 | C149: =IF(A149<>0,INDEX(Liste!F:F,MATCH(A149,Liste!A:A,0))," ") -> 0 | D149: =IF(A149<>0,INDEX(Liste!H:H,MATCH(A149,Liste!A:A,0))," ") -> 0, 0 | E149: =IF(A149<>0,INDEX(Liste!G:G,MATCH(A149,Liste!A:A,0))," ") -> 0
A150: 145 | B150: =IF(A150<>0,INDEX(Liste!E:E,MATCH(A150,Liste!A:A,0))," ") -> 0 | C150: =IF(A150<>0,INDEX(Liste!F:F,MATCH(A150,Liste!A:A,0))," ") -> 0 | D150: =IF(A150<>0,INDEX(Liste!H:H,MATCH(A150,Liste!A:A,0))," ") -> 0, 0 | E150: =IF(A150<>0,INDEX(Liste!G:G,MATCH(A150,Liste!A:A,0))," ") -> 0
A151: 199 | B151: =IF(A151<>0,INDEX(Liste!E:E,MATCH(A151,Liste!A:A,0))," ") -> 0 | C151: =IF(A151<>0,INDEX(Liste!F:F,MATCH(A151,Liste!A:A,0))," ") -> 0 | D151: =IF(A151<>0,INDEX(Liste!H:H,MATCH(A151,Liste!A:A,0))," ") -> 0, 0 | E151: =IF(A151<>0,INDEX(Liste!G:G,MATCH(A151,Liste!A:A,0))," ") -> 0
A152: 38 | B152: =IF(A152<>0,INDEX(Liste!E:E,MATCH(A152,Liste!A:A,0))," ") -> 0 | C152: =IF(A152<>0,INDEX(Liste!F:F,MATCH(A152,Liste!A:A,0))," ") -> 0 | D152: =IF(A152<>0,INDEX(Liste!H:H,MATCH(A152,Liste!A:A,0))," ") -> 0, 0 | E152: =IF(A152<>0,INDEX(Liste!G:G,MATCH(A152,Liste!A:A,0))," ") -> 0
A153: 92 | B153: =IF(A153<>0,INDEX(Liste!E:E,MATCH(A153,Liste!A:A,0))," ") -> 0 | C153: =IF(A153<>0,INDEX(Liste!F:F,MATCH(A153,Liste!A:A,0))," ") -> 0 | D153: =IF(A153<>0,INDEX(Liste!H:H,MATCH(A153,Liste!A:A,0))," ") -> 0, 0 | E153: =IF(A153<>0,INDEX(Liste!G:G,MATCH(A153,Liste!A:A,0))," ") -> 0
A154: 146 | B154: =IF(A154<>0,INDEX(Liste!E:E,MATCH(A154,Liste!A:A,0))," ") -> 0 | C154: =IF(A154<>0,INDEX(Liste!F:F,MATCH(A154,Liste!A:A,0))," ") -> 0 | D154: =IF(A154<>0,INDEX(Liste!H:H,MATCH(A154,Liste!A:A,0))," ") -> 0, 0 | E154: =IF(A154<>0,INDEX(Liste!G:G,MATCH(A154,Liste!A:A,0))," ") -> 0
A155: 200 | B155: =IF(A155<>0,INDEX(Liste!E:E,MATCH(A155,Liste!A:A,0))," ") -> 0 | C155: =IF(A155<>0,INDEX(Liste!F:F,MATCH(A155,Liste!A:A,0))," ") -> 0 | D155: =IF(A155<>0,INDEX(Liste!H:H,MATCH(A155,Liste!A:A,0))," ") -> 0, 0 | E155: =IF(A155<>0,INDEX(Liste!G:G,MATCH(A155,Liste!A:A,0))," ") -> 0
A156: 39 | B156: =IF(A156<>0,INDEX(Liste!E:E,MATCH(A156,Liste!A:A,0))," ") -> 0 | C156: =IF(A156<>0,INDEX(Liste!F:F,MATCH(A156,Liste!A:A,0))," ") -> 0 | D156: =IF(A156<>0,INDEX(Liste!H:H,MATCH(A156,Liste!A:A,0))," ") -> 0, 0 | E156: =IF(A156<>0,INDEX(Liste!G:G,MATCH(A156,Liste!A:A,0))," ") -> 0
A157: 93 | B157: =IF(A157<>0,INDEX(Liste!E:E,MATCH(A157,Liste!A:A,0))," ") -> 0 | C157: =IF(A157<>0,INDEX(Liste!F:F,MATCH(A157,Liste!A:A,0))," ") -> 0 | D157: =IF(A157<>0,INDEX(Liste!H:H,MATCH(A157,Liste!A:A,0))," ") -> 0, 0 | E157: =IF(A157<>0,INDEX(Liste!G:G,MATCH(A157,Liste!A:A,0))," ") -> 0
A158: 147 | B158: =IF(A158<>0,INDEX(Liste!E:E,MATCH(A158,Liste!A:A,0))," ") -> 0 | C158: =IF(A158<>0,INDEX(Liste!F:F,MATCH(A158,Liste!A:A,0))," ") -> 0 | D158: =IF(A158<>0,INDEX(Liste!H:H,MATCH(A158,Liste!A:A,0))," ") -> 0, 0 | E158: =IF(A158<>0,INDEX(Liste!G:G,MATCH(A158,Liste!A:A,0))," ") -> 0
A159: 201 | B159: =IF(A159<>0,INDEX(Liste!E:E,MATCH(A159,Liste!A:A,0))," ") -> 0 | C159: =IF(A159<>0,INDEX(Liste!F:F,MATCH(A159,Liste!A:A,0))," ") -> 0 | D159: =IF(A159<>0,INDEX(Liste!H:H,MATCH(A159,Liste!A:A,0))," ") -> 0, 0 | E159: =IF(A159<>0,INDEX(Liste!G:G,MATCH(A159,Liste!A:A,0))," ") -> 0
A160: 40 | B160: =IF(A160<>0,INDEX(Liste!E:E,MATCH(A160,Liste!A:A,0))," ") -> 0 | C160: =IF(A160<>0,INDEX(Liste!F:F,MATCH(A160,Liste!A:A,0))," ") -> 0 | D160: =IF(A160<>0,INDEX(Liste!H:H,MATCH(A160,Liste!A:A,0))," ") -> 0, 0 | E160: =IF(A160<>0,INDEX(Liste!G:G,MATCH(A160,Liste!A:A,0))," ") -> 0
A161: 94 | B161: =IF(A161<>0,INDEX(Liste!E:E,MATCH(A161,Liste!A:A,0))," ") -> 0 | C161: =IF(A161<>0,INDEX(Liste!F:F,MATCH(A161,Liste!A:A,0))," ") -> 0 | D161: =IF(A161<>0,INDEX(Liste!H:H,MATCH(A161,Liste!A:A,0))," ") -> 0, 0 | E161: =IF(A161<>0,INDEX(Liste!G:G,MATCH(A161,Liste!A:A,0))," ") -> 0
A162: 148 | B162: =IF(A162<>0,INDEX(Liste!E:E,MATCH(A162,Liste!A:A,0))," ") -> 0 | C162: =IF(A162<>0,INDEX(Liste!F:F,MATCH(A162,Liste!A:A,0))," ") -> 0 | D162: =IF(A162<>0,INDEX(Liste!H:H,MATCH(A162,Liste!A:A,0))," ") -> 0, 0 | E162: =IF(A162<>0,INDEX(Liste!G:G,MATCH(A162,Liste!A:A,0))," ") -> 0
A163: 202 | B163: =IF(A163<>0,INDEX(Liste!E:E,MATCH(A163,Liste!A:A,0))," ") -> 0 | C163: =IF(A163<>0,INDEX(Liste!F:F,MATCH(A163,Liste!A:A,0))," ") -> 0 | D163: =IF(A163<>0,INDEX(Liste!H:H,MATCH(A163,Liste!A:A,0))," ") -> 0, 0 | E163: =IF(A163<>0,INDEX(Liste!G:G,MATCH(A163,Liste!A:A,0))," ") -> 0
A164: 41 | B164: =IF(A164<>0,INDEX(Liste!E:E,MATCH(A164,Liste!A:A,0))," ") -> 0 | C164: =IF(A164<>0,INDEX(Liste!F:F,MATCH(A164,Liste!A:A,0))," ") -> 0 | D164: =IF(A164<>0,INDEX(Liste!H:H,MATCH(A164,Liste!A:A,0))," ") -> 0, 0 | E164: =IF(A164<>0,INDEX(Liste!G:G,MATCH(A164,Liste!A:A,0))," ") -> 0
A165: 95 | B165: =IF(A165<>0,INDEX(Liste!E:E,MATCH(A165,Liste!A:A,0))," ") -> 0 | C165: =IF(A165<>0,INDEX(Liste!F:F,MATCH(A165,Liste!A:A,0))," ") -> 0 | D165: =IF(A165<>0,INDEX(Liste!H:H,MATCH(A165,Liste!A:A,0))," ") -> 0, 0 | E165: =IF(A165<>0,INDEX(Liste!G:G,MATCH(A165,Liste!A:A,0))," ") -> 0
A166: 149 | B166: =IF(A166<>0,INDEX(Liste!E:E,MATCH(A166,Liste!A:A,0))," ") -> 0 | C166: =IF(A166<>0,INDEX(Liste!F:F,MATCH(A166,Liste!A:A,0))," ") -> 0 | D166: =IF(A166<>0,INDEX(Liste!H:H,MATCH(A166,Liste!A:A,0))," ") -> 0, 0 | E166: =IF(A166<>0,INDEX(Liste!G:G,MATCH(A166,Liste!A:A,0))," ") -> 0
A167: 203 | B167: =IF(A167<>0,INDEX(Liste!E:E,MATCH(A167,Liste!A:A,0))," ") -> 0 | C167: =IF(A167<>0,INDEX(Liste!F:F,MATCH(A167,Liste!A:A,0))," ") -> 0 | D167: =IF(A167<>0,INDEX(Liste!H:H,MATCH(A167,Liste!A:A,0))," ") -> 0, 0 | E167: =IF(A167<>0,INDEX(Liste!G:G,MATCH(A167,Liste!A:A,0))," ") -> 0
A168: 42 | B168: =IF(A168<>0,INDEX(Liste!E:E,MATCH(A168,Liste!A:A,0))," ") -> 0 | C168: =IF(A168<>0,INDEX(Liste!F:F,MATCH(A168,Liste!A:A,0))," ") -> 0 | D168: =IF(A168<>0,INDEX(Liste!H:H,MATCH(A168,Liste!A:A,0))," ") -> 0, 0 | E168: =IF(A168<>0,INDEX(Liste!G:G,MATCH(A168,Liste!A:A,0))," ") -> 0
A169: 96 | B169: =IF(A169<>0,INDEX(Liste!E:E,MATCH(A169,Liste!A:A,0))," ") -> 0 | C169: =IF(A169<>0,INDEX(Liste!F:F,MATCH(A169,Liste!A:A,0))," ") -> 0 | D169: =IF(A169<>0,INDEX(Liste!H:H,MATCH(A169,Liste!A:A,0))," ") -> 0, 0 | E169: =IF(A169<>0,INDEX(Liste!G:G,MATCH(A169,Liste!A:A,0))," ") -> 0
A170: 150 | B170: =IF(A170<>0,INDEX(Liste!E:E,MATCH(A170,Liste!A:A,0))," ") -> 0 | C170: =IF(A170<>0,INDEX(Liste!F:F,MATCH(A170,Liste!A:A,0))," ") -> 0 | D170: =IF(A170<>0,INDEX(Liste!H:H,MATCH(A170,Liste!A:A,0))," ") -> 0, 0 | E170: =IF(A170<>0,INDEX(Liste!G:G,MATCH(A170,Liste!A:A,0))," ") -> 0
A171: 204 | B171: =IF(A171<>0,INDEX(Liste!E:E,MATCH(A171,Liste!A:A,0))," ") -> 0 | C171: =IF(A171<>0,INDEX(Liste!F:F,MATCH(A171,Liste!A:A,0))," ") -> 0 | D171: =IF(A171<>0,INDEX(Liste!H:H,MATCH(A171,Liste!A:A,0))," ") -> 0, 0 | E171: =IF(A171<>0,INDEX(Liste!G:G,MATCH(A171,Liste!A:A,0))," ") -> 0
A172: 43 | B172: =IF(A172<>0,INDEX(Liste!E:E,MATCH(A172,Liste!A:A,0))," ") -> 0 | C172: =IF(A172<>0,INDEX(Liste!F:F,MATCH(A172,Liste!A:A,0))," ") -> 0 | D172: =IF(A172<>0,INDEX(Liste!H:H,MATCH(A172,Liste!A:A,0))," ") -> 0, 0 | E172: =IF(A172<>0,INDEX(Liste!G:G,MATCH(A172,Liste!A:A,0))," ") -> 0
A173: 97 | B173: =IF(A173<>0,INDEX(Liste!E:E,MATCH(A173,Liste!A:A,0))," ") -> 0 | C173: =IF(A173<>0,INDEX(Liste!F:F,MATCH(A173,Liste!A:A,0))," ") -> 0 | D173: =IF(A173<>0,INDEX(Liste!H:H,MATCH(A173,Liste!A:A,0))," ") -> 0, 0 | E173: =IF(A173<>0,INDEX(Liste!G:G,MATCH(A173,Liste!A:A,0))," ") -> 0
A174: 151 | B174: =IF(A174<>0,INDEX(Liste!E:E,MATCH(A174,Liste!A:A,0))," ") -> 0 | C174: =IF(A174<>0,INDEX(Liste!F:F,MATCH(A174,Liste!A:A,0))," ") -> 0 | D174: =IF(A174<>0,INDEX(Liste!H:H,MATCH(A174,Liste!A:A,0))," ") -> 0, 0 | E174: =IF(A174<>0,INDEX(Liste!G:G,MATCH(A174,Liste!A:A,0))," ") -> 0
A175: 205 | B175: =IF(A175<>0,INDEX(Liste!E:E,MATCH(A175,Liste!A:A,0))," ") -> 0 | C175: =IF(A175<>0,INDEX(Liste!F:F,MATCH(A175,Liste!A:A,0))," ") -> 0 | D175: =IF(A175<>0,INDEX(Liste!H:H,MATCH(A175,Liste!A:A,0))," ") -> 0, 0 | E175: =IF(A175<>0,INDEX(Liste!G:G,MATCH(A175,Liste!A:A,0))," ") -> 0
A176: 44 | B176: =IF(A176<>0,INDEX(Liste!E:E,MATCH(A176,Liste!A:A,0))," ") -> 0 | C176: =IF(A176<>0,INDEX(Liste!F:F,MATCH(A176,Liste!A:A,0))," ") -> 0 | D176: =IF(A176<>0,INDEX(Liste!H:H,MATCH(A176,Liste!A:A,0))," ") -> 0, 0 | E176: =IF(A176<>0,INDEX(Liste!G:G,MATCH(A176,Liste!A:A,0))," ") -> 0
A177: 98 | B177: =IF(A177<>0,INDEX(Liste!E:E,MATCH(A177,Liste!A:A,0))," ") -> 0 | C177: =IF(A177<>0,INDEX(Liste!F:F,MATCH(A177,Liste!A:A,0))," ") -> 0 | D177: =IF(A177<>0,INDEX(Liste!H:H,MATCH(A177,Liste!A:A,0))," ") -> 0, 0 | E177: =IF(A177<>0,INDEX(Liste!G:G,MATCH(A177,Liste!A:A,0))," ") -> 0
A178: 152 | B178: =IF(A178<>0,INDEX(Liste!E:E,MATCH(A178,Liste!A:A,0))," ") -> 0 | C178: =IF(A178<>0,INDEX(Liste!F:F,MATCH(A178,Liste!A:A,0))," ") -> 0 | D178: =IF(A178<>0,INDEX(Liste!H:H,MATCH(A178,Liste!A:A,0))," ") -> 0, 0 | E178: =IF(A178<>0,INDEX(Liste!G:G,MATCH(A178,Liste!A:A,0))," ") -> 0
A179: 206 | B179: =IF(A179<>0,INDEX(Liste!E:E,MATCH(A179,Liste!A:A,0))," ") -> 0 | C179: =IF(A179<>0,INDEX(Liste!F:F,MATCH(A179,Liste!A:A,0))," ") -> 0 | D179: =IF(A179<>0,INDEX(Liste!H:H,MATCH(A179,Liste!A:A,0))," ") -> 0, 0 | E179: =IF(A179<>0,INDEX(Liste!G:G,MATCH(A179,Liste!A:A,0))," ") -> 0
A180: 45 | B180: =IF(A180<>0,INDEX(Liste!E:E,MATCH(A180,Liste!A:A,0))," ") -> 0 | C180: =IF(A180<>0,INDEX(Liste!F:F,MATCH(A180,Liste!A:A,0))," ") -> 0 | D180: =IF(A180<>0,INDEX(Liste!H:H,MATCH(A180,Liste!A:A,0))," ") -> 0, 0 | E180: =IF(A180<>0,INDEX(Liste!G:G,MATCH(A180,Liste!A:A,0))," ") -> 0
A181: 99 | B181: =IF(A181<>0,INDEX(Liste!E:E,MATCH(A181,Liste!A:A,0))," ") -> 0 | C181: =IF(A181<>0,INDEX(Liste!F:F,MATCH(A181,Liste!A:A,0))," ") -> 0 | D181: =IF(A181<>0,INDEX(Liste!H:H,MATCH(A181,Liste!A:A,0))," ") -> 0, 0 | E181: =IF(A181<>0,INDEX(Liste!G:G,MATCH(A181,Liste!A:A,0))," ") -> 0
A182: 153 | B182: =IF(A182<>0,INDEX(Liste!E:E,MATCH(A182,Liste!A:A,0))," ") -> 0 | C182: =IF(A182<>0,INDEX(Liste!F:F,MATCH(A182,Liste!A:A,0))," ") -> 0 | D182: =IF(A182<>0,INDEX(Liste!H:H,MATCH(A182,Liste!A:A,0))," ") -> 0, 0 | E182: =IF(A182<>0,INDEX(Liste!G:G,MATCH(A182,Liste!A:A,0))," ") -> 0
A183: 207 | B183: =IF(A183<>0,INDEX(Liste!E:E,MATCH(A183,Liste!A:A,0))," ") -> 0 | C183: =IF(A183<>0,INDEX(Liste!F:F,MATCH(A183,Liste!A:A,0))," ") -> 0 | D183: =IF(A183<>0,INDEX(Liste!H:H,MATCH(A183,Liste!A:A,0))," ") -> 0, 0 | E183: =IF(A183<>0,INDEX(Liste!G:G,MATCH(A183,Liste!A:A,0))," ") -> 0
A184: 46 | B184: =IF(A184<>0,INDEX(Liste!E:E,MATCH(A184,Liste!A:A,0))," ") -> 0 | C184: =IF(A184<>0,INDEX(Liste!F:F,MATCH(A184,Liste!A:A,0))," ") -> 0 | D184: =IF(A184<>0,INDEX(Liste!H:H,MATCH(A184,Liste!A:A,0))," ") -> 0, 0 | E184: =IF(A184<>0,INDEX(Liste!G:G,MATCH(A184,Liste!A:A,0))," ") -> 0
A185: 100 | B185: =IF(A185<>0,INDEX(Liste!E:E,MATCH(A185,Liste!A:A,0))," ") -> 0 | C185: =IF(A185<>0,INDEX(Liste!F:F,MATCH(A185,Liste!A:A,0))," ") -> 0 | D185: =IF(A185<>0,INDEX(Liste!H:H,MATCH(A185,Liste!A:A,0))," ") -> 0, 0 | E185: =IF(A185<>0,INDEX(Liste!G:G,MATCH(A185,Liste!A:A,0))," ") -> 0
A186: 154 | B186: =IF(A186<>0,INDEX(Liste!E:E,MATCH(A186,Liste!A:A,0))," ") -> 0 | C186: =IF(A186<>0,INDEX(Liste!F:F,MATCH(A186,Liste!A:A,0))," ") -> 0 | D186: =IF(A186<>0,INDEX(Liste!H:H,MATCH(A186,Liste!A:A,0))," ") -> 0, 0 | E186: =IF(A186<>0,INDEX(Liste!G:G,MATCH(A186,Liste!A:A,0))," ") -> 0
A187: 208 | B187: =IF(A187<>0,INDEX(Liste!E:E,MATCH(A187,Liste!A:A,0))," ") -> 0 | C187: =IF(A187<>0,INDEX(Liste!F:F,MATCH(A187,Liste!A:A,0))," ") -> 0 | D187: =IF(A187<>0,INDEX(Liste!H:H,MATCH(A187,Liste!A:A,0))," ") -> 0, 0 | E187: =IF(A187<>0,INDEX(Liste!G:G,MATCH(A187,Liste!A:A,0))," ") -> 0
A188: 47 | B188: =IF(A188<>0,INDEX(Liste!E:E,MATCH(A188,Liste!A:A,0))," ") -> 0 | C188: =IF(A188<>0,INDEX(Liste!F:F,MATCH(A188,Liste!A:A,0))," ") -> 0 | D188: =IF(A188<>0,INDEX(Liste!H:H,MATCH(A188,Liste!A:A,0))," ") -> 0, 0 | E188: =IF(A188<>0,INDEX(Liste!G:G,MATCH(A188,Liste!A:A,0))," ") -> 0
A189: 101 | B189: =IF(A189<>0,INDEX(Liste!E:E,MATCH(A189,Liste!A:A,0))," ") -> 0 | C189: =IF(A189<>0,INDEX(Liste!F:F,MATCH(A189,Liste!A:A,0))," ") -> 0 | D189: =IF(A189<>0,INDEX(Liste!H:H,MATCH(A189,Liste!A:A,0))," ") -> 0, 0 | E189: =IF(A189<>0,INDEX(Liste!G:G,MATCH(A189,Liste!A:A,0))," ") -> 0
A190: 155 | B190: =IF(A190<>0,INDEX(Liste!E:E,MATCH(A190,Liste!A:A,0))," ") -> 0 | C190: =IF(A190<>0,INDEX(Liste!F:F,MATCH(A190,Liste!A:A,0))," ") -> 0 | D190: =IF(A190<>0,INDEX(Liste!H:H,MATCH(A190,Liste!A:A,0))," ") -> 0, 0 | E190: =IF(A190<>0,INDEX(Liste!G:G,MATCH(A190,Liste!A:A,0))," ") -> 0
A191: 209 | B191: =IF(A191<>0,INDEX(Liste!E:E,MATCH(A191,Liste!A:A,0))," ") -> 0 | C191: =IF(A191<>0,INDEX(Liste!F:F,MATCH(A191,Liste!A:A,0))," ") -> 0 | D191: =IF(A191<>0,INDEX(Liste!H:H,MATCH(A191,Liste!A:A,0))," ") -> 0, 0 | E191: =IF(A191<>0,INDEX(Liste!G:G,MATCH(A191,Liste!A:A,0))," ") -> 0
A192: 48 | B192: =IF(A192<>0,INDEX(Liste!E:E,MATCH(A192,Liste!A:A,0))," ") -> 0 | C192: =IF(A192<>0,INDEX(Liste!F:F,MATCH(A192,Liste!A:A,0))," ") -> 0 | D192: =IF(A192<>0,INDEX(Liste!H:H,MATCH(A192,Liste!A:A,0))," ") -> 0, 0 | E192: =IF(A192<>0,INDEX(Liste!G:G,MATCH(A192,Liste!A:A,0))," ") -> 0
A193: 102 | B193: =IF(A193<>0,INDEX(Liste!E:E,MATCH(A193,Liste!A:A,0))," ") -> 0 | C193: =IF(A193<>0,INDEX(Liste!F:F,MATCH(A193,Liste!A:A,0))," ") -> 0 | D193: =IF(A193<>0,INDEX(Liste!H:H,MATCH(A193,Liste!A:A,0))," ") -> 0, 0 | E193: =IF(A193<>0,INDEX(Liste!G:G,MATCH(A193,Liste!A:A,0))," ") -> 0
A194: 156 | B194: =IF(A194<>0,INDEX(Liste!E:E,MATCH(A194,Liste!A:A,0))," ") -> 0 | C194: =IF(A194<>0,INDEX(Liste!F:F,MATCH(A194,Liste!A:A,0))," ") -> 0 | D194: =IF(A194<>0,INDEX(Liste!H:H,MATCH(A194,Liste!A:A,0))," ") -> 0, 0 | E194: =IF(A194<>0,INDEX(Liste!G:G,MATCH(A194,Liste!A:A,0))," ") -> 0
A195: 210 | B195: =IF(A195<>0,INDEX(Liste!E:E,MATCH(A195,Liste!A:A,0))," ") -> 0 | C195: =IF(A195<>0,INDEX(Liste!F:F,MATCH(A195,Liste!A:A,0))," ") -> 0 | D195: =IF(A195<>0,INDEX(Liste!H:H,MATCH(A195,Liste!A:A,0))," ") -> 0, 0 | E195: =IF(A195<>0,INDEX(Liste!G:G,MATCH(A195,Liste!A:A,0))," ") -> 0
A196: 49 | B196: =IF(A196<>0,INDEX(Liste!E:E,MATCH(A196,Liste!A:A,0))," ") -> 0 | C196: =IF(A196<>0,INDEX(Liste!F:F,MATCH(A196,Liste!A:A,0))," ") -> 0 | D196: =IF(A196<>0,INDEX(Liste!H:H,MATCH(A196,Liste!A:A,0))," ") -> 0, 0 | E196: =IF(A196<>0,INDEX(Liste!G:G,MATCH(A196,Liste!A:A,0))," ") -> 0
A197: 103 | B197: =IF(A197<>0,INDEX(Liste!E:E,MATCH(A197,Liste!A:A,0))," ") -> 0 | C197: =IF(A197<>0,INDEX(Liste!F:F,MATCH(A197,Liste!A:A,0))," ") -> 0 | D197: =IF(A197<>0,INDEX(Liste!H:H,MATCH(A197,Liste!A:A,0))," ") -> 0, 0 | E197: =IF(A197<>0,INDEX(Liste!G:G,MATCH(A197,Liste!A:A,0))," ") -> 0
A198: 157 | B198: =IF(A198<>0,INDEX(Liste!E:E,MATCH(A198,Liste!A:A,0))," ") -> 0 | C198: =IF(A198<>0,INDEX(Liste!F:F,MATCH(A198,Liste!A:A,0))," ") -> 0 | D198: =IF(A198<>0,INDEX(Liste!H:H,MATCH(A198,Liste!A:A,0))," ") -> 0, 0 | E198: =IF(A198<>0,INDEX(Liste!G:G,MATCH(A198,Liste!A:A,0))," ") -> 0
A199: 211 | B199: =IF(A199<>0,INDEX(Liste!E:E,MATCH(A199,Liste!A:A,0))," ") -> 0 | C199: =IF(A199<>0,INDEX(Liste!F:F,MATCH(A199,Liste!A:A,0))," ") -> 0 | D199: =IF(A199<>0,INDEX(Liste!H:H,MATCH(A199,Liste!A:A,0))," ") -> 0, 0 | E199: =IF(A199<>0,INDEX(Liste!G:G,MATCH(A199,Liste!A:A,0))," ") -> 0
A200: 50 | B200: =IF(A200<>0,INDEX(Liste!E:E,MATCH(A200,Liste!A:A,0))," ") -> 0 | C200: =IF(A200<>0,INDEX(Liste!F:F,MATCH(A200,Liste!A:A,0))," ") -> 0 | D200: =IF(A200<>0,INDEX(Liste!H:H,MATCH(A200,Liste!A:A,0))," ") -> 0, 0 | E200: =IF(A200<>0,INDEX(Liste!G:G,MATCH(A200,Liste!A:A,0))," ") -> 0
... 187 more rows

Sheet Eingabe 1-4
B1: 1 | C1: 11 | D1: 21 | E1: 31 | F1: Eingabe der Tischnummern : | G1: 41 | H1: 51 | I1: 201 | J1: 211 | K1: 301 | L1: 311 | N1: 1 | O1: 11 | P1: 21 | Q1: 31 | R1: Eingabe der Tischnummern : | S1: 41 | T1: 51 | U1: 201 | V1: 211 | W1: 301 | X1: 311 | Z1: 1 | AA1: 11 | AB1: 21 | AC1: 31 | AD1: Eingabe der Tischnummern : | AE1: 41 | AF1: 51 | AG1: 201 | AH1: 211 | AI1: 301 | AJ1: 311 | AL1: 1 | AM1: 11 | AN1: 21 | AO1: 31 | AP1: Eingabe der Tischnummern : | AQ1: 41 | AR1: 51 | AS1: 201 | AT1: 211 | AU1: 301 | AV1: 311 | BD1: 1 | BE1: 11 | BF1: 21 | BG1: 31 | BI1: 41 | BJ1: 51 | BK1: 201 | BL1: 211 | BN1: 301 | BO1: 311
B2: 2 | C2: 12 | D2: 22 | E2: 32 | G2: 42 | H2: 52 | I2: 202 | J2: 212 | K2: 302 | L2: 312 | N2: 2 | O2: 12 | P2: 22 | Q2: 32 | S2: 42 | T2: 52 | U2: 202 | V2: 212 | W2: 302 | X2: 312 | Z2: 2 | AA2: 12 | AB2: 22 | AC2: 32 | AE2: 42 | AF2: 52 | AG2: 202 | AH2: 212 | AI2: 302 | AJ2: 312 | AL2: 2 | AM2: 12 | AN2: 22 | AO2: 32 | AQ2: 42 | AR2: 52 | AS2: 202 | AT2: 212 | AU2: 302 | AV2: 312 | BD2: 2 | BE2: 12 | BF2: 22 | BG2: 32 | BI2: 42 | BJ2: 52 | BK2: 202 | BL2: 212 | BN2: 302 | BO2: 312
B3: 3 | C3: 13 | D3: 23 | E3: 33 | G3: 43 | H3: 53 | I3: 203 | J3: 213 | K3: 303 | L3: 313 | N3: 3 | O3: 13 | P3: 23 | Q3: 33 | S3: 43 | T3: 53 | U3: 203 | V3: 213 | W3: 303 | X3: 313 | Z3: 3 | AA3: 13 | AB3: 23 | AC3: 33 | AE3: 43 | AF3: 53 | AG3: 203 | AH3: 213 | AI3: 303 | AJ3: 313 | AL3: 3 | AM3: 13 | AN3: 23 | AO3: 33 | AQ3: 43 | AR3: 53 | AS3: 203 | AT3: 213 | AU3: 303 | AV3: 313 | BD3: 3 | BE3: 13 | BF3: 23 | BG3: 33 | BI3: 43 | BJ3: 53 | BK3: 203 | BL3: 213 | BN3: 303 | BO3: 313
B4: 4 | C4: 14 | D4: 24 | E4: 34 | G4: 44 | H4: 54 | I4: 204 | J4: 214 | K4: 304 | L4: 314 | N4: 4 | O4: 14 | P4: 24 | Q4: 34 | S4: 44 | T4: 54 | U4: 204 | V4: 214 | W4: 304 | X4: 314 | Z4: 4 | AA4: 14 | AB4: 24 | AC4: 34 | AE4: 44 | AF4: 54 | AG4: 204 | AH4: 214 | AI4: 304 | AJ4: 314 | AL4: 4 | AM4: 14 | AN4: 24 | AO4: 34 | AQ4: 44 | AR4: 54 | AS4: 204 | AT4: 214 | AU4: 304 | AV4: 314 | AZ4: Formel für | BD4: 4 | BE4: 14 | BF4: 24 | BG4: 34 | BI4: 44 | BJ4: 54 | BK4: 204 | BL4: 214 | BN4: 304 | BO4: 314
B5: 5 | C5: 15 | D5: 25 | E5: 35 | G5: 45 | H5: 401 | I5: 205 | J5: 215 | K5: 305 | L5: 315 | N5: 5 | O5: 15 | P5: 25 | Q5: 35 | S5: 45 | T5: 401 | U5: 205 | V5: 215 | W5: 305 | X5: 315 | Z5: 5 | AA5: 15 | AB5: 25 | AC5: 35 | AE5: 45 | AF5: 401 | AG5: 205 | AH5: 215 | AI5: 305 | AJ5: 315 | AL5: 5 | AM5: 15 | AN5: 25 | AO5: 35 | AQ5: 45 | AR5: 401 | AS5: 205 | AT5: 215 | AU5: 305 | AV5: 315 | AZ5: Verlustgeld | BD5: 5 | BE5: 15 | BF5: 25 | BG5: 35 | BI5: 45 | BJ5: 401 | BK5: 205 | BL5: 215 | BN5: 305 | BO5: 315
B6: 6 | C6: 16 | D6: 26 | E6: 36 | G6: 46 | H6: 402 | I6: 206 | J6: 216 | K6: 306 | L6: 316 | N6: 6 | O6: 16 | P6: 26 | Q6: 36 | S6: 46 | T6: 402 | U6: 206 | V6: 216 | W6: 306 | X6: 316 | Z6: 6 | AA6: 16 | AB6: 26 | AC6: 36 | AE6: 46 | AF6: 402 | AG6: 206 | AH6: 216 | AI6: 306 | AJ6: 316 | AL6: 6 | AM6: 16 | AN6: 26 | AO6: 36 | AQ6: 46 | AR6: 402 | AS6: 206 | AT6: 216 | AU6: 306 | AV6: 316 | AZ6: Jugend: | BD6: 6 | BE6: 16 | BF6: 26 | BG6: 36 | BI6: 46 | BJ6: 402 | BK6: 206 | BL6: 216 | BN6: 306 | BO6: 316
B7: 7 | C7: 17 | D7: 27 | E7: 37 | G7: 47 | H7: 403 | I7: 207 | J7: 217 | K7: 307 | L7: =COUNT(F13:F424)-309 -> 0 | N7: 7 | O7: 17 | P7: 27 | Q7: 37 | S7: 47 | T7: 403 | U7: 207 | V7: 217 | W7: 307 | X7: =COUNT(R13:R424)-309 -> 0 | Z7: 7 | AA7: 17 | AB7: 27 | AC7: 37 | AE7: 47 | AF7: 403 | AG7: 207 | AH7: 217 | AI7: 307 | AJ7: =COUNT(AD13:AD424)-309 -> 0 | AL7: 7 | AM7: 17 | AN7: 27 | AO7: 37 | AQ7: 47 | AR7: 403 | AS7: 207 | AT7: 217 | AU7: 307 | AV7: =COUNT(AP13:AP424)-309 -> 0 | AZ7: =IF(AW7<4,AW7*0.25,IF(AW7>3,AW7*0.5-0.75)) -> 0 | BD7: 7 | BE7: 17 | BF7: 27 | BG7: 37 | BI7: 47 | BJ7: 403 | BK7: 207 | BL7: 217 | BN7: 307
B8: 8 | C8: 18 | D8: 28 | E8: 38 | G8: 48 | H8: 404 | I8: 208 | J8: 218 | K8: 308 | N8: 8 | O8: 18 | P8: 28 | Q8: 38 | S8: 48 | T8: 404 | U8: 208 | V8: 218 | W8: 308 | Z8: 8 | AA8: 18 | AB8: 28 | AC8: 38 | AE8: 48 | AF8: 404 | AG8: 208 | AH8: 218 | AI8: 308 | AL8: 8 | AM8: 18 | AN8: 28 | AO8: 38 | AQ8: 48 | AR8: 404 | AS8: 208 | AT8: 218 | AU8: 308 | AZ8: =IF(AW8<4,AW8*0.25,IF(AW8>3,AW8*0.5-0.75)) -> 0 | BD8: 8 | BE8: 18 | BF8: 28 | BG8: 38 | BI8: 48 | BJ8: 404 | BK8: 208 | BL8: 218 | BN8: 308
B9: 9 | C9: 19 | D9: 29 | E9: 39 | G9: 49 | H9: 405 | I9: 209 | J9: 219 | K9: 309 | N9: 9 | O9: 19 | P9: 29 | Q9: 39 | S9: 49 | T9: 405 | U9: 209 | V9: 219 | W9: 309 | Z9: 9 | AA9: 19 | AB9: 29 | AC9: 39 | AE9: 49 | AF9: 405 | AG9: 209 | AH9: 219 | AI9: 309 | AL9: 9 | AM9: 19 | AN9: 29 | AO9: 39 | AQ9: 49 | AR9: 405 | AS9: 209 | AT9: 219 | AU9: 309 | AZ9: 0 | BD9: 9 | BE9: 19 | BF9: 29 | BG9: 39 | BI9: 49 | BJ9: 405 | BK9: 209 | BL9: 219 | BN9: 309
B10: 10 | C10: 20 | D10: 30 | E10: 40 | G10: 50 | H10: 406 | I10: 210 | J10: 220 | K10: 310 | N10: 10 | O10: 20 | P10: 30 | Q10: 40 | S10: 50 | T10: 406 | U10: 210 | V10: 220 | W10: 310 | Z10: 10 | AA10: 20 | AB10: 30 | AC10: 40 | AE10: 50 | AF10: 406 | AG10: 210 | AH10: 220 | AI10: 310 | AL10: 10 | AM10: 20 | AN10: 30 | AO10: 40 | AQ10: 50 | AR10: 406 | AS10: 210 | AT10: 220 | AU10: 310 | AZ10: 0 | BD10: 10 | BE10: 20 | BF10: 30 | BG10: 40 | BI10: 50 | BJ10: 406 | BK10: 210 | BL10: 220 | BN10: 310
B11: 1. Serie | G11: =COUNT(F13:F424)-309&" Tische eingegeben" -> 0 Tische eingegeben | L11: =SUM(L13:L424) -> 0 | N11: 2. Serie | S11: =COUNT(R13:R424)-309&" Tische eingegeben" -> 0 Tische eingegeben | X11: =SUM(X13:X424) -> 0 | Z11: 3. Serie | AE11: =COUNT(AD13:AD424)-309&" Tische eingegeben" -> 0 Tische eingegeben | AJ11: =SUM(AJ13:AJ424) -> 0 | AL11: 4. Serie | AQ11: =COUNT(AP13:AP424)-309&" Tische eingegeben" -> 0 Tische eingegeben | AV11: =SUM(AV13:AV424) -> 0 | AW11: Abrechnung: | AX11: =AX12-AX18 -> 0 | BC11: 1.Serie | BH11: 2.Serie | BM11: 3.Serie | BR11: 4.Serie
B12: Nr. | C12: Spielername | F12: Tisch | G12: Sp.P. | H12: gew. | I12: verl. | J12: Punkte vorab | K12: Kontr. | L12: Verl-Geld | N12: Nr. | O12: Spielername | R12: Tisch | S12: Sp.P. | T12: gew. | U12: verl. | V12: Punkte vorab | W12: Kontr. | X12: Verl-Geld | Z12: Nr. | AA12: Spielername | AD12: Tisch | AE12: Sp.P. | AF12: gew. | AG12: verl. | AH12: Punkte vorab | AI12: Kontr. | AJ12: Verl-Geld | AL12: Nr. | AM12: Spielername | AP12: Tisch | AQ12: Sp.P. | AR12: gew. | AS12: verl. | AT12: Punkte vorab | AU12: Kontr. | AV12: Verl-Geld | AW12: Einnahmen: | AX12: =AX13+AX14+AX15+AX16 -> 0 | BC12: Tisch | BD12: 1.Sp. | BE12: 2.Sp. | BF12: 3.Sp. | BG12: 4.Sp. | BH12: Tisch | BI12: 1.Sp. | BJ12: 2.Sp. | BK12: 3.Sp. | BL12: 4.Sp. | BM12: Tisch | BN12: 1.Sp. | BO12: 2.Sp. | BP12: 3.Sp. | BQ12: 4.Sp. | BR12: Tisch | BS12: 1.Sp. | BT12: 2.Sp. | BU12: 3.Sp. | BV12: 4.Sp. | BW12: Tisch | BX12: 1.Serie | BY12: 2.Serie | BZ12: 3.Serie | CA12: 4.Serie
A13: =IF(COUNTIF(B$13:B13,B13)>1,"X","") ->  | B13: =IF(ISBLANK(F13)," ",INDEX(BD:BD,MATCH(F13,BC:BC,0))) ->  | C13: =IF(ISBLANK(F13)," ",INDEX(Starterfeld!$D:$D,MATCH($B13,Starterfeld!$A:$A,0))) ->  | K13: =IF(ISBLANK(G13)," ",G13+(H13-I13)*50+IF(COUNT(G13:G16)=3,(I14+I15+I16)*40,(I14+I15+I16)*30)) ->  | L13: =I13*1 -> 0 | M13: =IF(COUNTIF(N$13:N13,N13)>1,"X","") ->  | N13: =IF(ISBLANK(R13)," ",INDEX(BI:BI,MATCH(R13,BH:BH,0))) ->  | O13: =IF(ISBLANK(R13)," ",INDEX(Starterfeld!$D:$D,MATCH(N13,Starterfeld!$A:$A,0))) ->  | W13: =IF(ISBLANK(S13)," ",S13+(T13-U13)*50+IF(COUNT(S13:S16)=3,(U14+U15+U16)*40,(U14+U15+U16)*30)) ->  | X13: =U13*1 -> 0 | Y13: =IF(COUNTIF(Z$13:Z13,Z13)>1,"X","") ->  | Z13: =IF(ISBLANK(AD13)," ",INDEX(BN:BN,MATCH(AD13,BM:BM,0))) ->  | AA13: =IF(ISBLANK(AD13)," ",INDEX(Starterfeld!$D:$D,MATCH(Z13,Starterfeld!$A:$A,0))) ->  | AI13: =IF(ISBLANK(AE13)," ",AE13+(AF13-AG13)*50+IF(COUNT(AE13:AE16)=3,(AG14+AG15+AG16)*40,(AG14+AG15+AG16)*30)) ->  | AJ13: =AG13*1 -> 0 | AK13: =IF(COUNTIF(AL$13:AL13,AL13)>1,"X","") ->  | AL13: =IF(ISBLANK(AP13)," ",INDEX(BS:BS,MATCH(AP13,BR:BR,0))) ->  | AM13: =IF(ISBLANK(AP13)," ",INDEX(Starterfeld!$D:$D,MATCH(AL13,Starterfeld!$A:$A,0))) ->  | AU13: =IF(ISBLANK(AQ13)," ",AQ13+(AR13-AS13)*50+IF(COUNT(AQ13:AQ16)=3,(AS14+AS15+AS16)*40,(AS14+AS15+AS16)*30)) ->  | AV13: =AS13*1 -> 0 | AW13: =B11 -> 1. Serie | AX13: =L11 -> 0 | AY13: =SUM(L13:L16) -> 0 | AZ13: =SUM(X13:X16) -> 0 | BA13: =SUM(AJ13:AJ16) -> 0 | BB13: =SUM(AV13:AV16) -> 0 | BC13: 1 | BD13: =Serie1!$C2 -> 1 | BE13: =Serie1!$C3 -> 55 | BF13: =Serie1!$C4 -> 109 | BG13: =Serie1!$C5 -> 163 | BH13: 1 | BI13: =Serie2!$C2 -> 1 | BJ13: =Serie2!$C3 -> 55 | BK13: =Serie2!$C4 -> 109 | BL13: =Serie2!$C5 -> 163 | BM13: 1 | BN13: =Serie3!$C2 -> 1 | BO13: =Serie3!$C3 -> 55 | BP13: =Serie3!$C4 -> 109 | BQ13: =Serie3!$C5 -> 163 | BR13: 1 | BS13: =Serie4!$C2 -> 1 | BT13: =Serie4!$C3 -> 55 | BU13: =Serie4!$C4 -> 109 | BV13: =Serie4!$C5 -> 163 | BW13: 1 | BX13: =F13 -> 0 | BY13: =R13 -> 0 | BZ13: =AD13 -> 0 | CA13: =AP13 -> 0 | CC13: =K13 ->  | CD13: =W13 ->  | CE13: =AI13 ->  | CF13: =AU13 -> 
A14: =IF(COUNTIF(B$13:B14,B14)>1,"X","") -> X | B14: =IF(ISBLANK(F13)," ",INDEX(BE:BE,MATCH(F13,BC:BC,0))) ->  | C14: =IF(ISBLANK(F13)," ",INDEX(Starterfeld!$D:$D,MATCH($B14,Starterfeld!$A:$A,0))) ->  | F14: =F13 -> 0 | K14: =IF(ISBLANK(G14)," ",G14+(H14-I14)*50+IF(COUNT(G13:G16)=3,(I13+I15+I16)*40,(I13+I15+I16)*30)) ->  | L14: =I14*1 -> 0 | M14: =IF(COUNTIF(N$13:N14,N14)>1,"X","") -> X | N14: =IF(ISBLANK(R13)," ",INDEX(BJ:BJ,MATCH(R13,BH:BH,0))) ->  | O14: =IF(ISBLANK(R13)," ",INDEX(Starterfeld!$D:$D,MATCH(N14,Starterfeld!$A:$A,0))) ->  | R14: =R13 -> 0 | W14: =IF(ISBLANK(S14)," ",S14+(T14-U14)*50+IF(COUNT(S13:S16)=3,(U13+U15+U16)*40,(U13+U15+U16)*30)) ->  | X14: =U14*1 -> 0 | Y14: =IF(COUNTIF(Z$13:Z14,Z14)>1,"X","") -> X | Z14: =IF(ISBLANK(AD13)," ",INDEX(BO:BO,MATCH(AD13,BM:BM,0))) ->  | AA14: =IF(ISBLANK(AD13)," ",INDEX(Starterfeld!$D:$D,MATCH(Z14,Starterfeld!$A:$A,0))) ->  | AD14: =AD13 -> 0 | AI14: =IF(ISBLANK(AE14)," ",AE14+(AF14-AG14)*50+IF(COUNT(AE13:AE16)=3,(AG13+AG15+AG16)*40,(AG13+AG15+AG16)*30)) ->  | AJ14: =AG14*1 -> 0 | AK14: =IF(COUNTIF(AL$13:AL14,AL14)>1,"X","") -> X | AL14: =IF(ISBLANK(AP13)," ",INDEX(BT:BT,MATCH(AP13,BR:BR,0))) ->  | AM14: =IF(ISBLANK(AP13)," ",INDEX(Starterfeld!$D:$D,MATCH(AL14,Starterfeld!$A:$A,0))) ->  | AP14: =AP13 -> 0 | AU14: =IF(ISBLANK(AQ14)," ",AQ14+(AR14-AS14)*50+IF(COUNT(AQ13:AQ16)=3,(AS13+AS15+AS16)*40,(AS13+AS15+AS16)*30)) ->  | AV14: =AS14*1 -> 0 | AW14: =N11 -> 2. Serie | AX14: =X11 -> 0 | BC14: 2 | BD14: =Serie1!$C6 -> 2 | BE14: =Serie1!$C7 -> 56 | BF14: =Serie1!$C8 -> 110 | BG14: =Serie1!$C9 -> 164 | BH14: 2 | BI14: =Serie2!$C6 -> 2 | BJ14: =Serie2!$C7 -> 56 | BK14: =Serie2!$C8 -> 110 | BL14: =Serie2!$C9 -> 164 | BM14: 2 | BN14: =Serie3!$C6 -> 2 | BO14: =Serie3!$C7 -> 56 | BP14: =Serie3!$C8 -> 110 | BQ14: =Serie3!$C9 -> 164 | BR14: 2 | BS14: =Serie4!$C6 -> 2 | BT14: =Serie4!$C7 -> 56 | BU14: =Serie4!$C8 -> 110 | BV14: =Serie4!$C9 -> 164 | BW14: 2 | BX14: =F17 -> 0 | BY14: =R17 -> 0 | BZ14: =AD17 -> 0 | CA14: =AP17 -> 0
A15: =IF(COUNTIF(B$13:B15,B15)>1,"X","") -> X | B15: =IF(ISBLANK(F13)," ",INDEX(BF:BF,MATCH(F13,BC:BC,0))) ->  | C15: =IF(ISBLANK(F13)," ",INDEX(Starterfeld!$D:$D,MATCH($B15,Starterfeld!$A:$A,0))) ->  | F15: =F13 -> 0 | K15: =IF(ISBLANK(G15)," ",G15+(H15-I15)*50+IF(COUNT(G13:G16)=3,(I13+I14+I16)*40,(I13+I14+I16)*30)) ->  | L15: 0 | M15: =IF(COUNTIF(N$13:N15,N15)>1,"X","") -> X | N15: =IF(ISBLANK(R13)," ",INDEX(BK:BK,MATCH(R13,BH:BH,0))) ->  | O15: =IF(ISBLANK(R13)," ",INDEX(Starterfeld!$D:$D,MATCH(N15,Starterfeld!$A:$A,0))) ->  | R15: =R13 -> 0 | W15: =IF(ISBLANK(S15)," ",S15+(T15-U15)*50+IF(COUNT(S13:S16)=3,(U13+U14+U16)*40,(U13+U14+U16)*30)) ->  | X15: 0 | Y15: =IF(COUNTIF(Z$13:Z15,Z15)>1,"X","") -> X | Z15: =IF(ISBLANK(AD13)," ",INDEX(BP:BP,MATCH(AD13,BM:BM,0))) ->  | AA15: =IF(ISBLANK(AD13)," ",INDEX(Starterfeld!$D:$D,MATCH(Z15,Starterfeld!$A:$A,0))) ->  | AD15: =AD13 -> 0 | AI15: =IF(ISBLANK(AE15)," ",AE15+(AF15-AG15)*50+IF(COUNT(AE13:AE16)=3,(AG13+AG14+AG16)*40,(AG13+AG14+AG16)*30)) ->  | AJ15: 0 | AK15: =IF(COUNTIF(AL$13:AL15,AL15)>1,"X","") -> X | AL15: =IF(ISBLANK(AP13)," ",INDEX(BU:BU,MATCH(AP13,BR:BR,0))) ->  | AM15: =IF(ISBLANK(AP13)," ",INDEX(Starterfeld!$D:$D,MATCH(AL15,Starterfeld!$A:$A,0))) ->  | AP15: =AP13 -> 0 | AU15: =IF(ISBLANK(AQ15)," ",AQ15+(AR15-AS15)*50+IF(COUNT(AQ13:AQ16)=3,(AS13+AS14+AS16)*40,(AS13+AS14+AS16)*30)) ->  | AV15: 0 | AW15: =Z11 -> 3. Serie | AX15: =AJ11 -> 0 | BC15: 3 | BD15: =Serie1!$C10 -> 3 | BE15: =Serie1!$C11 -> 57 | BF15: =Serie1!$C12 -> 111 | BG15: =Serie1!$C13 -> 165 | BH15: 3 | BI15: =Serie2!$C10 -> 3 | BJ15: =Serie2!$C11 -> 57 | BK15: =Serie2!$C12 -> 111 | BL15: =Serie2!$C13 -> 165 | BM15: 3 | BN15: =Serie3!$C10 -> 3 | BO15: =Serie3!$C11 -> 57 | BP15: =Serie3!$C12 -> 111 | BQ15: =Serie3!$C13 -> 165 | BR15: 3 | BS15: =Serie4!$C10 -> 3 | BT15: =Serie4!$C11 -> 57 | BU15: =Serie4!$C12 -> 111 | BV15: =Serie4!$C13 -> 165 | BW15: 3 | BX15: =F21 -> 0 | BY15: =R21 -> 0 | BZ15: =AD21 -> 0 | CA15: =AP21 -> 0
A16: =IF(COUNTIF(B$13:B16,B16)>1,"X","") -> X | B16: =IF(ISBLANK(F13)," ",INDEX(BG:BG,MATCH(F13,BC:BC,0))) ->  | C16: =IF(ISBLANK(F13)," ",INDEX(Starterfeld!$D:$D,MATCH($B16,Starterfeld!$A:$A,0))) ->  | F16: =F13 -> 0 | K16: =IF(ISBLANK(G16)," ",G16+(H16-I16)*50+IF(COUNT(G13:G16)=3,(I13+I14+I15)*40,(I13+I14+I15)*30)) ->  | L16: 0 | M16: =IF(COUNTIF(N$13:N16,N16)>1,"X","") -> X | N16: =IF(ISBLANK(R13)," ",INDEX(BL:BL,MATCH(R13,BH:BH,0))) ->  | O16: =IF(ISBLANK(R13)," ",INDEX(Starterfeld!$D:$D,MATCH(N16,Starterfeld!$A:$A,0))) ->  | R16: =R13 -> 0 | W16: =IF(ISBLANK(S16)," ",S16+(T16-U16)*50+IF(COUNT(S13:S16)=3,(U13+U14+U15)*40,(U13+U14+U15)*30)) ->  | X16: 0 | Y16: =IF(COUNTIF(Z$13:Z16,Z16)>1,"X","") -> X | Z16: =IF(ISBLANK(AD13)," ",INDEX(BQ:BQ,MATCH(AD13,BM:BM,0))) ->  | AA16: =IF(ISBLANK(AD13)," ",INDEX(Starterfeld!$D:$D,MATCH(Z16,Starterfeld!$A:$A,0))) ->  | AD16: =AD13 -> 0 | AI16: =IF(ISBLANK(AE16)," ",AE16+(AF16-AG16)*50+IF(COUNT(AE13:AE16)=3,(AG13+AG14+AG15)*40,(AG13+AG14+AG15)*30)) ->  | AJ16: 0 | AK16: =IF(COUNTIF(AL$13:AL16,AL16)>1,"X","") -> X | AL16: =IF(ISBLANK(AP13)," ",INDEX(BV:BV,MATCH(AP13,BR:BR,0))) ->  | AM16: =IF(ISBLANK(AP13)," ",INDEX(Starterfeld!$D:$D,MATCH(AL16,Starterfeld!$A:$A,0))) ->  | AP16: =AP13 -> 0 | AU16: =IF(ISBLANK(AQ16)," ",AQ16+(AR16-AS16)*50+IF(COUNT(AQ13:AQ16)=3,(AS13+AS14+AS15)*40,(AS13+AS14+AS15)*30)) ->  | AV16: 0 | AW16: =AL11 -> 4. Serie | AX16: =AV11 -> 0 | BC16: 4 | BD16: =Serie1!$C14 -> 4 | BE16: =Serie1!$C15 -> 58 | BF16: =Serie1!$C16 -> 112 | BG16: =Serie1!$C17 -> 166 | BH16: 4 | BI16: =Serie2!$C14 -> 4 | BJ16: =Serie2!$C15 -> 58 | BK16: =Serie2!$C16 -> 112 | BL16: =Serie2!$C17 -> 166 | BM16: 4 | BN16: =Serie3!$C14 -> 4 | BO16: =Serie3!$C15 -> 58 | BP16: =Serie3!$C16 -> 112 | BQ16: =Serie3!$C17 -> 166 | BR16: 4 | BS16: =Serie4!$C14 -> 4 | BT16: =Serie4!$C15 -> 58 | BU16: =Serie4!$C16 -> 112 | BV16: =Serie4!$C17 -> 166 | BW16: 4 | BX16: =F25 -> 0 | BY16: =R25 -> 0 | BZ16: =AD25 -> 0 | CA16: =AP25 -> 0
A17: =IF(COUNTIF(B$13:B17,B17)>1,"X","") -> X | B17: =IF(ISBLANK(F17)," ",INDEX(BD:BD,MATCH(F17,BC:BC,0))) ->  | C17: =IF(ISBLANK(F17)," ",INDEX(Starterfeld!$D:$D,MATCH($B17,Starterfeld!$A:$A,0))) ->  | K17: =IF(ISBLANK(G17)," ",G17+(H17-I17)*50+IF(COUNT(G17:G20)=3,(I18+I19+I20)*40,(I18+I19+I20)*30)) ->  | L17: 0 | M17: =IF(COUNTIF(N$13:N17,N17)>1,"X","") -> X | N17: =IF(ISBLANK(R17)," ",INDEX(BI:BI,MATCH(R17,BH:BH,0))) ->  | O17: =IF(ISBLANK(R17)," ",INDEX(Starterfeld!$D:$D,MATCH(N17,Starterfeld!$A:$A,0))) ->  | W17: =IF(ISBLANK(S17)," ",S17+(T17-U17)*50+IF(COUNT(S17:S20)=3,(U18+U19+U20)*40,(U18+U19+U20)*30)) ->  | X17: 0 | Y17: =IF(COUNTIF(Z$13:Z17,Z17)>1,"X","") -> X | Z17: =IF(ISBLANK(AD17)," ",INDEX(BN:BN,MATCH(AD17,BM:BM,0))) ->  | AA17: =IF(ISBLANK(AD17)," ",INDEX(Starterfeld!$D:$D,MATCH(Z17,Starterfeld!$A:$A,0))) ->  | AI17: =IF(ISBLANK(AE17)," ",AE17+(AF17-AG17)*50+IF(COUNT(AE17:AE20)=3,(AG18+AG19+AG20)*40,(AG18+AG19+AG20)*30)) ->  | AJ17: 0 | AK17: =IF(COUNTIF(AL$13:AL17,AL17)>1,"X","") -> X | AL17: =IF(ISBLANK(AP17)," ",INDEX(BS:BS,MATCH(AP17,BR:BR,0))) ->  | AM17: =IF(ISBLANK(AP17)," ",INDEX(Starterfeld!$D:$D,MATCH(AL17,Starterfeld!$A:$A,0))) ->  | AU17: =IF(ISBLANK(AQ17)," ",AQ17+(AR17-AS17)*50+IF(COUNT(AQ17:AQ20)=3,(AS18+AS19+AS20)*40,(AS18+AS19+AS20)*30)) ->  | AV17: 0 | AY17: =SUM(L17:L20) -> 0 | AZ17: =SUM(X17:X20) -> 0 | BA17: =SUM(AJ17:AJ20) -> 0 | BB17: =SUM(AV17:AV20) -> 0 | BC17: 5 | BD17: =Serie1!$C18 -> 5 | BE17: =Serie1!$C19 -> 59 | BF17: =Serie1!$C20 -> 113 | BG17: =Serie1!$C21 -> 167 | BH17: 5 | BI17: =Serie2!$C18 -> 5 | BJ17: =Serie2!$C19 -> 59 | BK17: =Serie2!$C20 -> 113 | BL17: =Serie2!$C21 -> 167 | BM17: 5 | BN17: =Serie3!$C18 -> 5 | BO17: =Serie3!$C19 -> 59 | BP17: =Serie3!$C20 -> 113 | BQ17: =Serie3!$C21 -> 167 | BR17: 5 | BS17: =Serie4!$C18 -> 5 | BT17: =Serie4!$C19 -> 59 | BU17: =Serie4!$C20 -> 113 | BV17: =Serie4!$C21 -> 167 | BW17: 5 | BX17: =F29 -> 0 | BY17: =R29 -> 0 | BZ17: =AD29 -> 0 | CA17: =AP29 -> 0
A18: =IF(COUNTIF(B$13:B18,B18)>1,"X","") -> X | B18: =IF(ISBLANK(F17)," ",INDEX(BE:BE,MATCH(F17,BC:BC,0))) ->  | C18: =IF(ISBLANK(F17)," ",INDEX(Starterfeld!$D:$D,MATCH($B18,Starterfeld!$A:$A,0))) ->  | F18: =F17 -> 0 | K18: =IF(ISBLANK(G18)," ",G18+(H18-I18)*50+IF(COUNT(G17:G20)=3,(I17+I19+I20)*40,(I17+I19+I20)*30)) ->  | L18: 0 | M18: =IF(COUNTIF(N$13:N18,N18)>1,"X","") -> X | N18: =IF(ISBLANK(R17)," ",INDEX(BJ:BJ,MATCH(R17,BH:BH,0))) ->  | O18: =IF(ISBLANK(R17)," ",INDEX(Starterfeld!$D:$D,MATCH(N18,Starterfeld!$A:$A,0))) ->  | R18: =R17 -> 0 | W18: =IF(ISBLANK(S18)," ",S18+(T18-U18)*50+IF(COUNT(S17:S20)=3,(U17+U19+U20)*40,(U17+U19+U20)*30)) ->  | X18: 0 | Y18: =IF(COUNTIF(Z$13:Z18,Z18)>1,"X","") -> X | Z18: =IF(ISBLANK(AD17)," ",INDEX(BO:BO,MATCH(AD17,BM:BM,0))) ->  | AA18: =IF(ISBLANK(AD17)," ",INDEX(Starterfeld!$D:$D,MATCH(Z18,Starterfeld!$A:$A,0))) ->  | AD18: =AD17 -> 0 | AI18: =IF(ISBLANK(AE18)," ",AE18+(AF18-AG18)*50+IF(COUNT(AE17:AE20)=3,(AG17+AG19+AG20)*40,(AG17+AG19+AG20)*30)) ->  | AJ18: 0 | AK18: =IF(COUNTIF(AL$13:AL18,AL18)>1,"X","") -> X | AL18: =IF(ISBLANK(AP17)," ",INDEX(BT:BT,MATCH(AP17,BR:BR,0))) ->  | AM18: =IF(ISBLANK(AP17)," ",INDEX(Starterfeld!$D:$D,MATCH(AL18,Starterfeld!$A:$A,0))) ->  | AP18: =AP17 -> 0 | AU18: =IF(ISBLANK(AQ18)," ",AQ18+(AR18-AS18)*50+IF(COUNT(AQ17:AQ20)=3,(AS17+AS19+AS20)*40,(AS17+AS19+AS20)*30)) ->  | AV18: 0 | AW18: Ausgaben: | AX18: =AX19+AX20+AX21+AX22+AX23+AX24+AX25+AX26+AX27 -> 0 | BC18: 6 | BD18: =Serie1!$C22 -> 6 | BE18: =Serie1!$C23 -> 60 | BF18: =Serie1!$C24 -> 114 | BG18: =Serie1!$C25 -> 168 | BH18: 6 | BI18: =Serie2!$C22 -> 6 | BJ18: =Serie2!$C23 -> 60 | BK18: =Serie2!$C24 -> 114 | BL18: =Serie2!$C25 -> 168 | BM18: 6 | BN18: =Serie3!$C22 -> 6 | BO18: =Serie3!$C23 -> 60 | BP18: =Serie3!$C24 -> 114 | BQ18: =Serie3!$C25 -> 168 | BR18: 6 | BS18: =Serie4!$C22 -> 6 | BT18: =Serie4!$C23 -> 60 | BU18: =Serie4!$C24 -> 114 | BV18: =Serie4!$C25 -> 168 | BW18: 6 | BX18: =F33 -> 0 | BY18: =R33 -> 0 | BZ18: =AD33 -> 0 | CA18: =AP33 -> 0
A19: =IF(COUNTIF(B$13:B19,B19)>1,"X","") -> X | B19: =IF(ISBLANK(F17)," ",INDEX(BF:BF,MATCH(F17,BC:BC,0))) ->  | C19: =IF(ISBLANK(F17)," ",INDEX(Starterfeld!$D:$D,MATCH($B19,Starterfeld!$A:$A,0))) ->  | F19: =F17 -> 0 | K19: =IF(ISBLANK(G19)," ",G19+(H19-I19)*50+IF(COUNT(G17:G20)=3,(I17+I18+I20)*40,(I17+I18+I20)*30)) ->  | L19: 0 | M19: =IF(COUNTIF(N$13:N19,N19)>1,"X","") -> X | N19: =IF(ISBLANK(R17)," ",INDEX(BK:BK,MATCH(R17,BH:BH,0))) ->  | O19: =IF(ISBLANK(R17)," ",INDEX(Starterfeld!$D:$D,MATCH(N19,Starterfeld!$A:$A,0))) ->  | R19: =R17 -> 0 | W19: =IF(ISBLANK(S19)," ",S19+(T19-U19)*50+IF(COUNT(S17:S20)=3,(U17+U18+U20)*40,(U17+U18+U20)*30)) ->  | X19: 0 | Y19: =IF(COUNTIF(Z$13:Z19,Z19)>1,"X","") -> X | Z19: =IF(ISBLANK(AD17)," ",INDEX(BP:BP,MATCH(AD17,BM:BM,0))) ->  | AA19: =IF(ISBLANK(AD17)," ",INDEX(Starterfeld!$D:$D,MATCH(Z19,Starterfeld!$A:$A,0))) ->  | AD19: =AD17 -> 0 | AI19: =IF(ISBLANK(AE19)," ",AE19+(AF19-AG19)*50+IF(COUNT(AE17:AE20)=3,(AG17+AG18+AG20)*40,(AG17+AG18+AG20)*30)) ->  | AJ19: 0 | AK19: =IF(COUNTIF(AL$13:AL19,AL19)>1,"X","") -> X | AL19: =IF(ISBLANK(AP17)," ",INDEX(BU:BU,MATCH(AP17,BR:BR,0))) ->  | AM19: =IF(ISBLANK(AP17)," ",INDEX(Starterfeld!$D:$D,MATCH(AL19,Starterfeld!$A:$A,0))) ->  | AP19: =AP17 -> 0 | AU19: =IF(ISBLANK(AQ19)," ",AQ19+(AR19-AS19)*50+IF(COUNT(AQ17:AQ20)=3,(AS17+AS18+AS20)*40,(AS17+AS18+AS20)*30)) ->  | AV19: 0 | AW19: Helfer | BC19: 7 | BD19: =Serie1!$C26 -> 7 | BE19: =Serie1!$C27 -> 61 | BF19: =Serie1!$C28 -> 115 | BG19: =Serie1!$C29 -> 169 | BH19: 7 | BI19: =Serie2!$C26 -> 7 | BJ19: =Serie2!$C27 -> 61 | BK19: =Serie2!$C28 -> 115 | BL19: =Serie2!$C29 -> 169 | BM19: 7 | BN19: =Serie3!$C26 -> 7 | BO19: =Serie3!$C27 -> 61 | BP19: =Serie3!$C28 -> 115 | BQ19: =Serie3!$C29 -> 169 | BR19: 7 | BS19: =Serie4!$C26 -> 7 | BT19: =Serie4!$C27 -> 61 | BU19: =Serie4!$C28 -> 115 | BV19: =Serie4!$C29 -> 169 | BW19: 7 | BX19: =F37 -> 0 | BY19: =R37 -> 0 | BZ19: =AD37 -> 0 | CA19: =AP37 -> 0
A20: =IF(COUNTIF(B$13:B20,B20)>1,"X","") -> X | B20: =IF(ISBLANK(F17)," ",INDEX(BG:BG,MATCH(F17,BC:BC,0))) ->  | C20: =IF(ISBLANK(F17)," ",INDEX(Starterfeld!$D:$D,MATCH($B20,Starterfeld!$A:$A,0))) ->  | F20: =F17 -> 0 | K20: =IF(ISBLANK(G20)," ",G20+(H20-I20)*50+IF(COUNT(G17:G20)=3,(I17+I18+I19)*40,(I17+I18+I19)*30)) ->  | L20: 0 | M20: =IF(COUNTIF(N$13:N20,N20)>1,"X","") -> X | N20: =IF(ISBLANK(R17)," ",INDEX(BL:BL,MATCH(R17,BH:BH,0))) ->  | O20: =IF(ISBLANK(R17)," ",INDEX(Starterfeld!$D:$D,MATCH(N20,Starterfeld!$A:$A,0))) ->  | R20: =R17 -> 0 | W20: =IF(ISBLANK(S20)," ",S20+(T20-U20)*50+IF(COUNT(S17:S20)=3,(U17+U18+U19)*40,(U17+U18+U19)*30)) ->  | X20: 0 | Y20: =IF(COUNTIF(Z$13:Z20,Z20)>1,"X","") -> X | Z20: =IF(ISBLANK(AD17)," ",INDEX(BQ:BQ,MATCH(AD17,BM:BM,0))) ->  | AA20: =IF(ISBLANK(AD17)," ",INDEX(Starterfeld!$D:$D,MATCH(Z20,Starterfeld!$A:$A,0))) ->  | AD20: =AD17 -> 0 | AI20: =IF(ISBLANK(AE20)," ",AE20+(AF20-AG20)*50+IF(COUNT(AE17:AE20)=3,(AG17+AG18+AG19)*40,(AG17+AG18+AG19)*30)) ->  | AJ20: 0 | AK20: =IF(COUNTIF(AL$13:AL20,AL20)>1,"X","") -> X | AL20: =IF(ISBLANK(AP17)," ",INDEX(BV:BV,MATCH(AP17,BR:BR,0))) ->  | AM20: =IF(ISBLANK(AP17)," ",INDEX(Starterfeld!$D:$D,MATCH(AL20,Starterfeld!$A:$A,0))) ->  | AP20: =AP17 -> 0 | AU20: =IF(ISBLANK(AQ20)," ",AQ20+(AR20-AS20)*50+IF(COUNT(AQ17:AQ20)=3,(AS17+AS18+AS19)*40,(AS17+AS18+AS19)*30)) ->  | AV20: 0 | AW20: Helfer | BC20: 8 | BD20: =Serie1!$C30 -> 8 | BE20: =Serie1!$C31 -> 62 | BF20: =Serie1!$C32 -> 116 | BG20: =Serie1!$C33 -> 170 | BH20: 8 | BI20: =Serie2!$C30 -> 8 | BJ20: =Serie2!$C31 -> 62 | BK20: =Serie2!$C32 -> 116 | BL20: =Serie2!$C33 -> 170 | BM20: 8 | BN20: =Serie3!$C30 -> 8 | BO20: =Serie3!$C31 -> 62 | BP20: =Serie3!$C32 -> 116 | BQ20: =Serie3!$C33 -> 170 | BR20: 8 | BS20: =Serie4!$C30 -> 8 | BT20: =Serie4!$C31 -> 62 | BU20: =Serie4!$C32 -> 116 | BV20: =Serie4!$C33 -> 170 | BW20: 8 | BX20: =F41 -> 0 | BY20: =R41 -> 0 | BZ20: =AD41 -> 0 | CA20: =AP41 -> 0
A21: =IF(COUNTIF(B$13:B21,B21)>1,"X","") -> X | B21: =IF(ISBLANK(F21)," ",INDEX(BD:BD,MATCH(F21,BC:BC,0))) ->  | C21: =IF(ISBLANK(F21)," ",INDEX(Starterfeld!$D:$D,MATCH($B21,Starterfeld!$A:$A,0))) ->  | K21: =IF(ISBLANK(G21)," ",G21+(H21-I21)*50+IF(COUNT(G21:G24)=3,(I22+I23+I24)*40,(I22+I23+I24)*30)) ->  | L21: 0 | M21: =IF(COUNTIF(N$13:N21,N21)>1,"X","") -> X | N21: =IF(ISBLANK(R21)," ",INDEX(BI:BI,MATCH(R21,BH:BH,0))) ->  | O21: =IF(ISBLANK(R21)," ",INDEX(Starterfeld!$D:$D,MATCH(N21,Starterfeld!$A:$A,0))) ->  | W21: =IF(ISBLANK(S21)," ",S21+(T21-U21)*50+IF(COUNT(S21:S24)=3,(U22+U23+U24)*40,(U22+U23+U24)*30)) ->  | X21: 0 | Y21: =IF(COUNTIF(Z$13:Z21,Z21)>1,"X","") -> X | Z21: =IF(ISBLANK(AD21)," ",INDEX(BN:BN,MATCH(AD21,BM:BM,0))) ->  | AA21: =IF(ISBLANK(AD21)," ",INDEX(Starterfeld!$D:$D,MATCH(Z21,Starterfeld!$A:$A,0))) ->  | AI21: =IF(ISBLANK(AE21)," ",AE21+(AF21-AG21)*50+IF(COUNT(AE21:AE24)=3,(AG22+AG23+AG24)*40,(AG22+AG23+AG24)*30)) ->  | AJ21: 0 | AK21: =IF(COUNTIF(AL$13:AL21,AL21)>1,"X","") -> X | AL21: =IF(ISBLANK(AP21)," ",INDEX(BS:BS,MATCH(AP21,BR:BR,0))) ->  | AM21: =IF(ISBLANK(AP21)," ",INDEX(Starterfeld!$D:$D,MATCH(AL21,Starterfeld!$A:$A,0))) ->  | AU21: =IF(ISBLANK(AQ21)," ",AQ21+(AR21-AS21)*50+IF(COUNT(AQ21:AQ24)=3,(AS22+AS23+AS24)*40,(AS22+AS23+AS24)*30)) ->  | AV21: 0 | AW21: Helfer | AY21: =SUM(L21:L24) -> 0 | AZ21: =SUM(X21:X24) -> 0 | BA21: =SUM(AJ21:AJ24) -> 0 | BB21: =SUM(AV21:AV24) -> 0 | BC21: 9 | BD21: =Serie1!$C34 -> 9 | BE21: =Serie1!$C35 -> 63 | BF21: =Serie1!$C36 -> 117 | BG21: =Serie1!$C37 -> 171 | BH21: 9 | BI21: =Serie2!$C34 -> 9 | BJ21: =Serie2!$C35 -> 63 | BK21: =Serie2!$C36 -> 117 | BL21: =Serie2!$C37 -> 171 | BM21: 9 | BN21: =Serie3!$C34 -> 9 | BO21: =Serie3!$C35 -> 63 | BP21: =Serie3!$C36 -> 117 | BQ21: =Serie3!$C37 -> 171 | BR21: 9 | BS21: =Serie4!$C34 -> 9 | BT21: =Serie4!$C35 -> 63 | BU21: =Serie4!$C36 -> 117 | BV21: =Serie4!$C37 -> 171 | BW21: 9 | BX21: =F45 -> 0 | BY21: =R45 -> 0 | BZ21: =AD45 -> 0 | CA21: =AP45 -> 0
A22: =IF(COUNTIF(B$13:B22,B22)>1,"X","") -> X | B22: =IF(ISBLANK(F21)," ",INDEX(BE:BE,MATCH(F21,BC:BC,0))) ->  | C22: =IF(ISBLANK(F21)," ",INDEX(Starterfeld!$D:$D,MATCH($B22,Starterfeld!$A:$A,0))) ->  | F22: =F21 -> 0 | K22: =IF(ISBLANK(G22)," ",G22+(H22-I22)*50+IF(COUNT(G21:G24)=3,(I21+I23+I24)*40,(I21+I23+I24)*30)) ->  | L22: 0 | M22: =IF(COUNTIF(N$13:N22,N22)>1,"X","") -> X | N22: =IF(ISBLANK(R21)," ",INDEX(BJ:BJ,MATCH(R21,BH:BH,0))) ->  | O22: =IF(ISBLANK(R21)," ",INDEX(Starterfeld!$D:$D,MATCH(N22,Starterfeld!$A:$A,0))) ->  | R22: =R21 -> 0 | W22: =IF(ISBLANK(S22)," ",S22+(T22-U22)*50+IF(COUNT(S21:S24)=3,(U21+U23+U24)*40,(U21+U23+U24)*30)) ->  | X22: 0 | Y22: =IF(COUNTIF(Z$13:Z22,Z22)>1,"X","") -> X | Z22: =IF(ISBLANK(AD21)," ",INDEX(BO:BO,MATCH(AD21,BM:BM,0))) ->  | AA22: =IF(ISBLANK(AD21)," ",INDEX(Starterfeld!$D:$D,MATCH(Z22,Starterfeld!$A:$A,0))) ->  | AD22: =AD21 -> 0 | AI22: =IF(ISBLANK(AE22)," ",AE22+(AF22-AG22)*50+IF(COUNT(AE21:AE24)=3,(AG21+AG23+AG24)*40,(AG21+AG23+AG24)*30)) ->  | AJ22: 0 | AK22: =IF(COUNTIF(AL$13:AL22,AL22)>1,"X","") -> X | AL22: =IF(ISBLANK(AP21)," ",INDEX(BT:BT,MATCH(AP21,BR:BR,0))) ->  | AM22: =IF(ISBLANK(AP21)," ",INDEX(Starterfeld!$D:$D,MATCH(AL22,Starterfeld!$A:$A,0))) ->  | AP22: =AP21 -> 0 | AU22: =IF(ISBLANK(AQ22)," ",AQ22+(AR22-AS22)*50+IF(COUNT(AQ21:AQ24)=3,(AS21+AS23+AS24)*40,(AS21+AS23+AS24)*30)) ->  | AV22: 0 | AW22: Helfer | BC22: 10 | BD22: =Serie1!$C38 -> 10 | BE22: =Serie1!$C39 -> 64 | BF22: =Serie1!$C40 -> 118 | BG22: =Serie1!$C41 -> 172 | BH22: 10 | BI22: =Serie2!$C38 -> 10 | BJ22: =Serie2!$C39 -> 64 | BK22: =Serie2!$C40 -> 118 | BL22: =Serie2!$C41 -> 172 | BM22: 10 | BN22: =Serie3!$C38 -> 10 | BO22: =Serie3!$C39 -> 64 | BP22: =Serie3!$C40 -> 118 | BQ22: =Serie3!$C41 -> 172 | BR22: 10 | BS22: =Serie4!$C38 -> 10 | BT22: =Serie4!$C39 -> 64 | BU22: =Serie4!$C40 -> 118 | BV22: =Serie4!$C41 -> 172 | BW22: 10 | BX22: =F49 -> 0 | BY22: =R49 -> 0 | BZ22: =AD49 -> 0 | CA22: =AP49 -> 0
A23: =IF(COUNTIF(B$13:B23,B23)>1,"X","") -> X | B23: =IF(ISBLANK(F21)," ",INDEX(BF:BF,MATCH(F21,BC:BC,0))) ->  | C23: =IF(ISBLANK(F21)," ",INDEX(Starterfeld!$D:$D,MATCH($B23,Starterfeld!$A:$A,0))) ->  | F23: =F21 -> 0 | K23: =IF(ISBLANK(G23)," ",G23+(H23-I23)*50+IF(COUNT(G21:G24)=3,(I21+I22+I24)*40,(I21+I22+I24)*30)) ->  | L23: 0 | M23: =IF(COUNTIF(N$13:N23,N23)>1,"X","") -> X | N23: =IF(ISBLANK(R21)," ",INDEX(BK:BK,MATCH(R21,BH:BH,0))) ->  | O23: =IF(ISBLANK(R21)," ",INDEX(Starterfeld!$D:$D,MATCH(N23,Starterfeld!$A:$A,0))) ->  | R23: =R21 -> 0 | W23: =IF(ISBLANK(S23)," ",S23+(T23-U23)*50+IF(COUNT(S21:S24)=3,(U21+U22+U24)*40,(U21+U22+U24)*30)) ->  | X23: 0 | Y23: =IF(COUNTIF(Z$13:Z23,Z23)>1,"X","") -> X | Z23: =IF(ISBLANK(AD21)," ",INDEX(BP:BP,MATCH(AD21,BM:BM,0))) ->  | AA23: =IF(ISBLANK(AD21)," ",INDEX(Starterfeld!$D:$D,MATCH(Z23,Starterfeld!$A:$A,0))) ->  | AD23: =AD21 -> 0 | AI23: =IF(ISBLANK(AE23)," ",AE23+(AF23-AG23)*50+IF(COUNT(AE21:AE24)=3,(AG21+AG22+AG24)*40,(AG21+AG22+AG24)*30)) ->  | AJ23: 0 | AK23: =IF(COUNTIF(AL$13:AL23,AL23)>1,"X","") -> X | AL23: =IF(ISBLANK(AP21)," ",INDEX(BU:BU,MATCH(AP21,BR:BR,0))) ->  | AM23: =IF(ISBLANK(AP21)," ",INDEX(Starterfeld!$D:$D,MATCH(AL23,Starterfeld!$A:$A,0))) ->  | AP23: =AP21 -> 0 | AU23: =IF(ISBLANK(AQ23)," ",AQ23+(AR23-AS23)*50+IF(COUNT(AQ21:AQ24)=3,(AS21+AS22+AS24)*40,(AS21+AS22+AS24)*30)) ->  | AV23: 0 | AW23: Helfer | BC23: 11 | BD23: =Serie1!$C42 -> 11 | BE23: =Serie1!$C43 -> 65 | BF23: =Serie1!$C44 -> 119 | BG23: =Serie1!$C45 -> 173 | BH23: 11 | BI23: =Serie2!$C42 -> 11 | BJ23: =Serie2!$C43 -> 65 | BK23: =Serie2!$C44 -> 119 | BL23: =Serie2!$C45 -> 173 | BM23: 11 | BN23: =Serie3!$C42 -> 11 | BO23: =Serie3!$C43 -> 65 | BP23: =Serie3!$C44 -> 119 | BQ23: =Serie3!$C45 -> 173 | BR23: 11 | BS23: =Serie4!$C42 -> 11 | BT23: =Serie4!$C43 -> 65 | BU23: =Serie4!$C44 -> 119 | BV23: =Serie4!$C45 -> 173 | BW23: 11 | BX23: =F53 -> 0 | BY23: =R53 -> 0 | BZ23: =AD53 -> 0 | CA23: =AP53 -> 0
A24: =IF(COUNTIF(B$13:B24,B24)>1,"X","") -> X | B24: =IF(ISBLANK(F21)," ",INDEX(BG:BG,MATCH(F21,BC:BC,0))) ->  | C24: =IF(ISBLANK(F21)," ",INDEX(Starterfeld!$D:$D,MATCH($B24,Starterfeld!$A:$A,0))) ->  | F24: =F21 -> 0 | K24: =IF(ISBLANK(G24)," ",G24+(H24-I24)*50+IF(COUNT(G21:G24)=3,(I21+I22+I23)*40,(I21+I22+I23)*30)) ->  | L24: 0 | M24: =IF(COUNTIF(N$13:N24,N24)>1,"X","") -> X | N24: =IF(ISBLANK(R21)," ",INDEX(BL:BL,MATCH(R21,BH:BH,0))) ->  | O24: =IF(ISBLANK(R21)," ",INDEX(Starterfeld!$D:$D,MATCH(N24,Starterfeld!$A:$A,0))) ->  | R24: =R21 -> 0 | W24: =IF(ISBLANK(S24)," ",S24+(T24-U24)*50+IF(COUNT(S21:S24)=3,(U21+U22+U23)*40,(U21+U22+U23)*30)) ->  | X24: 0 | Y24: =IF(COUNTIF(Z$13:Z24,Z24)>1,"X","") -> X | Z24: =IF(ISBLANK(AD21)," ",INDEX(BQ:BQ,MATCH(AD21,BM:BM,0))) ->  | AA24: =IF(ISBLANK(AD21)," ",INDEX(Starterfeld!$D:$D,MATCH(Z24,Starterfeld!$A:$A,0))) ->  | AD24: =AD21 -> 0 | AI24: =IF(ISBLANK(AE24)," ",AE24+(AF24-AG24)*50+IF(COUNT(AE21:AE24)=3,(AG21+AG22+AG23)*40,(AG21+AG22+AG23)*30)) ->  | AJ24: 0 | AK24: =IF(COUNTIF(AL$13:AL24,AL24)>1,"X","") -> X | AL24: =IF(ISBLANK(AP21)," ",INDEX(BV:BV,MATCH(AP21,BR:BR,0))) ->  | AM24: =IF(ISBLANK(AP21)," ",INDEX(Starterfeld!$D:$D,MATCH(AL24,Starterfeld!$A:$A,0))) ->  | AP24: =AP21 -> 0 | AU24: =IF(ISBLANK(AQ24)," ",AQ24+(AR24-AS24)*50+IF(COUNT(AQ21:AQ24)=3,(AS21+AS22+AS23)*40,(AS21+AS22+AS23)*30)) ->  | AV24: 0 | AW24: Helfer | BC24: 12 | BD24: =Serie1!$C46 -> 12 | BE24: =Serie1!$C47 -> 66 | BF24: =Serie1!$C48 -> 120 | BG24: =Serie1!$C49 -> 174 | BH24: 12 | BI24: =Serie2!$C46 -> 12 | BJ24: =Serie2!$C47 -> 66 | BK24: =Serie2!$C48 -> 120 | BL24: =Serie2!$C49 -> 174 | BM24: 12 | BN24: =Serie3!$C46 -> 12 | BO24: =Serie3!$C47 -> 66 | BP24: =Serie3!$C48 -> 120 | BQ24: =Serie3!$C49 -> 174 | BR24: 12 | BS24: =Serie4!$C46 -> 12 | BT24: =Serie4!$C47 -> 66 | BU24: =Serie4!$C48 -> 120 | BV24: =Serie4!$C49 -> 174 | BW24: 12 | BX24: =F57 -> 0 | BY24: =R57 -> 0 | BZ24: =AD57 -> 0 | CA24: =AP57 -> 0
A25: =IF(COUNTIF(B$13:B25,B25)>1,"X","") -> X | B25: =IF(ISBLANK(F25)," ",INDEX(BD:BD,MATCH(F25,BC:BC,0))) ->  | C25: =IF(ISBLANK(F25)," ",INDEX(Starterfeld!$D:$D,MATCH($B25,Starterfeld!$A:$A,0))) ->  | K25: =IF(ISBLANK(G25)," ",G25+(H25-I25)*50+IF(COUNT(G25:G28)=3,(I26+I27+I28)*40,(I26+I27+I28)*30)) ->  | L25: 0 | M25: =IF(COUNTIF(N$13:N25,N25)>1,"X","") -> X | N25: =IF(ISBLANK(R25)," ",INDEX(BI:BI,MATCH(R25,BH:BH,0))) ->  | O25: =IF(ISBLANK(R25)," ",INDEX(Starterfeld!$D:$D,MATCH(N25,Starterfeld!$A:$A,0))) ->  | W25: =IF(ISBLANK(S25)," ",S25+(T25-U25)*50+IF(COUNT(S25:S28)=3,(U26+U27+U28)*40,(U26+U27+U28)*30)) ->  | X25: 0 | Y25: =IF(COUNTIF(Z$13:Z25,Z25)>1,"X","") -> X | Z25: =IF(ISBLANK(AD25)," ",INDEX(BN:BN,MATCH(AD25,BM:BM,0))) ->  | AA25: =IF(ISBLANK(AD25)," ",INDEX(Starterfeld!$D:$D,MATCH(Z25,Starterfeld!$A:$A,0))) ->  | AI25: =IF(ISBLANK(AE25)," ",AE25+(AF25-AG25)*50+IF(COUNT(AE25:AE28)=3,(AG26+AG27+AG28)*40,(AG26+AG27+AG28)*30)) ->  | AJ25: 0 | AK25: =IF(COUNTIF(AL$13:AL25,AL25)>1,"X","") -> X | AL25: =IF(ISBLANK(AP25)," ",INDEX(BS:BS,MATCH(AP25,BR:BR,0))) ->  | AM25: =IF(ISBLANK(AP25)," ",INDEX(Starterfeld!$D:$D,MATCH(AL25,Starterfeld!$A:$A,0))) ->  | AU25: =IF(ISBLANK(AQ25)," ",AQ25+(AR25-AS25)*50+IF(COUNT(AQ25:AQ28)=3,(AS26+AS27+AS28)*40,(AS26+AS27+AS28)*30)) ->  | AV25: 0 | AW25: sonstiges | AY25: =SUM(L25:L28) -> 0 | AZ25: =SUM(X25:X28) -> 0 | BA25: =SUM(AJ25:AJ28) -> 0 | BB25: =SUM(AV25:AV28) -> 0 | BC25: 13 | BD25: =Serie1!$C50 -> 13 | BE25: =Serie1!$C51 -> 67 | BF25: =Serie1!$C52 -> 121 | BG25: =Serie1!$C53 -> 175 | BH25: 13 | BI25: =Serie2!$C50 -> 13 | BJ25: =Serie2!$C51 -> 67 | BK25: =Serie2!$C52 -> 121 | BL25: =Serie2!$C53 -> 175 | BM25: 13 | BN25: =Serie3!$C50 -> 13 | BO25: =Serie3!$C51 -> 67 | BP25: =Serie3!$C52 -> 121 | BQ25: =Serie3!$C53 -> 175 | BR25: 13 | BS25: =Serie4!$C50 -> 13 | BT25: =Serie4!$C51 -> 67 | BU25: =Serie4!$C52 -> 121 | BV25: =Serie4!$C53 -> 175 | BW25: 13 | BX25: =F61 -> 0 | BY25: =R61 -> 0 | BZ25: =AD61 -> 0 | CA25: =AP61 -> 0
A26: =IF(COUNTIF(B$13:B26,B26)>1,"X","") -> X | B26: =IF(ISBLANK(F25)," ",INDEX(BE:BE,MATCH(F25,BC:BC,0))) ->  | C26: =IF(ISBLANK(F25)," ",INDEX(Starterfeld!$D:$D,MATCH($B26,Starterfeld!$A:$A,0))) ->  | F26: =F25 -> 0 | K26: =IF(ISBLANK(G26)," ",G26+(H26-I26)*50+IF(COUNT(G25:G28)=3,(I25+I27+I28)*40,(I25+I27+I28)*30)) ->  | L26: 0 | M26: =IF(COUNTIF(N$13:N26,N26)>1,"X","") -> X | N26: =IF(ISBLANK(R25)," ",INDEX(BJ:BJ,MATCH(R25,BH:BH,0))) ->  | O26: =IF(ISBLANK(R25)," ",INDEX(Starterfeld!$D:$D,MATCH(N26,Starterfeld!$A:$A,0))) ->  | R26: =R25 -> 0 | W26: =IF(ISBLANK(S26)," ",S26+(T26-U26)*50+IF(COUNT(S25:S28)=3,(U25+U27+U28)*40,(U25+U27+U28)*30)) ->  | X26: 0 | Y26: =IF(COUNTIF(Z$13:Z26,Z26)>1,"X","") -> X | Z26: =IF(ISBLANK(AD25)," ",INDEX(BO:BO,MATCH(AD25,BM:BM,0))) ->  | AA26: =IF(ISBLANK(AD25)," ",INDEX(Starterfeld!$D:$D,MATCH(Z26,Starterfeld!$A:$A,0))) ->  | AD26: =AD25 -> 0 | AI26: =IF(ISBLANK(AE26)," ",AE26+(AF26-AG26)*50+IF(COUNT(AE25:AE28)=3,(AG25+AG27+AG28)*40,(AG25+AG27+AG28)*30)) ->  | AJ26: 0 | AK26: =IF(COUNTIF(AL$13:AL26,AL26)>1,"X","") -> X | AL26: =IF(ISBLANK(AP25)," ",INDEX(BT:BT,MATCH(AP25,BR:BR,0))) ->  | AM26: =IF(ISBLANK(AP25)," ",INDEX(Starterfeld!$D:$D,MATCH(AL26,Starterfeld!$A:$A,0))) ->  | AP26: =AP25 -> 0 | AU26: =IF(ISBLANK(AQ26)," ",AQ26+(AR26-AS26)*50+IF(COUNT(AQ25:AQ28)=3,(AS25+AS27+AS28)*40,(AS25+AS27+AS28)*30)) ->  | AV26: 0 | AW26: sonstiges | BC26: 14 | BD26: =Serie1!$C54 -> 14 | BE26: =Serie1!$C55 -> 68 | BF26: =Serie1!$C56 -> 122 | BG26: =Serie1!$C57 -> 176 | BH26: 14 | BI26: =Serie2!$C54 -> 14 | BJ26: =Serie2!$C55 -> 68 | BK26: =Serie2!$C56 -> 122 | BL26: =Serie2!$C57 -> 176 | BM26: 14 | BN26: =Serie3!$C54 -> 14 | BO26: =Serie3!$C55 -> 68 | BP26: =Serie3!$C56 -> 122 | BQ26: =Serie3!$C57 -> 176 | BR26: 14 | BS26: =Serie4!$C54 -> 14 | BT26: =Serie4!$C55 -> 68 | BU26: =Serie4!$C56 -> 122 | BV26: =Serie4!$C57 -> 176 | BW26: 14 | BX26: =F65 -> 0 | BY26: =R65 -> 0 | BZ26: =AD65 -> 0 | CA26: =AP65 -> 0
A27: =IF(COUNTIF(B$13:B27,B27)>1,"X","") -> X | B27: =IF(ISBLANK(F25)," ",INDEX(BF:BF,MATCH(F25,BC:BC,0))) ->  | C27: =IF(ISBLANK(F25)," ",INDEX(Starterfeld!$D:$D,MATCH($B27,Starterfeld!$A:$A,0))) ->  | F27: =F25 -> 0 | K27: =IF(ISBLANK(G27)," ",G27+(H27-I27)*50+IF(COUNT(G25:G28)=3,(I25+I26+I28)*40,(I25+I26+I28)*30)) ->  | L27: 0 | M27: =IF(COUNTIF(N$13:N27,N27)>1,"X","") -> X | N27: =IF(ISBLANK(R25)," ",INDEX(BK:BK,MATCH(R25,BH:BH,0))) ->  | O27: =IF(ISBLANK(R25)," ",INDEX(Starterfeld!$D:$D,MATCH(N27,Starterfeld!$A:$A,0))) ->  | R27: =R25 -> 0 | W27: =IF(ISBLANK(S27)," ",S27+(T27-U27)*50+IF(COUNT(S25:S28)=3,(U25+U26+U28)*40,(U25+U26+U28)*30)) ->  | X27: 0 | Y27: =IF(COUNTIF(Z$13:Z27,Z27)>1,"X","") -> X | Z27: =IF(ISBLANK(AD25)," ",INDEX(BP:BP,MATCH(AD25,BM:BM,0))) ->  | AA27: =IF(ISBLANK(AD25)," ",INDEX(Starterfeld!$D:$D,MATCH(Z27,Starterfeld!$A:$A,0))) ->  | AD27: =AD25 -> 0 | AI27: =IF(ISBLANK(AE27)," ",AE27+(AF27-AG27)*50+IF(COUNT(AE25:AE28)=3,(AG25+AG26+AG28)*40,(AG25+AG26+AG28)*30)) ->  | AJ27: 0 | AK27: =IF(COUNTIF(AL$13:AL27,AL27)>1,"X","") -> X | AL27: =IF(ISBLANK(AP25)," ",INDEX(BU:BU,MATCH(AP25,BR:BR,0))) ->  | AM27: =IF(ISBLANK(AP25)," ",INDEX(Starterfeld!$D:$D,MATCH(AL27,Starterfeld!$A:$A,0))) ->  | AP27: =AP25 -> 0 | AU27: =IF(ISBLANK(AQ27)," ",AQ27+(AR27-AS27)*50+IF(COUNT(AQ25:AQ28)=3,(AS25+AS26+AS28)*40,(AS25+AS26+AS28)*30)) ->  | AV27: 0 | AW27: sonstiges | BC27: 15 | BD27: =Serie1!$C58 -> 15 | BE27: =Serie1!$C59 -> 69 | BF27: =Serie1!$C60 -> 123 | BG27: =Serie1!$C61 -> 177 | BH27: 15 | BI27: =Serie2!$C58 -> 15 | BJ27: =Serie2!$C59 -> 69 | BK27: =Serie2!$C60 -> 123 | BL27: =Serie2!$C61 -> 177 | BM27: 15 | BN27: =Serie3!$C58 -> 15 | BO27: =Serie3!$C59 -> 69 | BP27: =Serie3!$C60 -> 123 | BQ27: =Serie3!$C61 -> 177 | BR27: 15 | BS27: =Serie4!$C58 -> 15 | BT27: =Serie4!$C59 -> 69 | BU27: =Serie4!$C60 -> 123 | BV27: =Serie4!$C61 -> 177 | BW27: 15 | BX27: =F69 -> 0 | BY27: =R69 -> 0 | BZ27: =AD69 -> 0 | CA27: =AP69 -> 0
A28: =IF(COUNTIF(B$13:B28,B28)>1,"X","") -> X | B28: =IF(ISBLANK(F25)," ",INDEX(BG:BG,MATCH(F25,BC:BC,0))) ->  | C28: =IF(ISBLANK(F25)," ",INDEX(Starterfeld!$D:$D,MATCH($B28,Starterfeld!$A:$A,0))) ->  | F28: =F25 -> 0 | K28: =IF(ISBLANK(G28)," ",G28+(H28-I28)*50+IF(COUNT(G25:G28)=3,(I25+I26+I27)*40,(I25+I26+I27)*30)) ->  | L28: 0 | M28: =IF(COUNTIF(N$13:N28,N28)>1,"X","") -> X | N28: =IF(ISBLANK(R25)," ",INDEX(BL:BL,MATCH(R25,BH:BH,0))) ->  | O28: =IF(ISBLANK(R25)," ",INDEX(Starterfeld!$D:$D,MATCH(N28,Starterfeld!$A:$A,0))) ->  | R28: =R25 -> 0 | W28: =IF(ISBLANK(S28)," ",S28+(T28-U28)*50+IF(COUNT(S25:S28)=3,(U25+U26+U27)*40,(U25+U26+U27)*30)) ->  | X28: 0 | Y28: =IF(COUNTIF(Z$13:Z28,Z28)>1,"X","") -> X | Z28: =IF(ISBLANK(AD25)," ",INDEX(BQ:BQ,MATCH(AD25,BM:BM,0))) ->  | AA28: =IF(ISBLANK(AD25)," ",INDEX(Starterfeld!$D:$D,MATCH(Z28,Starterfeld!$A:$A,0))) ->  | AD28: =AD25 -> 0 | AI28: =IF(ISBLANK(AE28)," ",AE28+(AF28-AG28)*50+IF(COUNT(AE25:AE28)=3,(AG25+AG26+AG27)*40,(AG25+AG26+AG27)*30)) ->  | AJ28: 0 | AK28: =IF(COUNTIF(AL$13:AL28,AL28)>1,"X","") -> X | AL28: =IF(ISBLANK(AP25)," ",INDEX(BV:BV,MATCH(AP25,BR:BR,0))) ->  | AM28: =IF(ISBLANK(AP25)," ",INDEX(Starterfeld!$D:$D,MATCH(AL28,Starterfeld!$A:$A,0))) ->  | AP28: =AP25 -> 0 | AU28: =IF(ISBLANK(AQ28)," ",AQ28+(AR28-AS28)*50+IF(COUNT(AQ25:AQ28)=3,(AS25+AS26+AS27)*40,(AS25+AS26+AS27)*30)) ->  | AV28: 0 | BC28: 16 | BD28: =Serie1!$C62 -> 16 | BE28: =Serie1!$C63 -> 70 | BF28: =Serie1!$C64 -> 124 | BG28: =Serie1!$C65 -> 178 | BH28: 16 | BI28: =Serie2!$C62 -> 16 | BJ28: =Serie2!$C63 -> 70 | BK28: =Serie2!$C64 -> 124 | BL28: =Serie2!$C65 -> 178 | BM28: 16 | BN28: =Serie3!$C62 -> 16 | BO28: =Serie3!$C63 -> 70 | BP28: =Serie3!$C64 -> 124 | BQ28: =Serie3!$C65 -> 178 | BR28: 16 | BS28: =Serie4!$C62 -> 16 | BT28: =Serie4!$C63 -> 70 | BU28: =Serie4!$C64 -> 124 | BV28: =Serie4!$C65 -> 178 | BW28: 16 | BX28: =F73 -> 0 | BY28: =R73 -> 0 | BZ28: =AD73 -> 0 | CA28: =AP73 -> 0
A29: =IF(COUNTIF(B$13:B29,B29)>1,"X","") -> X | B29: =IF(ISBLANK(F29)," ",INDEX(BD:BD,MATCH(F29,BC:BC,0))) ->  | C29: =IF(ISBLANK(F29)," ",INDEX(Starterfeld!$D:$D,MATCH($B29,Starterfeld!$A:$A,0))) ->  | K29: =IF(ISBLANK(G29)," ",G29+(H29-I29)*50+IF(COUNT(G29:G32)=3,(I30+I31+I32)*40,(I30+I31+I32)*30)) ->  | L29: 0 | M29: =IF(COUNTIF(N$13:N29,N29)>1,"X","") -> X | N29: =IF(ISBLANK(R29)," ",INDEX(BI:BI,MATCH(R29,BH:BH,0))) ->  | O29: =IF(ISBLANK(R29)," ",INDEX(Starterfeld!$D:$D,MATCH(N29,Starterfeld!$A:$A,0))) ->  | W29: =IF(ISBLANK(S29)," ",S29+(T29-U29)*50+IF(COUNT(S29:S32)=3,(U30+U31+U32)*40,(U30+U31+U32)*30)) ->  | X29: 0 | Y29: =IF(COUNTIF(Z$13:Z29,Z29)>1,"X","") -> X | Z29: =IF(ISBLANK(AD29)," ",INDEX(BN:BN,MATCH(AD29,BM:BM,0))) ->  | AA29: =IF(ISBLANK(AD29)," ",INDEX(Starterfeld!$D:$D,MATCH(Z29,Starterfeld!$A:$A,0))) ->  | AI29: =IF(ISBLANK(AE29)," ",AE29+(AF29-AG29)*50+IF(COUNT(AE29:AE32)=3,(AG30+AG31+AG32)*40,(AG30+AG31+AG32)*30)) ->  | AJ29: 0 | AK29: =IF(COUNTIF(AL$13:AL29,AL29)>1,"X","") -> X | AL29: =IF(ISBLANK(AP29)," ",INDEX(BS:BS,MATCH(AP29,BR:BR,0))) ->  | AM29: =IF(ISBLANK(AP29)," ",INDEX(Starterfeld!$D:$D,MATCH(AL29,Starterfeld!$A:$A,0))) ->  | AU29: =IF(ISBLANK(AQ29)," ",AQ29+(AR29-AS29)*50+IF(COUNT(AQ29:AQ32)=3,(AS30+AS31+AS32)*40,(AS30+AS31+AS32)*30)) ->  | AV29: 0 | AY29: =SUM(L29:L32) -> 0 | AZ29: =SUM(X29:X32) -> 0 | BA29: =SUM(AJ29:AJ32) -> 0 | BB29: =SUM(AV29:AV32) -> 0 | BC29: 17 | BD29: =Serie1!$C66 -> 17 | BE29: =Serie1!$C67 -> 71 | BF29: =Serie1!$C68 -> 125 | BG29: =Serie1!$C69 -> 179 | BH29: 17 | BI29: =Serie2!$C66 -> 17 | BJ29: =Serie2!$C67 -> 71 | BK29: =Serie2!$C68 -> 125 | BL29: =Serie2!$C69 -> 179 | BM29: 17 | BN29: =Serie3!$C66 -> 17 | BO29: =Serie3!$C67 -> 71 | BP29: =Serie3!$C68 -> 125 | BQ29: =Serie3!$C69 -> 179 | BR29: 17 | BS29: =Serie4!$C66 -> 17 | BT29: =Serie4!$C67 -> 71 | BU29: =Serie4!$C68 -> 125 | BV29: =Serie4!$C69 -> 179 | BW29: 17 | BX29: =F77 -> 0 | BY29: =R77 -> 0 | BZ29: =AD77 -> 0 | CA29: =AP77 -> 0
A30: =IF(COUNTIF(B$13:B30,B30)>1,"X","") -> X | B30: =IF(ISBLANK(F29)," ",INDEX(BE:BE,MATCH(F29,BC:BC,0))) ->  | C30: =IF(ISBLANK(F29)," ",INDEX(Starterfeld!$D:$D,MATCH($B30,Starterfeld!$A:$A,0))) ->  | F30: =F29 -> 0 | K30: =IF(ISBLANK(G30)," ",G30+(H30-I30)*50+IF(COUNT(G29:G32)=3,(I29+I31+I32)*40,(I29+I31+I32)*30)) ->  | L30: 0 | M30: =IF(COUNTIF(N$13:N30,N30)>1,"X","") -> X | N30: =IF(ISBLANK(R29)," ",INDEX(BJ:BJ,MATCH(R29,BH:BH,0))) ->  | O30: =IF(ISBLANK(R29)," ",INDEX(Starterfeld!$D:$D,MATCH(N30,Starterfeld!$A:$A,0))) ->  | R30: =R29 -> 0 | W30: =IF(ISBLANK(S30)," ",S30+(T30-U30)*50+IF(COUNT(S29:S32)=3,(U29+U31+U32)*40,(U29+U31+U32)*30)) ->  | X30: 0 | Y30: =IF(COUNTIF(Z$13:Z30,Z30)>1,"X","") -> X | Z30: =IF(ISBLANK(AD29)," ",INDEX(BO:BO,MATCH(AD29,BM:BM,0))) ->  | AA30: =IF(ISBLANK(AD29)," ",INDEX(Starterfeld!$D:$D,MATCH(Z30,Starterfeld!$A:$A,0))) ->  | AD30: =AD29 -> 0 | AI30: =IF(ISBLANK(AE30)," ",AE30+(AF30-AG30)*50+IF(COUNT(AE29:AE32)=3,(AG29+AG31+AG32)*40,(AG29+AG31+AG32)*30)) ->  | AJ30: 0 | AK30: =IF(COUNTIF(AL$13:AL30,AL30)>1,"X","") -> X | AL30: =IF(ISBLANK(AP29)," ",INDEX(BT:BT,MATCH(AP29,BR:BR,0))) ->  | AM30: =IF(ISBLANK(AP29)," ",INDEX(Starterfeld!$D:$D,MATCH(AL30,Starterfeld!$A:$A,0))) ->  | AP30: =AP29 -> 0 | AU30: =IF(ISBLANK(AQ30)," ",AQ30+(AR30-AS30)*50+IF(COUNT(AQ29:AQ32)=3,(AS29+AS31+AS32)*40,(AS29+AS31+AS32)*30)) ->  | AV30: 0 | BC30: 18 | BD30: =Serie1!$C70 -> 18 | BE30: =Serie1!$C71 -> 72 | BF30: =Serie1!$C72 -> 126 | BG30: =Serie1!$C73 -> 180 | BH30: 18 | BI30: =Serie2!$C70 -> 18 | BJ30: =Serie2!$C71 -> 72 | BK30: =Serie2!$C72 -> 126 | BL30: =Serie2!$C73 -> 180 | BM30: 18 | BN30: =Serie3!$C70 -> 18 | BO30: =Serie3!$C71 -> 72 | BP30: =Serie3!$C72 -> 126 | BQ30: =Serie3!$C73 -> 180 | BR30: 18 | BS30: =Serie4!$C70 -> 18 | BT30: =Serie4!$C71 -> 72 | BU30: =Serie4!$C72 -> 126 | BV30: =Serie4!$C73 -> 180 | BW30: 18 | BX30: =F81 -> 0 | BY30: =R81 -> 0 | BZ30: =AD81 -> 0 | CA30: =AP81 -> 0
A31: =IF(COUNTIF(B$13:B31,B31)>1,"X","") -> X | B31: =IF(ISBLANK(F29)," ",INDEX(BF:BF,MATCH(F29,BC:BC,0))) ->  | C31: =IF(ISBLANK(F29)," ",INDEX(Starterfeld!$D:$D,MATCH($B31,Starterfeld!$A:$A,0))) ->  | F31: =F29 -> 0 | K31: =IF(ISBLANK(G31)," ",G31+(H31-I31)*50+IF(COUNT(G29:G32)=3,(I29+I30+I32)*40,(I29+I30+I32)*30)) ->  | L31: 0 | M31: =IF(COUNTIF(N$13:N31,N31)>1,"X","") -> X | N31: =IF(ISBLANK(R29)," ",INDEX(BK:BK,MATCH(R29,BH:BH,0))) ->  | O31: =IF(ISBLANK(R29)," ",INDEX(Starterfeld!$D:$D,MATCH(N31,Starterfeld!$A:$A,0))) ->  | R31: =R29 -> 0 | W31: =IF(ISBLANK(S31)," ",S31+(T31-U31)*50+IF(COUNT(S29:S32)=3,(U29+U30+U32)*40,(U29+U30+U32)*30)) ->  | X31: 0 | Y31: =IF(COUNTIF(Z$13:Z31,Z31)>1,"X","") -> X | Z31: =IF(ISBLANK(AD29)," ",INDEX(BP:BP,MATCH(AD29,BM:BM,0))) ->  | AA31: =IF(ISBLANK(AD29)," ",INDEX(Starterfeld!$D:$D,MATCH(Z31,Starterfeld!$A:$A,0))) ->  | AD31: =AD29 -> 0 | AI31: =IF(ISBLANK(AE31)," ",AE31+(AF31-AG31)*50+IF(COUNT(AE29:AE32)=3,(AG29+AG30+AG32)*40,(AG29+AG30+AG32)*30)) ->  | AJ31: 0 | AK31: =IF(COUNTIF(AL$13:AL31,AL31)>1,"X","") -> X | AL31: =IF(ISBLANK(AP29)," ",INDEX(BU:BU,MATCH(AP29,BR:BR,0))) ->  | AM31: =IF(ISBLANK(AP29)," ",INDEX(Starterfeld!$D:$D,MATCH(AL31,Starterfeld!$A:$A,0))) ->  | AP31: =AP29 -> 0 | AU31: =IF(ISBLANK(AQ31)," ",AQ31+(AR31-AS31)*50+IF(COUNT(AQ29:AQ32)=3,(AS29+AS30+AS32)*40,(AS29+AS30+AS32)*30)) ->  | AV31: 0 | BC31: 19 | BD31: =Serie1!$C74 -> 19 | BE31: =Serie1!$C75 -> 73 | BF31: =Serie1!$C76 -> 127 | BG31: =Serie1!$C77 -> 181 | BH31: 19 | BI31: =Serie2!$C74 -> 19 | BJ31: =Serie2!$C75 -> 73 | BK31: =Serie2!$C76 -> 127 | BL31: =Serie2!$C77 -> 181 | BM31: 19 | BN31: =Serie3!$C74 -> 19 | BO31: =Serie3!$C75 -> 73 | BP31: =Serie3!$C76 -> 127 | BQ31: =Serie3!$C77 -> 181 | BR31: 19 | BS31: =Serie4!$C74 -> 19 | BT31: =Serie4!$C75 -> 73 | BU31: =Serie4!$C76 -> 127 | BV31: =Serie4!$C77 -> 181 | BW31: 19 | BX31: =F85 -> 0 | BY31: =R85 -> 0 | BZ31: =AD85 -> 0 | CA31: =AP85 -> 0
A32: =IF(COUNTIF(B$13:B32,B32)>1,"X","") -> X | B32: =IF(ISBLANK(F29)," ",INDEX(BG:BG,MATCH(F29,BC:BC,0))) ->  | C32: =IF(ISBLANK(F29)," ",INDEX(Starterfeld!$D:$D,MATCH($B32,Starterfeld!$A:$A,0))) ->  | F32: =F29 -> 0 | K32: =IF(ISBLANK(G32)," ",G32+(H32-I32)*50+IF(COUNT(G29:G32)=3,(I29+I30+I31)*40,(I29+I30+I31)*30)) ->  | L32: 0 | M32: =IF(COUNTIF(N$13:N32,N32)>1,"X","") -> X | N32: =IF(ISBLANK(R29)," ",INDEX(BL:BL,MATCH(R29,BH:BH,0))) ->  | O32: =IF(ISBLANK(R29)," ",INDEX(Starterfeld!$D:$D,MATCH(N32,Starterfeld!$A:$A,0))) ->  | R32: =R29 -> 0 | W32: =IF(ISBLANK(S32)," ",S32+(T32-U32)*50+IF(COUNT(S29:S32)=3,(U29+U30+U31)*40,(U29+U30+U31)*30)) ->  | X32: 0 | Y32: =IF(COUNTIF(Z$13:Z32,Z32)>1,"X","") -> X | Z32: =IF(ISBLANK(AD29)," ",INDEX(BQ:BQ,MATCH(AD29,BM:BM,0))) ->  | AA32: =IF(ISBLANK(AD29)," ",INDEX(Starterfeld!$D:$D,MATCH(Z32,Starterfeld!$A:$A,0))) ->  | AD32: =AD29 -> 0 | AI32: =IF(ISBLANK(AE32)," ",AE32+(AF32-AG32)*50+IF(COUNT(AE29:AE32)=3,(AG29+AG30+AG31)*40,(AG29+AG30+AG31)*30)) ->  | AJ32: 0 | AK32: =IF(COUNTIF(AL$13:AL32,AL32)>1,"X","") -> X | AL32: =IF(ISBLANK(AP29)," ",INDEX(BV:BV,MATCH(AP29,BR:BR,0))) ->  | AM32: =IF(ISBLANK(AP29)," ",INDEX(Starterfeld!$D:$D,MATCH(AL32,Starterfeld!$A:$A,0))) ->  | AP32: =AP29 -> 0 | AU32: =IF(ISBLANK(AQ32)," ",AQ32+(AR32-AS32)*50+IF(COUNT(AQ29:AQ32)=3,(AS29+AS30+AS31)*40,(AS29+AS30+AS31)*30)) ->  | AV32: 0 | BC32: 20 | BD32: =Serie1!$C78 -> 20 | BE32: =Serie1!$C79 -> 74 | BF32: =Serie1!$C80 -> 128 | BG32: =Serie1!$C81 -> 182 | BH32: 20 | BI32: =Serie2!$C78 -> 20 | BJ32: =Serie2!$C79 -> 74 | BK32: =Serie2!$C80 -> 128 | BL32: =Serie2!$C81 -> 182 | BM32: 20 | BN32: =Serie3!$C78 -> 20 | BO32: =Serie3!$C79 -> 74 | BP32: =Serie3!$C80 -> 128 | BQ32: =Serie3!$C81 -> 182 | BR32: 20 | BS32: =Serie4!$C78 -> 20 | BT32: =Serie4!$C79 -> 74 | BU32: =Serie4!$C80 -> 128 | BV32: =Serie4!$C81 -> 182 | BW32: 20 | BX32: =F89 -> 0 | BY32: =R89 -> 0 | BZ32: =AD89 -> 0 | CA32: =AP89 -> 0
A33: =IF(COUNTIF(B$13:B33,B33)>1,"X","") -> X | B33: =IF(ISBLANK(F33)," ",INDEX(BD:BD,MATCH(F33,BC:BC,0))) ->  | C33: =IF(ISBLANK(F33)," ",INDEX(Starterfeld!$D:$D,MATCH($B33,Starterfeld!$A:$A,0))) ->  | K33: =IF(ISBLANK(G33)," ",G33+(H33-I33)*50+IF(COUNT(G33:G36)=3,(I34+I35+I36)*40,(I34+I35+I36)*30)) ->  | L33: 0 | M33: =IF(COUNTIF(N$13:N33,N33)>1,"X","") -> X | N33: =IF(ISBLANK(R33)," ",INDEX(BI:BI,MATCH(R33,BH:BH,0))) ->  | O33: =IF(ISBLANK(R33)," ",INDEX(Starterfeld!$D:$D,MATCH(N33,Starterfeld!$A:$A,0))) ->  | W33: =IF(ISBLANK(S33)," ",S33+(T33-U33)*50+IF(COUNT(S33:S36)=3,(U34+U35+U36)*40,(U34+U35+U36)*30)) ->  | X33: 0 | Y33: =IF(COUNTIF(Z$13:Z33,Z33)>1,"X","") -> X | Z33: =IF(ISBLANK(AD33)," ",INDEX(BN:BN,MATCH(AD33,BM:BM,0))) ->  | AA33: =IF(ISBLANK(AD33)," ",INDEX(Starterfeld!$D:$D,MATCH(Z33,Starterfeld!$A:$A,0))) ->  | AI33: =IF(ISBLANK(AE33)," ",AE33+(AF33-AG33)*50+IF(COUNT(AE33:AE36)=3,(AG34+AG35+AG36)*40,(AG34+AG35+AG36)*30)) ->  | AJ33: 0 | AK33: =IF(COUNTIF(AL$13:AL33,AL33)>1,"X","") -> X | AL33: =IF(ISBLANK(AP33)," ",INDEX(BS:BS,MATCH(AP33,BR:BR,0))) ->  | AM33: =IF(ISBLANK(AP33)," ",INDEX(Starterfeld!$D:$D,MATCH(AL33,Starterfeld!$A:$A,0))) ->  | AU33: =IF(ISBLANK(AQ33)," ",AQ33+(AR33-AS33)*50+IF(COUNT(AQ33:AQ36)=3,(AS34+AS35+AS36)*40,(AS34+AS35+AS36)*30)) ->  | AV33: 0 | AY33: =SUM(L33:L36) -> 0 | AZ33: =SUM(X33:X36) -> 0 | BA33: =SUM(AJ33:AJ36) -> 0 | BB33: =SUM(AV33:AV36) -> 0 | BC33: 21 | BD33: =Serie1!$C82 -> 21 | BE33: =Serie1!$C83 -> 75 | BF33: =Serie1!$C84 -> 129 | BG33: =Serie1!$C85 -> 183 | BH33: 21 | BI33: =Serie2!$C82 -> 21 | BJ33: =Serie2!$C83 -> 75 | BK33: =Serie2!$C84 -> 129 | BL33: =Serie2!$C85 -> 183 | BM33: 21 | BN33: =Serie3!$C82 -> 21 | BO33: =Serie3!$C83 -> 75 | BP33: =Serie3!$C84 -> 129 | BQ33: =Serie3!$C85 -> 183 | BR33: 21 | BS33: =Serie4!$C82 -> 21 | BT33: =Serie4!$C83 -> 75 | BU33: =Serie4!$C84 -> 129 | BV33: =Serie4!$C85 -> 183 | BW33: 21 | BX33: =F93 -> 0 | BY33: =R93 -> 0 | BZ33: =AD93 -> 0 | CA33: =AP93 -> 0
A34: =IF(COUNTIF(B$13:B34,B34)>1,"X","") -> X | B34: =IF(ISBLANK(F33)," ",INDEX(BE:BE,MATCH(F33,BC:BC,0))) ->  | C34: =IF(ISBLANK(F33)," ",INDEX(Starterfeld!$D:$D,MATCH($B34,Starterfeld!$A:$A,0))) ->  | F34: =F33 -> 0 | K34: =IF(ISBLANK(G34)," ",G34+(H34-I34)*50+IF(COUNT(G33:G36)=3,(I33+I35+I36)*40,(I33+I35+I36)*30)) ->  | L34: 0 | M34: =IF(COUNTIF(N$13:N34,N34)>1,"X","") -> X | N34: =IF(ISBLANK(R33)," ",INDEX(BJ:BJ,MATCH(R33,BH:BH,0))) ->  | O34: =IF(ISBLANK(R33)," ",INDEX(Starterfeld!$D:$D,MATCH(N34,Starterfeld!$A:$A,0))) ->  | R34: =R33 -> 0 | W34: =IF(ISBLANK(S34)," ",S34+(T34-U34)*50+IF(COUNT(S33:S36)=3,(U33+U35+U36)*40,(U33+U35+U36)*30)) ->  | X34: 0 | Y34: =IF(COUNTIF(Z$13:Z34,Z34)>1,"X","") -> X | Z34: =IF(ISBLANK(AD33)," ",INDEX(BO:BO,MATCH(AD33,BM:BM,0))) ->  | AA34: =IF(ISBLANK(AD33)," ",INDEX(Starterfeld!$D:$D,MATCH(Z34,Starterfeld!$A:$A,0))) ->  | AD34: =AD33 -> 0 | AI34: =IF(ISBLANK(AE34)," ",AE34+(AF34-AG34)*50+IF(COUNT(AE33:AE36)=3,(AG33+AG35+AG36)*40,(AG33+AG35+AG36)*30)) ->  | AJ34: 0 | AK34: =IF(COUNTIF(AL$13:AL34,AL34)>1,"X","") -> X | AL34: =IF(ISBLANK(AP33)," ",INDEX(BT:BT,MATCH(AP33,BR:BR,0))) ->  | AM34: =IF(ISBLANK(AP33)," ",INDEX(Starterfeld!$D:$D,MATCH(AL34,Starterfeld!$A:$A,0))) ->  | AP34: =AP33 -> 0 | AU34: =IF(ISBLANK(AQ34)," ",AQ34+(AR34-AS34)*50+IF(COUNT(AQ33:AQ36)=3,(AS33+AS35+AS36)*40,(AS33+AS35+AS36)*30)) ->  | AV34: 0 | BC34: 22 | BD34: =Serie1!$C86 -> 22 | BE34: =Serie1!$C87 -> 76 | BF34: =Serie1!$C88 -> 130 | BG34: =Serie1!$C89 -> 184 | BH34: 22 | BI34: =Serie2!$C86 -> 22 | BJ34: =Serie2!$C87 -> 76 | BK34: =Serie2!$C88 -> 130 | BL34: =Serie2!$C89 -> 184 | BM34: 22 | BN34: =Serie3!$C86 -> 22 | BO34: =Serie3!$C87 -> 76 | BP34: =Serie3!$C88 -> 130 | BQ34: =Serie3!$C89 -> 184 | BR34: 22 | BS34: =Serie4!$C86 -> 22 | BT34: =Serie4!$C87 -> 76 | BU34: =Serie4!$C88 -> 130 | BV34: =Serie4!$C89 -> 184 | BW34: 22 | BX34: =F97 -> 0 | BY34: =R97 -> 0 | BZ34: =AD97 -> 0 | CA34: =AP97 -> 0
A35: =IF(COUNTIF(B$13:B35,B35)>1,"X","") -> X | B35: =IF(ISBLANK(F33)," ",INDEX(BF:BF,MATCH(F33,BC:BC,0))) ->  | C35: =IF(ISBLANK(F33)," ",INDEX(Starterfeld!$D:$D,MATCH($B35,Starterfeld!$A:$A,0))) ->  | F35: =F33 -> 0 | K35: =IF(ISBLANK(G35)," ",G35+(H35-I35)*50+IF(COUNT(G33:G36)=3,(I33+I34+I36)*40,(I33+I34+I36)*30)) ->  | L35: 0 | M35: =IF(COUNTIF(N$13:N35,N35)>1,"X","") -> X | N35: =IF(ISBLANK(R33)," ",INDEX(BK:BK,MATCH(R33,BH:BH,0))) ->  | O35: =IF(ISBLANK(R33)," ",INDEX(Starterfeld!$D:$D,MATCH(N35,Starterfeld!$A:$A,0))) ->  | R35: =R33 -> 0 | W35: =IF(ISBLANK(S35)," ",S35+(T35-U35)*50+IF(COUNT(S33:S36)=3,(U33+U34+U36)*40,(U33+U34+U36)*30)) ->  | X35: 0 | Y35: =IF(COUNTIF(Z$13:Z35,Z35)>1,"X","") -> X | Z35: =IF(ISBLANK(AD33)," ",INDEX(BP:BP,MATCH(AD33,BM:BM,0))) ->  | AA35: =IF(ISBLANK(AD33)," ",INDEX(Starterfeld!$D:$D,MATCH(Z35,Starterfeld!$A:$A,0))) ->  | AD35: =AD33 -> 0 | AI35: =IF(ISBLANK(AE35)," ",AE35+(AF35-AG35)*50+IF(COUNT(AE33:AE36)=3,(AG33+AG34+AG36)*40,(AG33+AG34+AG36)*30)) ->  | AJ35: 0 | AK35: =IF(COUNTIF(AL$13:AL35,AL35)>1,"X","") -> X | AL35: =IF(ISBLANK(AP33)," ",INDEX(BU:BU,MATCH(AP33,BR:BR,0))) ->  | AM35: =IF(ISBLANK(AP33)," ",INDEX(Starterfeld!$D:$D,MATCH(AL35,Starterfeld!$A:$A,0))) ->  | AP35: =AP33 -> 0 | AU35: =IF(ISBLANK(AQ35)," ",AQ35+(AR35-AS35)*50+IF(COUNT(AQ33:AQ36)=3,(AS33+AS34+AS36)*40,(AS33+AS34+AS36)*30)) ->  | AV35: 0 | BC35: 23 | BD35: =Serie1!$C90 -> 23 | BE35: =Serie1!$C91 -> 77 | BF35: =Serie1!$C92 -> 131 | BG35: =Serie1!$C93 -> 185 | BH35: 23 | BI35: =Serie2!$C90 -> 23 | BJ35: =Serie2!$C91 -> 77 | BK35: =Serie2!$C92 -> 131 | BL35: =Serie2!$C93 -> 185 | BM35: 23 | BN35: =Serie3!$C90 -> 23 | BO35: =Serie3!$C91 -> 77 | BP35: =Serie3!$C92 -> 131 | BQ35: =Serie3!$C93 -> 185 | BR35: 23 | BS35: =Serie4!$C90 -> 23 | BT35: =Serie4!$C91 -> 77 | BU35: =Serie4!$C92 -> 131 | BV35: =Serie4!$C93 -> 185 | BW35: 23 | BX35: =F101 -> 0 | BY35: =R101 -> 0 | BZ35: =AD101 -> 0 | CA35: =AP101 -> 0
A36: =IF(COUNTIF(B$13:B36,B36)>1,"X","") -> X | B36: =IF(ISBLANK(F33)," ",INDEX(BG:BG,MATCH(F33,BC:BC,0))) ->  | C36: =IF(ISBLANK(F33)," ",INDEX(Starterfeld!$D:$D,MATCH($B36,Starterfeld!$A:$A,0))) ->  | F36: =F33 -> 0 | K36: =IF(ISBLANK(G36)," ",G36+(H36-I36)*50+IF(COUNT(G33:G36)=3,(I33+I34+I35)*40,(I33+I34+I35)*30)) ->  | L36: 0 | M36: =IF(COUNTIF(N$13:N36,N36)>1,"X","") -> X | N36: =IF(ISBLANK(R33)," ",INDEX(BL:BL,MATCH(R33,BH:BH,0))) ->  | O36: =IF(ISBLANK(R33)," ",INDEX(Starterfeld!$D:$D,MATCH(N36,Starterfeld!$A:$A,0))) ->  | R36: =R33 -> 0 | W36: =IF(ISBLANK(S36)," ",S36+(T36-U36)*50+IF(COUNT(S33:S36)=3,(U33+U34+U35)*40,(U33+U34+U35)*30)) ->  | X36: 0 | Y36: =IF(COUNTIF(Z$13:Z36,Z36)>1,"X","") -> X | Z36: =IF(ISBLANK(AD33)," ",INDEX(BQ:BQ,MATCH(AD33,BM:BM,0))) ->  | AA36: =IF(ISBLANK(AD33)," ",INDEX(Starterfeld!$D:$D,MATCH(Z36,Starterfeld!$A:$A,0))) ->  | AD36: =AD33 -> 0 | AI36: =IF(ISBLANK(AE36)," ",AE36+(AF36-AG36)*50+IF(COUNT(AE33:AE36)=3,(AG33+AG34+AG35)*40,(AG33+AG34+AG35)*30)) ->  | AJ36: 0 | AK36: =IF(COUNTIF(AL$13:AL36,AL36)>1,"X","") -> X | AL36: =IF(ISBLANK(AP33)," ",INDEX(BV:BV,MATCH(AP33,BR:BR,0))) ->  | AM36: =IF(ISBLANK(AP33)," ",INDEX(Starterfeld!$D:$D,MATCH(AL36,Starterfeld!$A:$A,0))) ->  | AP36: =AP33 -> 0 | AU36: =IF(ISBLANK(AQ36)," ",AQ36+(AR36-AS36)*50+IF(COUNT(AQ33:AQ36)=3,(AS33+AS34+AS35)*40,(AS33+AS34+AS35)*30)) ->  | AV36: 0 | BC36: 24 | BD36: =Serie1!$C94 -> 24 | BE36: =Serie1!$C95 -> 78 | BF36: =Serie1!$C96 -> 132 | BG36: =Serie1!$C97 -> 186 | BH36: 24 | BI36: =Serie2!$C94 -> 24 | BJ36: =Serie2!$C95 -> 78 | BK36: =Serie2!$C96 -> 132 | BL36: =Serie2!$C97 -> 186 | BM36: 24 | BN36: =Serie3!$C94 -> 24 | BO36: =Serie3!$C95 -> 78 | BP36: =Serie3!$C96 -> 132 | BQ36: =Serie3!$C97 -> 186 | BR36: 24 | BS36: =Serie4!$C94 -> 24 | BT36: =Serie4!$C95 -> 78 | BU36: =Serie4!$C96 -> 132 | BV36: =Serie4!$C97 -> 186 | BW36: 24 | BX36: =F105 -> 0 | BY36: =R105 -> 0 | BZ36: =AD105 -> 0 | CA36: =AP105 -> 0
A37: =IF(COUNTIF(B$13:B37,B37)>1,"X","") -> X | B37: =IF(ISBLANK(F37)," ",INDEX(BD:BD,MATCH(F37,BC:BC,0))) ->  | C37: =IF(ISBLANK(F37)," ",INDEX(Starterfeld!$D:$D,MATCH($B37,Starterfeld!$A:$A,0))) ->  | K37: =IF(ISBLANK(G37)," ",G37+(H37-I37)*50+IF(COUNT(G37:G40)=3,(I38+I39+I40)*40,(I38+I39+I40)*30)) ->  | L37: 0 | M37: =IF(COUNTIF(N$13:N37,N37)>1,"X","") -> X | N37: =IF(ISBLANK(R37)," ",INDEX(BI:BI,MATCH(R37,BH:BH,0))) ->  | O37: =IF(ISBLANK(R37)," ",INDEX(Starterfeld!$D:$D,MATCH(N37,Starterfeld!$A:$A,0))) ->  | W37: =IF(ISBLANK(S37)," ",S37+(T37-U37)*50+IF(COUNT(S37:S40)=3,(U38+U39+U40)*40,(U38+U39+U40)*30)) ->  | X37: 0 | Y37: =IF(COUNTIF(Z$13:Z37,Z37)>1,"X","") -> X | Z37: =IF(ISBLANK(AD37)," ",INDEX(BN:BN,MATCH(AD37,BM:BM,0))) ->  | AA37: =IF(ISBLANK(AD37)," ",INDEX(Starterfeld!$D:$D,MATCH(Z37,Starterfeld!$A:$A,0))) ->  | AI37: =IF(ISBLANK(AE37)," ",AE37+(AF37-AG37)*50+IF(COUNT(AE37:AE40)=3,(AG38+AG39+AG40)*40,(AG38+AG39+AG40)*30)) ->  | AJ37: 0 | AK37: =IF(COUNTIF(AL$13:AL37,AL37)>1,"X","") -> X | AL37: =IF(ISBLANK(AP37)," ",INDEX(BS:BS,MATCH(AP37,BR:BR,0))) ->  | AM37: =IF(ISBLANK(AP37)," ",INDEX(Starterfeld!$D:$D,MATCH(AL37,Starterfeld!$A:$A,0))) ->  | AU37: =IF(ISBLANK(AQ37)," ",AQ37+(AR37-AS37)*50+IF(COUNT(AQ37:AQ40)=3,(AS38+AS39+AS40)*40,(AS38+AS39+AS40)*30)) ->  | AV37: 0 | AY37: =SUM(L37:L40) -> 0 | AZ37: =SUM(X37:X40) -> 0 | BA37: =SUM(AJ37:AJ40) -> 0 | BB37: =SUM(AV37:AV40) -> 0 | BC37: 25 | BD37: =Serie1!$C98 -> 25 | BE37: =Serie1!$C99 -> 79 | BF37: =Serie1!$C100 -> 133 | BG37: =Serie1!$C101 -> 187 | BH37: 25 | BI37: =Serie2!$C98 -> 25 | BJ37: =Serie2!$C99 -> 79 | BK37: =Serie2!$C100 -> 133 | BL37: =Serie2!$C101 -> 187 | BM37: 25 | BN37: =Serie3!$C98 -> 25 | BO37: =Serie3!$C99 -> 79 | BP37: =Serie3!$C100 -> 133 | BQ37: =Serie3!$C101 -> 187 | BR37: 25 | BS37: =Serie4!$C98 -> 25 | BT37: =Serie4!$C99 -> 79 | BU37: =Serie4!$C100 -> 133 | BV37: =Serie4!$C101 -> 187 | BW37: 25 | BX37: =F109 -> 0 | BY37: =R109 -> 0 | BZ37: =AD109 -> 0 | CA37: =AP109 -> 0
A38: =IF(COUNTIF(B$13:B38,B38)>1,"X","") -> X | B38: =IF(ISBLANK(F37)," ",INDEX(BE:BE,MATCH(F37,BC:BC,0))) ->  | C38: =IF(ISBLANK(F37)," ",INDEX(Starterfeld!$D:$D,MATCH($B38,Starterfeld!$A:$A,0))) ->  | F38: =F37 -> 0 | K38: =IF(ISBLANK(G38)," ",G38+(H38-I38)*50+IF(COUNT(G37:G40)=3,(I37+I39+I40)*40,(I37+I39+I40)*30)) ->  | L38: 0 | M38: =IF(COUNTIF(N$13:N38,N38)>1,"X","") -> X | N38: =IF(ISBLANK(R37)," ",INDEX(BJ:BJ,MATCH(R37,BH:BH,0))) ->  | O38: =IF(ISBLANK(R37)," ",INDEX(Starterfeld!$D:$D,MATCH(N38,Starterfeld!$A:$A,0))) ->  | R38: =R37 -> 0 | W38: =IF(ISBLANK(S38)," ",S38+(T38-U38)*50+IF(COUNT(S37:S40)=3,(U37+U39+U40)*40,(U37+U39+U40)*30)) ->  | X38: 0 | Y38: =IF(COUNTIF(Z$13:Z38,Z38)>1,"X","") -> X | Z38: =IF(ISBLANK(AD37)," ",INDEX(BO:BO,MATCH(AD37,BM:BM,0))) ->  | AA38: =IF(ISBLANK(AD37)," ",INDEX(Starterfeld!$D:$D,MATCH(Z38,Starterfeld!$A:$A,0))) ->  | AD38: =AD37 -> 0 | AI38: =IF(ISBLANK(AE38)," ",AE38+(AF38-AG38)*50+IF(COUNT(AE37:AE40)=3,(AG37+AG39+AG40)*40,(AG37+AG39+AG40)*30)) ->  | AJ38: 0 | AK38: =IF(COUNTIF(AL$13:AL38,AL38)>1,"X","") -> X | AL38: =IF(ISBLANK(AP37)," ",INDEX(BT:BT,MATCH(AP37,BR:BR,0))) ->  | AM38: =IF(ISBLANK(AP37)," ",INDEX(Starterfeld!$D:$D,MATCH(AL38,Starterfeld!$A:$A,0))) ->  | AP38: =AP37 -> 0 | AU38: =IF(ISBLANK(AQ38)," ",AQ38+(AR38-AS38)*50+IF(COUNT(AQ37:AQ40)=3,(AS37+AS39+AS40)*40,(AS37+AS39+AS40)*30)) ->  | AV38: 0 | BC38: 26 | BD38: =Serie1!$C102 -> 26 | BE38: =Serie1!$C103 -> 80 | BF38: =Serie1!$C104 -> 134 | BG38: =Serie1!$C105 -> 188 | BH38: 26 | BI38: =Serie2!$C102 -> 26 | BJ38: =Serie2!$C103 -> 80 | BK38: =Serie2!$C104 -> 134 | BL38: =Serie2!$C105 -> 188 | BM38: 26 | BN38: =Serie3!$C102 -> 26 | BO38: =Serie3!$C103 -> 80 | BP38: =Serie3!$C104 -> 134 | BQ38: =Serie3!$C105 -> 188 | BR38: 26 | BS38: =Serie4!$C102 -> 26 | BT38: =Serie4!$C103 -> 80 | BU38: =Serie4!$C104 -> 134 | BV38: =Serie4!$C105 -> 188 | BW38: 26 | BX38: =F113 -> 0 | BY38: =R113 -> 0 | BZ38: =AD113 -> 0 | CA38: =AP113 -> 0
A39: =IF(COUNTIF(B$13:B39,B39)>1,"X","") -> X | B39: =IF(ISBLANK(F37)," ",INDEX(BF:BF,MATCH(F37,BC:BC,0))) ->  | C39: =IF(ISBLANK(F37)," ",INDEX(Starterfeld!$D:$D,MATCH($B39,Starterfeld!$A:$A,0))) ->  | F39: =F37 -> 0 | K39: =IF(ISBLANK(G39)," ",G39+(H39-I39)*50+IF(COUNT(G37:G40)=3,(I37+I38+I40)*40,(I37+I38+I40)*30)) ->  | L39: 0 | M39: =IF(COUNTIF(N$13:N39,N39)>1,"X","") -> X | N39: =IF(ISBLANK(R37)," ",INDEX(BK:BK,MATCH(R37,BH:BH,0))) ->  | O39: =IF(ISBLANK(R37)," ",INDEX(Starterfeld!$D:$D,MATCH(N39,Starterfeld!$A:$A,0))) ->  | R39: =R37 -> 0 | W39: =IF(ISBLANK(S39)," ",S39+(T39-U39)*50+IF(COUNT(S37:S40)=3,(U37+U38+U40)*40,(U37+U38+U40)*30)) ->  | X39: 0 | Y39: =IF(COUNTIF(Z$13:Z39,Z39)>1,"X","") -> X | Z39: =IF(ISBLANK(AD37)," ",INDEX(BP:BP,MATCH(AD37,BM:BM,0))) ->  | AA39: =IF(ISBLANK(AD37)," ",INDEX(Starterfeld!$D:$D,MATCH(Z39,Starterfeld!$A:$A,0))) ->  | AD39: =AD37 -> 0 | AI39: =IF(ISBLANK(AE39)," ",AE39+(AF39-AG39)*50+IF(COUNT(AE37:AE40)=3,(AG37+AG38+AG40)*40,(AG37+AG38+AG40)*30)) ->  | AJ39: 0 | AK39: =IF(COUNTIF(AL$13:AL39,AL39)>1,"X","") -> X | AL39: =IF(ISBLANK(AP37)," ",INDEX(BU:BU,MATCH(AP37,BR:BR,0))) ->  | AM39: =IF(ISBLANK(AP37)," ",INDEX(Starterfeld!$D:$D,MATCH(AL39,Starterfeld!$A:$A,0))) ->  | AP39: =AP37 -> 0 | AU39: =IF(ISBLANK(AQ39)," ",AQ39+(AR39-AS39)*50+IF(COUNT(AQ37:AQ40)=3,(AS37+AS38+AS40)*40,(AS37+AS38+AS40)*30)) ->  | AV39: 0 | BC39: 27 | BD39: =Serie1!$C106 -> 27 | BE39: =Serie1!$C107 -> 81 | BF39: =Serie1!$C108 -> 135 | BG39: =Serie1!$C109 -> 189 | BH39: 27 | BI39: =Serie2!$C106 -> 27 | BJ39: =Serie2!$C107 -> 81 | BK39: =Serie2!$C108 -> 135 | BL39: =Serie2!$C109 -> 189 | BM39: 27 | BN39: =Serie3!$C106 -> 27 | BO39: =Serie3!$C107 -> 81 | BP39: =Serie3!$C108 -> 135 | BQ39: =Serie3!$C109 -> 189 | BR39: 27 | BS39: =Serie4!$C106 -> 27 | BT39: =Serie4!$C107 -> 81 | BU39: =Serie4!$C108 -> 135 | BV39: =Serie4!$C109 -> 189 | BW39: 27 | BX39: =F117 -> 0 | BY39: =R117 -> 0 | BZ39: =AD117 -> 0 | CA39: =AP117 -> 0
A40: =IF(COUNTIF(B$13:B40,B40)>1,"X","") -> X | B40: =IF(ISBLANK(F37)," ",INDEX(BG:BG,MATCH(F37,BC:BC,0))) ->  | C40: =IF(ISBLANK(F37)," ",INDEX(Starterfeld!$D:$D,MATCH($B40,Starterfeld!$A:$A,0))) ->  | F40: =F37 -> 0 | K40: =IF(ISBLANK(G40)," ",G40+(H40-I40)*50+IF(COUNT(G37:G40)=3,(I37+I38+I39)*40,(I37+I38+I39)*30)) ->  | L40: 0 | M40: =IF(COUNTIF(N$13:N40,N40)>1,"X","") -> X | N40: =IF(ISBLANK(R37)," ",INDEX(BL:BL,MATCH(R37,BH:BH,0))) ->  | O40: =IF(ISBLANK(R37)," ",INDEX(Starterfeld!$D:$D,MATCH(N40,Starterfeld!$A:$A,0))) ->  | R40: =R37 -> 0 | W40: =IF(ISBLANK(S40)," ",S40+(T40-U40)*50+IF(COUNT(S37:S40)=3,(U37+U38+U39)*40,(U37+U38+U39)*30)) ->  | X40: 0 | Y40: =IF(COUNTIF(Z$13:Z40,Z40)>1,"X","") -> X | Z40: =IF(ISBLANK(AD37)," ",INDEX(BQ:BQ,MATCH(AD37,BM:BM,0))) ->  | AA40: =IF(ISBLANK(AD37)," ",INDEX(Starterfeld!$D:$D,MATCH(Z40,Starterfeld!$A:$A,0))) ->  | AD40: =AD37 -> 0 | AI40: =IF(ISBLANK(AE40)," ",AE40+(AF40-AG40)*50+IF(COUNT(AE37:AE40)=3,(AG37+AG38+AG39)*40,(AG37+AG38+AG39)*30)) ->  | AJ40: 0 | AK40: =IF(COUNTIF(AL$13:AL40,AL40)>1,"X","") -> X | AL40: =IF(ISBLANK(AP37)," ",INDEX(BV:BV,MATCH(AP37,BR:BR,0))) ->  | AM40: =IF(ISBLANK(AP37)," ",INDEX(Starterfeld!$D:$D,MATCH(AL40,Starterfeld!$A:$A,0))) ->  | AP40: =AP37 -> 0 | AU40: =IF(ISBLANK(AQ40)," ",AQ40+(AR40-AS40)*50+IF(COUNT(AQ37:AQ40)=3,(AS37+AS38+AS39)*40,(AS37+AS38+AS39)*30)) ->  | AV40: 0 | BC40: 28 | BD40: =Serie1!$C110 -> 28 | BE40: =Serie1!$C111 -> 82 | BF40: =Serie1!$C112 -> 136 | BG40: =Serie1!$C113 -> 190 | BH40: 28 | BI40: =Serie2!$C110 -> 28 | BJ40: =Serie2!$C111 -> 82 | BK40: =Serie2!$C112 -> 136 | BL40: =Serie2!$C113 -> 190 | BM40: 28 | BN40: =Serie3!$C110 -> 28 | BO40: =Serie3!$C111 -> 82 | BP40: =Serie3!$C112 -> 136 | BQ40: =Serie3!$C113 -> 190 | BR40: 28 | BS40: =Serie4!$C110 -> 28 | BT40: =Serie4!$C111 -> 82 | BU40: =Serie4!$C112 -> 136 | BV40: =Serie4!$C113 -> 190 | BW40: 28 | BX40: =F121 -> 0 | BY40: =R121 -> 0 | BZ40: =AD121 -> 0 | CA40: =AP121 -> 0
A41: =IF(COUNTIF(B$13:B41,B41)>1,"X","") -> X | B41: =IF(ISBLANK(F41)," ",INDEX(BD:BD,MATCH(F41,BC:BC,0))) ->  | C41: =IF(ISBLANK(F41)," ",INDEX(Starterfeld!$D:$D,MATCH($B41,Starterfeld!$A:$A,0))) ->  | K41: =IF(ISBLANK(G41)," ",G41+(H41-I41)*50+IF(COUNT(G41:G44)=3,(I42+I43+I44)*40,(I42+I43+I44)*30)) ->  | L41: 0 | M41: =IF(COUNTIF(N$13:N41,N41)>1,"X","") -> X | N41: =IF(ISBLANK(R41)," ",INDEX(BI:BI,MATCH(R41,BH:BH,0))) ->  | O41: =IF(ISBLANK(R41)," ",INDEX(Starterfeld!$D:$D,MATCH(N41,Starterfeld!$A:$A,0))) ->  | W41: =IF(ISBLANK(S41)," ",S41+(T41-U41)*50+IF(COUNT(S41:S44)=3,(U42+U43+U44)*40,(U42+U43+U44)*30)) ->  | X41: 0 | Y41: =IF(COUNTIF(Z$13:Z41,Z41)>1,"X","") -> X | Z41: =IF(ISBLANK(AD41)," ",INDEX(BN:BN,MATCH(AD41,BM:BM,0))) ->  | AA41: =IF(ISBLANK(AD41)," ",INDEX(Starterfeld!$D:$D,MATCH(Z41,Starterfeld!$A:$A,0))) ->  | AI41: =IF(ISBLANK(AE41)," ",AE41+(AF41-AG41)*50+IF(COUNT(AE41:AE44)=3,(AG42+AG43+AG44)*40,(AG42+AG43+AG44)*30)) ->  | AJ41: 0 | AK41: =IF(COUNTIF(AL$13:AL41,AL41)>1,"X","") -> X | AL41: =IF(ISBLANK(AP41)," ",INDEX(BS:BS,MATCH(AP41,BR:BR,0))) ->  | AM41: =IF(ISBLANK(AP41)," ",INDEX(Starterfeld!$D:$D,MATCH(AL41,Starterfeld!$A:$A,0))) ->  | AU41: =IF(ISBLANK(AQ41)," ",AQ41+(AR41-AS41)*50+IF(COUNT(AQ41:AQ44)=3,(AS42+AS43+AS44)*40,(AS42+AS43+AS44)*30)) ->  | AV41: 0 | AY41: =SUM(L41:L44) -> 0 | AZ41: =SUM(X41:X44) -> 0 | BA41: =SUM(AJ41:AJ44) -> 0 | BB41: =SUM(AV41:AV44) -> 0 | BC41: 29 | BD41: =Serie1!$C114 -> 29 | BE41: =Serie1!$C115 -> 83 | BF41: =Serie1!$C116 -> 137 | BG41: =Serie1!$C117 -> 191 | BH41: 29 | BI41: =Serie2!$C114 -> 29 | BJ41: =Serie2!$C115 -> 83 | BK41: =Serie2!$C116 -> 137 | BL41: =Serie2!$C117 -> 191 | BM41: 29 | BN41: =Serie3!$C114 -> 29 | BO41: =Serie3!$C115 -> 83 | BP41: =Serie3!$C116 -> 137 | BQ41: =Serie3!$C117 -> 191 | BR41: 29 | BS41: =Serie4!$C114 -> 29 | BT41: =Serie4!$C115 -> 83 | BU41: =Serie4!$C116 -> 137 | BV41: =Serie4!$C117 -> 191 | BW41: 29 | BX41: =F125 -> 0 | BY41: =R125 -> 0 | BZ41: =AD125 -> 0 | CA41: =AP125 -> 0
A42: =IF(COUNTIF(B$13:B42,B42)>1,"X","") -> X | B42: =IF(ISBLANK(F41)," ",INDEX(BE:BE,MATCH(F41,BC:BC,0))) ->  | C42: =IF(ISBLANK(F41)," ",INDEX(Starterfeld!$D:$D,MATCH($B42,Starterfeld!$A:$A,0))) ->  | F42: =F41 -> 0 | K42: =IF(ISBLANK(G42)," ",G42+(H42-I42)*50+IF(COUNT(G41:G44)=3,(I41+I43+I44)*40,(I41+I43+I44)*30)) ->  | L42: 0 | M42: =IF(COUNTIF(N$13:N42,N42)>1,"X","") -> X | N42: =IF(ISBLANK(R41)," ",INDEX(BJ:BJ,MATCH(R41,BH:BH,0))) ->  | O42: =IF(ISBLANK(R41)," ",INDEX(Starterfeld!$D:$D,MATCH(N42,Starterfeld!$A:$A,0))) ->  | R42: =R41 -> 0 | W42: =IF(ISBLANK(S42)," ",S42+(T42-U42)*50+IF(COUNT(S41:S44)=3,(U41+U43+U44)*40,(U41+U43+U44)*30)) ->  | X42: 0 | Y42: =IF(COUNTIF(Z$13:Z42,Z42)>1,"X","") -> X | Z42: =IF(ISBLANK(AD41)," ",INDEX(BO:BO,MATCH(AD41,BM:BM,0))) ->  | AA42: =IF(ISBLANK(AD41)," ",INDEX(Starterfeld!$D:$D,MATCH(Z42,Starterfeld!$A:$A,0))) ->  | AD42: =AD41 -> 0 | AI42: =IF(ISBLANK(AE42)," ",AE42+(AF42-AG42)*50+IF(COUNT(AE41:AE44)=3,(AG41+AG43+AG44)*40,(AG41+AG43+AG44)*30)) ->  | AJ42: 0 | AK42: =IF(COUNTIF(AL$13:AL42,AL42)>1,"X","") -> X | AL42: =IF(ISBLANK(AP41)," ",INDEX(BT:BT,MATCH(AP41,BR:BR,0))) ->  | AM42: =IF(ISBLANK(AP41)," ",INDEX(Starterfeld!$D:$D,MATCH(AL42,Starterfeld!$A:$A,0))) ->  | AP42: =AP41 -> 0 | AU42: =IF(ISBLANK(AQ42)," ",AQ42+(AR42-AS42)*50+IF(COUNT(AQ41:AQ44)=3,(AS41+AS43+AS44)*40,(AS41+AS43+AS44)*30)) ->  | AV42: 0 | BC42: 30 | BD42: =Serie1!$C118 -> 30 | BE42: =Serie1!$C119 -> 84 | BF42: =Serie1!$C120 -> 138 | BG42: =Serie1!$C121 -> 192 | BH42: 30 | BI42: =Serie2!$C118 -> 30 | BJ42: =Serie2!$C119 -> 84 | BK42: =Serie2!$C120 -> 138 | BL42: =Serie2!$C121 -> 192 | BM42: 30 | BN42: =Serie3!$C118 -> 30 | BO42: =Serie3!$C119 -> 84 | BP42: =Serie3!$C120 -> 138 | BQ42: =Serie3!$C121 -> 192 | BR42: 30 | BS42: =Serie4!$C118 -> 30 | BT42: =Serie4!$C119 -> 84 | BU42: =Serie4!$C120 -> 138 | BV42: =Serie4!$C121 -> 192 | BW42: 30 | BX42: =F129 -> 0 | BY42: =R129 -> 0 | BZ42: =AD129 -> 0 | CA42: =AP129 -> 0
A43: =IF(COUNTIF(B$13:B43,B43)>1,"X","") -> X | B43: =IF(ISBLANK(F41)," ",INDEX(BF:BF,MATCH(F41,BC:BC,0))) ->  | C43: =IF(ISBLANK(F41)," ",INDEX(Starterfeld!$D:$D,MATCH($B43,Starterfeld!$A:$A,0))) ->  | F43: =F41 -> 0 | K43: =IF(ISBLANK(G43)," ",G43+(H43-I43)*50+IF(COUNT(G41:G44)=3,(I41+I42+I44)*40,(I41+I42+I44)*30)) ->  | L43: 0 | M43: =IF(COUNTIF(N$13:N43,N43)>1,"X","") -> X | N43: =IF(ISBLANK(R41)," ",INDEX(BK:BK,MATCH(R41,BH:BH,0))) ->  | O43: =IF(ISBLANK(R41)," ",INDEX(Starterfeld!$D:$D,MATCH(N43,Starterfeld!$A:$A,0))) ->  | R43: =R41 -> 0 | W43: =IF(ISBLANK(S43)," ",S43+(T43-U43)*50+IF(COUNT(S41:S44)=3,(U41+U42+U44)*40,(U41+U42+U44)*30)) ->  | X43: 0 | Y43: =IF(COUNTIF(Z$13:Z43,Z43)>1,"X","") -> X | Z43: =IF(ISBLANK(AD41)," ",INDEX(BP:BP,MATCH(AD41,BM:BM,0))) ->  | AA43: =IF(ISBLANK(AD41)," ",INDEX(Starterfeld!$D:$D,MATCH(Z43,Starterfeld!$A:$A,0))) ->  | AD43: =AD41 -> 0 | AI43: =IF(ISBLANK(AE43)," ",AE43+(AF43-AG43)*50+IF(COUNT(AE41:AE44)=3,(AG41+AG42+AG44)*40,(AG41+AG42+AG44)*30)) ->  | AJ43: 0 | AK43: =IF(COUNTIF(AL$13:AL43,AL43)>1,"X","") -> X | AL43: =IF(ISBLANK(AP41)," ",INDEX(BU:BU,MATCH(AP41,BR:BR,0))) ->  | AM43: =IF(ISBLANK(AP41)," ",INDEX(Starterfeld!$D:$D,MATCH(AL43,Starterfeld!$A:$A,0))) ->  | AP43: =AP41 -> 0 | AU43: =IF(ISBLANK(AQ43)," ",AQ43+(AR43-AS43)*50+IF(COUNT(AQ41:AQ44)=3,(AS41+AS42+AS44)*40,(AS41+AS42+AS44)*30)) ->  | AV43: 0 | BC43: 31 | BD43: =Serie1!$C122 -> 31 | BE43: =Serie1!$C123 -> 85 | BF43: =Serie1!$C124 -> 139 | BG43: =Serie1!$C125 -> 193 | BH43: 31 | BI43: =Serie2!$C122 -> 31 | BJ43: =Serie2!$C123 -> 85 | BK43: =Serie2!$C124 -> 139 | BL43: =Serie2!$C125 -> 193 | BM43: 31 | BN43: =Serie3!$C122 -> 31 | BO43: =Serie3!$C123 -> 85 | BP43: =Serie3!$C124 -> 139 | BQ43: =Serie3!$C125 -> 193 | BR43: 31 | BS43: =Serie4!$C122 -> 31 | BT43: =Serie4!$C123 -> 85 | BU43: =Serie4!$C124 -> 139 | BV43: =Serie4!$C125 -> 193 | BW43: 31 | BX43: =F133 -> 0 | BY43: =R133 -> 0 | BZ43: =AD133 -> 0 | CA43: =AP133 -> 0
A44: =IF(COUNTIF(B$13:B44,B44)>1,"X","") -> X | B44: =IF(ISBLANK(F41)," ",INDEX(BG:BG,MATCH(F41,BC:BC,0))) ->  | C44: =IF(ISBLANK(F41)," ",INDEX(Starterfeld!$D:$D,MATCH($B44,Starterfeld!$A:$A,0))) ->  | F44: =F41 -> 0 | K44: =IF(ISBLANK(G44)," ",G44+(H44-I44)*50+IF(COUNT(G41:G44)=3,(I41+I42+I43)*40,(I41+I42+I43)*30)) ->  | L44: 0 | M44: =IF(COUNTIF(N$13:N44,N44)>1,"X","") -> X | N44: =IF(ISBLANK(R41)," ",INDEX(BL:BL,MATCH(R41,BH:BH,0))) ->  | O44: =IF(ISBLANK(R41)," ",INDEX(Starterfeld!$D:$D,MATCH(N44,Starterfeld!$A:$A,0))) ->  | R44: =R41 -> 0 | W44: =IF(ISBLANK(S44)," ",S44+(T44-U44)*50+IF(COUNT(S41:S44)=3,(U41+U42+U43)*40,(U41+U42+U43)*30)) ->  | X44: 0 | Y44: =IF(COUNTIF(Z$13:Z44,Z44)>1,"X","") -> X | Z44: =IF(ISBLANK(AD41)," ",INDEX(BQ:BQ,MATCH(AD41,BM:BM,0))) ->  | AA44: =IF(ISBLANK(AD41)," ",INDEX(Starterfeld!$D:$D,MATCH(Z44,Starterfeld!$A:$A,0))) ->  | AD44: =AD41 -> 0 | AI44: =IF(ISBLANK(AE44)," ",AE44+(AF44-AG44)*50+IF(COUNT(AE41:AE44)=3,(AG41+AG42+AG43)*40,(AG41+AG42+AG43)*30)) ->  | AJ44: 0 | AK44: =IF(COUNTIF(AL$13:AL44,AL44)>1,"X","") -> X | AL44: =IF(ISBLANK(AP41)," ",INDEX(BV:BV,MATCH(AP41,BR:BR,0))) ->  | AM44: =IF(ISBLANK(AP41)," ",INDEX(Starterfeld!$D:$D,MATCH(AL44,Starterfeld!$A:$A,0))) ->  | AP44: =AP41 -> 0 | AU44: =IF(ISBLANK(AQ44)," ",AQ44+(AR44-AS44)*50+IF(COUNT(AQ41:AQ44)=3,(AS41+AS42+AS43)*40,(AS41+AS42+AS43)*30)) ->  | AV44: 0 | BC44: 32 | BD44: =Serie1!$C126 -> 32 | BE44: =Serie1!$C127 -> 86 | BF44: =Serie1!$C128 -> 140 | BG44: =Serie1!$C129 -> 194 | BH44: 32 | BI44: =Serie2!$C126 -> 32 | BJ44: =Serie2!$C127 -> 86 | BK44: =Serie2!$C128 -> 140 | BL44: =Serie2!$C129 -> 194 | BM44: 32 | BN44: =Serie3!$C126 -> 32 | BO44: =Serie3!$C127 -> 86 | BP44: =Serie3!$C128 -> 140 | BQ44: =Serie3!$C129 -> 194 | BR44: 32 | BS44: =Serie4!$C126 -> 32 | BT44: =Serie4!$C127 -> 86 | BU44: =Serie4!$C128 -> 140 | BV44: =Serie4!$C129 -> 194 | BW44: 32 | BX44: =F137 -> 0 | BY44: =R137 -> 0 | BZ44: =AD137 -> 0 | CA44: =AP137 -> 0
A45: =IF(COUNTIF(B$13:B45,B45)>1,"X","") -> X | B45: =IF(ISBLANK(F45)," ",INDEX(BD:BD,MATCH(F45,BC:BC,0))) ->  | C45: =IF(ISBLANK(F45)," ",INDEX(Starterfeld!$D:$D,MATCH($B45,Starterfeld!$A:$A,0))) ->  | K45: =IF(ISBLANK(G45)," ",G45+(H45-I45)*50+IF(COUNT(G45:G48)=3,(I46+I47+I48)*40,(I46+I47+I48)*30)) ->  | L45: 0 | M45: =IF(COUNTIF(N$13:N45,N45)>1,"X","") -> X | N45: =IF(ISBLANK(R45)," ",INDEX(BI:BI,MATCH(R45,BH:BH,0))) ->  | O45: =IF(ISBLANK(R45)," ",INDEX(Starterfeld!$D:$D,MATCH(N45,Starterfeld!$A:$A,0))) ->  | W45: =IF(ISBLANK(S45)," ",S45+(T45-U45)*50+IF(COUNT(S45:S48)=3,(U46+U47+U48)*40,(U46+U47+U48)*30)) ->  | X45: 0 | Y45: =IF(COUNTIF(Z$13:Z45,Z45)>1,"X","") -> X | Z45: =IF(ISBLANK(AD45)," ",INDEX(BN:BN,MATCH(AD45,BM:BM,0))) ->  | AA45: =IF(ISBLANK(AD45)," ",INDEX(Starterfeld!$D:$D,MATCH(Z45,Starterfeld!$A:$A,0))) ->  | AI45: =IF(ISBLANK(AE45)," ",AE45+(AF45-AG45)*50+IF(COUNT(AE45:AE48)=3,(AG46+AG47+AG48)*40,(AG46+AG47+AG48)*30)) ->  | AJ45: 0 | AK45: =IF(COUNTIF(AL$13:AL45,AL45)>1,"X","") -> X | AL45: =IF(ISBLANK(AP45)," ",INDEX(BS:BS,MATCH(AP45,BR:BR,0))) ->  | AM45: =IF(ISBLANK(AP45)," ",INDEX(Starterfeld!$D:$D,MATCH(AL45,Starterfeld!$A:$A,0))) ->  | AU45: =IF(ISBLANK(AQ45)," ",AQ45+(AR45-AS45)*50+IF(COUNT(AQ45:AQ48)=3,(AS46+AS47+AS48)*40,(AS46+AS47+AS48)*30)) ->  | AV45: 0 | AY45: =SUM(L45:L48) -> 0 | AZ45: =SUM(X45:X48) -> 0 | BA45: =SUM(AJ45:AJ48) -> 0 | BB45: =SUM(AV45:AV48) -> 0 | BC45: 33 | BD45: =Serie1!$C130 -> 33 | BE45: =Serie1!$C131 -> 87 | BF45: =Serie1!$C132 -> 141 | BG45: =Serie1!$C133 -> 195 | BH45: 33 | BI45: =Serie2!$C130 -> 33 | BJ45: =Serie2!$C131 -> 87 | BK45: =Serie2!$C132 -> 141 | BL45: =Serie2!$C133 -> 195 | BM45: 33 | BN45: =Serie3!$C130 -> 33 | BO45: =Serie3!$C131 -> 87 | BP45: =Serie3!$C132 -> 141 | BQ45: =Serie3!$C133 -> 195 | BR45: 33 | BS45: =Serie4!$C130 -> 33 | BT45: =Serie4!$C131 -> 87 | BU45: =Serie4!$C132 -> 141 | BV45: =Serie4!$C133 -> 195 | BW45: 33 | BX45: =F141 -> 0 | BY45: =R141 -> 0 | BZ45: =AD141 -> 0 | CA45: =AP141 -> 0
A46: =IF(COUNTIF(B$13:B46,B46)>1,"X","") -> X | B46: =IF(ISBLANK(F45)," ",INDEX(BE:BE,MATCH(F45,BC:BC,0))) ->  | C46: =IF(ISBLANK(F45)," ",INDEX(Starterfeld!$D:$D,MATCH($B46,Starterfeld!$A:$A,0))) ->  | F46: =F45 -> 0 | K46: =IF(ISBLANK(G46)," ",G46+(H46-I46)*50+IF(COUNT(G45:G48)=3,(I45+I47+I48)*40,(I45+I47+I48)*30)) ->  | L46: 0 | M46: =IF(COUNTIF(N$13:N46,N46)>1,"X","") -> X | N46: =IF(ISBLANK(R45)," ",INDEX(BJ:BJ,MATCH(R45,BH:BH,0))) ->  | O46: =IF(ISBLANK(R45)," ",INDEX(Starterfeld!$D:$D,MATCH(N46,Starterfeld!$A:$A,0))) ->  | R46: =R45 -> 0 | W46: =IF(ISBLANK(S46)," ",S46+(T46-U46)*50+IF(COUNT(S45:S48)=3,(U45+U47+U48)*40,(U45+U47+U48)*30)) ->  | X46: 0 | Y46: =IF(COUNTIF(Z$13:Z46,Z46)>1,"X","") -> X | Z46: =IF(ISBLANK(AD45)," ",INDEX(BO:BO,MATCH(AD45,BM:BM,0))) ->  | AA46: =IF(ISBLANK(AD45)," ",INDEX(Starterfeld!$D:$D,MATCH(Z46,Starterfeld!$A:$A,0))) ->  | AD46: =AD45 -> 0 | AI46: =IF(ISBLANK(AE46)," ",AE46+(AF46-AG46)*50+IF(COUNT(AE45:AE48)=3,(AG45+AG47+AG48)*40,(AG45+AG47+AG48)*30)) ->  | AJ46: 0 | AK46: =IF(COUNTIF(AL$13:AL46,AL46)>1,"X","") -> X | AL46: =IF(ISBLANK(AP45)," ",INDEX(BT:BT,MATCH(AP45,BR:BR,0))) ->  | AM46: =IF(ISBLANK(AP45)," ",INDEX(Starterfeld!$D:$D,MATCH(AL46,Starterfeld!$A:$A,0))) ->  | AP46: =AP45 -> 0 | AU46: =IF(ISBLANK(AQ46)," ",AQ46+(AR46-AS46)*50+IF(COUNT(AQ45:AQ48)=3,(AS45+AS47+AS48)*40,(AS45+AS47+AS48)*30)) ->  | AV46: 0 | BC46: 34 | BD46: =Serie1!$C134 -> 34 | BE46: =Serie1!$C135 -> 88 | BF46: =Serie1!$C136 -> 142 | BG46: =Serie1!$C137 -> 196 | BH46: 34 | BI46: =Serie2!$C134 -> 34 | BJ46: =Serie2!$C135 -> 88 | BK46: =Serie2!$C136 -> 142 | BL46: =Serie2!$C137 -> 196 | BM46: 34 | BN46: =Serie3!$C134 -> 34 | BO46: =Serie3!$C135 -> 88 | BP46: =Serie3!$C136 -> 142 | BQ46: =Serie3!$C137 -> 196 | BR46: 34 | BS46: =Serie4!$C134 -> 34 | BT46: =Serie4!$C135 -> 88 | BU46: =Serie4!$C136 -> 142 | BV46: =Serie4!$C137 -> 196 | BW46: 34 | BX46: =F145 -> 0 | BY46: =R145 -> 0 | BZ46: =AD145 -> 0 | CA46: =AP145 -> 0
A47: =IF(COUNTIF(B$13:B47,B47)>1,"X","") -> X | B47: =IF(ISBLANK(F45)," ",INDEX(BF:BF,MATCH(F45,BC:BC,0))) ->  | C47: =IF(ISBLANK(F45)," ",INDEX(Starterfeld!$D:$D,MATCH($B47,Starterfeld!$A:$A,0))) ->  | F47: =F45 -> 0 | K47: =IF(ISBLANK(G47)," ",G47+(H47-I47)*50+IF(COUNT(G45:G48)=3,(I45+I46+I48)*40,(I45+I46+I48)*30)) ->  | L47: 0 | M47: =IF(COUNTIF(N$13:N47,N47)>1,"X","") -> X | N47: =IF(ISBLANK(R45)," ",INDEX(BK:BK,MATCH(R45,BH:BH,0))) ->  | O47: =IF(ISBLANK(R45)," ",INDEX(Starterfeld!$D:$D,MATCH(N47,Starterfeld!$A:$A,0))) ->  | R47: =R45 -> 0 | W47: =IF(ISBLANK(S47)," ",S47+(T47-U47)*50+IF(COUNT(S45:S48)=3,(U45+U46+U48)*40,(U45+U46+U48)*30)) ->  | X47: 0 | Y47: =IF(COUNTIF(Z$13:Z47,Z47)>1,"X","") -> X | Z47: =IF(ISBLANK(AD45)," ",INDEX(BP:BP,MATCH(AD45,BM:BM,0))) ->  | AA47: =IF(ISBLANK(AD45)," ",INDEX(Starterfeld!$D:$D,MATCH(Z47,Starterfeld!$A:$A,0))) ->  | AD47: =AD45 -> 0 | AI47: =IF(ISBLANK(AE47)," ",AE47+(AF47-AG47)*50+IF(COUNT(AE45:AE48)=3,(AG45+AG46+AG48)*40,(AG45+AG46+AG48)*30)) ->  | AJ47: 0 | AK47: =IF(COUNTIF(AL$13:AL47,AL47)>1,"X","") -> X | AL47: =IF(ISBLANK(AP45)," ",INDEX(BU:BU,MATCH(AP45,BR:BR,0))) ->  | AM47: =IF(ISBLANK(AP45)," ",INDEX(Starterfeld!$D:$D,MATCH(AL47,Starterfeld!$A:$A,0))) ->  | AP47: =AP45 -> 0 | AU47: =IF(ISBLANK(AQ47)," ",AQ47+(AR47-AS47)*50+IF(COUNT(AQ45:AQ48)=3,(AS45+AS46+AS48)*40,(AS45+AS46+AS48)*30)) ->  | AV47: 0 | BC47: 35 | BD47: =Serie1!$C138 -> 35 | BE47: =Serie1!$C139 -> 89 | BF47: =Serie1!$C140 -> 143 | BG47: =Serie1!$C141 -> 197 | BH47: 35 | BI47: =Serie2!$C138 -> 35 | BJ47: =Serie2!$C139 -> 89 | BK47: =Serie2!$C140 -> 143 | BL47: =Serie2!$C141 -> 197 | BM47: 35 | BN47: =Serie3!$C138 -> 35 | BO47: =Serie3!$C139 -> 89 | BP47: =Serie3!$C140 -> 143 | BQ47: =Serie3!$C141 -> 197 | BR47: 35 | BS47: =Serie4!$C138 -> 35 | BT47: =Serie4!$C139 -> 89 | BU47: =Serie4!$C140 -> 143 | BV47: =Serie4!$C141 -> 197 | BW47: 35 | BX47: =F149 -> 0 | BY47: =R149 -> 0 | BZ47: =AD149 -> 0 | CA47: =AP149 -> 0
A48: =IF(COUNTIF(B$13:B48,B48)>1,"X","") -> X | B48: =IF(ISBLANK(F45)," ",INDEX(BG:BG,MATCH(F45,BC:BC,0))) ->  | C48: =IF(ISBLANK(F45)," ",INDEX(Starterfeld!$D:$D,MATCH($B48,Starterfeld!$A:$A,0))) ->  | F48: =F45 -> 0 | K48: =IF(ISBLANK(G48)," ",G48+(H48-I48)*50+IF(COUNT(G45:G48)=3,(I45+I46+I47)*40,(I45+I46+I47)*30)) ->  | L48: 0 | M48: =IF(COUNTIF(N$13:N48,N48)>1,"X","") -> X | N48: =IF(ISBLANK(R45)," ",INDEX(BL:BL,MATCH(R45,BH:BH,0))) ->  | O48: =IF(ISBLANK(R45)," ",INDEX(Starterfeld!$D:$D,MATCH(N48,Starterfeld!$A:$A,0))) ->  | R48: =R45 -> 0 | W48: =IF(ISBLANK(S48)," ",S48+(T48-U48)*50+IF(COUNT(S45:S48)=3,(U45+U46+U47)*40,(U45+U46+U47)*30)) ->  | X48: 0 | Y48: =IF(COUNTIF(Z$13:Z48,Z48)>1,"X","") -> X | Z48: =IF(ISBLANK(AD45)," ",INDEX(BQ:BQ,MATCH(AD45,BM:BM,0))) ->  | AA48: =IF(ISBLANK(AD45)," ",INDEX(Starterfeld!$D:$D,MATCH(Z48,Starterfeld!$A:$A,0))) ->  | AD48: =AD45 -> 0 | AI48: =IF(ISBLANK(AE48)," ",AE48+(AF48-AG48)*50+IF(COUNT(AE45:AE48)=3,(AG45+AG46+AG47)*40,(AG45+AG46+AG47)*30)) ->  | AJ48: 0 | AK48: =IF(COUNTIF(AL$13:AL48,AL48)>1,"X","") -> X | AL48: =IF(ISBLANK(AP45)," ",INDEX(BV:BV,MATCH(AP45,BR:BR,0))) ->  | AM48: =IF(ISBLANK(AP45)," ",INDEX(Starterfeld!$D:$D,MATCH(AL48,Starterfeld!$A:$A,0))) ->  | AP48: =AP45 -> 0 | AU48: =IF(ISBLANK(AQ48)," ",AQ48+(AR48-AS48)*50+IF(COUNT(AQ45:AQ48)=3,(AS45+AS46+AS47)*40,(AS45+AS46+AS47)*30)) ->  | AV48: 0 | BC48: 36 | BD48: =Serie1!$C142 -> 36 | BE48: =Serie1!$C143 -> 90 | BF48: =Serie1!$C144 -> 144 | BG48: =Serie1!$C145 -> 198 | BH48: 36 | BI48: =Serie2!$C142 -> 36 | BJ48: =Serie2!$C143 -> 90 | BK48: =Serie2!$C144 -> 144 | BL48: =Serie2!$C145 -> 198 | BM48: 36 | BN48: =Serie3!$C142 -> 36 | BO48: =Serie3!$C143 -> 90 | BP48: =Serie3!$C144 -> 144 | BQ48: =Serie3!$C145 -> 198 | BR48: 36 | BS48: =Serie4!$C142 -> 36 | BT48: =Serie4!$C143 -> 90 | BU48: =Serie4!$C144 -> 144 | BV48: =Serie4!$C145 -> 198 | BW48: 36 | BX48: =F153 -> 0 | BY48: =R153 -> 0 | BZ48: =AD153 -> 0 | CA48: =AP153 -> 0
A49: =IF(COUNTIF(B$13:B49,B49)>1,"X","") -> X | B49: =IF(ISBLANK(F49)," ",INDEX(BD:BD,MATCH(F49,BC:BC,0))) ->  | C49: =IF(ISBLANK(F49)," ",INDEX(Starterfeld!$D:$D,MATCH($B49,Starterfeld!$A:$A,0))) ->  | K49: =IF(ISBLANK(G49)," ",G49+(H49-I49)*50+IF(COUNT(G49:G52)=3,(I50+I51+I52)*40,(I50+I51+I52)*30)) ->  | L49: 0 | M49: =IF(COUNTIF(N$13:N49,N49)>1,"X","") -> X | N49: =IF(ISBLANK(R49)," ",INDEX(BI:BI,MATCH(R49,BH:BH,0))) ->  | O49: =IF(ISBLANK(R49)," ",INDEX(Starterfeld!$D:$D,MATCH(N49,Starterfeld!$A:$A,0))) ->  | W49: =IF(ISBLANK(S49)," ",S49+(T49-U49)*50+IF(COUNT(S49:S52)=3,(U50+U51+U52)*40,(U50+U51+U52)*30)) ->  | X49: 0 | Y49: =IF(COUNTIF(Z$13:Z49,Z49)>1,"X","") -> X | Z49: =IF(ISBLANK(AD49)," ",INDEX(BN:BN,MATCH(AD49,BM:BM,0))) ->  | AA49: =IF(ISBLANK(AD49)," ",INDEX(Starterfeld!$D:$D,MATCH(Z49,Starterfeld!$A:$A,0))) ->  | AI49: =IF(ISBLANK(AE49)," ",AE49+(AF49-AG49)*50+IF(COUNT(AE49:AE52)=3,(AG50+AG51+AG52)*40,(AG50+AG51+AG52)*30)) ->  | AJ49: 0 | AK49: =IF(COUNTIF(AL$13:AL49,AL49)>1,"X","") -> X | AL49: =IF(ISBLANK(AP49)," ",INDEX(BS:BS,MATCH(AP49,BR:BR,0))) ->  | AM49: =IF(ISBLANK(AP49)," ",INDEX(Starterfeld!$D:$D,MATCH(AL49,Starterfeld!$A:$A,0))) ->  | AU49: =IF(ISBLANK(AQ49)," ",AQ49+(AR49-AS49)*50+IF(COUNT(AQ49:AQ52)=3,(AS50+AS51+AS52)*40,(AS50+AS51+AS52)*30)) ->  | AV49: 0 | AY49: =SUM(L49:L52) -> 0 | AZ49: =SUM(X49:X52) -> 0 | BA49: =SUM(AJ49:AJ52) -> 0 | BB49: =SUM(AV49:AV52) -> 0 | BC49: 37 | BD49: =Serie1!$C146 -> 37 | BE49: =Serie1!$C147 -> 91 | BF49: =Serie1!$C148 -> 145 | BG49: =Serie1!$C149 -> 199 | BH49: 37 | BI49: =Serie2!$C146 -> 37 | BJ49: =Serie2!$C147 -> 91 | BK49: =Serie2!$C148 -> 145 | BL49: =Serie2!$C149 -> 199 | BM49: 37 | BN49: =Serie3!$C146 -> 37 | BO49: =Serie3!$C147 -> 91 | BP49: =Serie3!$C148 -> 145 | BQ49: =Serie3!$C149 -> 199 | BR49: 37 | BS49: =Serie4!$C146 -> 37 | BT49: =Serie4!$C147 -> 91 | BU49: =Serie4!$C148 -> 145 | BV49: =Serie4!$C149 -> 199 | BW49: 37 | BX49: =F157 -> 0 | BY49: =R157 -> 0 | BZ49: =AD157 -> 0 | CA49: =AP157 -> 0
A50: =IF(COUNTIF(B$13:B50,B50)>1,"X","") -> X | B50: =IF(ISBLANK(F49)," ",INDEX(BE:BE,MATCH(F49,BC:BC,0))) ->  | C50: =IF(ISBLANK(F49)," ",INDEX(Starterfeld!$D:$D,MATCH($B50,Starterfeld!$A:$A,0))) ->  | F50: =F49 -> 0 | K50: =IF(ISBLANK(G50)," ",G50+(H50-I50)*50+IF(COUNT(G49:G52)=3,(I49+I51+I52)*40,(I49+I51+I52)*30)) ->  | L50: 0 | M50: =IF(COUNTIF(N$13:N50,N50)>1,"X","") -> X | N50: =IF(ISBLANK(R49)," ",INDEX(BJ:BJ,MATCH(R49,BH:BH,0))) ->  | O50: =IF(ISBLANK(R49)," ",INDEX(Starterfeld!$D:$D,MATCH(N50,Starterfeld!$A:$A,0))) ->  | R50: =R49 -> 0 | W50: =IF(ISBLANK(S50)," ",S50+(T50-U50)*50+IF(COUNT(S49:S52)=3,(U49+U51+U52)*40,(U49+U51+U52)*30)) ->  | X50: 0 | Y50: =IF(COUNTIF(Z$13:Z50,Z50)>1,"X","") -> X | Z50: =IF(ISBLANK(AD49)," ",INDEX(BO:BO,MATCH(AD49,BM:BM,0))) ->  | AA50: =IF(ISBLANK(AD49)," ",INDEX(Starterfeld!$D:$D,MATCH(Z50,Starterfeld!$A:$A,0))) ->  | AD50: =AD49 -> 0 | AI50: =IF(ISBLANK(AE50)," ",AE50+(AF50-AG50)*50+IF(COUNT(AE49:AE52)=3,(AG49+AG51+AG52)*40,(AG49+AG51+AG52)*30)) ->  | AJ50: 0 | AK50: =IF(COUNTIF(AL$13:AL50,AL50)>1,"X","") -> X | AL50: =IF(ISBLANK(AP49)," ",INDEX(BT:BT,MATCH(AP49,BR:BR,0))) ->  | AM50: =IF(ISBLANK(AP49)," ",INDEX(Starterfeld!$D:$D,MATCH(AL50,Starterfeld!$A:$A,0))) ->  | AP50: =AP49 -> 0 | AU50: =IF(ISBLANK(AQ50)," ",AQ50+(AR50-AS50)*50+IF(COUNT(AQ49:AQ52)=3,(AS49+AS51+AS52)*40,(AS49+AS51+AS52)*30)) ->  | AV50: 0 | BC50: 38 | BD50: =Serie1!$C150 -> 38 | BE50: =Serie1!$C151 -> 92 | BF50: =Serie1!$C152 -> 146 | BG50: =Serie1!$C153 -> 200 | BH50: 38 | BI50: =Serie2!$C150 -> 38 | BJ50: =Serie2!$C151 -> 92 | BK50: =Serie2!$C152 -> 146 | BL50: =Serie2!$C153 -> 200 | BM50: 38 | BN50: =Serie3!$C150 -> 38 | BO50: =Serie3!$C151 -> 92 | BP50: =Serie3!$C152 -> 146 | BQ50: =Serie3!$C153 -> 200 | BR50: 38 | BS50: =Serie4!$C150 -> 38 | BT50: =Serie4!$C151 -> 92 | BU50: =Serie4!$C152 -> 146 | BV50: =Serie4!$C153 -> 200 | BW50: 38 | BX50: =F161 -> 0 | BY50: =R161 -> 0 | BZ50: =AD161 -> 0 | CA50: =AP161 -> 0
A51: =IF(COUNTIF(B$13:B51,B51)>1,"X","") -> X | B51: =IF(ISBLANK(F49)," ",INDEX(BF:BF,MATCH(F49,BC:BC,0))) ->  | C51: =IF(ISBLANK(F49)," ",INDEX(Starterfeld!$D:$D,MATCH($B51,Starterfeld!$A:$A,0))) ->  | F51: =F49 -> 0 | K51: =IF(ISBLANK(G51)," ",G51+(H51-I51)*50+IF(COUNT(G49:G52)=3,(I49+I50+I52)*40,(I49+I50+I52)*30)) ->  | L51: 0 | M51: =IF(COUNTIF(N$13:N51,N51)>1,"X","") -> X | N51: =IF(ISBLANK(R49)," ",INDEX(BK:BK,MATCH(R49,BH:BH,0))) ->  | O51: =IF(ISBLANK(R49)," ",INDEX(Starterfeld!$D:$D,MATCH(N51,Starterfeld!$A:$A,0))) ->  | R51: =R49 -> 0 | W51: =IF(ISBLANK(S51)," ",S51+(T51-U51)*50+IF(COUNT(S49:S52)=3,(U49+U50+U52)*40,(U49+U50+U52)*30)) ->  | X51: 0 | Y51: =IF(COUNTIF(Z$13:Z51,Z51)>1,"X","") -> X | Z51: =IF(ISBLANK(AD49)," ",INDEX(BP:BP,MATCH(AD49,BM:BM,0))) ->  | AA51: =IF(ISBLANK(AD49)," ",INDEX(Starterfeld!$D:$D,MATCH(Z51,Starterfeld!$A:$A,0))) ->  | AD51: =AD49 -> 0 | AI51: =IF(ISBLANK(AE51)," ",AE51+(AF51-AG51)*50+IF(COUNT(AE49:AE52)=3,(AG49+AG50+AG52)*40,(AG49+AG50+AG52)*30)) ->  | AJ51: 0 | AK51: =IF(COUNTIF(AL$13:AL51,AL51)>1,"X","") -> X | AL51: =IF(ISBLANK(AP49)," ",INDEX(BU:BU,MATCH(AP49,BR:BR,0))) ->  | AM51: =IF(ISBLANK(AP49)," ",INDEX(Starterfeld!$D:$D,MATCH(AL51,Starterfeld!$A:$A,0))) ->  | AP51: =AP49 -> 0 | AU51: =IF(ISBLANK(AQ51)," ",AQ51+(AR51-AS51)*50+IF(COUNT(AQ49:AQ52)=3,(AS49+AS50+AS52)*40,(AS49+AS50+AS52)*30)) ->  | AV51: 0 | BC51: 39 | BD51: =Serie1!$C154 -> 39 | BE51: =Serie1!$C155 -> 93 | BF51: =Serie1!$C156 -> 147 | BG51: =Serie1!$C157 -> 201 | BH51: 39 | BI51: =Serie2!$C154 -> 39 | BJ51: =Serie2!$C155 -> 93 | BK51: =Serie2!$C156 -> 147 | BL51: =Serie2!$C157 -> 201 | BM51: 39 | BN51: =Serie3!$C154 -> 39 | BO51: =Serie3!$C155 -> 93 | BP51: =Serie3!$C156 -> 147 | BQ51: =Serie3!$C157 -> 201 | BR51: 39 | BS51: =Serie4!$C154 -> 39 | BT51: =Serie4!$C155 -> 93 | BU51: =Serie4!$C156 -> 147 | BV51: =Serie4!$C157 -> 201 | BW51: 39 | BX51: =F165 -> 0 | BY51: =R165 -> 0 | BZ51: =AD165 -> 0 | CA51: =AP165 -> 0
A52: =IF(COUNTIF(B$13:B52,B52)>1,"X","") -> X | B52: =IF(ISBLANK(F49)," ",INDEX(BG:BG,MATCH(F49,BC:BC,0))) ->  | C52: =IF(ISBLANK(F49)," ",INDEX(Starterfeld!$D:$D,MATCH($B52,Starterfeld!$A:$A,0))) ->  | F52: =F49 -> 0 | K52: =IF(ISBLANK(G52)," ",G52+(H52-I52)*50+IF(COUNT(G49:G52)=3,(I49+I50+I51)*40,(I49+I50+I51)*30)) ->  | L52: 0 | M52: =IF(COUNTIF(N$13:N52,N52)>1,"X","") -> X | N52: =IF(ISBLANK(R49)," ",INDEX(BL:BL,MATCH(R49,BH:BH,0))) ->  | O52: =IF(ISBLANK(R49)," ",INDEX(Starterfeld!$D:$D,MATCH(N52,Starterfeld!$A:$A,0))) ->  | R52: =R49 -> 0 | W52: =IF(ISBLANK(S52)," ",S52+(T52-U52)*50+IF(COUNT(S49:S52)=3,(U49+U50+U51)*40,(U49+U50+U51)*30)) ->  | X52: 0 | Y52: =IF(COUNTIF(Z$13:Z52,Z52)>1,"X","") -> X | Z52: =IF(ISBLANK(AD49)," ",INDEX(BQ:BQ,MATCH(AD49,BM:BM,0))) ->  | AA52: =IF(ISBLANK(AD49)," ",INDEX(Starterfeld!$D:$D,MATCH(Z52,Starterfeld!$A:$A,0))) ->  | AD52: =AD49 -> 0 | AI52: =IF(ISBLANK(AE52)," ",AE52+(AF52-AG52)*50+IF(COUNT(AE49:AE52)=3,(AG49+AG50+AG51)*40,(AG49+AG50+AG51)*30)) ->  | AJ52: 0 | AK52: =IF(COUNTIF(AL$13:AL52,AL52)>1,"X","") -> X | AL52: =IF(ISBLANK(AP49)," ",INDEX(BV:BV,MATCH(AP49,BR:BR,0))) ->  | AM52: =IF(ISBLANK(AP49)," ",INDEX(Starterfeld!$D:$D,MATCH(AL52,Starterfeld!$A:$A,0))) ->  | AP52: =AP49 -> 0 | AU52: =IF(ISBLANK(AQ52)," ",AQ52+(AR52-AS52)*50+IF(COUNT(AQ49:AQ52)=3,(AS49+AS50+AS51)*40,(AS49+AS50+AS51)*30)) ->  | AV52: 0 | BC52: 40 | BD52: =Serie1!$C158 -> 40 | BE52: =Serie1!$C159 -> 94 | BF52: =Serie1!$C160 -> 148 | BG52: =Serie1!$C161 -> 202 | BH52: 40 | BI52: =Serie2!$C158 -> 40 | BJ52: =Serie2!$C159 -> 94 | BK52: =Serie2!$C160 -> 148 | BL52: =Serie2!$C161 -> 202 | BM52: 40 | BN52: =Serie3!$C158 -> 40 | BO52: =Serie3!$C159 -> 94 | BP52: =Serie3!$C160 -> 148 | BQ52: =Serie3!$C161 -> 202 | BR52: 40 | BS52: =Serie4!$C158 -> 40 | BT52: =Serie4!$C159 -> 94 | BU52: =Serie4!$C160 -> 148 | BV52: =Serie4!$C161 -> 202 | BW52: 40 | BX52: =F169 -> 0 | BY52: =R169 -> 0 | BZ52: =AD169 -> 0 | CA52: =AP169 -> 0
A53: =IF(COUNTIF(B$13:B53,B53)>1,"X","") -> X | B53: =IF(ISBLANK(F53)," ",INDEX(BD:BD,MATCH(F53,BC:BC,0))) ->  | C53: =IF(ISBLANK(F53)," ",INDEX(Starterfeld!$D:$D,MATCH($B53,Starterfeld!$A:$A,0))) ->  | K53: =IF(ISBLANK(G53)," ",G53+(H53-I53)*50+IF(COUNT(G53:G56)=3,(I54+I55+I56)*40,(I54+I55+I56)*30)) ->  | L53: 0 | M53: =IF(COUNTIF(N$13:N53,N53)>1,"X","") -> X | N53: =IF(ISBLANK(R53)," ",INDEX(BI:BI,MATCH(R53,BH:BH,0))) ->  | O53: =IF(ISBLANK(R53)," ",INDEX(Starterfeld!$D:$D,MATCH(N53,Starterfeld!$A:$A,0))) ->  | W53: =IF(ISBLANK(S53)," ",S53+(T53-U53)*50+IF(COUNT(S53:S56)=3,(U54+U55+U56)*40,(U54+U55+U56)*30)) ->  | X53: 0 | Y53: =IF(COUNTIF(Z$13:Z53,Z53)>1,"X","") -> X | Z53: =IF(ISBLANK(AD53)," ",INDEX(BN:BN,MATCH(AD53,BM:BM,0))) ->  | AA53: =IF(ISBLANK(AD53)," ",INDEX(Starterfeld!$D:$D,MATCH(Z53,Starterfeld!$A:$A,0))) ->  | AI53: =IF(ISBLANK(AE53)," ",AE53+(AF53-AG53)*50+IF(COUNT(AE53:AE56)=3,(AG54+AG55+AG56)*40,(AG54+AG55+AG56)*30)) ->  | AJ53: 0 | AK53: =IF(COUNTIF(AL$13:AL53,AL53)>1,"X","") -> X | AL53: =IF(ISBLANK(AP53)," ",INDEX(BS:BS,MATCH(AP53,BR:BR,0))) ->  | AM53: =IF(ISBLANK(AP53)," ",INDEX(Starterfeld!$D:$D,MATCH(AL53,Starterfeld!$A:$A,0))) ->  | AU53: =IF(ISBLANK(AQ53)," ",AQ53+(AR53-AS53)*50+IF(COUNT(AQ53:AQ56)=3,(AS54+AS55+AS56)*40,(AS54+AS55+AS56)*30)) ->  | AV53: 0 | AY53: =SUM(L53:L56) -> 0 | AZ53: =SUM(X53:X56) -> 0 | BA53: =SUM(AJ53:AJ56) -> 0 | BB53: =SUM(AV53:AV56) -> 0 | BC53: 41 | BD53: =Serie1!$C162 -> 41 | BE53: =Serie1!$C163 -> 95 | BF53: =Serie1!$C164 -> 149 | BG53: =Serie1!$C165 -> 203 | BH53: 41 | BI53: =Serie2!$C162 -> 41 | BJ53: =Serie2!$C163 -> 95 | BK53: =Serie2!$C164 -> 149 | BL53: =Serie2!$C165 -> 203 | BM53: 41 | BN53: =Serie3!$C162 -> 41 | BO53: =Serie3!$C163 -> 95 | BP53: =Serie3!$C164 -> 149 | BQ53: =Serie3!$C165 -> 203 | BR53: 41 | BS53: =Serie4!$C162 -> 41 | BT53: =Serie4!$C163 -> 95 | BU53: =Serie4!$C164 -> 149 | BV53: =Serie4!$C165 -> 203 | BW53: 41 | BX53: =F173 -> 0 | BY53: =R173 -> 0 | BZ53: =AD173 -> 0 | CA53: =AP173 -> 0
A54: =IF(COUNTIF(B$13:B54,B54)>1,"X","") -> X | B54: =IF(ISBLANK(F53)," ",INDEX(BE:BE,MATCH(F53,BC:BC,0))) ->  | C54: =IF(ISBLANK(F53)," ",INDEX(Starterfeld!$D:$D,MATCH($B54,Starterfeld!$A:$A,0))) ->  | F54: =F53 -> 0 | K54: =IF(ISBLANK(G54)," ",G54+(H54-I54)*50+IF(COUNT(G53:G56)=3,(I53+I55+I56)*40,(I53+I55+I56)*30)) ->  | L54: 0 | M54: =IF(COUNTIF(N$13:N54,N54)>1,"X","") -> X | N54: =IF(ISBLANK(R53)," ",INDEX(BJ:BJ,MATCH(R53,BH:BH,0))) ->  | O54: =IF(ISBLANK(R53)," ",INDEX(Starterfeld!$D:$D,MATCH(N54,Starterfeld!$A:$A,0))) ->  | R54: =R53 -> 0 | W54: =IF(ISBLANK(S54)," ",S54+(T54-U54)*50+IF(COUNT(S53:S56)=3,(U53+U55+U56)*40,(U53+U55+U56)*30)) ->  | X54: 0 | Y54: =IF(COUNTIF(Z$13:Z54,Z54)>1,"X","") -> X | Z54: =IF(ISBLANK(AD53)," ",INDEX(BO:BO,MATCH(AD53,BM:BM,0))) ->  | AA54: =IF(ISBLANK(AD53)," ",INDEX(Starterfeld!$D:$D,MATCH(Z54,Starterfeld!$A:$A,0))) ->  | AD54: =AD53 -> 0 | AI54: =IF(ISBLANK(AE54)," ",AE54+(AF54-AG54)*50+IF(COUNT(AE53:AE56)=3,(AG53+AG55+AG56)*40,(AG53+AG55+AG56)*30)) ->  | AJ54: 0 | AK54: =IF(COUNTIF(AL$13:AL54,AL54)>1,"X","") -> X | AL54: =IF(ISBLANK(AP53)," ",INDEX(BT:BT,MATCH(AP53,BR:BR,0))) ->  | AM54: =IF(ISBLANK(AP53)," ",INDEX(Starterfeld!$D:$D,MATCH(AL54,Starterfeld!$A:$A,0))) ->  | AP54: =AP53 -> 0 | AU54: =IF(ISBLANK(AQ54)," ",AQ54+(AR54-AS54)*50+IF(COUNT(AQ53:AQ56)=3,(AS53+AS55+AS56)*40,(AS53+AS55+AS56)*30)) ->  | AV54: 0 | BC54: 42 | BD54: =Serie1!$C166 -> 42 | BE54: =Serie1!$C167 -> 96 | BF54: =Serie1!$C168 -> 150 | BG54: =Serie1!$C169 -> 204 | BH54: 42 | BI54: =Serie2!$C166 -> 42 | BJ54: =Serie2!$C167 -> 96 | BK54: =Serie2!$C168 -> 150 | BL54: =Serie2!$C169 -> 204 | BM54: 42 | BN54: =Serie3!$C166 -> 42 | BO54: =Serie3!$C167 -> 96 | BP54: =Serie3!$C168 -> 150 | BQ54: =Serie3!$C169 -> 204 | BR54: 42 | BS54: =Serie4!$C166 -> 42 | BT54: =Serie4!$C167 -> 96 | BU54: =Serie4!$C168 -> 150 | BV54: =Serie4!$C169 -> 204 | BW54: 42 | BX54: =F177 -> 0 | BY54: =R177 -> 0 | BZ54: =AD177 -> 0 | CA54: =AP177 -> 0
A55: =IF(COUNTIF(B$13:B55,B55)>1,"X","") -> X | B55: =IF(ISBLANK(F53)," ",INDEX(BF:BF,MATCH(F53,BC:BC,0))) ->  | C55: =IF(ISBLANK(F53)," ",INDEX(Starterfeld!$D:$D,MATCH($B55,Starterfeld!$A:$A,0))) ->  | F55: =F53 -> 0 | K55: =IF(ISBLANK(G55)," ",G55+(H55-I55)*50+IF(COUNT(G53:G56)=3,(I53+I54+I56)*40,(I53+I54+I56)*30)) ->  | L55: 0 | M55: =IF(COUNTIF(N$13:N55,N55)>1,"X","") -> X | N55: =IF(ISBLANK(R53)," ",INDEX(BK:BK,MATCH(R53,BH:BH,0))) ->  | O55: =IF(ISBLANK(R53)," ",INDEX(Starterfeld!$D:$D,MATCH(N55,Starterfeld!$A:$A,0))) ->  | R55: =R53 -> 0 | W55: =IF(ISBLANK(S55)," ",S55+(T55-U55)*50+IF(COUNT(S53:S56)=3,(U53+U54+U56)*40,(U53+U54+U56)*30)) ->  | X55: 0 | Y55: =IF(COUNTIF(Z$13:Z55,Z55)>1,"X","") -> X | Z55: =IF(ISBLANK(AD53)," ",INDEX(BP:BP,MATCH(AD53,BM:BM,0))) ->  | AA55: =IF(ISBLANK(AD53)," ",INDEX(Starterfeld!$D:$D,MATCH(Z55,Starterfeld!$A:$A,0))) ->  | AD55: =AD53 -> 0 | AI55: =IF(ISBLANK(AE55)," ",AE55+(AF55-AG55)*50+IF(COUNT(AE53:AE56)=3,(AG53+AG54+AG56)*40,(AG53+AG54+AG56)*30)) ->  | AJ55: 0 | AK55: =IF(COUNTIF(AL$13:AL55,AL55)>1,"X","") -> X | AL55: =IF(ISBLANK(AP53)," ",INDEX(BU:BU,MATCH(AP53,BR:BR,0))) ->  | AM55: =IF(ISBLANK(AP53)," ",INDEX(Starterfeld!$D:$D,MATCH(AL55,Starterfeld!$A:$A,0))) ->  | AP55: =AP53 -> 0 | AU55: =IF(ISBLANK(AQ55)," ",AQ55+(AR55-AS55)*50+IF(COUNT(AQ53:AQ56)=3,(AS53+AS54+AS56)*40,(AS53+AS54+AS56)*30)) ->  | AV55: 0 | BC55: 43 | BD55: =Serie1!$C170 -> 43 | BE55: =Serie1!$C171 -> 97 | BF55: =Serie1!$C172 -> 151 | BG55: =Serie1!$C173 -> 205 | BH55: 43 | BI55: =Serie2!$C170 -> 43 | BJ55: =Serie2!$C171 -> 97 | BK55: =Serie2!$C172 -> 151 | BL55: =Serie2!$C173 -> 205 | BM55: 43 | BN55: =Serie3!$C170 -> 43 | BO55: =Serie3!$C171 -> 97 | BP55: =Serie3!$C172 -> 151 | BQ55: =Serie3!$C173 -> 205 | BR55: 43 | BS55: =Serie4!$C170 -> 43 | BT55: =Serie4!$C171 -> 97 | BU55: =Serie4!$C172 -> 151 | BV55: =Serie4!$C173 -> 205 | BW55: 43 | BX55: =F181 -> 0 | BY55: =R181 -> 0 | BZ55: =AD181 -> 0 | CA55: =AP181 -> 0
A56: =IF(COUNTIF(B$13:B56,B56)>1,"X","") -> X | B56: =IF(ISBLANK(F53)," ",INDEX(BG:BG,MATCH(F53,BC:BC,0))) ->  | C56: =IF(ISBLANK(F53)," ",INDEX(Starterfeld!$D:$D,MATCH($B56,Starterfeld!$A:$A,0))) ->  | F56: =F53 -> 0 | K56: =IF(ISBLANK(G56)," ",G56+(H56-I56)*50+IF(COUNT(G53:G56)=3,(I53+I54+I55)*40,(I53+I54+I55)*30)) ->  | L56: 0 | M56: =IF(COUNTIF(N$13:N56,N56)>1,"X","") -> X | N56: =IF(ISBLANK(R53)," ",INDEX(BL:BL,MATCH(R53,BH:BH,0))) ->  | O56: =IF(ISBLANK(R53)," ",INDEX(Starterfeld!$D:$D,MATCH(N56,Starterfeld!$A:$A,0))) ->  | R56: =R53 -> 0 | W56: =IF(ISBLANK(S56)," ",S56+(T56-U56)*50+IF(COUNT(S53:S56)=3,(U53+U54+U55)*40,(U53+U54+U55)*30)) ->  | X56: 0 | Y56: =IF(COUNTIF(Z$13:Z56,Z56)>1,"X","") -> X | Z56: =IF(ISBLANK(AD53)," ",INDEX(BQ:BQ,MATCH(AD53,BM:BM,0))) ->  | AA56: =IF(ISBLANK(AD53)," ",INDEX(Starterfeld!$D:$D,MATCH(Z56,Starterfeld!$A:$A,0))) ->  | AD56: =AD53 -> 0 | AI56: =IF(ISBLANK(AE56)," ",AE56+(AF56-AG56)*50+IF(COUNT(AE53:AE56)=3,(AG53+AG54+AG55)*40,(AG53+AG54+AG55)*30)) ->  | AJ56: 0 | AK56: =IF(COUNTIF(AL$13:AL56,AL56)>1,"X","") -> X | AL56: =IF(ISBLANK(AP53)," ",INDEX(BV:BV,MATCH(AP53,BR:BR,0))) ->  | AM56: =IF(ISBLANK(AP53)," ",INDEX(Starterfeld!$D:$D,MATCH(AL56,Starterfeld!$A:$A,0))) ->  | AP56: =AP53 -> 0 | AU56: =IF(ISBLANK(AQ56)," ",AQ56+(AR56-AS56)*50+IF(COUNT(AQ53:AQ56)=3,(AS53+AS54+AS55)*40,(AS53+AS54+AS55)*30)) ->  | AV56: 0 | BC56: 44 | BD56: =Serie1!$C174 -> 44 | BE56: =Serie1!$C175 -> 98 | BF56: =Serie1!$C176 -> 152 | BG56: =Serie1!$C177 -> 206 | BH56: 44 | BI56: =Serie2!$C174 -> 44 | BJ56: =Serie2!$C175 -> 98 | BK56: =Serie2!$C176 -> 152 | BL56: =Serie2!$C177 -> 206 | BM56: 44 | BN56: =Serie3!$C174 -> 44 | BO56: =Serie3!$C175 -> 98 | BP56: =Serie3!$C176 -> 152 | BQ56: =Serie3!$C177 -> 206 | BR56: 44 | BS56: =Serie4!$C174 -> 44 | BT56: =Serie4!$C175 -> 98 | BU56: =Serie4!$C176 -> 152 | BV56: =Serie4!$C177 -> 206 | BW56: 44 | BX56: =F185 -> 0 | BY56: =R185 -> 0 | BZ56: =AD185 -> 0 | CA56: =AP185 -> 0
A57: =IF(COUNTIF(B$13:B57,B57)>1,"X","") -> X | B57: =IF(ISBLANK(F57)," ",INDEX(BD:BD,MATCH(F57,BC:BC,0))) ->  | C57: =IF(ISBLANK(F57)," ",INDEX(Starterfeld!$D:$D,MATCH($B57,Starterfeld!$A:$A,0))) ->  | K57: =IF(ISBLANK(G57)," ",G57+(H57-I57)*50+IF(COUNT(G57:G60)=3,(I58+I59+I60)*40,(I58+I59+I60)*30)) ->  | L57: 0 | M57: =IF(COUNTIF(N$13:N57,N57)>1,"X","") -> X | N57: =IF(ISBLANK(R57)," ",INDEX(BI:BI,MATCH(R57,BH:BH,0))) ->  | O57: =IF(ISBLANK(R57)," ",INDEX(Starterfeld!$D:$D,MATCH(N57,Starterfeld!$A:$A,0))) ->  | W57: =IF(ISBLANK(S57)," ",S57+(T57-U57)*50+IF(COUNT(S57:S60)=3,(U58+U59+U60)*40,(U58+U59+U60)*30)) ->  | X57: 0 | Y57: =IF(COUNTIF(Z$13:Z57,Z57)>1,"X","") -> X | Z57: =IF(ISBLANK(AD57)," ",INDEX(BN:BN,MATCH(AD57,BM:BM,0))) ->  | AA57: =IF(ISBLANK(AD57)," ",INDEX(Starterfeld!$D:$D,MATCH(Z57,Starterfeld!$A:$A,0))) ->  | AI57: =IF(ISBLANK(AE57)," ",AE57+(AF57-AG57)*50+IF(COUNT(AE57:AE60)=3,(AG58+AG59+AG60)*40,(AG58+AG59+AG60)*30)) ->  | AJ57: 0 | AK57: =IF(COUNTIF(AL$13:AL57,AL57)>1,"X","") -> X | AL57: =IF(ISBLANK(AP57)," ",INDEX(BS:BS,MATCH(AP57,BR:BR,0))) ->  | AM57: =IF(ISBLANK(AP57)," ",INDEX(Starterfeld!$D:$D,MATCH(AL57,Starterfeld!$A:$A,0))) ->  | AU57: =IF(ISBLANK(AQ57)," ",AQ57+(AR57-AS57)*50+IF(COUNT(AQ57:AQ60)=3,(AS58+AS59+AS60)*40,(AS58+AS59+AS60)*30)) ->  | AV57: 0 | AY57: =SUM(L57:L60) -> 0 | AZ57: =SUM(X57:X60) -> 0 | BA57: =SUM(AJ57:AJ60) -> 0 | BB57: =SUM(AV57:AV60) -> 0 | BC57: 45 | BD57: =Serie1!$C178 -> 45 | BE57: =Serie1!$C179 -> 99 | BF57: =Serie1!$C180 -> 153 | BG57: =Serie1!$C181 -> 207 | BH57: 45 | BI57: =Serie2!$C178 -> 45 | BJ57: =Serie2!$C179 -> 99 | BK57: =Serie2!$C180 -> 153 | BL57: =Serie2!$C181 -> 207 | BM57: 45 | BN57: =Serie3!$C178 -> 45 | BO57: =Serie3!$C179 -> 99 | BP57: =Serie3!$C180 -> 153 | BQ57: =Serie3!$C181 -> 207 | BR57: 45 | BS57: =Serie4!$C178 -> 45 | BT57: =Serie4!$C179 -> 99 | BU57: =Serie4!$C180 -> 153 | BV57: =Serie4!$C181 -> 207 | BW57: 45 | BX57: =F189 -> 0 | BY57: =R189 -> 0 | BZ57: =AD189 -> 0 | CA57: =AP189 -> 0
A58: =IF(COUNTIF(B$13:B58,B58)>1,"X","") -> X | B58: =IF(ISBLANK(F57)," ",INDEX(BE:BE,MATCH(F57,BC:BC,0))) ->  | C58: =IF(ISBLANK(F57)," ",INDEX(Starterfeld!$D:$D,MATCH($B58,Starterfeld!$A:$A,0))) ->  | F58: =F57 -> 0 | K58: =IF(ISBLANK(G58)," ",G58+(H58-I58)*50+IF(COUNT(G57:G60)=3,(I57+I59+I60)*40,(I57+I59+I60)*30)) ->  | L58: 0 | M58: =IF(COUNTIF(N$13:N58,N58)>1,"X","") -> X | N58: =IF(ISBLANK(R57)," ",INDEX(BJ:BJ,MATCH(R57,BH:BH,0))) ->  | O58: =IF(ISBLANK(R57)," ",INDEX(Starterfeld!$D:$D,MATCH(N58,Starterfeld!$A:$A,0))) ->  | R58: =R57 -> 0 | W58: =IF(ISBLANK(S58)," ",S58+(T58-U58)*50+IF(COUNT(S57:S60)=3,(U57+U59+U60)*40,(U57+U59+U60)*30)) ->  | X58: 0 | Y58: =IF(COUNTIF(Z$13:Z58,Z58)>1,"X","") -> X | Z58: =IF(ISBLANK(AD57)," ",INDEX(BO:BO,MATCH(AD57,BM:BM,0))) ->  | AA58: =IF(ISBLANK(AD57)," ",INDEX(Starterfeld!$D:$D,MATCH(Z58,Starterfeld!$A:$A,0))) ->  | AD58: =AD57 -> 0 | AI58: =IF(ISBLANK(AE58)," ",AE58+(AF58-AG58)*50+IF(COUNT(AE57:AE60)=3,(AG57+AG59+AG60)*40,(AG57+AG59+AG60)*30)) ->  | AJ58: 0 | AK58: =IF(COUNTIF(AL$13:AL58,AL58)>1,"X","") -> X | AL58: =IF(ISBLANK(AP57)," ",INDEX(BT:BT,MATCH(AP57,BR:BR,0))) ->  | AM58: =IF(ISBLANK(AP57)," ",INDEX(Starterfeld!$D:$D,MATCH(AL58,Starterfeld!$A:$A,0))) ->  | AP58: =AP57 -> 0 | AU58: =IF(ISBLANK(AQ58)," ",AQ58+(AR58-AS58)*50+IF(COUNT(AQ57:AQ60)=3,(AS57+AS59+AS60)*40,(AS57+AS59+AS60)*30)) ->  | AV58: 0 | BC58: 46 | BD58: =Serie1!$C182 -> 46 | BE58: =Serie1!$C183 -> 100 | BF58: =Serie1!$C184 -> 154 | BG58: =Serie1!$C185 -> 208 | BH58: 46 | BI58: =Serie2!$C182 -> 46 | BJ58: =Serie2!$C183 -> 100 | BK58: =Serie2!$C184 -> 154 | BL58: =Serie2!$C185 -> 208 | BM58: 46 | BN58: =Serie3!$C182 -> 46 | BO58: =Serie3!$C183 -> 100 | BP58: =Serie3!$C184 -> 154 | BQ58: =Serie3!$C185 -> 208 | BR58: 46 | BS58: =Serie4!$C182 -> 46 | BT58: =Serie4!$C183 -> 100 | BU58: =Serie4!$C184 -> 154 | BV58: =Serie4!$C185 -> 208 | BW58: 46 | BX58: =F193 -> 0 | BY58: =R193 -> 0 | BZ58: =AD193 -> 0 | CA58: =AP193 -> 0
A59: =IF(COUNTIF(B$13:B59,B59)>1,"X","") -> X | B59: =IF(ISBLANK(F57)," ",INDEX(BF:BF,MATCH(F57,BC:BC,0))) ->  | C59: =IF(ISBLANK(F57)," ",INDEX(Starterfeld!$D:$D,MATCH($B59,Starterfeld!$A:$A,0))) ->  | F59: =F57 -> 0 | K59: =IF(ISBLANK(G59)," ",G59+(H59-I59)*50+IF(COUNT(G57:G60)=3,(I57+I58+I60)*40,(I57+I58+I60)*30)) ->  | L59: 0 | M59: =IF(COUNTIF(N$13:N59,N59)>1,"X","") -> X | N59: =IF(ISBLANK(R57)," ",INDEX(BK:BK,MATCH(R57,BH:BH,0))) ->  | O59: =IF(ISBLANK(R57)," ",INDEX(Starterfeld!$D:$D,MATCH(N59,Starterfeld!$A:$A,0))) ->  | R59: =R57 -> 0 | W59: =IF(ISBLANK(S59)," ",S59+(T59-U59)*50+IF(COUNT(S57:S60)=3,(U57+U58+U60)*40,(U57+U58+U60)*30)) ->  | X59: 0 | Y59: =IF(COUNTIF(Z$13:Z59,Z59)>1,"X","") -> X | Z59: =IF(ISBLANK(AD57)," ",INDEX(BP:BP,MATCH(AD57,BM:BM,0))) ->  | AA59: =IF(ISBLANK(AD57)," ",INDEX(Starterfeld!$D:$D,MATCH(Z59,Starterfeld!$A:$A,0))) ->  | AD59: =AD57 -> 0 | AI59: =IF(ISBLANK(AE59)," ",AE59+(AF59-AG59)*50+IF(COUNT(AE57:AE60)=3,(AG57+AG58+AG60)*40,(AG57+AG58+AG60)*30)) ->  | AJ59: 0 | AK59: =IF(COUNTIF(AL$13:AL59,AL59)>1,"X","") -> X | AL59: =IF(ISBLANK(AP57)," ",INDEX(BU:BU,MATCH(AP57,BR:BR,0))) ->  | AM59: =IF(ISBLANK(AP57)," ",INDEX(Starterfeld!$D:$D,MATCH(AL59,Starterfeld!$A:$A,0))) ->  | AP59: =AP57 -> 0 | AU59: =IF(ISBLANK(AQ59)," ",AQ59+(AR59-AS59)*50+IF(COUNT(AQ57:AQ60)=3,(AS57+AS58+AS60)*40,(AS57+AS58+AS60)*30)) ->  | AV59: 0 | BC59: 47 | BD59: =Serie1!$C186 -> 47 | BE59: =Serie1!$C187 -> 101 | BF59: =Serie1!$C188 -> 155 | BG59: =Serie1!$C189 -> 209 | BH59: 47 | BI59: =Serie2!$C186 -> 47 | BJ59: =Serie2!$C187 -> 101 | BK59: =Serie2!$C188 -> 155 | BL59: =Serie2!$C189 -> 209 | BM59: 47 | BN59: =Serie3!$C186 -> 47 | BO59: =Serie3!$C187 -> 101 | BP59: =Serie3!$C188 -> 155 | BQ59: =Serie3!$C189 -> 209 | BR59: 47 | BS59: =Serie4!$C186 -> 47 | BT59: =Serie4!$C187 -> 101 | BU59: =Serie4!$C188 -> 155 | BV59: =Serie4!$C189 -> 209 | BW59: 47 | BX59: =F197 -> 0 | BY59: =R197 -> 0 | BZ59: =AD197 -> 0 | CA59: =AP197 -> 0
A60: =IF(COUNTIF(B$13:B60,B60)>1,"X","") -> X | B60: =IF(ISBLANK(F57)," ",INDEX(BG:BG,MATCH(F57,BC:BC,0))) ->  | C60: =IF(ISBLANK(F57)," ",INDEX(Starterfeld!$D:$D,MATCH($B60,Starterfeld!$A:$A,0))) ->  | F60: =F57 -> 0 | K60: =IF(ISBLANK(G60)," ",G60+(H60-I60)*50+IF(COUNT(G57:G60)=3,(I57+I58+I59)*40,(I57+I58+I59)*30)) ->  | L60: 0 | M60: =IF(COUNTIF(N$13:N60,N60)>1,"X","") -> X | N60: =IF(ISBLANK(R57)," ",INDEX(BL:BL,MATCH(R57,BH:BH,0))) ->  | O60: =IF(ISBLANK(R57)," ",INDEX(Starterfeld!$D:$D,MATCH(N60,Starterfeld!$A:$A,0))) ->  | R60: =R57 -> 0 | W60: =IF(ISBLANK(S60)," ",S60+(T60-U60)*50+IF(COUNT(S57:S60)=3,(U57+U58+U59)*40,(U57+U58+U59)*30)) ->  | X60: 0 | Y60: =IF(COUNTIF(Z$13:Z60,Z60)>1,"X","") -> X | Z60: =IF(ISBLANK(AD57)," ",INDEX(BQ:BQ,MATCH(AD57,BM:BM,0))) ->  | AA60: =IF(ISBLANK(AD57)," ",INDEX(Starterfeld!$D:$D,MATCH(Z60,Starterfeld!$A:$A,0))) ->  | AD60: =AD57 -> 0 | AI60: =IF(ISBLANK(AE60)," ",AE60+(AF60-AG60)*50+IF(COUNT(AE57:AE60)=3,(AG57+AG58+AG59)*40,(AG57+AG58+AG59)*30)) ->  | AJ60: 0 | AK60: =IF(COUNTIF(AL$13:AL60,AL60)>1,"X","") -> X | AL60: =IF(ISBLANK(AP57)," ",INDEX(BV:BV,MATCH(AP57,BR:BR,0))) ->  | AM60: =IF(ISBLANK(AP57)," ",INDEX(Starterfeld!$D:$D,MATCH(AL60,Starterfeld!$A:$A,0))) ->  | AP60: =AP57 -> 0 | AU60: =IF(ISBLANK(AQ60)," ",AQ60+(AR60-AS60)*50+IF(COUNT(AQ57:AQ60)=3,(AS57+AS58+AS59)*40,(AS57+AS58+AS59)*30)) ->  | AV60: 0 | BC60: 48 | BD60: =Serie1!$C190 -> 48 | BE60: =Serie1!$C191 -> 102 | BF60: =Serie1!$C192 -> 156 | BG60: =Serie1!$C193 -> 210 | BH60: 48 | BI60: =Serie2!$C190 -> 48 | BJ60: =Serie2!$C191 -> 102 | BK60: =Serie2!$C192 -> 156 | BL60: =Serie2!$C193 -> 210 | BM60: 48 | BN60: =Serie3!$C190 -> 48 | BO60: =Serie3!$C191 -> 102 | BP60: =Serie3!$C192 -> 156 | BQ60: =Serie3!$C193 -> 210 | BR60: 48 | BS60: =Serie4!$C190 -> 48 | BT60: =Serie4!$C191 -> 102 | BU60: =Serie4!$C192 -> 156 | BV60: =Serie4!$C193 -> 210 | BW60: 48 | BX60: =F201 -> 0 | BY60: =R201 -> 0 | BZ60: =AD201 -> 0 | CA60: =AP201 -> 0
A61: =IF(COUNTIF(B$13:B61,B61)>1,"X","") -> X | B61: =IF(ISBLANK(F61)," ",INDEX(BD:BD,MATCH(F61,BC:BC,0))) ->  | C61: =IF(ISBLANK(F61)," ",INDEX(Starterfeld!$D:$D,MATCH($B61,Starterfeld!$A:$A,0))) ->  | K61: =IF(ISBLANK(G61)," ",G61+(H61-I61)*50+IF(COUNT(G61:G64)=3,(I62+I63+I64)*40,(I62+I63+I64)*30)) ->  | L61: 0 | M61: =IF(COUNTIF(N$13:N61,N61)>1,"X","") -> X | N61: =IF(ISBLANK(R61)," ",INDEX(BI:BI,MATCH(R61,BH:BH,0))) ->  | O61: =IF(ISBLANK(R61)," ",INDEX(Starterfeld!$D:$D,MATCH(N61,Starterfeld!$A:$A,0))) ->  | W61: =IF(ISBLANK(S61)," ",S61+(T61-U61)*50+IF(COUNT(S61:S64)=3,(U62+U63+U64)*40,(U62+U63+U64)*30)) ->  | X61: 0 | Y61: =IF(COUNTIF(Z$13:Z61,Z61)>1,"X","") -> X | Z61: =IF(ISBLANK(AD61)," ",INDEX(BN:BN,MATCH(AD61,BM:BM,0))) ->  | AA61: =IF(ISBLANK(AD61)," ",INDEX(Starterfeld!$D:$D,MATCH(Z61,Starterfeld!$A:$A,0))) ->  | AI61: =IF(ISBLANK(AE61)," ",AE61+(AF61-AG61)*50+IF(COUNT(AE61:AE64)=3,(AG62+AG63+AG64)*40,(AG62+AG63+AG64)*30)) ->  | AJ61: 0 | AK61: =IF(COUNTIF(AL$13:AL61,AL61)>1,"X","") -> X | AL61: =IF(ISBLANK(AP61)," ",INDEX(BS:BS,MATCH(AP61,BR:BR,0))) ->  | AM61: =IF(ISBLANK(AP61)," ",INDEX(Starterfeld!$D:$D,MATCH(AL61,Starterfeld!$A:$A,0))) ->  | AU61: =IF(ISBLANK(AQ61)," ",AQ61+(AR61-AS61)*50+IF(COUNT(AQ61:AQ64)=3,(AS62+AS63+AS64)*40,(AS62+AS63+AS64)*30)) ->  | AV61: 0 | AY61: =SUM(L61:L64) -> 0 | AZ61: =SUM(X61:X64) -> 0 | BA61: =SUM(AJ61:AJ64) -> 0 | BB61: =SUM(AV61:AV64) -> 0 | BC61: 49 | BD61: =Serie1!$C194 -> 49 | BE61: =Serie1!$C195 -> 103 | BF61: =Serie1!$C196 -> 157 | BG61: =Serie1!$C197 -> 211 | BH61: 49 | BI61: =Serie2!$C194 -> 49 | BJ61: =Serie2!$C195 -> 103 | BK61: =Serie2!$C196 -> 157 | BL61: =Serie2!$C197 -> 211 | BM61: 49 | BN61: =Serie3!$C194 -> 49 | BO61: =Serie3!$C195 -> 103 | BP61: =Serie3!$C196 -> 157 | BQ61: =Serie3!$C197 -> 211 | BR61: 49 | BS61: =Serie4!$C194 -> 49 | BT61: =Serie4!$C195 -> 103 | BU61: =Serie4!$C196 -> 157 | BV61: =Serie4!$C197 -> 211 | BW61: 49 | BX61: =F205 -> 0 | BY61: =R205 -> 0 | BZ61: =AD205 -> 0 | CA61: =AP205 -> 0
A62: =IF(COUNTIF(B$13:B62,B62)>1,"X","") -> X | B62: =IF(ISBLANK(F61)," ",INDEX(BE:BE,MATCH(F61,BC:BC,0))) ->  | C62: =IF(ISBLANK(F61)," ",INDEX(Starterfeld!$D:$D,MATCH($B62,Starterfeld!$A:$A,0))) ->  | F62: =F61 -> 0 | K62: =IF(ISBLANK(G62)," ",G62+(H62-I62)*50+IF(COUNT(G61:G64)=3,(I61+I63+I64)*40,(I61+I63+I64)*30)) ->  | L62: 0 | M62: =IF(COUNTIF(N$13:N62,N62)>1,"X","") -> X | N62: =IF(ISBLANK(R61)," ",INDEX(BJ:BJ,MATCH(R61,BH:BH,0))) ->  | O62: =IF(ISBLANK(R61)," ",INDEX(Starterfeld!$D:$D,MATCH(N62,Starterfeld!$A:$A,0))) ->  | R62: =R61 -> 0 | W62: =IF(ISBLANK(S62)," ",S62+(T62-U62)*50+IF(COUNT(S61:S64)=3,(U61+U63+U64)*40,(U61+U63+U64)*30)) ->  | X62: 0 | Y62: =IF(COUNTIF(Z$13:Z62,Z62)>1,"X","") -> X | Z62: =IF(ISBLANK(AD61)," ",INDEX(BO:BO,MATCH(AD61,BM:BM,0))) ->  | AA62: =IF(ISBLANK(AD61)," ",INDEX(Starterfeld!$D:$D,MATCH(Z62,Starterfeld!$A:$A,0))) ->  | AD62: =AD61 -> 0 | AI62: =IF(ISBLANK(AE62)," ",AE62+(AF62-AG62)*50+IF(COUNT(AE61:AE64)=3,(AG61+AG63+AG64)*40,(AG61+AG63+AG64)*30)) ->  | AJ62: 0 | AK62: =IF(COUNTIF(AL$13:AL62,AL62)>1,"X","") -> X | AL62: =IF(ISBLANK(AP61)," ",INDEX(BT:BT,MATCH(AP61,BR:BR,0))) ->  | AM62: =IF(ISBLANK(AP61)," ",INDEX(Starterfeld!$D:$D,MATCH(AL62,Starterfeld!$A:$A,0))) ->  | AP62: =AP61 -> 0 | AU62: =IF(ISBLANK(AQ62)," ",AQ62+(AR62-AS62)*50+IF(COUNT(AQ61:AQ64)=3,(AS61+AS63+AS64)*40,(AS61+AS63+AS64)*30)) ->  | AV62: 0 | BC62: 50 | BD62: =Serie1!$C198 -> 50 | BE62: =Serie1!$C199 -> 104 | BF62: =Serie1!$C200 -> 158 | BG62: =Serie1!$C201 -> 212 | BH62: 50 | BI62: =Serie2!$C198 -> 50 | BJ62: =Serie2!$C199 -> 104 | BK62: =Serie2!$C200 -> 158 | BL62: =Serie2!$C201 -> 212 | BM62: 50 | BN62: =Serie3!$C198 -> 50 | BO62: =Serie3!$C199 -> 104 | BP62: =Serie3!$C200 -> 158 | BQ62: =Serie3!$C201 -> 212 | BR62: 50 | BS62: =Serie4!$C198 -> 50 | BT62: =Serie4!$C199 -> 104 | BU62: =Serie4!$C200 -> 158 | BV62: =Serie4!$C201 -> 212 | BW62: 50 | BX62: =F209 -> 0 | BY62: =R209 -> 0 | BZ62: =AD209 -> 0 | CA62: =AP209 -> 0
A63: =IF(COUNTIF(B$13:B63,B63)>1,"X","") -> X | B63: =IF(ISBLANK(F61)," ",INDEX(BF:BF,MATCH(F61,BC:BC,0))) ->  | C63: =IF(ISBLANK(F61)," ",INDEX(Starterfeld!$D:$D,MATCH($B63,Starterfeld!$A:$A,0))) ->  | F63: =F61 -> 0 | K63: =IF(ISBLANK(G63)," ",G63+(H63-I63)*50+IF(COUNT(G61:G64)=3,(I61+I62+I64)*40,(I61+I62+I64)*30)) ->  | L63: 0 | M63: =IF(COUNTIF(N$13:N63,N63)>1,"X","") -> X | N63: =IF(ISBLANK(R61)," ",INDEX(BK:BK,MATCH(R61,BH:BH,0))) ->  | O63: =IF(ISBLANK(R61)," ",INDEX(Starterfeld!$D:$D,MATCH(N63,Starterfeld!$A:$A,0))) ->  | R63: =R61 -> 0 | W63: =IF(ISBLANK(S63)," ",S63+(T63-U63)*50+IF(COUNT(S61:S64)=3,(U61+U62+U64)*40,(U61+U62+U64)*30)) ->  | X63: 0 | Y63: =IF(COUNTIF(Z$13:Z63,Z63)>1,"X","") -> X | Z63: =IF(ISBLANK(AD61)," ",INDEX(BP:BP,MATCH(AD61,BM:BM,0))) ->  | AA63: =IF(ISBLANK(AD61)," ",INDEX(Starterfeld!$D:$D,MATCH(Z63,Starterfeld!$A:$A,0))) ->  | AD63: =AD61 -> 0 | AI63: =IF(ISBLANK(AE63)," ",AE63+(AF63-AG63)*50+IF(COUNT(AE61:AE64)=3,(AG61+AG62+AG64)*40,(AG61+AG62+AG64)*30)) ->  | AJ63: 0 | AK63: =IF(COUNTIF(AL$13:AL63,AL63)>1,"X","") -> X | AL63: =IF(ISBLANK(AP61)," ",INDEX(BU:BU,MATCH(AP61,BR:BR,0))) ->  | AM63: =IF(ISBLANK(AP61)," ",INDEX(Starterfeld!$D:$D,MATCH(AL63,Starterfeld!$A:$A,0))) ->  | AP63: =AP61 -> 0 | AU63: =IF(ISBLANK(AQ63)," ",AQ63+(AR63-AS63)*50+IF(COUNT(AQ61:AQ64)=3,(AS61+AS62+AS64)*40,(AS61+AS62+AS64)*30)) ->  | AV63: 0 | BC63: 51 | BD63: =Serie1!$C202 -> 51 | BE63: =Serie1!$C203 -> 105 | BF63: =Serie1!$C204 -> 159 | BG63: =Serie1!$C205 -> 213 | BH63: 51 | BI63: =Serie2!$C202 -> 51 | BJ63: =Serie2!$C203 -> 105 | BK63: =Serie2!$C204 -> 159 | BL63: =Serie2!$C205 -> 213 | BM63: 51 | BN63: =Serie3!$C202 -> 51 | BO63: =Serie3!$C203 -> 105 | BP63: =Serie3!$C204 -> 159 | BQ63: =Serie3!$C205 -> 213 | BR63: 51 | BS63: =Serie4!$C202 -> 51 | BT63: =Serie4!$C203 -> 105 | BU63: =Serie4!$C204 -> 159 | BV63: =Serie4!$C205 -> 213 | BW63: 51 | BX63: =F213 -> 0 | BY63: =R213 -> 0 | BZ63: =AD213 -> 0 | CA63: =AP213 -> 0
A64: =IF(COUNTIF(B$13:B64,B64)>1,"X","") -> X | B64: =IF(ISBLANK(F61)," ",INDEX(BG:BG,MATCH(F61,BC:BC,0))) ->  | C64: =IF(ISBLANK(F61)," ",INDEX(Starterfeld!$D:$D,MATCH($B64,Starterfeld!$A:$A,0))) ->  | F64: =F61 -> 0 | K64: =IF(ISBLANK(G64)," ",G64+(H64-I64)*50+IF(COUNT(G61:G64)=3,(I61+I62+I63)*40,(I61+I62+I63)*30)) ->  | L64: 0 | M64: =IF(COUNTIF(N$13:N64,N64)>1,"X","") -> X | N64: =IF(ISBLANK(R61)," ",INDEX(BL:BL,MATCH(R61,BH:BH,0))) ->  | O64: =IF(ISBLANK(R61)," ",INDEX(Starterfeld!$D:$D,MATCH(N64,Starterfeld!$A:$A,0))) ->  | R64: =R61 -> 0 | W64: =IF(ISBLANK(S64)," ",S64+(T64-U64)*50+IF(COUNT(S61:S64)=3,(U61+U62+U63)*40,(U61+U62+U63)*30)) ->  | X64: 0 | Y64: =IF(COUNTIF(Z$13:Z64,Z64)>1,"X","") -> X | Z64: =IF(ISBLANK(AD61)," ",INDEX(BQ:BQ,MATCH(AD61,BM:BM,0))) ->  | AA64: =IF(ISBLANK(AD61)," ",INDEX(Starterfeld!$D:$D,MATCH(Z64,Starterfeld!$A:$A,0))) ->  | AD64: =AD61 -> 0 | AI64: =IF(ISBLANK(AE64)," ",AE64+(AF64-AG64)*50+IF(COUNT(AE61:AE64)=3,(AG61+AG62+AG63)*40,(AG61+AG62+AG63)*30)) ->  | AJ64: 0 | AK64: =IF(COUNTIF(AL$13:AL64,AL64)>1,"X","") -> X | AL64: =IF(ISBLANK(AP61)," ",INDEX(BV:BV,MATCH(AP61,BR:BR,0))) ->  | AM64: =IF(ISBLANK(AP61)," ",INDEX(Starterfeld!$D:$D,MATCH(AL64,Starterfeld!$A:$A,0))) ->  | AP64: =AP61 -> 0 | AU64: =IF(ISBLANK(AQ64)," ",AQ64+(AR64-AS64)*50+IF(COUNT(AQ61:AQ64)=3,(AS61+AS62+AS63)*40,(AS61+AS62+AS63)*30)) ->  | AV64: 0 | BC64: 52 | BD64: =Serie1!$C206 -> 52 | BE64: =Serie1!$C207 -> 106 | BF64: =Serie1!$C208 -> 160 | BG64: =Serie1!$C209 -> 214 | BH64: 52 | BI64: =Serie2!$C206 -> 52 | BJ64: =Serie2!$C207 -> 106 | BK64: =Serie2!$C208 -> 160 | BL64: =Serie2!$C209 -> 214 | BM64: 52 | BN64: =Serie3!$C206 -> 52 | BO64: =Serie3!$C207 -> 106 | BP64: =Serie3!$C208 -> 160 | BQ64: =Serie3!$C209 -> 214 | BR64: 52 | BS64: =Serie4!$C206 -> 52 | BT64: =Serie4!$C207 -> 106 | BU64: =Serie4!$C208 -> 160 | BV64: =Serie4!$C209 -> 214 | BW64: 52 | BX64: =F217 -> 0 | BY64: =R217 -> 0 | BZ64: =AD217 -> 0 | CA64: =AP217 -> 0
A65: =IF(COUNTIF(B$13:B65,B65)>1,"X","") -> X | B65: =IF(ISBLANK(F65)," ",INDEX(BD:BD,MATCH(F65,BC:BC,0))) ->  | C65: =IF(ISBLANK(F65)," ",INDEX(Starterfeld!$D:$D,MATCH($B65,Starterfeld!$A:$A,0))) ->  | K65: =IF(ISBLANK(G65)," ",G65+(H65-I65)*50+IF(COUNT(G65:G68)=3,(I66+I67+I68)*40,(I66+I67+I68)*30)) ->  | L65: 0 | M65: =IF(COUNTIF(N$13:N65,N65)>1,"X","") -> X | N65: =IF(ISBLANK(R65)," ",INDEX(BI:BI,MATCH(R65,BH:BH,0))) ->  | O65: =IF(ISBLANK(R65)," ",INDEX(Starterfeld!$D:$D,MATCH(N65,Starterfeld!$A:$A,0))) ->  | W65: =IF(ISBLANK(S65)," ",S65+(T65-U65)*50+IF(COUNT(S65:S68)=3,(U66+U67+U68)*40,(U66+U67+U68)*30)) ->  | X65: 0 | Y65: =IF(COUNTIF(Z$13:Z65,Z65)>1,"X","") -> X | Z65: =IF(ISBLANK(AD65)," ",INDEX(BN:BN,MATCH(AD65,BM:BM,0))) ->  | AA65: =IF(ISBLANK(AD65)," ",INDEX(Starterfeld!$D:$D,MATCH(Z65,Starterfeld!$A:$A,0))) ->  | AI65: =IF(ISBLANK(AE65)," ",AE65+(AF65-AG65)*50+IF(COUNT(AE65:AE68)=3,(AG66+AG67+AG68)*40,(AG66+AG67+AG68)*30)) ->  | AJ65: 0 | AK65: =IF(COUNTIF(AL$13:AL65,AL65)>1,"X","") -> X | AL65: =IF(ISBLANK(AP65)," ",INDEX(BS:BS,MATCH(AP65,BR:BR,0))) ->  | AM65: =IF(ISBLANK(AP65)," ",INDEX(Starterfeld!$D:$D,MATCH(AL65,Starterfeld!$A:$A,0))) ->  | AU65: =IF(ISBLANK(AQ65)," ",AQ65+(AR65-AS65)*50+IF(COUNT(AQ65:AQ68)=3,(AS66+AS67+AS68)*40,(AS66+AS67+AS68)*30)) ->  | AV65: 0 | AY65: =SUM(L65:L68) -> 0 | AZ65: =SUM(X65:X68) -> 0 | BA65: =SUM(AJ65:AJ68) -> 0 | BB65: =SUM(AV65:AV68) -> 0 | BC65: 53 | BD65: =Serie1!$C210 -> 53 | BE65: =Serie1!$C211 -> 107 | BF65: =Serie1!$C212 -> 161 | BG65: =Serie1!$C213 -> 215 | BH65: 53 | BI65: =Serie2!$C210 -> 53 | BJ65: =Serie2!$C211 -> 107 | BK65: =Serie2!$C212 -> 161 | BL65: =Serie2!$C213 -> 215 | BM65: 53 | BN65: =Serie3!$C210 -> 53 | BO65: =Serie3!$C211 -> 107 | BP65: =Serie3!$C212 -> 161 | BQ65: =Serie3!$C213 -> 215 | BR65: 53 | BS65: =Serie4!$C210 -> 53 | BT65: =Serie4!$C211 -> 107 | BU65: =Serie4!$C212 -> 161 | BV65: =Serie4!$C213 -> 215 | BW65: 53 | BX65: =F221 -> 0 | BY65: =R221 -> 0 | BZ65: =AD221 -> 0 | CA65: =AP221 -> 0
A66: =IF(COUNTIF(B$13:B66,B66)>1,"X","") -> X | B66: =IF(ISBLANK(F65)," ",INDEX(BE:BE,MATCH(F65,BC:BC,0))) ->  | C66: =IF(ISBLANK(F65)," ",INDEX(Starterfeld!$D:$D,MATCH($B66,Starterfeld!$A:$A,0))) ->  | F66: =F65 -> 0 | K66: =IF(ISBLANK(G66)," ",G66+(H66-I66)*50+IF(COUNT(G65:G68)=3,(I65+I67+I68)*40,(I65+I67+I68)*30)) ->  | L66: 0 | M66: =IF(COUNTIF(N$13:N66,N66)>1,"X","") -> X | N66: =IF(ISBLANK(R65)," ",INDEX(BJ:BJ,MATCH(R65,BH:BH,0))) ->  | O66: =IF(ISBLANK(R65)," ",INDEX(Starterfeld!$D:$D,MATCH(N66,Starterfeld!$A:$A,0))) ->  | R66: =R65 -> 0 | W66: =IF(ISBLANK(S66)," ",S66+(T66-U66)*50+IF(COUNT(S65:S68)=3,(U65+U67+U68)*40,(U65+U67+U68)*30)) ->  | X66: 0 | Y66: =IF(COUNTIF(Z$13:Z66,Z66)>1,"X","") -> X | Z66: =IF(ISBLANK(AD65)," ",INDEX(BO:BO,MATCH(AD65,BM:BM,0))) ->  | AA66: =IF(ISBLANK(AD65)," ",INDEX(Starterfeld!$D:$D,MATCH(Z66,Starterfeld!$A:$A,0))) ->  | AD66: =AD65 -> 0 | AI66: =IF(ISBLANK(AE66)," ",AE66+(AF66-AG66)*50+IF(COUNT(AE65:AE68)=3,(AG65+AG67+AG68)*40,(AG65+AG67+AG68)*30)) ->  | AJ66: 0 | AK66: =IF(COUNTIF(AL$13:AL66,AL66)>1,"X","") -> X | AL66: =IF(ISBLANK(AP65)," ",INDEX(BT:BT,MATCH(AP65,BR:BR,0))) ->  | AM66: =IF(ISBLANK(AP65)," ",INDEX(Starterfeld!$D:$D,MATCH(AL66,Starterfeld!$A:$A,0))) ->  | AP66: =AP65 -> 0 | AU66: =IF(ISBLANK(AQ66)," ",AQ66+(AR66-AS66)*50+IF(COUNT(AQ65:AQ68)=3,(AS65+AS67+AS68)*40,(AS65+AS67+AS68)*30)) ->  | AV66: 0 | BC66: 54 | BD66: =Serie1!$C214 -> 54 | BE66: =Serie1!$C215 -> 108 | BF66: =Serie1!$C216 -> 162 | BG66: =Serie1!$C217 -> 216 | BH66: 54 | BI66: =Serie2!$C214 -> 54 | BJ66: =Serie2!$C215 -> 108 | BK66: =Serie2!$C216 -> 162 | BL66: =Serie2!$C217 -> 216 | BM66: 54 | BN66: =Serie3!$C214 -> 54 | BO66: =Serie3!$C215 -> 108 | BP66: =Serie3!$C216 -> 162 | BQ66: =Serie3!$C217 -> 216 | BR66: 54 | BS66: =Serie4!$C214 -> 54 | BT66: =Serie4!$C215 -> 108 | BU66: =Serie4!$C216 -> 162 | BV66: =Serie4!$C217 -> 216 | BW66: 54 | BX66: =F225 -> 0 | BY66: =R225 -> 0 | BZ66: =AD225 -> 0 | CA66: =AP225 -> 0
A67: =IF(COUNTIF(B$13:B67,B67)>1,"X","") -> X | B67: =IF(ISBLANK(F65)," ",INDEX(BF:BF,MATCH(F65,BC:BC,0))) ->  | C67: =IF(ISBLANK(F65)," ",INDEX(Starterfeld!$D:$D,MATCH($B67,Starterfeld!$A:$A,0))) ->  | F67: =F65 -> 0 | K67: =IF(ISBLANK(G67)," ",G67+(H67-I67)*50+IF(COUNT(G65:G68)=3,(I65+I66+I68)*40,(I65+I66+I68)*30)) ->  | L67: 0 | M67: =IF(COUNTIF(N$13:N67,N67)>1,"X","") -> X | N67: =IF(ISBLANK(R65)," ",INDEX(BK:BK,MATCH(R65,BH:BH,0))) ->  | O67: =IF(ISBLANK(R65)," ",INDEX(Starterfeld!$D:$D,MATCH(N67,Starterfeld!$A:$A,0))) ->  | R67: =R65 -> 0 | W67: =IF(ISBLANK(S67)," ",S67+(T67-U67)*50+IF(COUNT(S65:S68)=3,(U65+U66+U68)*40,(U65+U66+U68)*30)) ->  | X67: 0 | Y67: =IF(COUNTIF(Z$13:Z67,Z67)>1,"X","") -> X | Z67: =IF(ISBLANK(AD65)," ",INDEX(BP:BP,MATCH(AD65,BM:BM,0))) ->  | AA67: =IF(ISBLANK(AD65)," ",INDEX(Starterfeld!$D:$D,MATCH(Z67,Starterfeld!$A:$A,0))) ->  | AD67: =AD65 -> 0 | AI67: =IF(ISBLANK(AE67)," ",AE67+(AF67-AG67)*50+IF(COUNT(AE65:AE68)=3,(AG65+AG66+AG68)*40,(AG65+AG66+AG68)*30)) ->  | AJ67: 0 | AK67: =IF(COUNTIF(AL$13:AL67,AL67)>1,"X","") -> X | AL67: =IF(ISBLANK(AP65)," ",INDEX(BU:BU,MATCH(AP65,BR:BR,0))) ->  | AM67: =IF(ISBLANK(AP65)," ",INDEX(Starterfeld!$D:$D,MATCH(AL67,Starterfeld!$A:$A,0))) ->  | AP67: =AP65 -> 0 | AU67: =IF(ISBLANK(AQ67)," ",AQ67+(AR67-AS67)*50+IF(COUNT(AQ65:AQ68)=3,(AS65+AS66+AS68)*40,(AS65+AS66+AS68)*30)) ->  | AV67: 0 | BC67: 55 | BD67: =Serie1!$C214 -> 54 | BE67: =Serie1!$C215 -> 108 | BF67: =Serie1!$C216 -> 162 | BG67: =Serie1!$C217 -> 216 | BH67: 55 | BI67: =Serie2!$C214 -> 54 | BJ67: =Serie2!$C215 -> 108 | BK67: =Serie2!$C216 -> 162 | BL67: =Serie2!$C217 -> 216 | BM67: 55 | BN67: =Serie3!$C214 -> 54 | BO67: =Serie3!$C215 -> 108 | BP67: =Serie3!$C216 -> 162 | BQ67: =Serie3!$C217 -> 216 | BR67: 55 | BS67: =Serie4!$C214 -> 54 | BT67: =Serie4!$C215 -> 108 | BU67: =Serie4!$C216 -> 162 | BV67: =Serie4!$C217 -> 216 | BW67: 55 | BX67: =F225 -> 0 | BY67: =R225 -> 0 | BZ67: =AD225 -> 0 | CA67: =AP225 -> 0
A68: =IF(COUNTIF(B$13:B68,B68)>1,"X","") -> X | B68: =IF(ISBLANK(F65)," ",INDEX(BG:BG,MATCH(F65,BC:BC,0))) ->  | C68: =IF(ISBLANK(F65)," ",INDEX(Starterfeld!$D:$D,MATCH($B68,Starterfeld!$A:$A,0))) ->  | F68: =F65 -> 0 | K68: =IF(ISBLANK(G68)," ",G68+(H68-I68)*50+IF(COUNT(G65:G68)=3,(I65+I66+I67)*40,(I65+I66+I67)*30)) ->  | L68: 0 | M68: =IF(COUNTIF(N$13:N68,N68)>1,"X","") -> X | N68: =IF(ISBLANK(R65)," ",INDEX(BL:BL,MATCH(R65,BH:BH,0))) ->  | O68: =IF(ISBLANK(R65)," ",INDEX(Starterfeld!$D:$D,MATCH(N68,Starterfeld!$A:$A,0))) ->  | R68: =R65 -> 0 | W68: =IF(ISBLANK(S68)," ",S68+(T68-U68)*50+IF(COUNT(S65:S68)=3,(U65+U66+U67)*40,(U65+U66+U67)*30)) ->  | X68: 0 | Y68: =IF(COUNTIF(Z$13:Z68,Z68)>1,"X","") -> X | Z68: =IF(ISBLANK(AD65)," ",INDEX(BQ:BQ,MATCH(AD65,BM:BM,0))) ->  | AA68: =IF(ISBLANK(AD65)," ",INDEX(Starterfeld!$D:$D,MATCH(Z68,Starterfeld!$A:$A,0))) ->  | AD68: =AD65 -> 0 | AI68: =IF(ISBLANK(AE68)," ",AE68+(AF68-AG68)*50+IF(COUNT(AE65:AE68)=3,(AG65+AG66+AG67)*40,(AG65+AG66+AG67)*30)) ->  | AJ68: 0 | AK68: =IF(COUNTIF(AL$13:AL68,AL68)>1,"X","") -> X | AL68: =IF(ISBLANK(AP65)," ",INDEX(BV:BV,MATCH(AP65,BR:BR,0))) ->  | AM68: =IF(ISBLANK(AP65)," ",INDEX(Starterfeld!$D:$D,MATCH(AL68,Starterfeld!$A:$A,0))) ->  | AP68: =AP65 -> 0 | AU68: =IF(ISBLANK(AQ68)," ",AQ68+(AR68-AS68)*50+IF(COUNT(AQ65:AQ68)=3,(AS65+AS66+AS67)*40,(AS65+AS66+AS67)*30)) ->  | AV68: 0 | BC68: 56 | BD68: =Serie1!$C214 -> 54 | BE68: =Serie1!$C215 -> 108 | BF68: =Serie1!$C216 -> 162 | BG68: =Serie1!$C217 -> 216 | BH68: 56 | BI68: =Serie2!$C214 -> 54 | BJ68: =Serie2!$C215 -> 108 | BK68: =Serie2!$C216 -> 162 | BL68: =Serie2!$C217 -> 216 | BM68: 56 | BN68: =Serie3!$C214 -> 54 | BO68: =Serie3!$C215 -> 108 | BP68: =Serie3!$C216 -> 162 | BQ68: =Serie3!$C217 -> 216 | BR68: 56 | BS68: =Serie4!$C214 -> 54 | BT68: =Serie4!$C215 -> 108 | BU68: =Serie4!$C216 -> 162 | BV68: =Serie4!$C217 -> 216 | BW68: 56 | BX68: =F225 -> 0 | BY68: =R225 -> 0 | BZ68: =AD225 -> 0 | CA68: =AP225 -> 0
A69: =IF(COUNTIF(B$13:B69,B69)>1,"X","") -> X | B69: =IF(ISBLANK(F69)," ",INDEX(BD:BD,MATCH(F69,BC:BC,0))) ->  | C69: =IF(ISBLANK(F69)," ",INDEX(Starterfeld!$D:$D,MATCH($B69,Starterfeld!$A:$A,0))) ->  | K69: =IF(ISBLANK(G69)," ",G69+(H69-I69)*50+IF(COUNT(G69:G72)=3,(I70+I71+I72)*40,(I70+I71+I72)*30)) ->  | L69: 0 | M69: =IF(COUNTIF(N$13:N69,N69)>1,"X","") -> X | N69: =IF(ISBLANK(R69)," ",INDEX(BI:BI,MATCH(R69,BH:BH,0))) ->  | O69: =IF(ISBLANK(R69)," ",INDEX(Starterfeld!$D:$D,MATCH(N69,Starterfeld!$A:$A,0))) ->  | W69: =IF(ISBLANK(S69)," ",S69+(T69-U69)*50+IF(COUNT(S69:S72)=3,(U70+U71+U72)*40,(U70+U71+U72)*30)) ->  | X69: 0 | Y69: =IF(COUNTIF(Z$13:Z69,Z69)>1,"X","") -> X | Z69: =IF(ISBLANK(AD69)," ",INDEX(BN:BN,MATCH(AD69,BM:BM,0))) ->  | AA69: =IF(ISBLANK(AD69)," ",INDEX(Starterfeld!$D:$D,MATCH(Z69,Starterfeld!$A:$A,0))) ->  | AI69: =IF(ISBLANK(AE69)," ",AE69+(AF69-AG69)*50+IF(COUNT(AE69:AE72)=3,(AG70+AG71+AG72)*40,(AG70+AG71+AG72)*30)) ->  | AJ69: 0 | AK69: =IF(COUNTIF(AL$13:AL69,AL69)>1,"X","") -> X | AL69: =IF(ISBLANK(AP69)," ",INDEX(BS:BS,MATCH(AP69,BR:BR,0))) ->  | AM69: =IF(ISBLANK(AP69)," ",INDEX(Starterfeld!$D:$D,MATCH(AL69,Starterfeld!$A:$A,0))) ->  | AU69: =IF(ISBLANK(AQ69)," ",AQ69+(AR69-AS69)*50+IF(COUNT(AQ69:AQ72)=3,(AS70+AS71+AS72)*40,(AS70+AS71+AS72)*30)) ->  | AV69: 0 | AY69: =SUM(L69:L72) -> 0 | AZ69: =SUM(X69:X72) -> 0 | BA69: =SUM(AJ69:AJ72) -> 0 | BB69: =SUM(AV69:AV72) -> 0 | BC69: 201 | BD69: =Serie1!$C218 -> 221 | BE69: =Serie1!$C219 -> 241 | BF69: =Serie1!$C220 -> 261 | BG69: =Serie1!$C221 -> 281 | BH69: 201 | BI69: =Serie2!$C218 -> 221 | BJ69: =Serie2!$C219 -> 241 | BK69: =Serie2!$C220 -> 261 | BL69: =Serie2!$C221 -> 281 | BM69: 201 | BN69: =Serie3!$C218 -> 221 | BO69: =Serie3!$C219 -> 241 | BP69: =Serie3!$C220 -> 261 | BQ69: =Serie3!$C221 -> 281 | BR69: 201 | BS69: =Serie4!$C218 -> 221 | BT69: =Serie4!$C219 -> 241 | BU69: =Serie4!$C220 -> 261 | BV69: =Serie4!$C221 -> 281 | BW69: 201 | BX69: =F229 -> 0 | BY69: =R229 -> 0 | BZ69: =AD229 -> 0 | CA69: =AP229 -> 0
A70: =IF(COUNTIF(B$13:B70,B70)>1,"X","") -> X | B70: =IF(ISBLANK(F69)," ",INDEX(BE:BE,MATCH(F69,BC:BC,0))) ->  | C70: =IF(ISBLANK(F69)," ",INDEX(Starterfeld!$D:$D,MATCH($B70,Starterfeld!$A:$A,0))) ->  | F70: =F69 -> 0 | K70: =IF(ISBLANK(G70)," ",G70+(H70-I70)*50+IF(COUNT(G69:G72)=3,(I69+I71+I72)*40,(I69+I71+I72)*30)) ->  | L70: 0 | M70: =IF(COUNTIF(N$13:N70,N70)>1,"X","") -> X | N70: =IF(ISBLANK(R69)," ",INDEX(BJ:BJ,MATCH(R69,BH:BH,0))) ->  | O70: =IF(ISBLANK(R69)," ",INDEX(Starterfeld!$D:$D,MATCH(N70,Starterfeld!$A:$A,0))) ->  | R70: =R69 -> 0 | W70: =IF(ISBLANK(S70)," ",S70+(T70-U70)*50+IF(COUNT(S69:S72)=3,(U69+U71+U72)*40,(U69+U71+U72)*30)) ->  | X70: 0 | Y70: =IF(COUNTIF(Z$13:Z70,Z70)>1,"X","") -> X | Z70: =IF(ISBLANK(AD69)," ",INDEX(BO:BO,MATCH(AD69,BM:BM,0))) ->  | AA70: =IF(ISBLANK(AD69)," ",INDEX(Starterfeld!$D:$D,MATCH(Z70,Starterfeld!$A:$A,0))) ->  | AD70: =AD69 -> 0 | AI70: =IF(ISBLANK(AE70)," ",AE70+(AF70-AG70)*50+IF(COUNT(AE69:AE72)=3,(AG69+AG71+AG72)*40,(AG69+AG71+AG72)*30)) ->  | AJ70: 0 | AK70: =IF(COUNTIF(AL$13:AL70,AL70)>1,"X","") -> X | AL70: =IF(ISBLANK(AP69)," ",INDEX(BT:BT,MATCH(AP69,BR:BR,0))) ->  | AM70: =IF(ISBLANK(AP69)," ",INDEX(Starterfeld!$D:$D,MATCH(AL70,Starterfeld!$A:$A,0))) ->  | AP70: =AP69 -> 0 | AU70: =IF(ISBLANK(AQ70)," ",AQ70+(AR70-AS70)*50+IF(COUNT(AQ69:AQ72)=3,(AS69+AS71+AS72)*40,(AS69+AS71+AS72)*30)) ->  | AV70: 0 | BC70: 202 | BD70: =Serie1!$C222 -> 222 | BE70: =Serie1!$C223 -> 242 | BF70: =Serie1!$C224 -> 262 | BG70: =Serie1!$C225 -> 282 | BH70: 202 | BI70: =Serie2!$C222 -> 222 | BJ70: =Serie2!$C223 -> 242 | BK70: =Serie2!$C224 -> 262 | BL70: =Serie2!$C225 -> 282 | BM70: 202 | BN70: =Serie3!$C222 -> 222 | BO70: =Serie3!$C223 -> 242 | BP70: =Serie3!$C224 -> 262 | BQ70: =Serie3!$C225 -> 282 | BR70: 202 | BS70: =Serie4!$C222 -> 222 | BT70: =Serie4!$C223 -> 242 | BU70: =Serie4!$C224 -> 262 | BV70: =Serie4!$C225 -> 282 | BW70: 202 | BX70: =F233 -> 0 | BY70: =R233 -> 0 | BZ70: =AD233 -> 0 | CA70: =AP233 -> 0
A71: =IF(COUNTIF(B$13:B71,B71)>1,"X","") -> X | B71: =IF(ISBLANK(F69)," ",INDEX(BF:BF,MATCH(F69,BC:BC,0))) ->  | C71: =IF(ISBLANK(F69)," ",INDEX(Starterfeld!$D:$D,MATCH($B71,Starterfeld!$A:$A,0))) ->  | F71: =F69 -> 0 | K71: =IF(ISBLANK(G71)," ",G71+(H71-I71)*50+IF(COUNT(G69:G72)=3,(I69+I70+I72)*40,(I69+I70+I72)*30)) ->  | L71: 0 | M71: =IF(COUNTIF(N$13:N71,N71)>1,"X","") -> X | N71: =IF(ISBLANK(R69)," ",INDEX(BK:BK,MATCH(R69,BH:BH,0))) ->  | O71: =IF(ISBLANK(R69)," ",INDEX(Starterfeld!$D:$D,MATCH(N71,Starterfeld!$A:$A,0))) ->  | R71: =R69 -> 0 | W71: =IF(ISBLANK(S71)," ",S71+(T71-U71)*50+IF(COUNT(S69:S72)=3,(U69+U70+U72)*40,(U69+U70+U72)*30)) ->  | X71: 0 | Y71: =IF(COUNTIF(Z$13:Z71,Z71)>1,"X","") -> X | Z71: =IF(ISBLANK(AD69)," ",INDEX(BP:BP,MATCH(AD69,BM:BM,0))) ->  | AA71: =IF(ISBLANK(AD69)," ",INDEX(Starterfeld!$D:$D,MATCH(Z71,Starterfeld!$A:$A,0))) ->  | AD71: =AD69 -> 0 | AI71: =IF(ISBLANK(AE71)," ",AE71+(AF71-AG71)*50+IF(COUNT(AE69:AE72)=3,(AG69+AG70+AG72)*40,(AG69+AG70+AG72)*30)) ->  | AJ71: 0 | AK71: =IF(COUNTIF(AL$13:AL71,AL71)>1,"X","") -> X | AL71: =IF(ISBLANK(AP69)," ",INDEX(BU:BU,MATCH(AP69,BR:BR,0))) ->  | AM71: =IF(ISBLANK(AP69)," ",INDEX(Starterfeld!$D:$D,MATCH(AL71,Starterfeld!$A:$A,0))) ->  | AP71: =AP69 -> 0 | AU71: =IF(ISBLANK(AQ71)," ",AQ71+(AR71-AS71)*50+IF(COUNT(AQ69:AQ72)=3,(AS69+AS70+AS72)*40,(AS69+AS70+AS72)*30)) ->  | AV71: 0 | BC71: 203 | BD71: =Serie1!$C226 -> 223 | BE71: =Serie1!$C227 -> 243 | BF71: =Serie1!$C228 -> 263 | BG71: =Serie1!$C229 -> 283 | BH71: 203 | BI71: =Serie2!$C226 -> 223 | BJ71: =Serie2!$C227 -> 243 | BK71: =Serie2!$C228 -> 263 | BL71: =Serie2!$C229 -> 283 | BM71: 203 | BN71: =Serie3!$C226 -> 223 | BO71: =Serie3!$C227 -> 243 | BP71: =Serie3!$C228 -> 263 | BQ71: =Serie3!$C229 -> 283 | BR71: 203 | BS71: =Serie4!$C226 -> 223 | BT71: =Serie4!$C227 -> 243 | BU71: =Serie4!$C228 -> 263 | BV71: =Serie4!$C229 -> 283 | BW71: 203 | BX71: =F237 -> 0 | BY71: =R237 -> 0 | BZ71: =AD237 -> 0 | CA71: =AP237 -> 0
A72: =IF(COUNTIF(B$13:B72,B72)>1,"X","") -> X | B72: =IF(ISBLANK(F69)," ",INDEX(BG:BG,MATCH(F69,BC:BC,0))) ->  | C72: =IF(ISBLANK(F69)," ",INDEX(Starterfeld!$D:$D,MATCH($B72,Starterfeld!$A:$A,0))) ->  | F72: =F69 -> 0 | K72: =IF(ISBLANK(G72)," ",G72+(H72-I72)*50+IF(COUNT(G69:G72)=3,(I69+I70+I71)*40,(I69+I70+I71)*30)) ->  | L72: 0 | M72: =IF(COUNTIF(N$13:N72,N72)>1,"X","") -> X | N72: =IF(ISBLANK(R69)," ",INDEX(BL:BL,MATCH(R69,BH:BH,0))) ->  | O72: =IF(ISBLANK(R69)," ",INDEX(Starterfeld!$D:$D,MATCH(N72,Starterfeld!$A:$A,0))) ->  | R72: =R69 -> 0 | W72: =IF(ISBLANK(S72)," ",S72+(T72-U72)*50+IF(COUNT(S69:S72)=3,(U69+U70+U71)*40,(U69+U70+U71)*30)) ->  | X72: 0 | Y72: =IF(COUNTIF(Z$13:Z72,Z72)>1,"X","") -> X | Z72: =IF(ISBLANK(AD69)," ",INDEX(BQ:BQ,MATCH(AD69,BM:BM,0))) ->  | AA72: =IF(ISBLANK(AD69)," ",INDEX(Starterfeld!$D:$D,MATCH(Z72,Starterfeld!$A:$A,0))) ->  | AD72: =AD69 -> 0 | AI72: =IF(ISBLANK(AE72)," ",AE72+(AF72-AG72)*50+IF(COUNT(AE69:AE72)=3,(AG69+AG70+AG71)*40,(AG69+AG70+AG71)*30)) ->  | AJ72: 0 | AK72: =IF(COUNTIF(AL$13:AL72,AL72)>1,"X","") -> X | AL72: =IF(ISBLANK(AP69)," ",INDEX(BV:BV,MATCH(AP69,BR:BR,0))) ->  | AM72: =IF(ISBLANK(AP69)," ",INDEX(Starterfeld!$D:$D,MATCH(AL72,Starterfeld!$A:$A,0))) ->  | AP72: =AP69 -> 0 | AU72: =IF(ISBLANK(AQ72)," ",AQ72+(AR72-AS72)*50+IF(COUNT(AQ69:AQ72)=3,(AS69+AS70+AS71)*40,(AS69+AS70+AS71)*30)) ->  | AV72: 0 | BC72: 204 | BD72: =Serie1!$C230 -> 224 | BE72: =Serie1!$C231 -> 244 | BF72: =Serie1!$C232 -> 264 | BG72: =Serie1!$C233 -> 284 | BH72: 204 | BI72: =Serie2!$C230 -> 224 | BJ72: =Serie2!$C231 -> 244 | BK72: =Serie2!$C232 -> 264 | BL72: =Serie2!$C233 -> 284 | BM72: 204 | BN72: =Serie3!$C230 -> 224 | BO72: =Serie3!$C231 -> 244 | BP72: =Serie3!$C232 -> 264 | BQ72: =Serie3!$C233 -> 284 | BR72: 204 | BS72: =Serie4!$C230 -> 224 | BT72: =Serie4!$C231 -> 244 | BU72: =Serie4!$C232 -> 264 | BV72: =Serie4!$C233 -> 284 | BW72: 204 | BX72: =F241 -> 0 | BY72: =R241 -> 0 | BZ72: =AD241 -> 0 | CA72: =AP241 -> 0
A73: =IF(COUNTIF(B$13:B73,B73)>1,"X","") -> X | B73: =IF(ISBLANK(F73)," ",INDEX(BD:BD,MATCH(F73,BC:BC,0))) ->  | C73: =IF(ISBLANK(F73)," ",INDEX(Starterfeld!$D:$D,MATCH($B73,Starterfeld!$A:$A,0))) ->  | K73: =IF(ISBLANK(G73)," ",G73+(H73-I73)*50+IF(COUNT(G73:G76)=3,(I74+I75+I76)*40,(I74+I75+I76)*30)) ->  | L73: 0 | M73: =IF(COUNTIF(N$13:N73,N73)>1,"X","") -> X | N73: =IF(ISBLANK(R73)," ",INDEX(BI:BI,MATCH(R73,BH:BH,0))) ->  | O73: =IF(ISBLANK(R73)," ",INDEX(Starterfeld!$D:$D,MATCH(N73,Starterfeld!$A:$A,0))) ->  | W73: =IF(ISBLANK(S73)," ",S73+(T73-U73)*50+IF(COUNT(S73:S76)=3,(U74+U75+U76)*40,(U74+U75+U76)*30)) ->  | X73: 0 | Y73: =IF(COUNTIF(Z$13:Z73,Z73)>1,"X","") -> X | Z73: =IF(ISBLANK(AD73)," ",INDEX(BN:BN,MATCH(AD73,BM:BM,0))) ->  | AA73: =IF(ISBLANK(AD73)," ",INDEX(Starterfeld!$D:$D,MATCH(Z73,Starterfeld!$A:$A,0))) ->  | AI73: =IF(ISBLANK(AE73)," ",AE73+(AF73-AG73)*50+IF(COUNT(AE73:AE76)=3,(AG74+AG75+AG76)*40,(AG74+AG75+AG76)*30)) ->  | AJ73: 0 | AK73: =IF(COUNTIF(AL$13:AL73,AL73)>1,"X","") -> X | AL73: =IF(ISBLANK(AP73)," ",INDEX(BS:BS,MATCH(AP73,BR:BR,0))) ->  | AM73: =IF(ISBLANK(AP73)," ",INDEX(Starterfeld!$D:$D,MATCH(AL73,Starterfeld!$A:$A,0))) ->  | AU73: =IF(ISBLANK(AQ73)," ",AQ73+(AR73-AS73)*50+IF(COUNT(AQ73:AQ76)=3,(AS74+AS75+AS76)*40,(AS74+AS75+AS76)*30)) ->  | AV73: 0 | AY73: =SUM(L73:L76) -> 0 | AZ73: =SUM(X73:X76) -> 0 | BA73: =SUM(AJ73:AJ76) -> 0 | BB73: =SUM(AV73:AV76) -> 0 | BC73: 205 | BD73: =Serie1!$C234 -> 225 | BE73: =Serie1!$C235 -> 245 | BF73: =Serie1!$C236 -> 265 | BG73: =Serie1!$C237 -> 285 | BH73: 205 | BI73: =Serie2!$C234 -> 225 | BJ73: =Serie2!$C235 -> 245 | BK73: =Serie2!$C236 -> 265 | BL73: =Serie2!$C237 -> 285 | BM73: 205 | BN73: =Serie3!$C234 -> 225 | BO73: =Serie3!$C235 -> 245 | BP73: =Serie3!$C236 -> 265 | BQ73: =Serie3!$C237 -> 285 | BR73: 205 | BS73: =Serie4!$C234 -> 225 | BT73: =Serie4!$C235 -> 245 | BU73: =Serie4!$C236 -> 265 | BV73: =Serie4!$C237 -> 285 | BW73: 205 | BX73: =F245 -> 0 | BY73: =R245 -> 0 | BZ73: =AD245 -> 0 | CA73: =AP245 -> 0
A74: =IF(COUNTIF(B$13:B74,B74)>1,"X","") -> X | B74: =IF(ISBLANK(F73)," ",INDEX(BE:BE,MATCH(F73,BC:BC,0))) ->  | C74: =IF(ISBLANK(F73)," ",INDEX(Starterfeld!$D:$D,MATCH($B74,Starterfeld!$A:$A,0))) ->  | F74: =F73 -> 0 | K74: =IF(ISBLANK(G74)," ",G74+(H74-I74)*50+IF(COUNT(G73:G76)=3,(I73+I75+I76)*40,(I73+I75+I76)*30)) ->  | L74: 0 | M74: =IF(COUNTIF(N$13:N74,N74)>1,"X","") -> X | N74: =IF(ISBLANK(R73)," ",INDEX(BJ:BJ,MATCH(R73,BH:BH,0))) ->  | O74: =IF(ISBLANK(R73)," ",INDEX(Starterfeld!$D:$D,MATCH(N74,Starterfeld!$A:$A,0))) ->  | R74: =R73 -> 0 | W74: =IF(ISBLANK(S74)," ",S74+(T74-U74)*50+IF(COUNT(S73:S76)=3,(U73+U75+U76)*40,(U73+U75+U76)*30)) ->  | X74: 0 | Y74: =IF(COUNTIF(Z$13:Z74,Z74)>1,"X","") -> X | Z74: =IF(ISBLANK(AD73)," ",INDEX(BO:BO,MATCH(AD73,BM:BM,0))) ->  | AA74: =IF(ISBLANK(AD73)," ",INDEX(Starterfeld!$D:$D,MATCH(Z74,Starterfeld!$A:$A,0))) ->  | AD74: =AD73 -> 0 | AI74: =IF(ISBLANK(AE74)," ",AE74+(AF74-AG74)*50+IF(COUNT(AE73:AE76)=3,(AG73+AG75+AG76)*40,(AG73+AG75+AG76)*30)) ->  | AJ74: 0 | AK74: =IF(COUNTIF(AL$13:AL74,AL74)>1,"X","") -> X | AL74: =IF(ISBLANK(AP73)," ",INDEX(BT:BT,MATCH(AP73,BR:BR,0))) ->  | AM74: =IF(ISBLANK(AP73)," ",INDEX(Starterfeld!$D:$D,MATCH(AL74,Starterfeld!$A:$A,0))) ->  | AP74: =AP73 -> 0 | AU74: =IF(ISBLANK(AQ74)," ",AQ74+(AR74-AS74)*50+IF(COUNT(AQ73:AQ76)=3,(AS73+AS75+AS76)*40,(AS73+AS75+AS76)*30)) ->  | AV74: 0 | BC74: 206 | BD74: =Serie1!$C238 -> 226 | BE74: =Serie1!$C239 -> 246 | BF74: =Serie1!$C240 -> 266 | BG74: =Serie1!$C241 -> 286 | BH74: 206 | BI74: =Serie2!$C238 -> 226 | BJ74: =Serie2!$C239 -> 246 | BK74: =Serie2!$C240 -> 266 | BL74: =Serie2!$C241 -> 286 | BM74: 206 | BN74: =Serie3!$C238 -> 226 | BO74: =Serie3!$C239 -> 246 | BP74: =Serie3!$C240 -> 266 | BQ74: =Serie3!$C241 -> 286 | BR74: 206 | BS74: =Serie4!$C238 -> 226 | BT74: =Serie4!$C239 -> 246 | BU74: =Serie4!$C240 -> 266 | BV74: =Serie4!$C241 -> 286 | BW74: 206 | BX74: =F249 -> 0 | BY74: =R249 -> 0 | BZ74: =AD249 -> 0 | CA74: =AP249 -> 0
A75: =IF(COUNTIF(B$13:B75,B75)>1,"X","") -> X | B75: =IF(ISBLANK(F73)," ",INDEX(BF:BF,MATCH(F73,BC:BC,0))) ->  | C75: =IF(ISBLANK(F73)," ",INDEX(Starterfeld!$D:$D,MATCH($B75,Starterfeld!$A:$A,0))) ->  | F75: =F73 -> 0 | K75: =IF(ISBLANK(G75)," ",G75+(H75-I75)*50+IF(COUNT(G73:G76)=3,(I73+I74+I76)*40,(I73+I74+I76)*30)) ->  | L75: 0 | M75: =IF(COUNTIF(N$13:N75,N75)>1,"X","") -> X | N75: =IF(ISBLANK(R73)," ",INDEX(BK:BK,MATCH(R73,BH:BH,0))) ->  | O75: =IF(ISBLANK(R73)," ",INDEX(Starterfeld!$D:$D,MATCH(N75,Starterfeld!$A:$A,0))) ->  | R75: =R73 -> 0 | W75: =IF(ISBLANK(S75)," ",S75+(T75-U75)*50+IF(COUNT(S73:S76)=3,(U73+U74+U76)*40,(U73+U74+U76)*30)) ->  | X75: 0 | Y75: =IF(COUNTIF(Z$13:Z75,Z75)>1,"X","") -> X | Z75: =IF(ISBLANK(AD73)," ",INDEX(BP:BP,MATCH(AD73,BM:BM,0))) ->  | AA75: =IF(ISBLANK(AD73)," ",INDEX(Starterfeld!$D:$D,MATCH(Z75,Starterfeld!$A:$A,0))) ->  | AD75: =AD73 -> 0 | AI75: =IF(ISBLANK(AE75)," ",AE75+(AF75-AG75)*50+IF(COUNT(AE73:AE76)=3,(AG73+AG74+AG76)*40,(AG73+AG74+AG76)*30)) ->  | AJ75: 0 | AK75: =IF(COUNTIF(AL$13:AL75,AL75)>1,"X","") -> X | AL75: =IF(ISBLANK(AP73)," ",INDEX(BU:BU,MATCH(AP73,BR:BR,0))) ->  | AM75: =IF(ISBLANK(AP73)," ",INDEX(Starterfeld!$D:$D,MATCH(AL75,Starterfeld!$A:$A,0))) ->  | AP75: =AP73 -> 0 | AU75: =IF(ISBLANK(AQ75)," ",AQ75+(AR75-AS75)*50+IF(COUNT(AQ73:AQ76)=3,(AS73+AS74+AS76)*40,(AS73+AS74+AS76)*30)) ->  | AV75: 0 | BC75: 207 | BD75: =Serie1!$C242 -> 227 | BE75: =Serie1!$C243 -> 247 | BF75: =Serie1!$C244 -> 267 | BG75: =Serie1!$C245 -> 287 | BH75: 207 | BI75: =Serie2!$C242 -> 227 | BJ75: =Serie2!$C243 -> 247 | BK75: =Serie2!$C244 -> 267 | BL75: =Serie2!$C245 -> 287 | BM75: 207 | BN75: =Serie3!$C242 -> 227 | BO75: =Serie3!$C243 -> 247 | BP75: =Serie3!$C244 -> 267 | BQ75: =Serie3!$C245 -> 287 | BR75: 207 | BS75: =Serie4!$C242 -> 227 | BT75: =Serie4!$C243 -> 247 | BU75: =Serie4!$C244 -> 267 | BV75: =Serie4!$C245 -> 287 | BW75: 207 | BX75: =F253 -> 0 | BY75: =R253 -> 0 | BZ75: =AD253 -> 0 | CA75: =AP253 -> 0
A76: =IF(COUNTIF(B$13:B76,B76)>1,"X","") -> X | B76: =IF(ISBLANK(F73)," ",INDEX(BG:BG,MATCH(F73,BC:BC,0))) ->  | C76: =IF(ISBLANK(F73)," ",INDEX(Starterfeld!$D:$D,MATCH($B76,Starterfeld!$A:$A,0))) ->  | F76: =F73 -> 0 | K76: =IF(ISBLANK(G76)," ",G76+(H76-I76)*50+IF(COUNT(G73:G76)=3,(I73+I74+I75)*40,(I73+I74+I75)*30)) ->  | L76: 0 | M76: =IF(COUNTIF(N$13:N76,N76)>1,"X","") -> X | N76: =IF(ISBLANK(R73)," ",INDEX(BL:BL,MATCH(R73,BH:BH,0))) ->  | O76: =IF(ISBLANK(R73)," ",INDEX(Starterfeld!$D:$D,MATCH(N76,Starterfeld!$A:$A,0))) ->  | R76: =R73 -> 0 | W76: =IF(ISBLANK(S76)," ",S76+(T76-U76)*50+IF(COUNT(S73:S76)=3,(U73+U74+U75)*40,(U73+U74+U75)*30)) ->  | X76: 0 | Y76: =IF(COUNTIF(Z$13:Z76,Z76)>1,"X","") -> X | Z76: =IF(ISBLANK(AD73)," ",INDEX(BQ:BQ,MATCH(AD73,BM:BM,0))) ->  | AA76: =IF(ISBLANK(AD73)," ",INDEX(Starterfeld!$D:$D,MATCH(Z76,Starterfeld!$A:$A,0))) ->  | AD76: =AD73 -> 0 | AI76: =IF(ISBLANK(AE76)," ",AE76+(AF76-AG76)*50+IF(COUNT(AE73:AE76)=3,(AG73+AG74+AG75)*40,(AG73+AG74+AG75)*30)) ->  | AJ76: 0 | AK76: =IF(COUNTIF(AL$13:AL76,AL76)>1,"X","") -> X | AL76: =IF(ISBLANK(AP73)," ",INDEX(BV:BV,MATCH(AP73,BR:BR,0))) ->  | AM76: =IF(ISBLANK(AP73)," ",INDEX(Starterfeld!$D:$D,MATCH(AL76,Starterfeld!$A:$A,0))) ->  | AP76: =AP73 -> 0 | AU76: =IF(ISBLANK(AQ76)," ",AQ76+(AR76-AS76)*50+IF(COUNT(AQ73:AQ76)=3,(AS73+AS74+AS75)*40,(AS73+AS74+AS75)*30)) ->  | AV76: 0 | BC76: 208 | BD76: =Serie1!$C246 -> 228 | BE76: =Serie1!$C247 -> 248 | BF76: =Serie1!$C248 -> 268 | BG76: =Serie1!$C249 -> 288 | BH76: 208 | BI76: =Serie2!$C246 -> 228 | BJ76: =Serie2!$C247 -> 248 | BK76: =Serie2!$C248 -> 268 | BL76: =Serie2!$C249 -> 288 | BM76: 208 | BN76: =Serie3!$C246 -> 228 | BO76: =Serie3!$C247 -> 248 | BP76: =Serie3!$C248 -> 268 | BQ76: =Serie3!$C249 -> 288 | BR76: 208 | BS76: =Serie4!$C246 -> 228 | BT76: =Serie4!$C247 -> 248 | BU76: =Serie4!$C248 -> 268 | BV76: =Serie4!$C249 -> 288 | BW76: 208 | BX76: =F257 -> 0 | BY76: =R257 -> 0 | BZ76: =AD257 -> 0 | CA76: =AP257 -> 0
A77: =IF(COUNTIF(B$13:B77,B77)>1,"X","") -> X | B77: =IF(ISBLANK(F77)," ",INDEX(BD:BD,MATCH(F77,BC:BC,0))) ->  | C77: =IF(ISBLANK(F77)," ",INDEX(Starterfeld!$D:$D,MATCH($B77,Starterfeld!$A:$A,0))) ->  | K77: =IF(ISBLANK(G77)," ",G77+(H77-I77)*50+IF(COUNT(G77:G80)=3,(I78+I79+I80)*40,(I78+I79+I80)*30)) ->  | L77: 0 | M77: =IF(COUNTIF(N$13:N77,N77)>1,"X","") -> X | N77: =IF(ISBLANK(R77)," ",INDEX(BI:BI,MATCH(R77,BH:BH,0))) ->  | O77: =IF(ISBLANK(R77)," ",INDEX(Starterfeld!$D:$D,MATCH(N77,Starterfeld!$A:$A,0))) ->  | W77: =IF(ISBLANK(S77)," ",S77+(T77-U77)*50+IF(COUNT(S77:S80)=3,(U78+U79+U80)*40,(U78+U79+U80)*30)) ->  | X77: 0 | Y77: =IF(COUNTIF(Z$13:Z77,Z77)>1,"X","") -> X | Z77: =IF(ISBLANK(AD77)," ",INDEX(BN:BN,MATCH(AD77,BM:BM,0))) ->  | AA77: =IF(ISBLANK(AD77)," ",INDEX(Starterfeld!$D:$D,MATCH(Z77,Starterfeld!$A:$A,0))) ->  | AI77: =IF(ISBLANK(AE77)," ",AE77+(AF77-AG77)*50+IF(COUNT(AE77:AE80)=3,(AG78+AG79+AG80)*40,(AG78+AG79+AG80)*30)) ->  | AJ77: 0 | AK77: =IF(COUNTIF(AL$13:AL77,AL77)>1,"X","") -> X | AL77: =IF(ISBLANK(AP77)," ",INDEX(BS:BS,MATCH(AP77,BR:BR,0))) ->  | AM77: =IF(ISBLANK(AP77)," ",INDEX(Starterfeld!$D:$D,MATCH(AL77,Starterfeld!$A:$A,0))) ->  | AU77: =IF(ISBLANK(AQ77)," ",AQ77+(AR77-AS77)*50+IF(COUNT(AQ77:AQ80)=3,(AS78+AS79+AS80)*40,(AS78+AS79+AS80)*30)) ->  | AV77: 0 | AY77: =SUM(L77:L80) -> 0 | AZ77: =SUM(X77:X80) -> 0 | BA77: =SUM(AJ77:AJ80) -> 0 | BB77: =SUM(AV77:AV80) -> 0 | BC77: 209 | BD77: =Serie1!$C250 -> 229 | BE77: =Serie1!$C251 -> 249 | BF77: =Serie1!$C252 -> 269 | BG77: =Serie1!$C253 -> 289 | BH77: 209 | BI77: =Serie2!$C250 -> 229 | BJ77: =Serie2!$C251 -> 249 | BK77: =Serie2!$C252 -> 269 | BL77: =Serie2!$C253 -> 289 | BM77: 209 | BN77: =Serie3!$C250 -> 229 | BO77: =Serie3!$C251 -> 249 | BP77: =Serie3!$C252 -> 269 | BQ77: =Serie3!$C253 -> 289 | BR77: 209 | BS77: =Serie4!$C250 -> 229 | BT77: =Serie4!$C251 -> 249 | BU77: =Serie4!$C252 -> 269 | BV77: =Serie4!$C253 -> 289 | BW77: 209 | BX77: =F261 -> 0 | BY77: =R261 -> 0 | BZ77: =AD261 -> 0 | CA77: =AP261 -> 0
A78: =IF(COUNTIF(B$13:B78,B78)>1,"X","") -> X | B78: =IF(ISBLANK(F77)," ",INDEX(BE:BE,MATCH(F77,BC:BC,0))) ->  | C78: =IF(ISBLANK(F77)," ",INDEX(Starterfeld!$D:$D,MATCH($B78,Starterfeld!$A:$A,0))) ->  | F78: =F77 -> 0 | K78: =IF(ISBLANK(G78)," ",G78+(H78-I78)*50+IF(COUNT(G77:G80)=3,(I77+I79+I80)*40,(I77+I79+I80)*30)) ->  | L78: =I78*1 -> 0 | M78: =IF(COUNTIF(N$13:N78,N78)>1,"X","") -> X | N78: =IF(ISBLANK(R77)," ",INDEX(BJ:BJ,MATCH(R77,BH:BH,0))) ->  | O78: =IF(ISBLANK(R77)," ",INDEX(Starterfeld!$D:$D,MATCH(N78,Starterfeld!$A:$A,0))) ->  | R78: =R77 -> 0 | W78: =IF(ISBLANK(S78)," ",S78+(T78-U78)*50+IF(COUNT(S77:S80)=3,(U77+U79+U80)*40,(U77+U79+U80)*30)) ->  | X78: =U78*1 -> 0 | Y78: =IF(COUNTIF(Z$13:Z78,Z78)>1,"X","") -> X | Z78: =IF(ISBLANK(AD77)," ",INDEX(BO:BO,MATCH(AD77,BM:BM,0))) ->  | AA78: =IF(ISBLANK(AD77)," ",INDEX(Starterfeld!$D:$D,MATCH(Z78,Starterfeld!$A:$A,0))) ->  | AD78: =AD77 -> 0 | AI78: =IF(ISBLANK(AE78)," ",AE78+(AF78-AG78)*50+IF(COUNT(AE77:AE80)=3,(AG77+AG79+AG80)*40,(AG77+AG79+AG80)*30)) ->  | AJ78: =AG78*1 -> 0 | AK78: =IF(COUNTIF(AL$13:AL78,AL78)>1,"X","") -> X | AL78: =IF(ISBLANK(AP77)," ",INDEX(BT:BT,MATCH(AP77,BR:BR,0))) ->  | AM78: =IF(ISBLANK(AP77)," ",INDEX(Starterfeld!$D:$D,MATCH(AL78,Starterfeld!$A:$A,0))) ->  | AP78: =AP77 -> 0 | AU78: =IF(ISBLANK(AQ78)," ",AQ78+(AR78-AS78)*50+IF(COUNT(AQ77:AQ80)=3,(AS77+AS79+AS80)*40,(AS77+AS79+AS80)*30)) ->  | AV78: =AS78*1 -> 0 | BC78: 210 | BD78: =Serie1!$C254 -> 230 | BE78: =Serie1!$C255 -> 250 | BF78: =Serie1!$C256 -> 270 | BG78: =Serie1!$C257 -> 290 | BH78: 210 | BI78: =Serie2!$C254 -> 230 | BJ78: =Serie2!$C255 -> 250 | BK78: =Serie2!$C256 -> 270 | BL78: =Serie2!$C257 -> 290 | BM78: 210 | BN78: =Serie3!$C254 -> 230 | BO78: =Serie3!$C255 -> 250 | BP78: =Serie3!$C256 -> 270 | BQ78: =Serie3!$C257 -> 290 | BR78: 210 | BS78: =Serie4!$C254 -> 230 | BT78: =Serie4!$C255 -> 250 | BU78: =Serie4!$C256 -> 270 | BV78: =Serie4!$C257 -> 290 | BW78: 210 | BX78: =F265 -> 0 | BY78: =R265 -> 0 | BZ78: =AD265 -> 0 | CA78: =AP265 -> 0
A79: =IF(COUNTIF(B$13:B79,B79)>1,"X","") -> X | B79: =IF(ISBLANK(F77)," ",INDEX(BF:BF,MATCH(F77,BC:BC,0))) ->  | C79: =IF(ISBLANK(F77)," ",INDEX(Starterfeld!$D:$D,MATCH($B79,Starterfeld!$A:$A,0))) ->  | F79: =F77 -> 0 | K79: =IF(ISBLANK(G79)," ",G79+(H79-I79)*50+IF(COUNT(G77:G80)=3,(I77+I78+I80)*40,(I77+I78+I80)*30)) ->  | L79: 0 | M79: =IF(COUNTIF(N$13:N79,N79)>1,"X","") -> X | N79: =IF(ISBLANK(R77)," ",INDEX(BK:BK,MATCH(R77,BH:BH,0))) ->  | O79: =IF(ISBLANK(R77)," ",INDEX(Starterfeld!$D:$D,MATCH(N79,Starterfeld!$A:$A,0))) ->  | R79: =R77 -> 0 | W79: =IF(ISBLANK(S79)," ",S79+(T79-U79)*50+IF(COUNT(S77:S80)=3,(U77+U78+U80)*40,(U77+U78+U80)*30)) ->  | X79: 0 | Y79: =IF(COUNTIF(Z$13:Z79,Z79)>1,"X","") -> X | Z79: =IF(ISBLANK(AD77)," ",INDEX(BP:BP,MATCH(AD77,BM:BM,0))) ->  | AA79: =IF(ISBLANK(AD77)," ",INDEX(Starterfeld!$D:$D,MATCH(Z79,Starterfeld!$A:$A,0))) ->  | AD79: =AD77 -> 0 | AI79: =IF(ISBLANK(AE79)," ",AE79+(AF79-AG79)*50+IF(COUNT(AE77:AE80)=3,(AG77+AG78+AG80)*40,(AG77+AG78+AG80)*30)) ->  | AJ79: 0 | AK79: =IF(COUNTIF(AL$13:AL79,AL79)>1,"X","") -> X | AL79: =IF(ISBLANK(AP77)," ",INDEX(BU:BU,MATCH(AP77,BR:BR,0))) ->  | AM79: =IF(ISBLANK(AP77)," ",INDEX(Starterfeld!$D:$D,MATCH(AL79,Starterfeld!$A:$A,0))) ->  | AP79: =AP77 -> 0 | AU79: =IF(ISBLANK(AQ79)," ",AQ79+(AR79-AS79)*50+IF(COUNT(AQ77:AQ80)=3,(AS77+AS78+AS80)*40,(AS77+AS78+AS80)*30)) ->  | AV79: 0 | BC79: 211 | BD79: =Serie1!$C258 -> 231 | BE79: =Serie1!$C259 -> 251 | BF79: =Serie1!$C260 -> 271 | BG79: =Serie1!$C261 -> 291 | BH79: 211 | BI79: =Serie2!$C258 -> 231 | BJ79: =Serie2!$C259 -> 251 | BK79: =Serie2!$C260 -> 271 | BL79: =Serie2!$C261 -> 291 | BM79: 211 | BN79: =Serie3!$C258 -> 231 | BO79: =Serie3!$C259 -> 251 | BP79: =Serie3!$C260 -> 271 | BQ79: =Serie3!$C261 -> 291 | BR79: 211 | BS79: =Serie4!$C258 -> 231 | BT79: =Serie4!$C259 -> 251 | BU79: =Serie4!$C260 -> 271 | BV79: =Serie4!$C261 -> 291 | BW79: 211 | BX79: =F269 -> 0 | BY79: =R269 -> 0 | BZ79: =AD269 -> 0 | CA79: =AP269 -> 0
A80: =IF(COUNTIF(B$13:B80,B80)>1,"X","") -> X | B80: =IF(ISBLANK(F77)," ",INDEX(BG:BG,MATCH(F77,BC:BC,0))) ->  | C80: =IF(ISBLANK(F77)," ",INDEX(Starterfeld!$D:$D,MATCH($B80,Starterfeld!$A:$A,0))) ->  | F80: =F77 -> 0 | K80: =IF(ISBLANK(G80)," ",G80+(H80-I80)*50+IF(COUNT(G77:G80)=3,(I77+I78+I79)*40,(I77+I78+I79)*30)) ->  | L80: 0 | M80: =IF(COUNTIF(N$13:N80,N80)>1,"X","") -> X | N80: =IF(ISBLANK(R77)," ",INDEX(BL:BL,MATCH(R77,BH:BH,0))) ->  | O80: =IF(ISBLANK(R77)," ",INDEX(Starterfeld!$D:$D,MATCH(N80,Starterfeld!$A:$A,0))) ->  | R80: =R77 -> 0 | W80: =IF(ISBLANK(S80)," ",S80+(T80-U80)*50+IF(COUNT(S77:S80)=3,(U77+U78+U79)*40,(U77+U78+U79)*30)) ->  | X80: 0 | Y80: =IF(COUNTIF(Z$13:Z80,Z80)>1,"X","") -> X | Z80: =IF(ISBLANK(AD77)," ",INDEX(BQ:BQ,MATCH(AD77,BM:BM,0))) ->  | AA80: =IF(ISBLANK(AD77)," ",INDEX(Starterfeld!$D:$D,MATCH(Z80,Starterfeld!$A:$A,0))) ->  | AD80: =AD77 -> 0 | AI80: =IF(ISBLANK(AE80)," ",AE80+(AF80-AG80)*50+IF(COUNT(AE77:AE80)=3,(AG77+AG78+AG79)*40,(AG77+AG78+AG79)*30)) ->  | AJ80: 0 | AK80: =IF(COUNTIF(AL$13:AL80,AL80)>1,"X","") -> X | AL80: =IF(ISBLANK(AP77)," ",INDEX(BV:BV,MATCH(AP77,BR:BR,0))) ->  | AM80: =IF(ISBLANK(AP77)," ",INDEX(Starterfeld!$D:$D,MATCH(AL80,Starterfeld!$A:$A,0))) ->  | AP80: =AP77 -> 0 | AU80: =IF(ISBLANK(AQ80)," ",AQ80+(AR80-AS80)*50+IF(COUNT(AQ77:AQ80)=3,(AS77+AS78+AS79)*40,(AS77+AS78+AS79)*30)) ->  | AV80: 0 | BC80: 212 | BD80: =Serie1!$C262 -> 232 | BE80: =Serie1!$C263 -> 252 | BF80: =Serie1!$C264 -> 272 | BG80: =Serie1!$C265 -> 292 | BH80: 212 | BI80: =Serie2!$C262 -> 232 | BJ80: =Serie2!$C263 -> 252 | BK80: =Serie2!$C264 -> 272 | BL80: =Serie2!$C265 -> 292 | BM80: 212 | BN80: =Serie3!$C262 -> 232 | BO80: =Serie3!$C263 -> 252 | BP80: =Serie3!$C264 -> 272 | BQ80: =Serie3!$C265 -> 292 | BR80: 212 | BS80: =Serie4!$C262 -> 232 | BT80: =Serie4!$C263 -> 252 | BU80: =Serie4!$C264 -> 272 | BV80: =Serie4!$C265 -> 292 | BW80: 212 | BX80: =F273 -> 0 | BY80: =R273 -> 0 | BZ80: =AD273 -> 0 | CA80: =AP273 -> 0
A81: =IF(COUNTIF(B$13:B81,B81)>1,"X","") -> X | B81: =IF(ISBLANK(F81)," ",INDEX(BD:BD,MATCH(F81,BC:BC,0))) ->  | C81: =IF(ISBLANK(F81)," ",INDEX(Starterfeld!$D:$D,MATCH($B81,Starterfeld!$A:$A,0))) ->  | K81: =IF(ISBLANK(G81)," ",G81+(H81-I81)*50+IF(COUNT(G81:G84)=3,(I82+I83+I84)*40,(I82+I83+I84)*30)) ->  | L81: 0 | M81: =IF(COUNTIF(N$13:N81,N81)>1,"X","") -> X | N81: =IF(ISBLANK(R81)," ",INDEX(BI:BI,MATCH(R81,BH:BH,0))) ->  | O81: =IF(ISBLANK(R81)," ",INDEX(Starterfeld!$D:$D,MATCH(N81,Starterfeld!$A:$A,0))) ->  | W81: =IF(ISBLANK(S81)," ",S81+(T81-U81)*50+IF(COUNT(S81:S84)=3,(U82+U83+U84)*40,(U82+U83+U84)*30)) ->  | X81: 0 | Y81: =IF(COUNTIF(Z$13:Z81,Z81)>1,"X","") -> X | Z81: =IF(ISBLANK(AD81)," ",INDEX(BN:BN,MATCH(AD81,BM:BM,0))) ->  | AA81: =IF(ISBLANK(AD81)," ",INDEX(Starterfeld!$D:$D,MATCH(Z81,Starterfeld!$A:$A,0))) ->  | AI81: =IF(ISBLANK(AE81)," ",AE81+(AF81-AG81)*50+IF(COUNT(AE81:AE84)=3,(AG82+AG83+AG84)*40,(AG82+AG83+AG84)*30)) ->  | AJ81: 0 | AK81: =IF(COUNTIF(AL$13:AL81,AL81)>1,"X","") -> X | AL81: =IF(ISBLANK(AP81)," ",INDEX(BS:BS,MATCH(AP81,BR:BR,0))) ->  | AM81: =IF(ISBLANK(AP81)," ",INDEX(Starterfeld!$D:$D,MATCH(AL81,Starterfeld!$A:$A,0))) ->  | AU81: =IF(ISBLANK(AQ81)," ",AQ81+(AR81-AS81)*50+IF(COUNT(AQ81:AQ84)=3,(AS82+AS83+AS84)*40,(AS82+AS83+AS84)*30)) ->  | AV81: 0 | AY81: =SUM(L81:L84) -> 0 | AZ81: =SUM(X81:X84) -> 0 | BA81: =SUM(AJ81:AJ84) -> 0 | BB81: =SUM(AV81:AV84) -> 0 | BC81: 213 | BD81: =Serie1!$C266 -> 233 | BE81: =Serie1!$C267 -> 253 | BF81: =Serie1!$C268 -> 273 | BG81: =Serie1!$C269 -> 293 | BH81: 213 | BI81: =Serie2!$C266 -> 233 | BJ81: =Serie2!$C267 -> 253 | BK81: =Serie2!$C268 -> 273 | BL81: =Serie2!$C269 -> 293 | BM81: 213 | BN81: =Serie3!$C266 -> 233 | BO81: =Serie3!$C267 -> 253 | BP81: =Serie3!$C268 -> 273 | BQ81: =Serie3!$C269 -> 293 | BR81: 213 | BS81: =Serie4!$C266 -> 233 | BT81: =Serie4!$C267 -> 253 | BU81: =Serie4!$C268 -> 273 | BV81: =Serie4!$C269 -> 293 | BW81: 213 | BX81: =F277 -> 0 | BY81: =R277 -> 0 | BZ81: =AD277 -> 0 | CA81: =AP277 -> 0
A82: =IF(COUNTIF(B$13:B82,B82)>1,"X","") -> X | B82: =IF(ISBLANK(F81)," ",INDEX(BE:BE,MATCH(F81,BC:BC,0))) ->  | C82: =IF(ISBLANK(F81)," ",INDEX(Starterfeld!$D:$D,MATCH($B82,Starterfeld!$A:$A,0))) ->  | F82: =F81 -> 0 | K82: =IF(ISBLANK(G82)," ",G82+(H82-I82)*50+IF(COUNT(G81:G84)=3,(I81+I83+I84)*40,(I81+I83+I84)*30)) ->  | L82: 0 | M82: =IF(COUNTIF(N$13:N82,N82)>1,"X","") -> X | N82: =IF(ISBLANK(R81)," ",INDEX(BJ:BJ,MATCH(R81,BH:BH,0))) ->  | O82: =IF(ISBLANK(R81)," ",INDEX(Starterfeld!$D:$D,MATCH(N82,Starterfeld!$A:$A,0))) ->  | R82: =R81 -> 0 | W82: =IF(ISBLANK(S82)," ",S82+(T82-U82)*50+IF(COUNT(S81:S84)=3,(U81+U83+U84)*40,(U81+U83+U84)*30)) ->  | X82: 0 | Y82: =IF(COUNTIF(Z$13:Z82,Z82)>1,"X","") -> X | Z82: =IF(ISBLANK(AD81)," ",INDEX(BO:BO,MATCH(AD81,BM:BM,0))) ->  | AA82: =IF(ISBLANK(AD81)," ",INDEX(Starterfeld!$D:$D,MATCH(Z82,Starterfeld!$A:$A,0))) ->  | AD82: =AD81 -> 0 | AI82: =IF(ISBLANK(AE82)," ",AE82+(AF82-AG82)*50+IF(COUNT(AE81:AE84)=3,(AG81+AG83+AG84)*40,(AG81+AG83+AG84)*30)) ->  | AJ82: 0 | AK82: =IF(COUNTIF(AL$13:AL82,AL82)>1,"X","") -> X | AL82: =IF(ISBLANK(AP81)," ",INDEX(BT:BT,MATCH(AP81,BR:BR,0))) ->  | AM82: =IF(ISBLANK(AP81)," ",INDEX(Starterfeld!$D:$D,MATCH(AL82,Starterfeld!$A:$A,0))) ->  | AP82: =AP81 -> 0 | AU82: =IF(ISBLANK(AQ82)," ",AQ82+(AR82-AS82)*50+IF(COUNT(AQ81:AQ84)=3,(AS81+AS83+AS84)*40,(AS81+AS83+AS84)*30)) ->  | AV82: 0 | BC82: 214 | BD82: =Serie1!$C270 -> 234 | BE82: =Serie1!$C271 -> 254 | BF82: =Serie1!$C272 -> 274 | BG82: =Serie1!$C273 -> 294 | BH82: 214 | BI82: =Serie2!$C270 -> 234 | BJ82: =Serie2!$C271 -> 254 | BK82: =Serie2!$C272 -> 274 | BL82: =Serie2!$C273 -> 294 | BM82: 214 | BN82: =Serie3!$C270 -> 234 | BO82: =Serie3!$C271 -> 254 | BP82: =Serie3!$C272 -> 274 | BQ82: =Serie3!$C273 -> 294 | BR82: 214 | BS82: =Serie4!$C270 -> 234 | BT82: =Serie4!$C271 -> 254 | BU82: =Serie4!$C272 -> 274 | BV82: =Serie4!$C273 -> 294 | BW82: 214 | BX82: =F281 -> 0 | BY82: =R281 -> 0 | BZ82: =AD281 -> 0 | CA82: =AP281 -> 0
A83: =IF(COUNTIF(B$13:B83,B83)>1,"X","") -> X | B83: =IF(ISBLANK(F81)," ",INDEX(BF:BF,MATCH(F81,BC:BC,0))) ->  | C83: =IF(ISBLANK(F81)," ",INDEX(Starterfeld!$D:$D,MATCH($B83,Starterfeld!$A:$A,0))) ->  | F83: =F81 -> 0 | K83: =IF(ISBLANK(G83)," ",G83+(H83-I83)*50+IF(COUNT(G81:G84)=3,(I81+I82+I84)*40,(I81+I82+I84)*30)) ->  | L83: 0 | M83: =IF(COUNTIF(N$13:N83,N83)>1,"X","") -> X | N83: =IF(ISBLANK(R81)," ",INDEX(BK:BK,MATCH(R81,BH:BH,0))) ->  | O83: =IF(ISBLANK(R81)," ",INDEX(Starterfeld!$D:$D,MATCH(N83,Starterfeld!$A:$A,0))) ->  | R83: =R81 -> 0 | W83: =IF(ISBLANK(S83)," ",S83+(T83-U83)*50+IF(COUNT(S81:S84)=3,(U81+U82+U84)*40,(U81+U82+U84)*30)) ->  | X83: 0 | Y83: =IF(COUNTIF(Z$13:Z83,Z83)>1,"X","") -> X | Z83: =IF(ISBLANK(AD81)," ",INDEX(BP:BP,MATCH(AD81,BM:BM,0))) ->  | AA83: =IF(ISBLANK(AD81)," ",INDEX(Starterfeld!$D:$D,MATCH(Z83,Starterfeld!$A:$A,0))) ->  | AD83: =AD81 -> 0 | AI83: =IF(ISBLANK(AE83)," ",AE83+(AF83-AG83)*50+IF(COUNT(AE81:AE84)=3,(AG81+AG82+AG84)*40,(AG81+AG82+AG84)*30)) ->  | AJ83: 0 | AK83: =IF(COUNTIF(AL$13:AL83,AL83)>1,"X","") -> X | AL83: =IF(ISBLANK(AP81)," ",INDEX(BU:BU,MATCH(AP81,BR:BR,0))) ->  | AM83: =IF(ISBLANK(AP81)," ",INDEX(Starterfeld!$D:$D,MATCH(AL83,Starterfeld!$A:$A,0))) ->  | AP83: =AP81 -> 0 | AU83: =IF(ISBLANK(AQ83)," ",AQ83+(AR83-AS83)*50+IF(COUNT(AQ81:AQ84)=3,(AS81+AS82+AS84)*40,(AS81+AS82+AS84)*30)) ->  | AV83: 0 | BC83: 215 | BD83: =Serie1!$C274 -> 235 | BE83: =Serie1!$C275 -> 255 | BF83: =Serie1!$C276 -> 275 | BG83: =Serie1!$C277 -> 295 | BH83: 215 | BI83: =Serie2!$C274 -> 235 | BJ83: =Serie2!$C275 -> 255 | BK83: =Serie2!$C276 -> 275 | BL83: =Serie2!$C277 -> 295 | BM83: 215 | BN83: =Serie3!$C274 -> 235 | BO83: =Serie3!$C275 -> 255 | BP83: =Serie3!$C276 -> 275 | BQ83: =Serie3!$C277 -> 295 | BR83: 215 | BS83: =Serie4!$C274 -> 235 | BT83: =Serie4!$C275 -> 255 | BU83: =Serie4!$C276 -> 275 | BV83: =Serie4!$C277 -> 295 | BW83: 215 | BX83: =F285 -> 0 | BY83: =R285 -> 0 | BZ83: =AD285 -> 0 | CA83: =AP285 -> 0
A84: =IF(COUNTIF(B$13:B84,B84)>1,"X","") -> X | B84: =IF(ISBLANK(F81)," ",INDEX(BG:BG,MATCH(F81,BC:BC,0))) ->  | C84: =IF(ISBLANK(F81)," ",INDEX(Starterfeld!$D:$D,MATCH($B84,Starterfeld!$A:$A,0))) ->  | F84: =F81 -> 0 | K84: =IF(ISBLANK(G84)," ",G84+(H84-I84)*50+IF(COUNT(G81:G84)=3,(I81+I82+I83)*40,(I81+I82+I83)*30)) ->  | L84: 0 | M84: =IF(COUNTIF(N$13:N84,N84)>1,"X","") -> X | N84: =IF(ISBLANK(R81)," ",INDEX(BL:BL,MATCH(R81,BH:BH,0))) ->  | O84: =IF(ISBLANK(R81)," ",INDEX(Starterfeld!$D:$D,MATCH(N84,Starterfeld!$A:$A,0))) ->  | R84: =R81 -> 0 | W84: =IF(ISBLANK(S84)," ",S84+(T84-U84)*50+IF(COUNT(S81:S84)=3,(U81+U82+U83)*40,(U81+U82+U83)*30)) ->  | X84: 0 | Y84: =IF(COUNTIF(Z$13:Z84,Z84)>1,"X","") -> X | Z84: =IF(ISBLANK(AD81)," ",INDEX(BQ:BQ,MATCH(AD81,BM:BM,0))) ->  | AA84: =IF(ISBLANK(AD81)," ",INDEX(Starterfeld!$D:$D,MATCH(Z84,Starterfeld!$A:$A,0))) ->  | AD84: =AD81 -> 0 | AI84: =IF(ISBLANK(AE84)," ",AE84+(AF84-AG84)*50+IF(COUNT(AE81:AE84)=3,(AG81+AG82+AG83)*40,(AG81+AG82+AG83)*30)) ->  | AJ84: 0 | AK84: =IF(COUNTIF(AL$13:AL84,AL84)>1,"X","") -> X | AL84: =IF(ISBLANK(AP81)," ",INDEX(BV:BV,MATCH(AP81,BR:BR,0))) ->  | AM84: =IF(ISBLANK(AP81)," ",INDEX(Starterfeld!$D:$D,MATCH(AL84,Starterfeld!$A:$A,0))) ->  | AP84: =AP81 -> 0 | AU84: =IF(ISBLANK(AQ84)," ",AQ84+(AR84-AS84)*50+IF(COUNT(AQ81:AQ84)=3,(AS81+AS82+AS83)*40,(AS81+AS82+AS83)*30)) ->  | AV84: 0 | BC84: 216 | BD84: =Serie1!$C278 -> 236 | BE84: =Serie1!$C279 -> 256 | BF84: =Serie1!$C280 -> 276 | BG84: =Serie1!$C281 -> 296 | BH84: 216 | BI84: =Serie2!$C278 -> 236 | BJ84: =Serie2!$C279 -> 256 | BK84: =Serie2!$C280 -> 276 | BL84: =Serie2!$C281 -> 296 | BM84: 216 | BN84: =Serie3!$C278 -> 236 | BO84: =Serie3!$C279 -> 256 | BP84: =Serie3!$C280 -> 276 | BQ84: =Serie3!$C281 -> 296 | BR84: 216 | BS84: =Serie4!$C278 -> 236 | BT84: =Serie4!$C279 -> 256 | BU84: =Serie4!$C280 -> 276 | BV84: =Serie4!$C281 -> 296 | BW84: 216 | BX84: =F289 -> 0 | BY84: =R289 -> 0 | BZ84: =AD289 -> 0 | CA84: =AP289 -> 0
A85: =IF(COUNTIF(B$13:B85,B85)>1,"X","") -> X | B85: =IF(ISBLANK(F85)," ",INDEX(BD:BD,MATCH(F85,BC:BC,0))) ->  | C85: =IF(ISBLANK(F85)," ",INDEX(Starterfeld!$D:$D,MATCH($B85,Starterfeld!$A:$A,0))) ->  | K85: =IF(ISBLANK(G85)," ",G85+(H85-I85)*50+IF(COUNT(G85:G88)=3,(I86+I87+I88)*40,(I86+I87+I88)*30)) ->  | L85: 0 | M85: =IF(COUNTIF(N$13:N85,N85)>1,"X","") -> X | N85: =IF(ISBLANK(R85)," ",INDEX(BI:BI,MATCH(R85,BH:BH,0))) ->  | O85: =IF(ISBLANK(R85)," ",INDEX(Starterfeld!$D:$D,MATCH(N85,Starterfeld!$A:$A,0))) ->  | W85: =IF(ISBLANK(S85)," ",S85+(T85-U85)*50+IF(COUNT(S85:S88)=3,(U86+U87+U88)*40,(U86+U87+U88)*30)) ->  | X85: 0 | Y85: =IF(COUNTIF(Z$13:Z85,Z85)>1,"X","") -> X | Z85: =IF(ISBLANK(AD85)," ",INDEX(BN:BN,MATCH(AD85,BM:BM,0))) ->  | AA85: =IF(ISBLANK(AD85)," ",INDEX(Starterfeld!$D:$D,MATCH(Z85,Starterfeld!$A:$A,0))) ->  | AI85: =IF(ISBLANK(AE85)," ",AE85+(AF85-AG85)*50+IF(COUNT(AE85:AE88)=3,(AG86+AG87+AG88)*40,(AG86+AG87+AG88)*30)) ->  | AJ85: 0 | AK85: =IF(COUNTIF(AL$13:AL85,AL85)>1,"X","") -> X | AL85: =IF(ISBLANK(AP85)," ",INDEX(BS:BS,MATCH(AP85,BR:BR,0))) ->  | AM85: =IF(ISBLANK(AP85)," ",INDEX(Starterfeld!$D:$D,MATCH(AL85,Starterfeld!$A:$A,0))) ->  | AU85: =IF(ISBLANK(AQ85)," ",AQ85+(AR85-AS85)*50+IF(COUNT(AQ85:AQ88)=3,(AS86+AS87+AS88)*40,(AS86+AS87+AS88)*30)) ->  | AV85: 0 | AY85: =SUM(L85:L88) -> 0 | AZ85: =SUM(X85:X88) -> 0 | BA85: =SUM(AJ85:AJ88) -> 0 | BB85: =SUM(AV85:AV88) -> 0 | BC85: 217 | BD85: =Serie1!$C282 -> 237 | BE85: =Serie1!$C283 -> 257 | BF85: =Serie1!$C284 -> 277 | BG85: =Serie1!$C285 -> 297 | BH85: 217 | BI85: =Serie2!$C282 -> 237 | BJ85: =Serie2!$C283 -> 257 | BK85: =Serie2!$C284 -> 277 | BL85: =Serie2!$C285 -> 297 | BM85: 217 | BN85: =Serie3!$C282 -> 237 | BO85: =Serie3!$C283 -> 257 | BP85: =Serie3!$C284 -> 277 | BQ85: =Serie3!$C285 -> 297 | BR85: 217 | BS85: =Serie4!$C282 -> 237 | BT85: =Serie4!$C283 -> 257 | BU85: =Serie4!$C284 -> 277 | BV85: =Serie4!$C285 -> 297 | BW85: 217 | BX85: =F293 -> 0 | BY85: =R293 -> 0 | BZ85: =AD293 -> 0 | CA85: =AP293 -> 0
A86: =IF(COUNTIF(B$13:B86,B86)>1,"X","") -> X | B86: =IF(ISBLANK(F85)," ",INDEX(BE:BE,MATCH(F85,BC:BC,0))) ->  | C86: =IF(ISBLANK(F85)," ",INDEX(Starterfeld!$D:$D,MATCH($B86,Starterfeld!$A:$A,0))) ->  | F86: =F85 -> 0 | K86: =IF(ISBLANK(G86)," ",G86+(H86-I86)*50+IF(COUNT(G85:G88)=3,(I85+I87+I88)*40,(I85+I87+I88)*30)) ->  | L86: 0 | M86: =IF(COUNTIF(N$13:N86,N86)>1,"X","") -> X | N86: =IF(ISBLANK(R85)," ",INDEX(BJ:BJ,MATCH(R85,BH:BH,0))) ->  | O86: =IF(ISBLANK(R85)," ",INDEX(Starterfeld!$D:$D,MATCH(N86,Starterfeld!$A:$A,0))) ->  | R86: =R85 -> 0 | W86: =IF(ISBLANK(S86)," ",S86+(T86-U86)*50+IF(COUNT(S85:S88)=3,(U85+U87+U88)*40,(U85+U87+U88)*30)) ->  | X86: 0 | Y86: =IF(COUNTIF(Z$13:Z86,Z86)>1,"X","") -> X | Z86: =IF(ISBLANK(AD85)," ",INDEX(BO:BO,MATCH(AD85,BM:BM,0))) ->  | AA86: =IF(ISBLANK(AD85)," ",INDEX(Starterfeld!$D:$D,MATCH(Z86,Starterfeld!$A:$A,0))) ->  | AD86: =AD85 -> 0 | AI86: =IF(ISBLANK(AE86)," ",AE86+(AF86-AG86)*50+IF(COUNT(AE85:AE88)=3,(AG85+AG87+AG88)*40,(AG85+AG87+AG88)*30)) ->  | AJ86: 0 | AK86: =IF(COUNTIF(AL$13:AL86,AL86)>1,"X","") -> X | AL86: =IF(ISBLANK(AP85)," ",INDEX(BT:BT,MATCH(AP85,BR:BR,0))) ->  | AM86: =IF(ISBLANK(AP85)," ",INDEX(Starterfeld!$D:$D,MATCH(AL86,Starterfeld!$A:$A,0))) ->  | AP86: =AP85 -> 0 | AU86: =IF(ISBLANK(AQ86)," ",AQ86+(AR86-AS86)*50+IF(COUNT(AQ85:AQ88)=3,(AS85+AS87+AS88)*40,(AS85+AS87+AS88)*30)) ->  | AV86: 0 | BC86: 218 | BD86: =Serie1!$C286 -> 238 | BE86: =Serie1!$C287 -> 258 | BF86: =Serie1!$C288 -> 278 | BG86: =Serie1!$C289 -> 298 | BH86: 218 | BI86: =Serie2!$C286 -> 238 | BJ86: =Serie2!$C287 -> 258 | BK86: =Serie2!$C288 -> 278 | BL86: =Serie2!$C289 -> 298 | BM86: 218 | BN86: =Serie3!$C286 -> 238 | BO86: =Serie3!$C287 -> 258 | BP86: =Serie3!$C288 -> 278 | BQ86: =Serie3!$C289 -> 298 | BR86: 218 | BS86: =Serie4!$C286 -> 238 | BT86: =Serie4!$C287 -> 258 | BU86: =Serie4!$C288 -> 278 | BV86: =Serie4!$C289 -> 298 | BW86: 218 | BX86: =F297 -> 0 | BY86: =R297 -> 0 | BZ86: =AD297 -> 0 | CA86: =AP297 -> 0
A87: =IF(COUNTIF(B$13:B87,B87)>1,"X","") -> X | B87: =IF(ISBLANK(F85)," ",INDEX(BF:BF,MATCH(F85,BC:BC,0))) ->  | C87: =IF(ISBLANK(F85)," ",INDEX(Starterfeld!$D:$D,MATCH($B87,Starterfeld!$A:$A,0))) ->  | F87: =F85 -> 0 | K87: =IF(ISBLANK(G87)," ",G87+(H87-I87)*50+IF(COUNT(G85:G88)=3,(I85+I86+I88)*40,(I85+I86+I88)*30)) ->  | L87: 0 | M87: =IF(COUNTIF(N$13:N87,N87)>1,"X","") -> X | N87: =IF(ISBLANK(R85)," ",INDEX(BK:BK,MATCH(R85,BH:BH,0))) ->  | O87: =IF(ISBLANK(R85)," ",INDEX(Starterfeld!$D:$D,MATCH(N87,Starterfeld!$A:$A,0))) ->  | R87: =R85 -> 0 | W87: =IF(ISBLANK(S87)," ",S87+(T87-U87)*50+IF(COUNT(S85:S88)=3,(U85+U86+U88)*40,(U85+U86+U88)*30)) ->  | X87: 0 | Y87: =IF(COUNTIF(Z$13:Z87,Z87)>1,"X","") -> X | Z87: =IF(ISBLANK(AD85)," ",INDEX(BP:BP,MATCH(AD85,BM:BM,0))) ->  | AA87: =IF(ISBLANK(AD85)," ",INDEX(Starterfeld!$D:$D,MATCH(Z87,Starterfeld!$A:$A,0))) ->  | AD87: =AD85 -> 0 | AI87: =IF(ISBLANK(AE87)," ",AE87+(AF87-AG87)*50+IF(COUNT(AE85:AE88)=3,(AG85+AG86+AG88)*40,(AG85+AG86+AG88)*30)) ->  | AJ87: 0 | AK87: =IF(COUNTIF(AL$13:AL87,AL87)>1,"X","") -> X | AL87: =IF(ISBLANK(AP85)," ",INDEX(BU:BU,MATCH(AP85,BR:BR,0))) ->  | AM87: =IF(ISBLANK(AP85)," ",INDEX(Starterfeld!$D:$D,MATCH(AL87,Starterfeld!$A:$A,0))) ->  | AP87: =AP85 -> 0 | AU87: =IF(ISBLANK(AQ87)," ",AQ87+(AR87-AS87)*50+IF(COUNT(AQ85:AQ88)=3,(AS85+AS86+AS88)*40,(AS85+AS86+AS88)*30)) ->  | AV87: 0 | BC87: 219 | BD87: =Serie1!$C290 -> 239 | BE87: =Serie1!$C291 -> 259 | BF87: =Serie1!$C292 -> 279 | BG87: =Serie1!$C293 -> 299 | BH87: 219 | BI87: =Serie2!$C290 -> 239 | BJ87: =Serie2!$C291 -> 259 | BK87: =Serie2!$C292 -> 279 | BL87: =Serie2!$C293 -> 299 | BM87: 219 | BN87: =Serie3!$C290 -> 239 | BO87: =Serie3!$C291 -> 259 | BP87: =Serie3!$C292 -> 279 | BQ87: =Serie3!$C293 -> 299 | BR87: 219 | BS87: =Serie4!$C290 -> 239 | BT87: =Serie4!$C291 -> 259 | BU87: =Serie4!$C292 -> 279 | BV87: =Serie4!$C293 -> 299 | BW87: 219 | BX87: =F301 -> 0 | BY87: =R301 -> 0 | BZ87: =AD301 -> 0 | CA87: =AP301 -> 0
A88: =IF(COUNTIF(B$13:B88,B88)>1,"X","") -> X | B88: =IF(ISBLANK(F85)," ",INDEX(BG:BG,MATCH(F85,BC:BC,0))) ->  | C88: =IF(ISBLANK(F85)," ",INDEX(Starterfeld!$D:$D,MATCH($B88,Starterfeld!$A:$A,0))) ->  | F88: =F85 -> 0 | K88: =IF(ISBLANK(G88)," ",G88+(H88-I88)*50+IF(COUNT(G85:G88)=3,(I85+I86+I87)*40,(I85+I86+I87)*30)) ->  | L88: 0 | M88: =IF(COUNTIF(N$13:N88,N88)>1,"X","") -> X | N88: =IF(ISBLANK(R85)," ",INDEX(BL:BL,MATCH(R85,BH:BH,0))) ->  | O88: =IF(ISBLANK(R85)," ",INDEX(Starterfeld!$D:$D,MATCH(N88,Starterfeld!$A:$A,0))) ->  | R88: =R85 -> 0 | W88: =IF(ISBLANK(S88)," ",S88+(T88-U88)*50+IF(COUNT(S85:S88)=3,(U85+U86+U87)*40,(U85+U86+U87)*30)) ->  | X88: 0 | Y88: =IF(COUNTIF(Z$13:Z88,Z88)>1,"X","") -> X | Z88: =IF(ISBLANK(AD85)," ",INDEX(BQ:BQ,MATCH(AD85,BM:BM,0))) ->  | AA88: =IF(ISBLANK(AD85)," ",INDEX(Starterfeld!$D:$D,MATCH(Z88,Starterfeld!$A:$A,0))) ->  | AD88: =AD85 -> 0 | AI88: =IF(ISBLANK(AE88)," ",AE88+(AF88-AG88)*50+IF(COUNT(AE85:AE88)=3,(AG85+AG86+AG87)*40,(AG85+AG86+AG87)*30)) ->  | AJ88: 0 | AK88: =IF(COUNTIF(AL$13:AL88,AL88)>1,"X","") -> X | AL88: =IF(ISBLANK(AP85)," ",INDEX(BV:BV,MATCH(AP85,BR:BR,0))) ->  | AM88: =IF(ISBLANK(AP85)," ",INDEX(Starterfeld!$D:$D,MATCH(AL88,Starterfeld!$A:$A,0))) ->  | AP88: =AP85 -> 0 | AU88: =IF(ISBLANK(AQ88)," ",AQ88+(AR88-AS88)*50+IF(COUNT(AQ85:AQ88)=3,(AS85+AS86+AS87)*40,(AS85+AS86+AS87)*30)) ->  | AV88: 0 | BC88: 220 | BD88: =Serie1!$C294 -> 240 | BE88: =Serie1!$C295 -> 260 | BF88: =Serie1!$C296 -> 280 | BG88: =Serie1!$C297 -> 300 | BH88: 220 | BI88: =Serie2!$C294 -> 240 | BJ88: =Serie2!$C295 -> 260 | BK88: =Serie2!$C296 -> 280 | BL88: =Serie2!$C297 -> 300 | BM88: 220 | BN88: =Serie3!$C294 -> 240 | BO88: =Serie3!$C295 -> 260 | BP88: =Serie3!$C296 -> 280 | BQ88: =Serie3!$C297 -> 300 | BR88: 220 | BS88: =Serie4!$C294 -> 240 | BT88: =Serie4!$C295 -> 260 | BU88: =Serie4!$C296 -> 280 | BV88: =Serie4!$C297 -> 300 | BW88: 220 | BX88: =F305 -> 0 | BY88: =R305 -> 0 | BZ88: =AD305 -> 0 | CA88: =AP305 -> 0
A89: =IF(COUNTIF(B$13:B89,B89)>1,"X","") -> X | B89: =IF(ISBLANK(F89)," ",INDEX(BD:BD,MATCH(F89,BC:BC,0))) ->  | C89: =IF(ISBLANK(F89)," ",INDEX(Starterfeld!$D:$D,MATCH($B89,Starterfeld!$A:$A,0))) ->  | K89: =IF(ISBLANK(G89)," ",G89+(H89-I89)*50+IF(COUNT(G89:G92)=3,(I90+I91+I92)*40,(I90+I91+I92)*30)) ->  | L89: 0 | M89: =IF(COUNTIF(N$13:N89,N89)>1,"X","") -> X | N89: =IF(ISBLANK(R89)," ",INDEX(BI:BI,MATCH(R89,BH:BH,0))) ->  | O89: =IF(ISBLANK(R89)," ",INDEX(Starterfeld!$D:$D,MATCH(N89,Starterfeld!$A:$A,0))) ->  | W89: =IF(ISBLANK(S89)," ",S89+(T89-U89)*50+IF(COUNT(S89:S92)=3,(U90+U91+U92)*40,(U90+U91+U92)*30)) ->  | X89: 0 | Y89: =IF(COUNTIF(Z$13:Z89,Z89)>1,"X","") -> X | Z89: =IF(ISBLANK(AD89)," ",INDEX(BN:BN,MATCH(AD89,BM:BM,0))) ->  | AA89: =IF(ISBLANK(AD89)," ",INDEX(Starterfeld!$D:$D,MATCH(Z89,Starterfeld!$A:$A,0))) ->  | AI89: =IF(ISBLANK(AE89)," ",AE89+(AF89-AG89)*50+IF(COUNT(AE89:AE92)=3,(AG90+AG91+AG92)*40,(AG90+AG91+AG92)*30)) ->  | AJ89: 0 | AK89: =IF(COUNTIF(AL$13:AL89,AL89)>1,"X","") -> X | AL89: =IF(ISBLANK(AP89)," ",INDEX(BS:BS,MATCH(AP89,BR:BR,0))) ->  | AM89: =IF(ISBLANK(AP89)," ",INDEX(Starterfeld!$D:$D,MATCH(AL89,Starterfeld!$A:$A,0))) ->  | AU89: =IF(ISBLANK(AQ89)," ",AQ89+(AR89-AS89)*50+IF(COUNT(AQ89:AQ92)=3,(AS90+AS91+AS92)*40,(AS90+AS91+AS92)*30)) ->  | AV89: 0 | AY89: =SUM(L89:L92) -> 0 | AZ89: =SUM(X89:X92) -> 0 | BA89: =SUM(AJ89:AJ92) -> 0 | BB89: =SUM(AV89:AV92) -> 0 | BC89: 301 | BD89: =Serie1!$C298 -> 301 | BE89: =Serie1!$C299 -> 317 | BF89: =Serie1!$C300 -> 333 | BG89: =Serie1!$C301 -> 349 | BH89: 301 | BI89: =Serie2!$C298 -> 301 | BJ89: =Serie2!$C299 -> 317 | BK89: =Serie2!$C300 -> 333 | BL89: =Serie2!$C301 -> 349 | BM89: 301 | BN89: =Serie3!$C298 -> 301 | BO89: =Serie3!$C299 -> 317 | BP89: =Serie3!$C300 -> 333 | BQ89: =Serie3!$C301 -> 349 | BR89: 301 | BS89: =Serie4!$C298 -> 301 | BT89: =Serie4!$C299 -> 317 | BU89: =Serie4!$C300 -> 333 | BV89: =Serie4!$C301 -> 349 | BW89: 301 | BX89: =F309 -> 0 | BY89: =R309 -> 0 | BZ89: =AD309 -> 0 | CA89: =AP309 -> 0
A90: =IF(COUNTIF(B$13:B90,B90)>1,"X","") -> X | B90: =IF(ISBLANK(F89)," ",INDEX(BE:BE,MATCH(F89,BC:BC,0))) ->  | C90: =IF(ISBLANK(F89)," ",INDEX(Starterfeld!$D:$D,MATCH($B90,Starterfeld!$A:$A,0))) ->  | F90: =F89 -> 0 | K90: =IF(ISBLANK(G90)," ",G90+(H90-I90)*50+IF(COUNT(G89:G92)=3,(I89+I91+I92)*40,(I89+I91+I92)*30)) ->  | L90: 0 | M90: =IF(COUNTIF(N$13:N90,N90)>1,"X","") -> X | N90: =IF(ISBLANK(R89)," ",INDEX(BJ:BJ,MATCH(R89,BH:BH,0))) ->  | O90: =IF(ISBLANK(R89)," ",INDEX(Starterfeld!$D:$D,MATCH(N90,Starterfeld!$A:$A,0))) ->  | R90: =R89 -> 0 | W90: =IF(ISBLANK(S90)," ",S90+(T90-U90)*50+IF(COUNT(S89:S92)=3,(U89+U91+U92)*40,(U89+U91+U92)*30)) ->  | X90: 0 | Y90: =IF(COUNTIF(Z$13:Z90,Z90)>1,"X","") -> X | Z90: =IF(ISBLANK(AD89)," ",INDEX(BO:BO,MATCH(AD89,BM:BM,0))) ->  | AA90: =IF(ISBLANK(AD89)," ",INDEX(Starterfeld!$D:$D,MATCH(Z90,Starterfeld!$A:$A,0))) ->  | AD90: =AD89 -> 0 | AI90: =IF(ISBLANK(AE90)," ",AE90+(AF90-AG90)*50+IF(COUNT(AE89:AE92)=3,(AG89+AG91+AG92)*40,(AG89+AG91+AG92)*30)) ->  | AJ90: 0 | AK90: =IF(COUNTIF(AL$13:AL90,AL90)>1,"X","") -> X | AL90: =IF(ISBLANK(AP89)," ",INDEX(BT:BT,MATCH(AP89,BR:BR,0))) ->  | AM90: =IF(ISBLANK(AP89)," ",INDEX(Starterfeld!$D:$D,MATCH(AL90,Starterfeld!$A:$A,0))) ->  | AP90: =AP89 -> 0 | AU90: =IF(ISBLANK(AQ90)," ",AQ90+(AR90-AS90)*50+IF(COUNT(AQ89:AQ92)=3,(AS89+AS91+AS92)*40,(AS89+AS91+AS92)*30)) ->  | AV90: 0 | BC90: 302 | BD90: =Serie1!$C302 -> 302 | BE90: =Serie1!$C303 -> 318 | BF90: =Serie1!$C304 -> 334 | BG90: =Serie1!$C305 -> 350 | BH90: 302 | BI90: =Serie2!$C302 -> 302 | BJ90: =Serie2!$C303 -> 318 | BK90: =Serie2!$C304 -> 334 | BL90: =Serie2!$C305 -> 350 | BM90: 302 | BN90: =Serie3!$C302 -> 302 | BO90: =Serie3!$C303 -> 318 | BP90: =Serie3!$C304 -> 334 | BQ90: =Serie3!$C305 -> 350 | BR90: 302 | BS90: =Serie4!$C302 -> 302 | BT90: =Serie4!$C303 -> 318 | BU90: =Serie4!$C304 -> 334 | BV90: =Serie4!$C305 -> 350 | BW90: 302 | BX90: =F313 -> 0 | BY90: =R313 -> 0 | BZ90: =AD313 -> 0 | CA90: =AP313 -> 0
A91: =IF(COUNTIF(B$13:B91,B91)>1,"X","") -> X | B91: =IF(ISBLANK(F89)," ",INDEX(BF:BF,MATCH(F89,BC:BC,0))) ->  | C91: =IF(ISBLANK(F89)," ",INDEX(Starterfeld!$D:$D,MATCH($B91,Starterfeld!$A:$A,0))) ->  | F91: =F89 -> 0 | K91: =IF(ISBLANK(G91)," ",G91+(H91-I91)*50+IF(COUNT(G89:G92)=3,(I89+I90+I92)*40,(I89+I90+I92)*30)) ->  | L91: 0 | M91: =IF(COUNTIF(N$13:N91,N91)>1,"X","") -> X | N91: =IF(ISBLANK(R89)," ",INDEX(BK:BK,MATCH(R89,BH:BH,0))) ->  | O91: =IF(ISBLANK(R89)," ",INDEX(Starterfeld!$D:$D,MATCH(N91,Starterfeld!$A:$A,0))) ->  | R91: =R89 -> 0 | W91: =IF(ISBLANK(S91)," ",S91+(T91-U91)*50+IF(COUNT(S89:S92)=3,(U89+U90+U92)*40,(U89+U90+U92)*30)) ->  | X91: 0 | Y91: =IF(COUNTIF(Z$13:Z91,Z91)>1,"X","") -> X | Z91: =IF(ISBLANK(AD89)," ",INDEX(BP:BP,MATCH(AD89,BM:BM,0))) ->  | AA91: =IF(ISBLANK(AD89)," ",INDEX(Starterfeld!$D:$D,MATCH(Z91,Starterfeld!$A:$A,0))) ->  | AD91: =AD89 -> 0 | AI91: =IF(ISBLANK(AE91)," ",AE91+(AF91-AG91)*50+IF(COUNT(AE89:AE92)=3,(AG89+AG90+AG92)*40,(AG89+AG90+AG92)*30)) ->  | AJ91: 0 | AK91: =IF(COUNTIF(AL$13:AL91,AL91)>1,"X","") -> X | AL91: =IF(ISBLANK(AP89)," ",INDEX(BU:BU,MATCH(AP89,BR:BR,0))) ->  | AM91: =IF(ISBLANK(AP89)," ",INDEX(Starterfeld!$D:$D,MATCH(AL91,Starterfeld!$A:$A,0))) ->  | AP91: =AP89 -> 0 | AU91: =IF(ISBLANK(AQ91)," ",AQ91+(AR91-AS91)*50+IF(COUNT(AQ89:AQ92)=3,(AS89+AS90+AS92)*40,(AS89+AS90+AS92)*30)) ->  | AV91: 0 | BC91: 303 | BD91: =Serie1!$C306 -> 303 | BE91: =Serie1!$C307 -> 319 | BF91: =Serie1!$C308 -> 335 | BG91: =Serie1!$C309 -> 351 | BH91: 303 | BI91: =Serie2!$C306 -> 303 | BJ91: =Serie2!$C307 -> 319 | BK91: =Serie2!$C308 -> 335 | BL91: =Serie2!$C309 -> 351 | BM91: 303 | BN91: =Serie3!$C306 -> 303 | BO91: =Serie3!$C307 -> 319 | BP91: =Serie3!$C308 -> 335 | BQ91: =Serie3!$C309 -> 351 | BR91: 303 | BS91: =Serie4!$C306 -> 303 | BT91: =Serie4!$C307 -> 319 | BU91: =Serie4!$C308 -> 335 | BV91: =Serie4!$C309 -> 351 | BW91: 303 | BX91: =F317 -> 0 | BY91: =R317 -> 0 | BZ91: =AD317 -> 0 | CA91: =AP317 -> 0
A92: =IF(COUNTIF(B$13:B92,B92)>1,"X","") -> X | B92: =IF(ISBLANK(F89)," ",INDEX(BG:BG,MATCH(F89,BC:BC,0))) ->  | C92: =IF(ISBLANK(F89)," ",INDEX(Starterfeld!$D:$D,MATCH($B92,Starterfeld!$A:$A,0))) ->  | F92: =F89 -> 0 | K92: =IF(ISBLANK(G92)," ",G92+(H92-I92)*50+IF(COUNT(G89:G92)=3,(I89+I90+I91)*40,(I89+I90+I91)*30)) ->  | L92: 0 | M92: =IF(COUNTIF(N$13:N92,N92)>1,"X","") -> X | N92: =IF(ISBLANK(R89)," ",INDEX(BL:BL,MATCH(R89,BH:BH,0))) ->  | O92: =IF(ISBLANK(R89)," ",INDEX(Starterfeld!$D:$D,MATCH(N92,Starterfeld!$A:$A,0))) ->  | R92: =R89 -> 0 | W92: =IF(ISBLANK(S92)," ",S92+(T92-U92)*50+IF(COUNT(S89:S92)=3,(U89+U90+U91)*40,(U89+U90+U91)*30)) ->  | X92: 0 | Y92: =IF(COUNTIF(Z$13:Z92,Z92)>1,"X","") -> X | Z92: =IF(ISBLANK(AD89)," ",INDEX(BQ:BQ,MATCH(AD89,BM:BM,0))) ->  | AA92: =IF(ISBLANK(AD89)," ",INDEX(Starterfeld!$D:$D,MATCH(Z92,Starterfeld!$A:$A,0))) ->  | AD92: =AD89 -> 0 | AI92: =IF(ISBLANK(AE92)," ",AE92+(AF92-AG92)*50+IF(COUNT(AE89:AE92)=3,(AG89+AG90+AG91)*40,(AG89+AG90+AG91)*30)) ->  | AJ92: 0 | AK92: =IF(COUNTIF(AL$13:AL92,AL92)>1,"X","") -> X | AL92: =IF(ISBLANK(AP89)," ",INDEX(BV:BV,MATCH(AP89,BR:BR,0))) ->  | AM92: =IF(ISBLANK(AP89)," ",INDEX(Starterfeld!$D:$D,MATCH(AL92,Starterfeld!$A:$A,0))) ->  | AP92: =AP89 -> 0 | AU92: =IF(ISBLANK(AQ92)," ",AQ92+(AR92-AS92)*50+IF(COUNT(AQ89:AQ92)=3,(AS89+AS90+AS91)*40,(AS89+AS90+AS91)*30)) ->  | AV92: 0 | BC92: 304 | BD92: =Serie1!$C310 -> 304 | BE92: =Serie1!$C311 -> 320 | BF92: =Serie1!$C312 -> 336 | BG92: =Serie1!$C313 -> 352 | BH92: 304 | BI92: =Serie2!$C310 -> 304 | BJ92: =Serie2!$C311 -> 320 | BK92: =Serie2!$C312 -> 336 | BL92: =Serie2!$C313 -> 352 | BM92: 304 | BN92: =Serie3!$C310 -> 304 | BO92: =Serie3!$C311 -> 320 | BP92: =Serie3!$C312 -> 336 | BQ92: =Serie3!$C313 -> 352 | BR92: 304 | BS92: =Serie4!$C310 -> 304 | BT92: =Serie4!$C311 -> 320 | BU92: =Serie4!$C312 -> 336 | BV92: =Serie4!$C313 -> 352 | BW92: 304 | BX92: =F321 -> 0 | BY92: =R321 -> 0 | BZ92: =AD321 -> 0 | CA92: =AP321 -> 0
A93: =IF(COUNTIF(B$13:B93,B93)>1,"X","") -> X | B93: =IF(ISBLANK(F93)," ",INDEX(BD:BD,MATCH(F93,BC:BC,0))) ->  | C93: =IF(ISBLANK(F93)," ",INDEX(Starterfeld!$D:$D,MATCH($B93,Starterfeld!$A:$A,0))) ->  | K93: =IF(ISBLANK(G93)," ",G93+(H93-I93)*50+IF(COUNT(G93:G96)=3,(I94+I95+I96)*40,(I94+I95+I96)*30)) ->  | L93: 0 | M93: =IF(COUNTIF(N$13:N93,N93)>1,"X","") -> X | N93: =IF(ISBLANK(R93)," ",INDEX(BI:BI,MATCH(R93,BH:BH,0))) ->  | O93: =IF(ISBLANK(R93)," ",INDEX(Starterfeld!$D:$D,MATCH(N93,Starterfeld!$A:$A,0))) ->  | W93: =IF(ISBLANK(S93)," ",S93+(T93-U93)*50+IF(COUNT(S93:S96)=3,(U94+U95+U96)*40,(U94+U95+U96)*30)) ->  | X93: 0 | Y93: =IF(COUNTIF(Z$13:Z93,Z93)>1,"X","") -> X | Z93: =IF(ISBLANK(AD93)," ",INDEX(BN:BN,MATCH(AD93,BM:BM,0))) ->  | AA93: =IF(ISBLANK(AD93)," ",INDEX(Starterfeld!$D:$D,MATCH(Z93,Starterfeld!$A:$A,0))) ->  | AI93: =IF(ISBLANK(AE93)," ",AE93+(AF93-AG93)*50+IF(COUNT(AE93:AE96)=3,(AG94+AG95+AG96)*40,(AG94+AG95+AG96)*30)) ->  | AJ93: 0 | AK93: =IF(COUNTIF(AL$13:AL93,AL93)>1,"X","") -> X | AL93: =IF(ISBLANK(AP93)," ",INDEX(BS:BS,MATCH(AP93,BR:BR,0))) ->  | AM93: =IF(ISBLANK(AP93)," ",INDEX(Starterfeld!$D:$D,MATCH(AL93,Starterfeld!$A:$A,0))) ->  | AU93: =IF(ISBLANK(AQ93)," ",AQ93+(AR93-AS93)*50+IF(COUNT(AQ93:AQ96)=3,(AS94+AS95+AS96)*40,(AS94+AS95+AS96)*30)) ->  | AV93: 0 | AY93: =SUM(L93:L96) -> 0 | AZ93: =SUM(X93:X96) -> 0 | BA93: =SUM(AJ93:AJ96) -> 0 | BB93: =SUM(AV93:AV96) -> 0 | BC93: 305 | BD93: =Serie1!$C314 -> 305 | BE93: =Serie1!$C315 -> 321 | BF93: =Serie1!$C316 -> 337 | BG93: =Serie1!$C317 -> 353 | BH93: 305 | BI93: =Serie2!$C314 -> 305 | BJ93: =Serie2!$C315 -> 321 | BK93: =Serie2!$C316 -> 337 | BL93: =Serie2!$C317 -> 353 | BM93: 305 | BN93: =Serie3!$C314 -> 305 | BO93: =Serie3!$C315 -> 321 | BP93: =Serie3!$C316 -> 337 | BQ93: =Serie3!$C317 -> 353 | BR93: 305 | BS93: =Serie4!$C314 -> 305 | BT93: =Serie4!$C315 -> 321 | BU93: =Serie4!$C316 -> 337 | BV93: =Serie4!$C317 -> 353 | BW93: 305 | BX93: =F325 -> 0 | BY93: =R325 -> 0 | BZ93: =AD325 -> 0 | CA93: =AP325 -> 0
A94: =IF(COUNTIF(B$13:B94,B94)>1,"X","") -> X | B94: =IF(ISBLANK(F93)," ",INDEX(BE:BE,MATCH(F93,BC:BC,0))) ->  | C94: =IF(ISBLANK(F93)," ",INDEX(Starterfeld!$D:$D,MATCH($B94,Starterfeld!$A:$A,0))) ->  | F94: =F93 -> 0 | K94: =IF(ISBLANK(G94)," ",G94+(H94-I94)*50+IF(COUNT(G93:G96)=3,(I93+I95+I96)*40,(I93+I95+I96)*30)) ->  | L94: 0 | M94: =IF(COUNTIF(N$13:N94,N94)>1,"X","") -> X | N94: =IF(ISBLANK(R93)," ",INDEX(BJ:BJ,MATCH(R93,BH:BH,0))) ->  | O94: =IF(ISBLANK(R93)," ",INDEX(Starterfeld!$D:$D,MATCH(N94,Starterfeld!$A:$A,0))) ->  | R94: =R93 -> 0 | W94: =IF(ISBLANK(S94)," ",S94+(T94-U94)*50+IF(COUNT(S93:S96)=3,(U93+U95+U96)*40,(U93+U95+U96)*30)) ->  | X94: 0 | Y94: =IF(COUNTIF(Z$13:Z94,Z94)>1,"X","") -> X | Z94: =IF(ISBLANK(AD93)," ",INDEX(BO:BO,MATCH(AD93,BM:BM,0))) ->  | AA94: =IF(ISBLANK(AD93)," ",INDEX(Starterfeld!$D:$D,MATCH(Z94,Starterfeld!$A:$A,0))) ->  | AD94: =AD93 -> 0 | AI94: =IF(ISBLANK(AE94)," ",AE94+(AF94-AG94)*50+IF(COUNT(AE93:AE96)=3,(AG93+AG95+AG96)*40,(AG93+AG95+AG96)*30)) ->  | AJ94: 0 | AK94: =IF(COUNTIF(AL$13:AL94,AL94)>1,"X","") -> X | AL94: =IF(ISBLANK(AP93)," ",INDEX(BT:BT,MATCH(AP93,BR:BR,0))) ->  | AM94: =IF(ISBLANK(AP93)," ",INDEX(Starterfeld!$D:$D,MATCH(AL94,Starterfeld!$A:$A,0))) ->  | AP94: =AP93 -> 0 | AU94: =IF(ISBLANK(AQ94)," ",AQ94+(AR94-AS94)*50+IF(COUNT(AQ93:AQ96)=3,(AS93+AS95+AS96)*40,(AS93+AS95+AS96)*30)) ->  | AV94: 0 | BC94: 306 | BD94: =Serie1!$C318 -> 306 | BE94: =Serie1!$C319 -> 322 | BF94: =Serie1!$C320 -> 338 | BG94: =Serie1!$C321 -> 354 | BH94: 306 | BI94: =Serie2!$C318 -> 306 | BJ94: =Serie2!$C319 -> 322 | BK94: =Serie2!$C320 -> 338 | BL94: =Serie2!$C321 -> 354 | BM94: 306 | BN94: =Serie3!$C318 -> 306 | BO94: =Serie3!$C319 -> 322 | BP94: =Serie3!$C320 -> 338 | BQ94: =Serie3!$C321 -> 354 | BR94: 306 | BS94: =Serie4!$C318 -> 306 | BT94: =Serie4!$C319 -> 322 | BU94: =Serie4!$C320 -> 338 | BV94: =Serie4!$C321 -> 354 | BW94: 306 | BX94: =F329 -> 0 | BY94: =R329 -> 0 | BZ94: =AD329 -> 0 | CA94: =AP329 -> 0
A95: =IF(COUNTIF(B$13:B95,B95)>1,"X","") -> X | B95: =IF(ISBLANK(F93)," ",INDEX(BF:BF,MATCH(F93,BC:BC,0))) ->  | C95: =IF(ISBLANK(F93)," ",INDEX(Starterfeld!$D:$D,MATCH($B95,Starterfeld!$A:$A,0))) ->  | F95: =F93 -> 0 | K95: =IF(ISBLANK(G95)," ",G95+(H95-I95)*50+IF(COUNT(G93:G96)=3,(I93+I94+I96)*40,(I93+I94+I96)*30)) ->  | L95: 0 | M95: =IF(COUNTIF(N$13:N95,N95)>1,"X","") -> X | N95: =IF(ISBLANK(R93)," ",INDEX(BK:BK,MATCH(R93,BH:BH,0))) ->  | O95: =IF(ISBLANK(R93)," ",INDEX(Starterfeld!$D:$D,MATCH(N95,Starterfeld!$A:$A,0))) ->  | R95: =R93 -> 0 | W95: =IF(ISBLANK(S95)," ",S95+(T95-U95)*50+IF(COUNT(S93:S96)=3,(U93+U94+U96)*40,(U93+U94+U96)*30)) ->  | X95: 0 | Y95: =IF(COUNTIF(Z$13:Z95,Z95)>1,"X","") -> X | Z95: =IF(ISBLANK(AD93)," ",INDEX(BP:BP,MATCH(AD93,BM:BM,0))) ->  | AA95: =IF(ISBLANK(AD93)," ",INDEX(Starterfeld!$D:$D,MATCH(Z95,Starterfeld!$A:$A,0))) ->  | AD95: =AD93 -> 0 | AI95: =IF(ISBLANK(AE95)," ",AE95+(AF95-AG95)*50+IF(COUNT(AE93:AE96)=3,(AG93+AG94+AG96)*40,(AG93+AG94+AG96)*30)) ->  | AJ95: 0 | AK95: =IF(COUNTIF(AL$13:AL95,AL95)>1,"X","") -> X | AL95: =IF(ISBLANK(AP93)," ",INDEX(BU:BU,MATCH(AP93,BR:BR,0))) ->  | AM95: =IF(ISBLANK(AP93)," ",INDEX(Starterfeld!$D:$D,MATCH(AL95,Starterfeld!$A:$A,0))) ->  | AP95: =AP93 -> 0 | AU95: =IF(ISBLANK(AQ95)," ",AQ95+(AR95-AS95)*50+IF(COUNT(AQ93:AQ96)=3,(AS93+AS94+AS96)*40,(AS93+AS94+AS96)*30)) ->  | AV95: 0 | BC95: 307 | BD95: =Serie1!$C322 -> 307 | BE95: =Serie1!$C323 -> 323 | BF95: =Serie1!$C324 -> 339 | BG95: =Serie1!$C325 -> 355 | BH95: 307 | BI95: =Serie2!$C322 -> 307 | BJ95: =Serie2!$C323 -> 323 | BK95: =Serie2!$C324 -> 339 | BL95: =Serie2!$C325 -> 355 | BM95: 307 | BN95: =Serie3!$C322 -> 307 | BO95: =Serie3!$C323 -> 323 | BP95: =Serie3!$C324 -> 339 | BQ95: =Serie3!$C325 -> 355 | BR95: 307 | BS95: =Serie4!$C322 -> 307 | BT95: =Serie4!$C323 -> 323 | BU95: =Serie4!$C324 -> 339 | BV95: =Serie4!$C325 -> 355 | BW95: 307 | BX95: =F333 -> 0 | BY95: =R333 -> 0 | BZ95: =AD333 -> 0 | CA95: =AP333 -> 0
A96: =IF(COUNTIF(B$13:B96,B96)>1,"X","") -> X | B96: =IF(ISBLANK(F93)," ",INDEX(BG:BG,MATCH(F93,BC:BC,0))) ->  | C96: =IF(ISBLANK(F93)," ",INDEX(Starterfeld!$D:$D,MATCH($B96,Starterfeld!$A:$A,0))) ->  | F96: =F93 -> 0 | K96: =IF(ISBLANK(G96)," ",G96+(H96-I96)*50+IF(COUNT(G93:G96)=3,(I93+I94+I95)*40,(I93+I94+I95)*30)) ->  | L96: 0 | M96: =IF(COUNTIF(N$13:N96,N96)>1,"X","") -> X | N96: =IF(ISBLANK(R93)," ",INDEX(BL:BL,MATCH(R93,BH:BH,0))) ->  | O96: =IF(ISBLANK(R93)," ",INDEX(Starterfeld!$D:$D,MATCH(N96,Starterfeld!$A:$A,0))) ->  | R96: =R93 -> 0 | W96: =IF(ISBLANK(S96)," ",S96+(T96-U96)*50+IF(COUNT(S93:S96)=3,(U93+U94+U95)*40,(U93+U94+U95)*30)) ->  | X96: 0 | Y96: =IF(COUNTIF(Z$13:Z96,Z96)>1,"X","") -> X | Z96: =IF(ISBLANK(AD93)," ",INDEX(BQ:BQ,MATCH(AD93,BM:BM,0))) ->  | AA96: =IF(ISBLANK(AD93)," ",INDEX(Starterfeld!$D:$D,MATCH(Z96,Starterfeld!$A:$A,0))) ->  | AD96: =AD93 -> 0 | AI96: =IF(ISBLANK(AE96)," ",AE96+(AF96-AG96)*50+IF(COUNT(AE93:AE96)=3,(AG93+AG94+AG95)*40,(AG93+AG94+AG95)*30)) ->  | AJ96: 0 | AK96: =IF(COUNTIF(AL$13:AL96,AL96)>1,"X","") -> X | AL96: =IF(ISBLANK(AP93)," ",INDEX(BV:BV,MATCH(AP93,BR:BR,0))) ->  | AM96: =IF(ISBLANK(AP93)," ",INDEX(Starterfeld!$D:$D,MATCH(AL96,Starterfeld!$A:$A,0))) ->  | AP96: =AP93 -> 0 | AU96: =IF(ISBLANK(AQ96)," ",AQ96+(AR96-AS96)*50+IF(COUNT(AQ93:AQ96)=3,(AS93+AS94+AS95)*40,(AS93+AS94+AS95)*30)) ->  | AV96: 0 | BC96: 308 | BD96: =Serie1!$C326 -> 308 | BE96: =Serie1!$C327 -> 324 | BF96: =Serie1!$C328 -> 340 | BG96: =Serie1!$C329 -> 356 | BH96: 308 | BI96: =Serie2!$C326 -> 308 | BJ96: =Serie2!$C327 -> 324 | BK96: =Serie2!$C328 -> 340 | BL96: =Serie2!$C329 -> 356 | BM96: 308 | BN96: =Serie3!$C326 -> 308 | BO96: =Serie3!$C327 -> 324 | BP96: =Serie3!$C328 -> 340 | BQ96: =Serie3!$C329 -> 356 | BR96: 308 | BS96: =Serie4!$C326 -> 308 | BT96: =Serie4!$C327 -> 324 | BU96: =Serie4!$C328 -> 340 | BV96: =Serie4!$C329 -> 356 | BW96: 308 | BX96: =F337 -> 0 | BY96: =R337 -> 0 | BZ96: =AD337 -> 0 | CA96: =AP337 -> 0
A97: =IF(COUNTIF(B$13:B97,B97)>1,"X","") -> X | B97: =IF(ISBLANK(F97)," ",INDEX(BD:BD,MATCH(F97,BC:BC,0))) ->  | C97: =IF(ISBLANK(F97)," ",INDEX(Starterfeld!$D:$D,MATCH($B97,Starterfeld!$A:$A,0))) ->  | K97: =IF(ISBLANK(G97)," ",G97+(H97-I97)*50+IF(COUNT(G97:G100)=3,(I98+I99+I100)*40,(I98+I99+I100)*30)) ->  | L97: 0 | M97: =IF(COUNTIF(N$13:N97,N97)>1,"X","") -> X | N97: =IF(ISBLANK(R97)," ",INDEX(BI:BI,MATCH(R97,BH:BH,0))) ->  | O97: =IF(ISBLANK(R97)," ",INDEX(Starterfeld!$D:$D,MATCH(N97,Starterfeld!$A:$A,0))) ->  | W97: =IF(ISBLANK(S97)," ",S97+(T97-U97)*50+IF(COUNT(S97:S100)=3,(U98+U99+U100)*40,(U98+U99+U100)*30)) ->  | X97: 0 | Y97: =IF(COUNTIF(Z$13:Z97,Z97)>1,"X","") -> X | Z97: =IF(ISBLANK(AD97)," ",INDEX(BN:BN,MATCH(AD97,BM:BM,0))) ->  | AA97: =IF(ISBLANK(AD97)," ",INDEX(Starterfeld!$D:$D,MATCH(Z97,Starterfeld!$A:$A,0))) ->  | AI97: =IF(ISBLANK(AE97)," ",AE97+(AF97-AG97)*50+IF(COUNT(AE97:AE100)=3,(AG98+AG99+AG100)*40,(AG98+AG99+AG100)*30)) ->  | AJ97: 0 | AK97: =IF(COUNTIF(AL$13:AL97,AL97)>1,"X","") -> X | AL97: =IF(ISBLANK(AP97)," ",INDEX(BS:BS,MATCH(AP97,BR:BR,0))) ->  | AM97: =IF(ISBLANK(AP97)," ",INDEX(Starterfeld!$D:$D,MATCH(AL97,Starterfeld!$A:$A,0))) ->  | AU97: =IF(ISBLANK(AQ97)," ",AQ97+(AR97-AS97)*50+IF(COUNT(AQ97:AQ100)=3,(AS98+AS99+AS100)*40,(AS98+AS99+AS100)*30)) ->  | AV97: 0 | AY97: =SUM(L97:L100) -> 0 | AZ97: =SUM(X97:X100) -> 0 | BA97: =SUM(AJ97:AJ100) -> 0 | BB97: =SUM(AV97:AV100) -> 0 | BC97: 309 | BD97: =Serie1!$C330 -> 309 | BE97: =Serie1!$C331 -> 325 | BF97: =Serie1!$C332 -> 341 | BG97: =Serie1!$C333 -> 357 | BH97: 309 | BI97: =Serie2!$C330 -> 309 | BJ97: =Serie2!$C331 -> 325 | BK97: =Serie2!$C332 -> 341 | BL97: =Serie2!$C333 -> 357 | BM97: 309 | BN97: =Serie3!$C330 -> 309 | BO97: =Serie3!$C331 -> 325 | BP97: =Serie3!$C332 -> 341 | BQ97: =Serie3!$C333 -> 357 | BR97: 309 | BS97: =Serie4!$C330 -> 309 | BT97: =Serie4!$C331 -> 325 | BU97: =Serie4!$C332 -> 341 | BV97: =Serie4!$C333 -> 357 | BW97: 309 | BX97: =F341 -> 0 | BY97: =R341 -> 0 | BZ97: =AD341 -> 0 | CA97: =AP341 -> 0
A98: =IF(COUNTIF(B$13:B98,B98)>1,"X","") -> X | B98: =IF(ISBLANK(F97)," ",INDEX(BE:BE,MATCH(F97,BC:BC,0))) ->  | C98: =IF(ISBLANK(F97)," ",INDEX(Starterfeld!$D:$D,MATCH($B98,Starterfeld!$A:$A,0))) ->  | F98: =F97 -> 0 | K98: =IF(ISBLANK(G98)," ",G98+(H98-I98)*50+IF(COUNT(G97:G100)=3,(I97+I99+I100)*40,(I97+I99+I100)*30)) ->  | L98: 0 | M98: =IF(COUNTIF(N$13:N98,N98)>1,"X","") -> X | N98: =IF(ISBLANK(R97)," ",INDEX(BJ:BJ,MATCH(R97,BH:BH,0))) ->  | O98: =IF(ISBLANK(R97)," ",INDEX(Starterfeld!$D:$D,MATCH(N98,Starterfeld!$A:$A,0))) ->  | R98: =R97 -> 0 | W98: =IF(ISBLANK(S98)," ",S98+(T98-U98)*50+IF(COUNT(S97:S100)=3,(U97+U99+U100)*40,(U97+U99+U100)*30)) ->  | X98: 0 | Y98: =IF(COUNTIF(Z$13:Z98,Z98)>1,"X","") -> X | Z98: =IF(ISBLANK(AD97)," ",INDEX(BO:BO,MATCH(AD97,BM:BM,0))) ->  | AA98: =IF(ISBLANK(AD97)," ",INDEX(Starterfeld!$D:$D,MATCH(Z98,Starterfeld!$A:$A,0))) ->  | AD98: =AD97 -> 0 | AI98: =IF(ISBLANK(AE98)," ",AE98+(AF98-AG98)*50+IF(COUNT(AE97:AE100)=3,(AG97+AG99+AG100)*40,(AG97+AG99+AG100)*30)) ->  | AJ98: 0 | AK98: =IF(COUNTIF(AL$13:AL98,AL98)>1,"X","") -> X | AL98: =IF(ISBLANK(AP97)," ",INDEX(BT:BT,MATCH(AP97,BR:BR,0))) ->  | AM98: =IF(ISBLANK(AP97)," ",INDEX(Starterfeld!$D:$D,MATCH(AL98,Starterfeld!$A:$A,0))) ->  | AP98: =AP97 -> 0 | AU98: =IF(ISBLANK(AQ98)," ",AQ98+(AR98-AS98)*50+IF(COUNT(AQ97:AQ100)=3,(AS97+AS99+AS100)*40,(AS97+AS99+AS100)*30)) ->  | AV98: 0 | BC98: 310 | BD98: =Serie1!$C334 -> 310 | BE98: =Serie1!$C335 -> 326 | BF98: =Serie1!$C336 -> 342 | BG98: =Serie1!$C337 -> 358 | BH98: 310 | BI98: =Serie2!$C334 -> 310 | BJ98: =Serie2!$C335 -> 326 | BK98: =Serie2!$C336 -> 342 | BL98: =Serie2!$C337 -> 358 | BM98: 310 | BN98: =Serie3!$C334 -> 310 | BO98: =Serie3!$C335 -> 326 | BP98: =Serie3!$C336 -> 342 | BQ98: =Serie3!$C337 -> 358 | BR98: 310 | BS98: =Serie4!$C334 -> 310 | BT98: =Serie4!$C335 -> 326 | BU98: =Serie4!$C336 -> 342 | BV98: =Serie4!$C337 -> 358 | BW98: 310 | BX98: =F345 -> 0 | BY98: =R345 -> 0 | BZ98: =AD345 -> 0 | CA98: =AP345 -> 0
